Workbook

Sheet REFERENCES - 05
B1: DI_05
B2: VERSION | D2: 1
B5: DUREE PERIODE BENEFICE | D5: 05 ANS | H5: CREATION
B7: RAISON SOCIALE:
B9: PROMOTEUR
H10: 1
B12: PARAMÉTRAGE DES TAUX APPLIQUÉS:
D13: Taux | E13: Plafond (en F.CFA)
B14: Taux ITS nationaux | D14: 0.012 | E14: Aucun
B15: Taux ITS non nationaux | D15: 0.104 | E15: Aucun
B16: Taux FDFP | D16: 0.016 | E16: Aucun
B17: Taux de Charges Sociales | E17: Aucun
B18: Accident de travail | D18: 2% à 5% | E18: 70 000/mois/agent
B19: Prestation Familiale | D19: 0.0575 | E19: 70 000/mois/agent
B20: Retraite | D20: 0.077 | E20: 1 647 315/mois/agent
B21: Taux TSE | D21: 0.001 | E21: Aucun
B22: Taux BIC | D22: 0.25 | E22: Aucun
B25: PARAMÉTRAGE DUREE D'AMORTISSEMENTS (en année)
B26: Frais d'établissement | D26: 2 | E26: ans
B27: Logiciel | D27: 3 | E27: ans
B28: Autres Immob. Incorporelles | D28: 2 | E28: ans
B29: Terrains | D29: 0 | E29: ans
B30: Constructions et Bâtiments | D30: 20 | E30: ans
B31: Installations et Agencements | D31: 10 | E31: ans
B32: Matériels et Outillages | D32: 5 | E32: ans
B33: Matériels de Transport | D33: 3 | E33: ans
B34: Mat. et Mobil.de Bureau | D34: 10 | E34: ans
B35: Matériel Informatique | D35: 2 | E35: ans

Sheet TABLEAUX DE FINANCEMENT -05
C1: ='REFERENCES - 05'!D7 -> 0 | D1: ='REFERENCES - 05'!D7 -> 0 | G1: ='REFERENCES - 05'!D9 -> 0
E3: TABLEAUX DE FINANCEMENT
B6: MODE DE FINANCEMENT
D8: Montant | E8: Pourcentage
B9: Fonds propres
B10: Apports en Compte Courants associés
B11: Emprunt bancaire
B12: Autre(s) financement(s)
B13: TOTAL
B15: CONDITIONS DE FINANCEMENT (Emprunt bancaire ou Compte courants associés)
B17: Montant demandé
B18: Taux
B19: Durée (Mois)
B20: Montant obtenu
B21: Pourcentage montant obtenu
D24: Année 1 | E24: Année 2 | F24: Année 3 | G24: Année 4 | H24: Année 5
B25: Intérêt annuel
B26: Capital annuel remboursé
B27: Montant annuel Remboursé (1)
B28: Reste à Rembourser
B31: (1)Montant annuel Remboursé= Intérêt annuel+Capital annuel remboursé

Sheet STRUCTURE DU CA - 05
C1: ='REFERENCES - 05'!D7 -> 0 | G1: ='REFERENCES - 05'!D9 -> 0
B2: STRUCTURE DU CHIFFRE D'AFFAIRES (HORS TAXE)
M3: (En milliers de F. Cfa)
B4: FAMILLE ou CATEGORIES de PRODUITS | C4: Unité de Mesure | D4: PREMIERE ANNEE DE PRODUCTION | I4: CINQUIEME ANNEE DE PRODUCTION
D5: QUANTITE | E5: VENTE LOCALE HT (en valeur) | F5: VENTE EXPORT UEMOA (en valeur) | G5: VENTE EXPORT HORS UEMOA (en valeur) | H5: TOTAL VENTE HT (en valeur) | I5: QUANTITE | J5: VENTE LOCALE HT (en valeur) | K5: VENTE EXPORT UEMOA (en valeur) | L5: VENTE EXPORT HORS UEMOA (en valeur) | M5: TOTAL VENTE HT (en valeur)
E6: En milliers de F. Cfa | J6: En milliers de F. Cfa
A7: 1 | H7: =SUM(E7:G7) -> 0 | M7: =SUM(J7:L7) -> 0
A8: 2 | H8: =SUM(E8:G8) -> 0 | M8: =SUM(J8:L8) -> 0
A9: 3 | H9: 0 | M9: 0
A10: 4 | H10: 0 | M10: 0
A11: 5 | H11: 0 | M11: 0
A12: 6 | H12: 0 | M12: 0
A13: 7 | H13: 0 | M13: 0
A14: 8 | H14: 0 | M14: 0
A15: 9 | H15: 0 | M15: 0
A16: 10 | H16: 0 | M16: 0
A17: 11 | H17: 0 | M17: 0
A18: 12 | H18: 0 | M18: 0
B19: NON VENTILE | H19: 0 | M19: =SUM(J19:L19) -> 0
B20: TOTAL | E20: =SUM(E7:E19) -> 0 | F20: =SUM(F7:F19) -> 0 | G20: =SUM(G7:G19) -> 0 | H20: =SUM(H7:H19) -> 0 | J20: =SUM(J7:J19) -> 0 | K20: =SUM(K7:K19) -> 0 | L20: =SUM(L7:L19) -> 0 | M20: =SUM(M7:M19) -> 0

Sheet EVOLUTION DU CA - 05
C1: ='REFERENCES - 05'!D7 -> 0 | F1: ='REFERENCES - 05'!D9 -> 0 | G1: =C1 -> 0 | J1: =F1 -> 0
A3: EVOLUTION DU CHIFFRE D'AFFAIRES | G3: (En milliers de F. Cfa)
B5: AN 1 | C5: AN 2 | D5: AN 3 | E5: AN 4 | F5: AN 5 (1)
A7: VENTE LOCALE | B7: ='STRUCTURE DU CA - 05'!$E$20 -> 0 | F7: ='STRUCTURE DU CA - 05'!$J$20 -> 0
A8: VENTE EXPORT UEMOA | B8: ='STRUCTURE DU CA - 05'!$F$20 -> 0 | F8: ='STRUCTURE DU CA - 05'!$K$20 -> 0
A9: VENTE EXPORT HORS UEMOA | B9: ='STRUCTURE DU CA - 05'!$G$20 -> 0 | F9: ='STRUCTURE DU CA - 05'!$L$20 -> 0
A10: TOTAL (2) | B10: =SUM(B7:B9) -> 0 | C10: =SUM(C7:C9) -> 0 | D10: 0 | E10: 0 | F10: 0
A11: Variation N par rapport à N-1 | C11: =IF(B10=0,0,(C10-B10)/B10) -> 0 | D11: 0 | E11: 0 | F11: 0
A14: (1) La cinquième année d'exploitation est supposée correspondre à l'année de croisière.
A15: (2) Ce total est à reporter sur la ligne Chiffre d'affaires du tableau "COMPTE de RESULTAT". Les totaux des années 1 et 5 du tableau "STRUCTURE DU CA" sont cohérents avec ceux de ce tableau.

Sheet SOURCING - 05
C1: ='REFERENCES - 05'!D7 -> 0 | G1: ='REFERENCES - 05'!D9 -> 0
A3: ORIGINE DES PRINCIPAUX INTRANTS (1) & LOCALISATION DES PRINCIPAUX FOURNISSEURS
L4: (En milliers de F. Cfa)
A5: DESIGNATION DE L'INTRANT | B5: Unité de Mesure | C5: PREMIERE ANNEE DE PRODUCTION | H5: CINQUIEME ANNEE DE PRODUCTION
C6: ORIGINE DE LA MATIERE (2) | D6: POIDS DANS LES ACHATS (3) | G6: LOCALISATION DU PRINCIPAL FOURNISSEUR (4) | H6: ORIGINE DE LA MATIERE (2) | I6: POIDS DANS LES ACHATS (3) | L6: LOCALISATION DU PRINCIPAL FOURNISSEUR (4)
D7: Quantité | E7: Valeur HT | F7: % | I7: Quantité | J7: Valeur HT | K7: %
E8: (En milliers F. Cfa) | J8: (En milliers F. Cfa)
F9: =IF($E$27=0,0,E9/$E$27) -> 0 | K9: =IF($J$27=0,0,J9/$J$27) -> 0
F10: =IF($E$27=0,0,E10/$E$27) -> 0 | K10: =IF($J$27=0,0,J10/$J$27) -> 0
F11: =IF($E$27=0,0,E11/$E$27) -> 0 | K11: =IF($J$27=0,0,J11/$J$27) -> 0
F12: =IF($E$27=0,0,E12/$E$27) -> 0 | K12: =IF($J$27=0,0,J12/$J$27) -> 0
F13: 0 | K13: 0
F14: =IF($E$27=0,0,E14/$E$27) -> 0 | K14: =IF($J$27=0,0,J14/$J$27) -> 0
F15: =IF($E$27=0,0,E15/$E$27) -> 0 | K15: =IF($J$27=0,0,J15/$J$27) -> 0
F16: =IF($E$27=0,0,E16/$E$27) -> 0 | K16: =IF($J$27=0,0,J16/$J$27) -> 0
F17: 0 | K17: 0
F18: 0 | K18: 0
F19: =IF($E$27=0,0,E19/$E$27) -> 0 | K19: =IF($J$27=0,0,J19/$J$27) -> 0
F20: =IF($E$27=0,0,E20/$E$27) -> 0 | K20: =IF($J$27=0,0,J20/$J$27) -> 0
F21: =IF($E$27=0,0,E21/$E$27) -> 0 | K21: =IF($J$27=0,0,J21/$J$27) -> 0
A22: SOUS TOTAL | E22: =SUM(E9:E21) -> 0 | F22: =IF($E$27=0,0,E22/$E$27) -> 0 | J22: =SUM(J9:J21) -> 0 | K22: =IF($J$27=0,0,J22/$J$27) -> 0
A24: Eau & Electricité | F24: =IF($E$27=0,0,E24/$E$27) -> 0 | K24: =IF($J$27=0,0,J24/$J$27) -> 0
A25: Autres Mat. Pre., Marchandises & Fournitures | F25: =IF($E$27=0,0,E25/$E$27) -> 0 | K25: =IF($J$27=0,0,J25/$J$27) -> 0
A27: TOTAL ACHAT MAT. PRE., MARCH & FOURNITURES (5) | E27: =E25+E24+E22 -> 0 | F27: =IF($E$27=0,0,E27/$E$27) -> 0 | J27: =J25+J24+J22 -> 0 | K27: =IF($J$27=0,0,J27/$J$27) -> 0
A29: (1) | B29: Les 5 principaux intrants ou ceux constituant les 20/80
A30: (2) | B30: Il s'agit du pays de production de l'intrant et non du pays de provenance
A31: (3) | B31: Les achats s'entendent ceux de la classe 60 du plan comptable SYSCOHADA;
A32: (4) | B32: Précisez s'il s'agit d'un fournisseur local ou d'un fournisseur étranger
A33: (5) | B33: Ce total alimente la ligne "Achat Mat. Prem., Marchandises & Fournitures" du tableau "COMPTE DE RESULTAT" pour les années 1 et 5.

Sheet STRUCT.EMPLOI&MASS SALARIALE-05
C1: ='REFERENCES - 05'!D7 -> 0 | G1: ='REFERENCES - 05'!D9 -> 0
A3: STRUCTURE DES EMPLOIS & MASSE SALARIALE | J3: (En milliers de F. Cfa)
A5: CATEGORIES PROFESSIONNELLES | B5: PREMIERE ANNEE DE PRODUCTION | G5: CINQUIEME ANNEE DE PRODUCTION (1)
B6: Effectif | C6: Salaires Annuels Totaux | D6: ITS (2) | E6: Charges Sociales | F6: Coût Total | G6: Effectif | H6: Salaires Annuels Totaux | I6: ITS (2) | J6: Charges Sociales | K6: Coût Total
A8: Nationaux
A9: Cadres supérieurs (DG & directeurs) | D9: =C9*'REFERENCES - 05'!$D$14 -> 0 | F9: =D9+E9+C9 -> 0 | I9: =H9*'REFERENCES - 05'!$D$14 -> 0 | K9: =I9+J9+H9 -> 0
A10: Cadres moyens | D10: =C10*'REFERENCES - 05'!$D$14 -> 0 | F10: =D10+E10+C10 -> 0 | I10: =H10*'REFERENCES - 05'!$D$14 -> 0 | K10: =I10+J10+H10 -> 0
A11: Agents Maîtrise | D11: =C11*'REFERENCES - 05'!$D$14 -> 0 | F11: =D11+E11+C11 -> 0 | I11: =H11*'REFERENCES - 05'!$D$14 -> 0 | K11: =I11+J11+H11 -> 0
A12: Employés & Ouvriers | D12: =C12*'REFERENCES - 05'!$D$14 -> 0 | F12: =D12+E12+C12 -> 0 | I12: =H12*'REFERENCES - 05'!$D$14 -> 0 | K12: =I12+J12+H12 -> 0
A13: Total Nationaux | B13: =SUM(B9:B12) -> 0 | C13: 0 | D13: 0 | E13: 0 | F13: 0 | G13: 0 | H13: 0 | I13: 0 | J13: 0 | K13: 0
A14: Dont Permanents | D14: =C14*'REFERENCES - 05'!$D$14 -> 0 | F14: =D14+E14+C14 -> 0 | I14: =H14*'REFERENCES - 05'!$D$14 -> 0 | K14: =I14+J14+H14 -> 0
A15: Dont Occasionnels(3) | D15: =C15*'REFERENCES - 05'!$D$14 -> 0 | F15: =D15+E15+C15 -> 0 | I15: =H15*'REFERENCES - 05'!$D$14 -> 0 | K15: =I15+J15+H15 -> 0
A17: Autres Africains
A18: Cadres supérieurs (DG & directeurs) | D18: =C18*'REFERENCES - 05'!$D$15 -> 0 | F18: =D18+E18+C18 -> 0 | I18: =H18*'REFERENCES - 05'!$D$15 -> 0 | K18: =I18+J18+H18 -> 0
A19: Cadres moyens | D19: =C19*'REFERENCES - 05'!$D$15 -> 0 | F19: =D19+E19+C19 -> 0 | I19: =H19*'REFERENCES - 05'!$D$15 -> 0 | K19: =I19+J19+H19 -> 0
A20: Agents Maîtrise | D20: =C20*'REFERENCES - 05'!$D$15 -> 0 | F20: =D20+E20+C20 -> 0 | I20: =H20*'REFERENCES - 05'!$D$15 -> 0 | K20: =I20+J20+H20 -> 0
A21: Employés & Ouvriers | D21: =C21*'REFERENCES - 05'!$D$15 -> 0 | F21: =D21+E21+C21 -> 0 | I21: =H21*'REFERENCES - 05'!$D$15 -> 0 | K21: =I21+J21+H21 -> 0
A22: Total autres Africains | B22: =SUM(B18:B21) -> 0 | C22: 0 | D22: 0 | E22: 0 | F22: 0 | G22: 0 | H22: 0 | I22: 0 | J22: 0 | K22: =SUM(K18:K21) -> 0
A23: Dont Permanents | D23: =C23*'REFERENCES - 05'!$D$15 -> 0 | F23: =D23+E23+C23 -> 0 | I23: =H23*'REFERENCES - 05'!$D$15 -> 0 | K23: =I23+J23+H23 -> 0
A24: Dont Occasionnels(3) | D24: =C24*'REFERENCES - 05'!$D$15 -> 0 | F24: =D24+E24+C24 -> 0 | I24: =H24*'REFERENCES - 05'!$D$15 -> 0 | K24: =I24+J24+H24 -> 0
A26: Non Africains
A27: Cadres supérieurs (DG & directeurs) | D27: =C27*'REFERENCES - 05'!$D$15 -> 0 | F27: =D27+E27+C27 -> 0 | I27: =H27*'REFERENCES - 05'!$D$15 -> 0 | K27: =I27+J27+H27 -> 0
A28: Cadres moyens | D28: =C28*'REFERENCES - 05'!$D$15 -> 0 | F28: =D28+E28+C28 -> 0 | I28: =H28*'REFERENCES - 05'!$D$15 -> 0 | K28: =I28+J28+H28 -> 0
A29: Agents Maîtrise | D29: =C29*'REFERENCES - 05'!$D$15 -> 0 | F29: =D29+E29+C29 -> 0 | I29: =H29*'REFERENCES - 05'!$D$15 -> 0 | K29: =I29+J29+H29 -> 0
A30: Employés & Ouvriers | D30: =C30*'REFERENCES - 05'!$D$15 -> 0 | F30: =D30+E30+C30 -> 0 | I30: =H30*'REFERENCES - 05'!$D$15 -> 0 | K30: =I30+J30+H30 -> 0
A31: Total Non Africains | B31: =SUM(B27:B30) -> 0 | C31: 0 | D31: 0 | E31: 0 | F31: =SUM(F27:F30) -> 0 | G31: 0 | H31: 0 | I31: 0 | J31: 0 | K31: =SUM(K27:K30) -> 0
A32: Dont Permanents | D32: =C32*'REFERENCES - 05'!$D$15 -> 0 | F32: =D32+E32+C32 -> 0 | I32: =H32*'REFERENCES - 05'!$D$15 -> 0 | K32: =I32+J32+H32 -> 0
A33: Dont Occasionnels(3) | D33: =C33*'REFERENCES - 05'!$D$15 -> 0 | F33: =D33+E33+C33 -> 0 | I33: =H33*'REFERENCES - 05'!$D$15 -> 0 | K33: =I33+J33+H33 -> 0
A35: Emplois existants | B35: =B36+B37 -> 0 | C35: 0 | D35: 0 | E35: 0 | F35: 0 | G35: 0 | H35: 0 | I35: 0 | J35: 0 | K35: 0
A36: Dont Permanents | F36: =C36+D36+E36 -> 0
A37: Dont Occasionnels(3) | F37: =C37+D37+E37 -> 0
A38: TOTAL (4) | B38: =B13+B22+B31 -> 0 | C38: 0 | D38: 0 | E38: =E13+E22+E31 -> 0 | F38: =F13+F22+F31 -> 0 | G38: 0 | H38: 0 | I38: 0 | J38: 0 | K38: =K13+K22+K31 -> 0
A39: Dont Permanents | D39: =D14+D23+D32 -> 0 | F39: =D39+E39+C39 -> 0 | I39: =I14+I23+I32 -> 0 | K39: =I39+J39+H39 -> 0
A40: Dont Occasionnels(3) | D40: =D15+D24+D33 -> 0 | F40: =D40+E40+C40 -> 0 | I40: =I15+I24+I33 -> 0 | K40: =I40+J40+H40 -> 0
A43: (1) La cinquième année d'exploitation est supposée correspondre à l'année de croisière.
A44: (2) ITS Nationaux= 2,8%salaires totaux des ivoiriens / ITS Non Nationaux= 12%salaires totaux des Non Nationaux.
A45: (3) En équivalent temps plein.
A46: (4) Les totaux des colonnes "Salaires Totaux" correspondent à la masse salariale et sont à reportés dans les "Masse Salariales (Hors ITS et Charges sociales )" de la feuille "EVOL EFFECTIF & MASS SALARIAL" pour les années 1 et 5.

Sheet EVOL EFFECTIF&MASS SALARIAL -05
C1: ='REFERENCES - 05'!D7 -> 0 | G1: ='REFERENCES - 05'!D9 -> 0
B2: EVOLUTION DES EFFECTIFS(1) & DE LA MASSE SALARIALE(2) | K2: (En milliers F. Cfa)
A4: CATEGORIES PROFESSIONNELLES | B4: ANNEE 1 | D4: ANNEE 2 | F4: ANNEE 3 | H4: ANNEE 4 | J4: ANNEE 5 (3)
B5: Effectif | C5: Masse Salariale (Hors ITS) | D5: Effectif | E5: Masse Salariale (Hors ITS) | F5: Effectif | G5: Masse Salariale (Hors ITS ) | H5: Effectif | I5: Masse Salariale (Hors ITS) | J5: Effectif | K5: Masse Salariale (Hors ITS)
A7: Nationaux
A9: Cadres supérieurs (DG & directeurs) | B9: =+'STRUCT.EMPLOI&MASS SALARIALE-05'!B9 -> 0 | C9: =+'STRUCT.EMPLOI&MASS SALARIALE-05'!C9+'STRUCT.EMPLOI&MASS SALARIALE-05'!E9 -> 0 | J9: =+'STRUCT.EMPLOI&MASS SALARIALE-05'!G9 -> 0 | K9: =+'STRUCT.EMPLOI&MASS SALARIALE-05'!H9+'STRUCT.EMPLOI&MASS SALARIALE-05'!J9 -> 0
A10: Cadres moyens | B10: =+'STRUCT.EMPLOI&MASS SALARIALE-05'!B10 -> 0 | C10: =+'STRUCT.EMPLOI&MASS SALARIALE-05'!C10+'STRUCT.EMPLOI&MASS SALARIALE-05'!E10 -> 0 | J10: =+'STRUCT.EMPLOI&MASS SALARIALE-05'!G10 -> 0 | K10: =+'STRUCT.EMPLOI&MASS SALARIALE-05'!H10+'STRUCT.EMPLOI&MASS SALARIALE-05'!J10 -> 0
A11: Agents Maîtrise | B11: =+'STRUCT.EMPLOI&MASS SALARIALE-05'!B11 -> 0 | C11: =+'STRUCT.EMPLOI&MASS SALARIALE-05'!C11+'STRUCT.EMPLOI&MASS SALARIALE-05'!E11 -> 0 | J11: =+'STRUCT.EMPLOI&MASS SALARIALE-05'!G11 -> 0 | K11: =+'STRUCT.EMPLOI&MASS SALARIALE-05'!H11+'STRUCT.EMPLOI&MASS SALARIALE-05'!J11 -> 0
A12: Employés & Ouvriers | B12: =+'STRUCT.EMPLOI&MASS SALARIALE-05'!B12 -> 0 | C12: =+'STRUCT.EMPLOI&MASS SALARIALE-05'!C12+'STRUCT.EMPLOI&MASS SALARIALE-05'!E12 -> 0 | J12: =+'STRUCT.EMPLOI&MASS SALARIALE-05'!G12 -> 0 | K12: =+'STRUCT.EMPLOI&MASS SALARIALE-05'!H12+'STRUCT.EMPLOI&MASS SALARIALE-05'!J12 -> 0
A13: Total Nationaux | B13: =B9+B10+B11+B12 -> 0 | C13: =C9+C10+C11+C12 -> 0 | D13: 0 | E13: 0 | F13: 0 | G13: 0 | H13: 0 | I13: 0 | J13: =J9+J10+J11+J12 -> 0 | K13: 0
A14: Dont Permanents | B14: =+'STRUCT.EMPLOI&MASS SALARIALE-05'!B14 -> 0 | C14: =+'STRUCT.EMPLOI&MASS SALARIALE-05'!C14+'STRUCT.EMPLOI&MASS SALARIALE-05'!E14 -> 0 | J14: =+'STRUCT.EMPLOI&MASS SALARIALE-05'!G14 -> 0 | K14: =+'STRUCT.EMPLOI&MASS SALARIALE-05'!H14+'STRUCT.EMPLOI&MASS SALARIALE-05'!J14 -> 0
A15: Dont Occasionnels(4) | B15: =+'STRUCT.EMPLOI&MASS SALARIALE-05'!B15 -> 0 | C15: =+'STRUCT.EMPLOI&MASS SALARIALE-05'!C15+'STRUCT.EMPLOI&MASS SALARIALE-05'!E15 -> 0 | J15: =+'STRUCT.EMPLOI&MASS SALARIALE-05'!G15 -> 0 | K15: =+'STRUCT.EMPLOI&MASS SALARIALE-05'!H15+'STRUCT.EMPLOI&MASS SALARIALE-05'!J15 -> 0
A17: Autres Africains
A19: Cadres supérieurs (DG & directeurs) | B19: =+'STRUCT.EMPLOI&MASS SALARIALE-05'!B18 -> 0 | C19: =+'STRUCT.EMPLOI&MASS SALARIALE-05'!C18+'STRUCT.EMPLOI&MASS SALARIALE-05'!E18 -> 0 | J19: =+'STRUCT.EMPLOI&MASS SALARIALE-05'!G18 -> 0 | K19: =+'STRUCT.EMPLOI&MASS SALARIALE-05'!H18+'STRUCT.EMPLOI&MASS SALARIALE-05'!J18 -> 0
A20: Cadres moyens | B20: =+'STRUCT.EMPLOI&MASS SALARIALE-05'!B19 -> 0 | C20: =+'STRUCT.EMPLOI&MASS SALARIALE-05'!C19+'STRUCT.EMPLOI&MASS SALARIALE-05'!E19 -> 0 | J20: =+'STRUCT.EMPLOI&MASS SALARIALE-05'!G19 -> 0 | K20: =+'STRUCT.EMPLOI&MASS SALARIALE-05'!H19+'STRUCT.EMPLOI&MASS SALARIALE-05'!J19 -> 0
A21: Agents Maîtrise | B21: =+'STRUCT.EMPLOI&MASS SALARIALE-05'!B20 -> 0 | C21: =+'STRUCT.EMPLOI&MASS SALARIALE-05'!C20+'STRUCT.EMPLOI&MASS SALARIALE-05'!E20 -> 0 | J21: =+'STRUCT.EMPLOI&MASS SALARIALE-05'!G20 -> 0 | K21: =+'STRUCT.EMPLOI&MASS SALARIALE-05'!H20+'STRUCT.EMPLOI&MASS SALARIALE-05'!J20 -> 0
A22: Employés & Ouvriers | B22: =+'STRUCT.EMPLOI&MASS SALARIALE-05'!B21 -> 0 | C22: =+'STRUCT.EMPLOI&MASS SALARIALE-05'!C21+'STRUCT.EMPLOI&MASS SALARIALE-05'!E21 -> 0 | J22: =+'STRUCT.EMPLOI&MASS SALARIALE-05'!G21 -> 0 | K22: =+'STRUCT.EMPLOI&MASS SALARIALE-05'!H21+'STRUCT.EMPLOI&MASS SALARIALE-05'!J21 -> 0
A23: Total autres Africains | B23: =B19+B20+B21+B22 -> 0 | C23: 0 | D23: 0 | E23: 0 | F23: 0 | G23: 0 | H23: 0 | I23: 0 | J23: 0 | K23: 0
A24: Dont Permanents | B24: =+'STRUCT.EMPLOI&MASS SALARIALE-05'!B23 -> 0 | C24: =+'STRUCT.EMPLOI&MASS SALARIALE-05'!C23+'STRUCT.EMPLOI&MASS SALARIALE-05'!E23 -> 0 | J24: =+'STRUCT.EMPLOI&MASS SALARIALE-05'!G23 -> 0 | K24: =+'STRUCT.EMPLOI&MASS SALARIALE-05'!H23+'STRUCT.EMPLOI&MASS SALARIALE-05'!J23 -> 0
A25: Dont Occasionnels(4) | B25: =+'STRUCT.EMPLOI&MASS SALARIALE-05'!B24 -> 0 | C25: =+'STRUCT.EMPLOI&MASS SALARIALE-05'!C24+'STRUCT.EMPLOI&MASS SALARIALE-05'!E24 -> 0 | J25: =+'STRUCT.EMPLOI&MASS SALARIALE-05'!G24 -> 0 | K25: =+'STRUCT.EMPLOI&MASS SALARIALE-05'!H24+'STRUCT.EMPLOI&MASS SALARIALE-05'!J24 -> 0
A27: Non Africains
A29: Cadres supérieurs (DG & directeurs) | B29: =+'STRUCT.EMPLOI&MASS SALARIALE-05'!B27 -> 0 | C29: =+'STRUCT.EMPLOI&MASS SALARIALE-05'!C27+'STRUCT.EMPLOI&MASS SALARIALE-05'!E27 -> 0 | J29: =+'STRUCT.EMPLOI&MASS SALARIALE-05'!G27 -> 0 | K29: =+'STRUCT.EMPLOI&MASS SALARIALE-05'!H27+'STRUCT.EMPLOI&MASS SALARIALE-05'!J27 -> 0
A30: Cadres moyens | B30: =+'STRUCT.EMPLOI&MASS SALARIALE-05'!B28 -> 0 | C30: =+'STRUCT.EMPLOI&MASS SALARIALE-05'!C28+'STRUCT.EMPLOI&MASS SALARIALE-05'!E28 -> 0 | J30: =+'STRUCT.EMPLOI&MASS SALARIALE-05'!G28 -> 0 | K30: =+'STRUCT.EMPLOI&MASS SALARIALE-05'!H28+'STRUCT.EMPLOI&MASS SALARIALE-05'!J28 -> 0
A31: Agents Maîtrise | B31: =+'STRUCT.EMPLOI&MASS SALARIALE-05'!B29 -> 0 | C31: =+'STRUCT.EMPLOI&MASS SALARIALE-05'!C29+'STRUCT.EMPLOI&MASS SALARIALE-05'!E29 -> 0 | J31: =+'STRUCT.EMPLOI&MASS SALARIALE-05'!G29 -> 0 | K31: =+'STRUCT.EMPLOI&MASS SALARIALE-05'!H29+'STRUCT.EMPLOI&MASS SALARIALE-05'!J29 -> 0
A32: Employés & Ouvriers | B32: =+'STRUCT.EMPLOI&MASS SALARIALE-05'!B30 -> 0 | C32: =+'STRUCT.EMPLOI&MASS SALARIALE-05'!C30+'STRUCT.EMPLOI&MASS SALARIALE-05'!E30 -> 0 | J32: =+'STRUCT.EMPLOI&MASS SALARIALE-05'!G30 -> 0 | K32: =+'STRUCT.EMPLOI&MASS SALARIALE-05'!H30+'STRUCT.EMPLOI&MASS SALARIALE-05'!J30 -> 0
A33: Total Non Africains | B33: =B29+B30+B31+B32 -> 0 | C33: =C29+C30+C31+C32 -> 0 | D33: 0 | E33: 0 | F33: 0 | G33: 0 | H33: 0 | I33: 0 | J33: 0 | K33: 0
A34: Dont Permanents | B34: =+'STRUCT.EMPLOI&MASS SALARIALE-05'!B32 -> 0 | C34: =+'STRUCT.EMPLOI&MASS SALARIALE-05'!C32+'STRUCT.EMPLOI&MASS SALARIALE-05'!E32 -> 0 | J34: =+'STRUCT.EMPLOI&MASS SALARIALE-05'!G32 -> 0 | K34: =+'STRUCT.EMPLOI&MASS SALARIALE-05'!H32+'STRUCT.EMPLOI&MASS SALARIALE-05'!J32 -> 0
A35: Dont Occasionnels(4) | B35: =+'STRUCT.EMPLOI&MASS SALARIALE-05'!B33 -> 0 | C35: =+'STRUCT.EMPLOI&MASS SALARIALE-05'!C33+'STRUCT.EMPLOI&MASS SALARIALE-05'!E33 -> 0 | J35: =+'STRUCT.EMPLOI&MASS SALARIALE-05'!G33 -> 0 | K35: =+'STRUCT.EMPLOI&MASS SALARIALE-05'!H33+'STRUCT.EMPLOI&MASS SALARIALE-05'!J33 -> 0
A37: Emplois existants | B37: ='STRUCT.EMPLOI&MASS SALARIALE-05'!B35 -> 0 | C37: ='STRUCT.EMPLOI&MASS SALARIALE-05'!C35 -> 0 | D37: =D38+D39 -> 0 | E37: 0 | F37: 0 | G37: 0 | H37: 0 | I37: 0 | J37: ='STRUCT.EMPLOI&MASS SALARIALE-05'!G35 -> 0 | K37: ='STRUCT.EMPLOI&MASS SALARIALE-05'!H35 -> 0
A38: Dont Permanents | B38: ='STRUCT.EMPLOI&MASS SALARIALE-05'!B36 -> 0 | C38: ='STRUCT.EMPLOI&MASS SALARIALE-05'!C36+'STRUCT.EMPLOI&MASS SALARIALE-05'!E36 -> 0 | J38: ='STRUCT.EMPLOI&MASS SALARIALE-05'!G36 -> 0 | K38: ='STRUCT.EMPLOI&MASS SALARIALE-05'!H36+'STRUCT.EMPLOI&MASS SALARIALE-05'!J36 -> 0
A39: Dont Occasionnels(3) | B39: ='STRUCT.EMPLOI&MASS SALARIALE-05'!B37 -> 0 | C39: ='STRUCT.EMPLOI&MASS SALARIALE-05'!C37+'STRUCT.EMPLOI&MASS SALARIALE-05'!E37 -> 0 | J39: ='STRUCT.EMPLOI&MASS SALARIALE-05'!G37 -> 0 | K39: ='STRUCT.EMPLOI&MASS SALARIALE-05'!H37+'STRUCT.EMPLOI&MASS SALARIALE-05'!J37 -> 0
A41: CHARGES | C41: =C42+C43 -> 0 | E41: =E42+E43 -> 0 | G41: 0 | I41: 0 | K41: 0
A42: Charges Sociales | C42: ='STRUCT.EMPLOI&MASS SALARIALE-05'!E38 -> 0 | K42: ='STRUCT.EMPLOI&MASS SALARIALE-05'!J38 -> 0
A43: Autres Charges de Personnel(5)
A45: TOTAL | B45: =B37+B33+B23+B13 -> 0 | C45: =C41+C33+C23+C13 -> 0 | D45: =D37+D33+D23+D13 -> 0 | E45: =E41+E33+E23+E13 -> 0 | F45: =F37+F33+F23+F13 -> 0 | G45: =G41+G33+G23+G13 -> 0 | H45: =H37+H33+H23+H13 -> 0 | I45: =I41+I33+I23+I13 -> 0 | J45: =J37+J33+J23+J13 -> 0 | K45: =K41+K33+K23+K13 -> 0
A46: Dont Permanents | B46: ='STRUCT.EMPLOI&MASS SALARIALE-05'!B39 -> 0 | C46: ='STRUCT.EMPLOI&MASS SALARIALE-05'!C39+'STRUCT.EMPLOI&MASS SALARIALE-05'!E39 -> 0 | J46: ='STRUCT.EMPLOI&MASS SALARIALE-05'!G39 -> 0 | K46: ='STRUCT.EMPLOI&MASS SALARIALE-05'!H39+'STRUCT.EMPLOI&MASS SALARIALE-05'!J39 -> 0
A47: Dont Occasionnels(4) | B47: ='STRUCT.EMPLOI&MASS SALARIALE-05'!B40 -> 0 | C47: ='STRUCT.EMPLOI&MASS SALARIALE-05'!C40+'STRUCT.EMPLOI&MASS SALARIALE-05'!E40 -> 0 | J47: ='STRUCT.EMPLOI&MASS SALARIALE-05'!G40 -> 0 | K47: ='STRUCT.EMPLOI&MASS SALARIALE-05'!H40+'STRUCT.EMPLOI&MASS SALARIALE-05'!J40 -> 0
B49: (1) Les effectifs comprennent le personnel en contrat direct avec l'entreprise y compris le personnel détaché, le personnel temporaire et ceux sous contrat précaire; ils décomptés en ETP (Equivalent Temps Plein). Les effectifs sous intérim ne sont pas intégrés ici ( ils le sont dans l'onglet suivant "INTERIM & LOCATION MO").
B50: (2) La masse salariale s'entend les salaires bruts. Ne sont pas pris en compte les cotisations sociales et les ITS (pour mémoire, selon SYSCOHADA les ITS sont classifiés dans le compte de charge des impôts).
B51: (3) La cinquième année d'exploitation est supposée correspondre à l'année de croisière.
B52: (4) En équivalent temps plein.
B53: (5) Les Autres Charges de Personnel s'entend toutes les autres charges de personnel en dehors des salaires bruts et des charges de personnel intérimaire.

Sheet INTERIM & LOCATION MO-05
C1: ='REFERENCES - 05'!D7 -> 0 | G1: ='REFERENCES - 05'!D9 -> 0 | M1: =+G1 -> 0 | S1: =G1 -> 0
B2: EVOLUTION DES EFFECTIFS PERSONNEL INTERIMAIRE (1) | K2: (En milliers F. Cfa)
A4: CATEGORIES PROFESSIONNELLES | B4: ANNEE 1 | D4: ANNEE 2 | F4: ANNEE 3 | H4: ANNEE 4 | J4: ANNEE 5 (2)
B5: Effectif | C5: Facturation HT à l'entreprise | D5: Effectif | E5: Facturation HT à l'entreprise | F5: Effectif | G5: Facturation HT à l'entreprise | H5: Effectif | I5: Facturation HT à l'entreprise | J5: Effectif | K5: Facturation HT à l'entreprise
A7: Nationaux
A9: Cadres supérieurs (DG & directeurs)
A10: Cadres moyens
A11: Agents Maîtrise
A12: Employés & Ouvriers
A13: Total Nationaux | B13: =B9+B10+B11+B12 -> 0 | C13: =C9+C10+C11+C12 -> 0 | D13: 0 | E13: 0 | F13: 0 | G13: 0 | H13: 0 | I13: 0 | J13: 0 | K13: 0
A15: Autres Africains
A17: Cadres supérieurs (DG & directeurs)
A18: Cadres moyens
A19: Agents Maîtrise
A20: Employés & Ouvriers
A21: Total autres Africains | B21: =B17+B18+B19+B20 -> 0 | C21: =C17+C18+C19+C20 -> 0 | D21: 0 | E21: 0 | F21: 0 | G21: 0 | H21: 0 | I21: 0 | J21: 0 | K21: 0
A23: Non Africains
A25: Cadres supérieurs (DG & directeurs)
A26: Cadres moyens
A27: Agents Maîtrise
A28: Employés & Ouvriers
A29: Total Non Africains | B29: =B25+B26+B27+B28 -> 0 | C29: =C25+C26+C27+C28 -> 0 | D29: 0 | E29: 0 | F29: 0 | G29: 0 | H29: 0 | I29: 0 | J29: 0 | K29: 0
A31: TOTAL | B31: =B29+B21+B13 -> 0 | C31: 0 | D31: 0 | E31: 0 | F31: 0 | G31: 0 | H31: 0 | I31: 0 | J31: 0 | K31: 0
B33: (1) Le personnel intérimaire est mis à la disposition de l'entreprise par une société tiers moyennant facturation. La société tiers étant au plan juridique l'employeur du personnel intérimaire, l'entreprise n'est donc pas soumise aux ITS ( le personnel occasionnel et temporaire sous contrat direct avec l'entreprise sont pris en compte dan l'onglet précédent "EVOL EFFECTIF&MASS SALARIAL") . Les effectifs de personnel intérimaire sont décomptés en ETP (Equivalent Temps Plein).
B34: (2) La cinquième année d'exploitation est supposée correspondre à l'année de croisière.

Sheet A4 - SOURCING V1 (hidden)
A1: A4 | B1: =PROPER('REFERENCES - 05'!D7) ->  | G1: =PROPER('REFERENCES - 05'!#REF!) -> 
A3: ORIGINE DES PRINCIPAUX INTRANTS (1) & LOCALISATION DES PRINCIPAUX FOURNISSEURS
L4: (En milliers F. Cfa)
A5: DESIGNATION DE L'INTRANT | B5: Unité de Mesure | C5: PREMIERE ANNEE DE PRODUCTION | H5: CINQUIEME ANNEE DE PRODUCTION
C6: ORIGINE DE LA MATIERE (2) | D6: POIDS DANS LES ACHATS (3) | G6: LOCALISATION DU PRINCIPAL FOURNISSEUR (4) | H6: ORIGINE DE LA MATIERE (2) | I6: POIDS DANS LES ACHATS (3) | L6: LOCALISATION DU PRINCIPAL FOURNISSEUR (4)
D7: Quantité | E7: Valeur HT | F7: % | I7: Quantité | J7: Valeur HT | K7: %
E8: (En milliers F. Cfa) | J8: (En milliers F. Cfa)
D9: 12334 | E9: 344567899 | F9: =IF($E$15=0,0,E9/$E$15) -> 1 | J9: 123456789 | K9: =IF($J$15=0,0,J9/$J$15) -> 0.07966291896
F10: 0 | J10: 1426282922 | K10: 0.920337081
F11: 0 | K11: 0
F12: 0 | K12: 0
F13: 0 | K13: 0
F14: 0 | K14: 0
A15: SOUS TOTAL | E15: =SUM(E9:E14) -> 344567899 | F15: 1 | J15: =SUM(J9:J14) -> 1549739711 | K15: =IF($J$15=0,0,J15/$J$15) -> 1
A16: AUTRES CONSO. INTERMEDIAIRE | E16: =+E17-E15 -> -344567899 | F16: =IF($E$17=0,0,E16/$E$17) -> 0 | J16: =+J17-J15 -> -1549739711 | K16: =IF($J$17=0,0,J16/$J$17) -> 0
A17: TOTAL CONSO. INTERMEDAIRE (5) | E17: =+'A1 - COMPTE D''EXPLOITATION V1'!E24 -> 0 | F17: =IF($E$17=0,0,E17/$E$17) -> 0 | J17: =+'A1 - COMPTE D''EXPLOITATION V1'!I24 -> 0 | K17: =IF($J$17=0,0,J17/$J$17) -> 0
A19: (1) | B19: Au maximum les 5 principaux intrants
A20: (2) | B20: Il s'agit du pays de production de l'intrant et non du pays de provenance
A21: (3) | B21: Les achats s'entendent ceux en provenance des tiers (comptes des classes 60 à 63)
A22: (4) | B22: Précisez s'il s'agit d'un fournisseur local ou d'un fournisseur étranger
A23: (5) | B23: Ce total provient de la ligne (II) du tableau A1 Compte d'exploitation pour les années 1 et 5.
A27: Matières prem., Marchandises&fournitures

Sheet SOURCING V1 Bis (hidden)
A1: A4 | B1: =PROPER('REFERENCES - 05'!D7) ->  | G1: =PROPER('REFERENCES - 05'!#REF!) -> 
A3: ORIGINE DES PRINCIPAUX INTRANTS (1) & LOCALISATION DES PRINCIPAUX FOURNISSEURS
L4: (En milliers F. Cfa)
A5: DESIGNATION DE L'INTRANT | B5: Unité de Mesure | C5: PREMIERE ANNEE DE PRODUCTION | H5: CINQUIEME ANNEE DE PRODUCTION
C6: ORIGINE DE LA MATIERE (2) | D6: POIDS DANS LES ACHATS (3) | G6: LOCALISATION DU PRINCIPAL FOURNISSEUR (4) | H6: ORIGINE DE LA MATIERE (2) | I6: POIDS DANS LES ACHATS (3) | L6: LOCALISATION DU PRINCIPAL FOURNISSEUR (4)
D7: Quantité | E7: Valeur HT | F7: % | I7: Quantité | J7: Valeur HT | K7: %
E8: (En milliers F. Cfa) | J8: (En milliers F. Cfa)
D9: 12334 | E9: 344567899 | F9: =IF($E$18=0,0,E9/$E$18) -> 0.5 | J9: 123456789 | K9: =IF($J$18=0,0,J9/$J$18) -> 0.03983145948
F10: 0 | J10: 1426282922 | K10: 0.4601685405
F11: 0 | K11: 0
F12: 0 | K12: 0
F13: 0 | K13: 0
A14: SOUS TOTAL | E14: =SUM(E9:E13) -> 344567899 | F14: 0.5 | J14: =SUM(J9:J13) -> 1549739711 | K14: =IF($J$18=0,0,J14/$J$18) -> 0.5
A16: Autres Mat. Première, March & Fournitures | F16: 0 | K16: 0
A18: TOTAL MP, MARCH & FOUR.(5) | E18: =SUM(E9:E16) -> 689135798 | F18: 1 | J18: =SUM(J9:J16) -> 3099479422 | K18: =IF($J$18=0,0,J18/$J$18) -> 1
A20: (1) | B20: Au maximum les 5 principaux intrants
A21: (2) | B21: Il s'agit du pays de production de l'intrant et non du pays de provenance
A22: (3) | B22: Les achats s'entendent ceux en provenance des tiers (comptes des classes 60 à 63)
A23: (4) | B23: Précisez s'il s'agit d'un fournisseur local ou d'un fournisseur étranger
A24: (5) | B24: Ce total provient de la ligne "Matières prem., Marchandises&fournitures" du tableau A1 Compte d'exploitation pour les années 1 et 5.

Sheet A1 - COMPTE D'EXPLOITATION V1 (hidden)
A1: A1 | D1: =PROPER('REFERENCES - 05'!D7) ->  | E1: =PROPER('REFERENCES - 05'!#REF!) -> 
B2: TABLEAU DE COMPTE D'EXPLOITATION | I2: (En milliers F. Cfa)
B4: ANNEES (1) | E4: 1 | F4: 2 | G4: 3 | H4: 4 | I4: 5
B6: CHIFFRE D'AFFAIRES (2) | E6: ='EVOLUTION DU CA - 05'!$B$10 -> 0 | F6: ='EVOLUTION DU CA - 05'!$C$10 -> 0 | G6: ='EVOLUTION DU CA - 05'!$D$10 -> 0 | H6: ='EVOLUTION DU CA - 05'!$E$10 -> 0 | I6: ='EVOLUTION DU CA - 05'!$F$10 -> 0
B7: Autres produits d'exploitation
A8: (I) | B8: TOTAL PRODUIT | E8: =E6+E7 -> 0 | F8: =F6+F7 -> 0 | G8: =G6+G7 -> 0 | H8: =H6+H7 -> 0 | I8: =I6+I7 -> 0
C10: Matières prem., Marchandises&fournitures
D11: Dont : Eau & Electricité
D12: Droits d'entrée:
D13: TVA non récupérable / Achat
C14: Transports
D15: Dont TVA non récupérable / Transport
C16: Impôts et taxes diverses
D17: dont : ITS (3) | E17: ='STRUCT.EMPLOI&MASS SALARIALE-05'!D38 -> 0 | I17: ='STRUCT.EMPLOI&MASS SALARIALE-05'!I38 -> 0 | K17: Eclater ITS en IS Salarié (1,6% du salaire total) et ITS employeur (pourles nationaux 1,2% et popur les non nationnaux 10,4%)
D18: TSE (4) | E18: =E6*'REFERENCES - 05'!$D$21 -> 0 | F18: =F6*'REFERENCES - 05'!$D$21 -> 0 | G18: =G6*'REFERENCES - 05'!$D$21 -> 0 | H18: =H6*'REFERENCES - 05'!$D$21 -> 0 | I18: =I6*'REFERENCES - 05'!$D$21 -> 0
D19: Droits de sortie
D20: Patente
D21: Foncier
C22: Autres services
D23: TVA non récupérable / Autres Services
A24: (II) | B24: TOTAL CONSOMMATIONS INTERMEDIAIRES (5) | E24: =E10+E14+E16+E22 -> 0 | F24: =F10+F14+F16+F22 -> 0 | G24: =G10+G14+G16+G22 -> 0 | H24: =H10+H14+H16+H22 -> 0 | I24: =I10+I14+I16+I22 -> 0
A25: (III) | B25: VALEUR AJOUTEE | E25: =E8-E24 -> 0 | F25: =F8-F24 -> 0 | G25: =G8-G24 -> 0 | H25: =H8-H24 -> 0 | I25: =I8-I24 -> 0
A27: (IV) | B27: Charges de personnel (hors ITS) | E27: ='STRUCT.EMPLOI&MASS SALARIALE-05'!C38+'STRUCT.EMPLOI&MASS SALARIALE-05'!E38 -> 0 | I27: ='STRUCT.EMPLOI&MASS SALARIALE-05'!H38+'STRUCT.EMPLOI&MASS SALARIALE-05'!J38 -> 0
D28: dont Salaires (6) | E28: ='STRUCT.EMPLOI&MASS SALARIALE-05'!C38 -> 0 | I28: ='STRUCT.EMPLOI&MASS SALARIALE-05'!H38 -> 0
A29: (V) | B29: EXCEDENT BRUT D'EXPLOITATION | E29: =E27-E25 -> 0 | F29: =F27-F25 -> 0 | G29: =G27-G25 -> 0 | H29: =H27-H25 -> 0 | I29: =I27-I25 -> 0
B31: (a) Reprise sur provisions, Transferts de charges
B32: (b) Amortissements (7) | E32: ='SYNTHÈSE des AMORTISSEMENTS -05'!D22 -> 0 | F32: ='SYNTHÈSE des AMORTISSEMENTS -05'!E22 -> 0 | G32: ='SYNTHÈSE des AMORTISSEMENTS -05'!F22 -> 0 | H32: ='SYNTHÈSE des AMORTISSEMENTS -05'!G22 -> 0 | I32: ='SYNTHÈSE des AMORTISSEMENTS -05'!H22 -> 0
A34: (VI) | B34: RESULTAT D'EXPLOITATION | E34: =E29+E31-E32 -> 0 | F34: =F29+F31-F32 -> 0 | G34: =G29+G31-G32 -> 0 | H34: =H29+H31-H32 -> 0 | I34: =I29+I31-I32 -> 0
B36: (c) Produit financier
B37: (d) Frais financier
A38: (VII) | B38: RESULTAT FINANCIER | E38: =E36-E37 -> 0 | F38: =F36-F37 -> 0 | G38: =G36-G37 -> 0 | H38: =H36-H37 -> 0 | I38: =I36-I37 -> 0
A40: (VIII) | B40: RESULTAT HORS ACTIVITES ORDINAIRES
A42: (IX) | B42: RESULTAT BRUT | E42: =E34+E38+E40 -> 0 | F42: =F34+F38+F40 -> 0 | G42: =G34+G38+G40 -> 0 | H42: =H34+H38+H40 -> 0 | I42: =I34+I38+I40 -> 0
A43: (X) | B43: BIC (Impôts sur les Sociétés) | E43: =E42*'REFERENCES - 05'!$D$22 -> 0 | F43: =F42*'REFERENCES - 05'!$D$22 -> 0 | G43: =G42*'REFERENCES - 05'!$D$22 -> 0 | H43: =H42*'REFERENCES - 05'!$D$22 -> 0 | I43: =I42*'REFERENCES - 05'!$D$22 -> 0
A44: (XI) | B44: RESULTAT NET COMPTABLE | E44: =E42-E43 -> 0 | F44: =F42-F43 -> 0 | G44: =G42-G43 -> 0 | H44: =H42-H43 -> 0 | I44: =I42-I43 -> 0
A46: (XII) | B46: RENTABILITE ECONOMIQUE | E46: =IF(E8=0,0,E29/E8) -> 0 | F46: =IF(F8=0,0,F29/F8) -> 0 | G46: =IF(G8=0,0,G29/G8) -> 0 | H46: =IF(H8=0,0,H29/H8) -> 0 | I46: =IF(I8=0,0,I29/I8) -> 0
A47: (XIII) | B47: CASH FLOW | E47: =E44+E32 -> 0 | F47: =F44+F32 -> 0 | G47: =G44+G32 -> 0 | H47: =H44+H32 -> 0 | I47: =I44+I32 -> 0
A48: (XIV) | B48: INVESTISSEMENTS CUMULES EFFECTUES (8) | E48: =E47 -> 0 | F48: =E47+F47 -> 0 | G48: =F48+G47 -> 0 | H48: =G48+H47 -> 0 | I48: =H48+I47 -> 0
A49: (XV) | B49: PAY BACK (9)
A52: (1) 5 ans pour les investissements réalisés en Zone A, 8 ans pour les investissements réalisés en Zone B et 15 ans pour les investissements en Zone C.
A53: (2) Chiffre d'affaires: Se référer en annexe au tableau A3 du Chiffre d'affaires.
A54: (3) ITS Nationaux= 2,8%xsalaires totaux des ivoiriens / ITS Non Nationaux= 12%xsalaires totaux des Non Nationaux
A55: (4) TSE= 0,1% x Ventes HT
A56: (5) Consommations intermediaires : Ce montant est reporté dans le tableau A4 Sourcing pour les années 1 et 5.
A57: (6) Salaire : Se référer en annexe au tableau A9 Structure des Emplois & Masse Salariale pour les années 1 et 5.
A58: (7) Les Amortissements: Se référer au tableau A8 Tableau des amortissements.
A59: (8) Les investissements doivent être exécutés en 2 années avec une possibilité de prorogation à 3 ans. Le cumul des investissements correspond au total du tableau A5.
A60: (9) Le pay back la durée (en année) nécessaire pour que le cumul du cash flow égale le cumul des investissements.
A63: VALEUR AJOUTE (III)=(I) - (II)
A64: EXCEDENT BRUT D'EXPLOITATION (V) = (III)-(IV)
A65: RESULTAT D'EXPLOITATION = (V)+(a)-(b)
A66: RESULTAT FINANCIER (VI)= (c)-(d)
A67: RESULTAT BRUT(IX)=(VI) + (VII)+(VIII)
A68: RESULTANT NET COMPTABLE (XI)=(IX) - (X)
A69: RENTABILITE ECONOMIQUE = (V)/(I)
A70: CASH FLOW= (XI) + (b)

Sheet INVEST Frais d'établissment -05
C1: ='REFERENCES - 05'!D7 -> 0 | E1: ='REFERENCES - 05'!D9 -> 0
B2: INVESTISSEMENTS PREVUS SUR LA PERIODE DE REALISATION DU PROJET | P2: (En F. Cfa)
A3: N° | B3: Désignation | C3: ACHAT A L'ETRANGER (en F. Cfa) | L3: ACHAT EN COTE D'IVOIRE (en F. Cfa) | P3: Coût total des Investissements
C4: Position tarifaire | D4: Cout CAF | E4: Droit de douane / Droit fiscaux | G4: RSTAT (1%) | H4: PCS (1%) | I4: PCC (0,5%) | J4: TVA sur Droit de Douane | K4: Total Achat à l'étranger | L4: Achats HT | M4: Coûts locaux (Transport, montage,..) | N4: T.V.A | O4: Total Achat en RCI | P4: Coût total HT | Q4: Coût total TTC
E5: Taux | F5: Montant
B7: FRAIS D'ETABLISSEMENT | D7: =SUM(D8:D55) -> 0 | F7: =SUM(F8:F55) -> 0 | G7: 0 | H7: 0 | I7: 0 | J7: 0 | K7: 0 | L7: 0 | M7: 0 | N7: 0 | O7: 0 | P7: 0 | Q7: 0
A8: 1 | F8: =E8*D8 -> 0 | G8: =D8*1% -> 0 | H8: =D8*1% -> 0 | I8: =D8*0.5% -> 0 | J8: =(D8+F8+G8)*18% -> 0 | K8: =SUM(F8:J8)+D8 -> 0 | N8: =(L8+M8)*18% -> 0 | O8: =N8+M8+L8 -> 0 | P8: =+Q8-N8-J8 -> 0 | Q8: =O8+K8 -> 0
A9: =+A8+1 -> 2 | F9: 0 | G9: =D9*1% -> 0 | H9: =D9*1% -> 0 | I9: =D9*0.5% -> 0 | J9: 0 | K9: 0 | N9: 0 | O9: 0 | P9: 0 | Q9: 0
A10: =+A9+1 -> 3 | F10: 0 | G10: 0 | H10: 0 | I10: 0 | J10: 0 | K10: 0 | N10: 0 | O10: 0 | P10: 0 | Q10: 0
A11: 4 | F11: 0 | G11: 0 | H11: 0 | I11: 0 | J11: 0 | K11: 0 | N11: 0 | O11: 0 | P11: 0 | Q11: 0
A12: 5 | F12: 0 | G12: 0 | H12: 0 | I12: 0 | J12: 0 | K12: 0 | N12: 0 | O12: 0 | P12: 0 | Q12: 0
A13: 6 | F13: 0 | G13: 0 | H13: 0 | I13: 0 | J13: 0 | K13: 0 | N13: 0 | O13: 0 | P13: 0 | Q13: 0
A14: 7 | F14: 0 | G14: 0 | H14: 0 | I14: 0 | J14: 0 | K14: 0 | N14: 0 | O14: 0 | P14: 0 | Q14: 0
A15: 8 | F15: 0 | G15: 0 | H15: 0 | I15: 0 | J15: 0 | K15: 0 | N15: 0 | O15: 0 | P15: 0 | Q15: 0
A16: 9 | F16: 0 | G16: 0 | H16: 0 | I16: 0 | J16: 0 | K16: 0 | N16: 0 | O16: 0 | P16: 0 | Q16: 0
A17: 10 | F17: 0 | G17: 0 | H17: 0 | I17: 0 | J17: 0 | K17: 0 | N17: 0 | O17: 0 | P17: 0 | Q17: 0
A18: 11 | F18: 0 | G18: 0 | H18: 0 | I18: 0 | J18: 0 | K18: 0 | N18: 0 | O18: 0 | P18: 0 | Q18: 0
A19: 12 | F19: 0 | G19: 0 | H19: 0 | I19: 0 | J19: 0 | K19: 0 | N19: 0 | O19: 0 | P19: 0 | Q19: 0
A20: 13 | F20: 0 | G20: 0 | H20: 0 | I20: 0 | J20: 0 | K20: 0 | N20: 0 | O20: 0 | P20: 0 | Q20: 0
A21: 14 | F21: 0 | G21: 0 | H21: 0 | I21: 0 | J21: 0 | K21: 0 | N21: 0 | O21: 0 | P21: 0 | Q21: 0
A22: =+A21+1 -> 15 | F22: 0 | G22: 0 | H22: 0 | I22: 0 | J22: 0 | K22: 0 | N22: 0 | O22: 0 | P22: 0 | Q22: 0
A23: 16 | F23: 0 | G23: 0 | H23: 0 | I23: 0 | J23: 0 | K23: 0 | N23: 0 | O23: 0 | P23: 0 | Q23: 0
A24: 17 | F24: 0 | G24: 0 | H24: 0 | I24: 0 | J24: 0 | K24: 0 | N24: 0 | O24: 0 | P24: 0 | Q24: 0
A25: 18 | F25: 0 | G25: 0 | H25: 0 | I25: 0 | J25: 0 | K25: 0 | N25: 0 | O25: 0 | P25: 0 | Q25: 0
A26: 19 | F26: 0 | G26: 0 | H26: 0 | I26: 0 | J26: 0 | K26: 0 | N26: 0 | O26: 0 | P26: 0 | Q26: 0
A27: 20 | F27: 0 | G27: 0 | H27: 0 | I27: 0 | J27: 0 | K27: 0 | N27: 0 | O27: 0 | P27: 0 | Q27: 0
A28: 21 | F28: 0 | G28: 0 | H28: 0 | I28: 0 | J28: 0 | K28: 0 | N28: 0 | O28: 0 | P28: 0 | Q28: 0
A29: 22 | F29: 0 | G29: 0 | H29: 0 | I29: 0 | J29: 0 | K29: 0 | N29: 0 | O29: 0 | P29: 0 | Q29: 0
A30: 23 | F30: 0 | G30: 0 | H30: 0 | I30: 0 | J30: 0 | K30: 0 | N30: 0 | O30: 0 | P30: 0 | Q30: 0
A31: 24 | F31: 0 | G31: 0 | H31: 0 | I31: 0 | J31: 0 | K31: 0 | N31: 0 | O31: 0 | P31: 0 | Q31: 0
A32: 25 | F32: 0 | G32: 0 | H32: 0 | I32: 0 | J32: 0 | K32: 0 | N32: 0 | O32: 0 | P32: 0 | Q32: 0
A33: 26 | F33: 0 | G33: 0 | H33: 0 | I33: 0 | J33: 0 | K33: 0 | N33: 0 | O33: 0 | P33: 0 | Q33: 0
A34: 27 | F34: 0 | G34: 0 | H34: 0 | I34: 0 | J34: 0 | K34: 0 | N34: 0 | O34: 0 | P34: 0 | Q34: 0
A35: 28 | F35: 0 | G35: 0 | H35: 0 | I35: 0 | J35: 0 | K35: 0 | N35: 0 | O35: 0 | P35: 0 | Q35: 0
A36: 29 | F36: 0 | G36: 0 | H36: 0 | I36: 0 | J36: 0 | K36: 0 | N36: 0 | O36: 0 | P36: 0 | Q36: 0
A37: 30 | F37: 0 | G37: 0 | H37: 0 | I37: 0 | J37: 0 | K37: 0 | N37: 0 | O37: 0 | P37: 0 | Q37: 0
A38: 31 | F38: 0 | G38: 0 | H38: 0 | I38: 0 | J38: 0 | K38: 0 | N38: 0 | O38: 0 | P38: 0 | Q38: 0
A39: 32 | F39: 0 | G39: 0 | H39: 0 | I39: 0 | J39: 0 | K39: 0 | N39: 0 | O39: 0 | P39: 0 | Q39: 0
A40: 33 | F40: 0 | G40: 0 | H40: 0 | I40: 0 | J40: 0 | K40: 0 | N40: 0 | O40: 0 | P40: 0 | Q40: 0
A41: 34 | F41: 0 | G41: 0 | H41: 0 | I41: 0 | J41: 0 | K41: 0 | N41: 0 | O41: 0 | P41: 0 | Q41: 0
A42: 35 | F42: 0 | G42: 0 | H42: 0 | I42: 0 | J42: 0 | K42: 0 | N42: 0 | O42: 0 | P42: 0 | Q42: 0
A43: 36 | F43: 0 | G43: 0 | H43: 0 | I43: 0 | J43: 0 | K43: 0 | N43: 0 | O43: 0 | P43: 0 | Q43: 0
A44: 37 | F44: 0 | G44: 0 | H44: 0 | I44: 0 | J44: 0 | K44: 0 | N44: 0 | O44: 0 | P44: 0 | Q44: 0
A45: 38 | F45: 0 | G45: 0 | H45: 0 | I45: 0 | J45: 0 | K45: 0 | N45: 0 | O45: 0 | P45: 0 | Q45: 0
A46: 39 | F46: 0 | G46: 0 | H46: 0 | I46: 0 | J46: 0 | K46: 0 | N46: 0 | O46: 0 | P46: 0 | Q46: 0
A47: 40 | F47: 0 | G47: 0 | H47: 0 | I47: 0 | J47: 0 | K47: 0 | N47: 0 | O47: 0 | P47: 0 | Q47: 0
A48: 41 | F48: 0 | G48: 0 | H48: 0 | I48: 0 | J48: 0 | K48: 0 | N48: 0 | O48: 0 | P48: 0 | Q48: 0
A49: 42 | F49: 0 | G49: 0 | H49: 0 | I49: 0 | J49: 0 | K49: 0 | N49: 0 | O49: 0 | P49: 0 | Q49: 0
A50: 43 | F50: 0 | G50: 0 | H50: 0 | I50: 0 | J50: 0 | K50: 0 | N50: 0 | O50: 0 | P50: 0 | Q50: 0
A51: 44 | F51: 0 | G51: 0 | H51: 0 | I51: 0 | J51: 0 | K51: 0 | N51: 0 | O51: 0 | P51: 0 | Q51: 0
A52: 45 | F52: 0 | G52: 0 | H52: 0 | I52: 0 | J52: 0 | K52: 0 | N52: 0 | O52: 0 | P52: 0 | Q52: 0
A53: 46 | F53: 0 | G53: 0 | H53: 0 | I53: 0 | J53: 0 | K53: 0 | N53: 0 | O53: 0 | P53: 0 | Q53: 0
A54: 47 | F54: =E54*D54 -> 0 | G54: 0 | H54: 0 | I54: 0 | J54: =(D54+F54+G54)*18% -> 0 | K54: 0 | N54: =(L54+M54)*18% -> 0 | O54: =N54+M54+L54 -> 0 | P54: =+Q54-N54-J54 -> 0 | Q54: =O54+K54 -> 0
A55: 48 | F55: =E55*D55 -> 0 | G55: 0 | H55: 0 | I55: 0 | J55: =(D55+F55+G55)*18% -> 0 | K55: 0 | N55: =(L55+M55)*18% -> 0 | O55: =N55+M55+L55 -> 0 | P55: =+Q55-N55-J55 -> 0 | Q55: =O55+K55 -> 0

Sheet INVEST Logiciels - 05
D1: ='REFERENCES - 05'!D7 -> 0 | F1: ='REFERENCES - 05'!D9 -> 0
B2: INVESTISSEMENTS PREVUS SUR LA PERIODE DE REALISATION DU PROJET | R2: (En F. Cfa)
A3: N° | B3: Désignation | C3: Quantité | D3: ACHAT A L'ETRANGER (en F. Cfa) | M3: ACHAT EN COTE D'IVOIRE (en F. Cfa) | Q3: Coût total des Investissements
D4: Position tarifaire | E4: Cout CAF | F4: Droit de douane / Droit fiscaux | H4: RSTAT (1%) | I4: PCS (1%) | J4: PCC (0,5%) | K4: TVA sur Droit de Douane | L4: Total Achat à l'étranger | M4: Achats HT | N4: Coûts locaux (Transport, montage,..) | O4: T.V.A | P4: Total Achat en RCI | Q4: Coût total HT | R4: Coût total TTC
F5: Taux | G5: Montant
B7: LOGICIELS | C7: =SUM(C8:C73) -> 0 | E7: =SUM(E8:E73) -> 0 | G7: =SUM(G8:G73) -> 0 | H7: =SUM(H8:H73) -> 0 | I7: 0 | J7: 0 | K7: 0 | L7: 0 | M7: 0 | N7: 0 | O7: 0 | P7: 0 | Q7: 0 | R7: 0
A8: 1 | G8: =F8*E8 -> 0 | H8: =E8*1% -> 0 | I8: =E8*1% -> 0 | J8: =E8*0.5% -> 0 | K8: =(E8+G8+H8)*18% -> 0 | L8: =SUM(G8:K8)+E8 -> 0 | O8: =(M8+N8)*18% -> 0 | P8: =O8+N8+M8 -> 0 | Q8: =+R8-O8-K8 -> 0 | R8: =P8+L8 -> 0
A9: =+A8+1 -> 2 | G9: 0 | H9: =E9*1% -> 0 | I9: =E9*1% -> 0 | J9: =E9*0.5% -> 0 | K9: 0 | L9: 0 | O9: 0 | P9: 0 | Q9: 0 | R9: 0
A10: 3 | G10: 0 | H10: 0 | I10: 0 | J10: 0 | K10: 0 | L10: 0 | O10: 0 | P10: 0 | Q10: 0 | R10: 0
A11: 4 | G11: 0 | H11: 0 | I11: 0 | J11: 0 | K11: 0 | L11: 0 | O11: 0 | P11: 0 | Q11: 0 | R11: 0
A12: 5 | G12: 0 | H12: 0 | I12: 0 | J12: 0 | K12: 0 | L12: 0 | O12: 0 | P12: 0 | Q12: 0 | R12: 0
A13: 6 | G13: 0 | H13: 0 | I13: 0 | J13: 0 | K13: 0 | L13: 0 | O13: 0 | P13: 0 | Q13: 0 | R13: 0
A14: 7 | G14: 0 | H14: 0 | I14: 0 | J14: 0 | K14: 0 | L14: 0 | O14: 0 | P14: 0 | Q14: 0 | R14: 0
A15: 8 | G15: 0 | H15: 0 | I15: 0 | J15: 0 | K15: 0 | L15: 0 | O15: 0 | P15: 0 | Q15: 0 | R15: 0
A16: 9 | G16: 0 | H16: 0 | I16: 0 | J16: 0 | K16: 0 | L16: 0 | O16: 0 | P16: 0 | Q16: 0 | R16: 0
A17: 10 | G17: 0 | H17: 0 | I17: 0 | J17: 0 | K17: 0 | L17: 0 | O17: 0 | P17: 0 | Q17: 0 | R17: 0
A18: 11 | G18: 0 | H18: 0 | I18: 0 | J18: 0 | K18: 0 | L18: 0 | O18: 0 | P18: 0 | Q18: 0 | R18: 0
A19: 12 | G19: 0 | H19: 0 | I19: 0 | J19: 0 | K19: 0 | L19: 0 | O19: 0 | P19: 0 | Q19: 0 | R19: 0
A20: 13 | G20: 0 | H20: 0 | I20: 0 | J20: 0 | K20: 0 | L20: 0 | O20: 0 | P20: 0 | Q20: 0 | R20: 0
A21: 14 | G21: 0 | H21: 0 | I21: 0 | J21: 0 | K21: 0 | L21: 0 | O21: 0 | P21: 0 | Q21: 0 | R21: 0
A22: 15 | G22: 0 | H22: 0 | I22: 0 | J22: 0 | K22: 0 | L22: 0 | O22: 0 | P22: 0 | Q22: 0 | R22: 0
A23: 16 | G23: 0 | H23: 0 | I23: 0 | J23: 0 | K23: 0 | L23: 0 | O23: 0 | P23: 0 | Q23: 0 | R23: 0
A24: 17 | G24: 0 | H24: 0 | I24: 0 | J24: 0 | K24: 0 | L24: 0 | O24: 0 | P24: 0 | Q24: 0 | R24: 0
A25: 18 | G25: =F25*E25 -> 0 | H25: 0 | I25: 0 | J25: 0 | K25: =(E25+G25+H25)*18% -> 0 | L25: 0 | O25: =(M25+N25)*18% -> 0 | P25: =O25+N25+M25 -> 0 | Q25: =+R25-O25-K25 -> 0 | R25: =P25+L25 -> 0
A26: 19 | G26: 0 | H26: 0 | I26: 0 | J26: 0 | K26: 0 | L26: 0 | O26: 0 | P26: 0 | Q26: 0 | R26: 0
A27: 20 | G27: 0 | H27: 0 | I27: 0 | J27: 0 | K27: 0 | L27: 0 | O27: 0 | P27: 0 | Q27: 0 | R27: 0
A28: 21 | G28: 0 | H28: 0 | I28: 0 | J28: 0 | K28: 0 | L28: 0 | O28: 0 | P28: 0 | Q28: 0 | R28: 0
A29: 22 | G29: 0 | H29: 0 | I29: 0 | J29: 0 | K29: 0 | L29: 0 | O29: 0 | P29: 0 | Q29: 0 | R29: 0
A30: 23 | G30: 0 | H30: 0 | I30: 0 | J30: 0 | K30: 0 | L30: 0 | O30: 0 | P30: 0 | Q30: 0 | R30: 0
A31: 24 | G31: 0 | H31: 0 | I31: 0 | J31: 0 | K31: 0 | L31: 0 | O31: 0 | P31: 0 | Q31: 0 | R31: 0
A32: 25 | G32: 0 | H32: 0 | I32: 0 | J32: 0 | K32: 0 | L32: 0 | O32: 0 | P32: 0 | Q32: 0 | R32: 0
A33: 26 | G33: 0 | H33: 0 | I33: 0 | J33: 0 | K33: 0 | L33: 0 | O33: 0 | P33: 0 | Q33: 0 | R33: 0
A34: 27 | G34: 0 | H34: 0 | I34: 0 | J34: 0 | K34: 0 | L34: 0 | O34: 0 | P34: 0 | Q34: 0 | R34: 0
A35: 28 | G35: 0 | H35: 0 | I35: 0 | J35: 0 | K35: 0 | L35: 0 | O35: 0 | P35: 0 | Q35: 0 | R35: 0
A36: 29 | G36: 0 | H36: 0 | I36: 0 | J36: 0 | K36: 0 | L36: 0 | O36: 0 | P36: 0 | Q36: 0 | R36: 0
A37: 30 | G37: 0 | H37: 0 | I37: 0 | J37: 0 | K37: 0 | L37: 0 | O37: 0 | P37: 0 | Q37: 0 | R37: 0
A38: 31 | G38: 0 | H38: 0 | I38: 0 | J38: 0 | K38: 0 | L38: 0 | O38: 0 | P38: 0 | Q38: 0 | R38: 0
A39: 32 | G39: 0 | H39: 0 | I39: 0 | J39: 0 | K39: 0 | L39: 0 | O39: 0 | P39: 0 | Q39: 0 | R39: 0
A40: 33 | G40: 0 | H40: 0 | I40: 0 | J40: 0 | K40: 0 | L40: 0 | O40: 0 | P40: 0 | Q40: 0 | R40: 0
A41: 34 | G41: 0 | H41: 0 | I41: 0 | J41: 0 | K41: 0 | L41: 0 | O41: 0 | P41: 0 | Q41: 0 | R41: 0
A42: 35 | G42: 0 | H42: 0 | I42: 0 | J42: 0 | K42: 0 | L42: 0 | O42: 0 | P42: 0 | Q42: 0 | R42: 0
A43: 36 | G43: 0 | H43: 0 | I43: 0 | J43: 0 | K43: 0 | L43: 0 | O43: 0 | P43: 0 | Q43: 0 | R43: 0
A44: 37 | G44: 0 | H44: 0 | I44: 0 | J44: 0 | K44: 0 | L44: 0 | O44: 0 | P44: 0 | Q44: 0 | R44: 0
A45: 38 | G45: 0 | H45: 0 | I45: 0 | J45: 0 | K45: 0 | L45: 0 | O45: 0 | P45: 0 | Q45: 0 | R45: 0
A46: 39 | G46: 0 | H46: 0 | I46: 0 | J46: 0 | K46: 0 | L46: 0 | O46: 0 | P46: 0 | Q46: 0 | R46: 0
A47: 40 | G47: =F47*E47 -> 0 | H47: 0 | I47: 0 | J47: 0 | K47: =(E47+G47+H47)*18% -> 0 | L47: 0 | O47: =(M47+N47)*18% -> 0 | P47: =O47+N47+M47 -> 0 | Q47: =+R47-O47-K47 -> 0 | R47: =P47+L47 -> 0
A48: 41 | G48: 0 | H48: 0 | I48: 0 | J48: 0 | K48: 0 | L48: 0 | O48: 0 | P48: 0 | Q48: 0 | R48: 0
A49: 42 | G49: 0 | H49: 0 | I49: 0 | J49: 0 | K49: 0 | L49: 0 | O49: 0 | P49: 0 | Q49: 0 | R49: 0
A50: 43 | G50: 0 | H50: 0 | I50: 0 | J50: 0 | K50: 0 | L50: 0 | O50: 0 | P50: 0 | Q50: 0 | R50: 0
A51: 44 | G51: 0 | H51: 0 | I51: 0 | J51: 0 | K51: 0 | L51: 0 | O51: 0 | P51: 0 | Q51: 0 | R51: 0
A52: 45 | G52: 0 | H52: 0 | I52: 0 | J52: 0 | K52: 0 | L52: 0 | O52: 0 | P52: 0 | Q52: 0 | R52: 0
A53: 46 | G53: 0 | H53: 0 | I53: 0 | J53: 0 | K53: 0 | L53: 0 | O53: 0 | P53: 0 | Q53: 0 | R53: 0
A54: 47 | G54: =F54*E54 -> 0 | H54: 0 | I54: 0 | J54: 0 | K54: =(E54+G54+H54)*18% -> 0 | L54: 0 | O54: =(M54+N54)*18% -> 0 | P54: =O54+N54+M54 -> 0 | Q54: =+R54-O54-K54 -> 0 | R54: =P54+L54 -> 0
A55: 48 | G55: =F55*E55 -> 0 | H55: 0 | I55: 0 | J55: 0 | K55: =(E55+G55+H55)*18% -> 0 | L55: 0 | O55: =(M55+N55)*18% -> 0 | P55: =O55+N55+M55 -> 0 | Q55: =+R55-O55-K55 -> 0 | R55: =P55+L55 -> 0
A56: 49 | G56: =F56*E56 -> 0 | H56: =E56*1% -> 0 | I56: =E56*1% -> 0 | J56: =E56*0.5% -> 0 | K56: =(E56+G56+H56)*18% -> 0 | L56: =SUM(G56:K56)+E56 -> 0 | O56: =(M56+N56)*18% -> 0 | P56: =O56+N56+M56 -> 0 | Q56: =+R56-O56-K56 -> 0 | R56: =P56+L56 -> 0
A57: 50 | G57: 0 | H57: 0 | I57: 0 | J57: 0 | K57: 0 | L57: 0 | O57: 0 | P57: 0 | Q57: 0 | R57: 0
A58: 51 | G58: 0 | H58: 0 | I58: 0 | J58: 0 | K58: 0 | L58: 0 | O58: 0 | P58: 0 | Q58: 0 | R58: 0
A59: 52 | G59: 0 | H59: 0 | I59: 0 | J59: 0 | K59: 0 | L59: 0 | O59: 0 | P59: 0 | Q59: 0 | R59: 0
A60: 53 | G60: 0 | H60: 0 | I60: 0 | J60: 0 | K60: 0 | L60: 0 | O60: 0 | P60: 0 | Q60: 0 | R60: 0
A61: 54 | G61: 0 | H61: 0 | I61: 0 | J61: 0 | K61: 0 | L61: 0 | O61: 0 | P61: 0 | Q61: 0 | R61: 0
A62: 55 | G62: 0 | H62: 0 | I62: 0 | J62: 0 | K62: 0 | L62: 0 | O62: 0 | P62: 0 | Q62: 0 | R62: 0
A63: 56 | G63: 0 | H63: 0 | I63: 0 | J63: 0 | K63: 0 | L63: 0 | O63: 0 | P63: 0 | Q63: 0 | R63: 0
A64: 57 | G64: 0 | H64: 0 | I64: 0 | J64: 0 | K64: 0 | L64: 0 | O64: 0 | P64: 0 | Q64: 0 | R64: 0
A65: 58 | G65: 0 | H65: 0 | I65: 0 | J65: 0 | K65: 0 | L65: 0 | O65: 0 | P65: 0 | Q65: 0 | R65: 0
A66: 59 | G66: 0 | H66: 0 | I66: 0 | J66: 0 | K66: 0 | L66: 0 | O66: 0 | P66: 0 | Q66: 0 | R66: 0
A67: 60 | G67: 0 | H67: 0 | I67: 0 | J67: 0 | K67: 0 | L67: 0 | O67: 0 | P67: 0 | Q67: 0 | R67: 0
A68: 61 | G68: 0 | H68: 0 | I68: 0 | J68: 0 | K68: 0 | L68: 0 | O68: 0 | P68: 0 | Q68: 0 | R68: 0
A69: 62 | G69: 0 | H69: 0 | I69: 0 | J69: 0 | K69: 0 | L69: 0 | O69: 0 | P69: 0 | Q69: 0 | R69: 0
A70: 63 | G70: 0 | H70: 0 | I70: 0 | J70: 0 | K70: 0 | L70: 0 | O70: 0 | P70: 0 | Q70: 0 | R70: 0
A71: 64 | G71: 0 | H71: 0 | I71: 0 | J71: 0 | K71: 0 | L71: 0 | O71: 0 | P71: 0 | Q71: 0 | R71: 0
A72: 65 | G72: 0 | H72: 0 | I72: 0 | J72: 0 | K72: 0 | L72: 0 | O72: 0 | P72: 0 | Q72: 0 | R72: 0
A73: =+A72+1 -> 66 | G73: 0 | H73: 0 | I73: 0 | J73: 0 | K73: 0 | L73: 0 | O73: 0 | P73: 0 | Q73: 0 | R73: 0

Sheet INVEST.Autres Immo Incorpo - 05
D1: ='REFERENCES - 05'!D7 -> 0 | F1: ='REFERENCES - 05'!D9 -> 0
B2: INVESTISSEMENTS PREVUS SUR LA PERIODE DE REALISATION DU PROJET | R2: (En F. Cfa)
A3: N° | B3: Désignation | C3: Quantité | D3: ACHAT A L'ETRANGER (en F. Cfa) | M3: ACHAT EN COTE D'IVOIRE (en F. Cfa) | Q3: Coût total des Investissements
D4: Position tarifaire | E4: Cout CAF | F4: Droit de douane / Droit fiscaux | H4: RSTAT (1%) | I4: PCS (1%) | J4: PCC (0,5%) | K4: TVA sur Droit de Douane | L4: Total Achat à l'étranger | M4: Achats HT | N4: Coûts locaux (Transport, montage,..) | O4: T.V.A | P4: Total Achat en RCI | Q4: Coût total HT | R4: Coût total TTC
F5: Taux | G5: Montant
B7: AUTRES IMMOB. INCORPORELLES | C7: =SUM(C8:C55) -> 0 | E7: =SUM(E8:E55) -> 0 | G7: =SUM(G8:G55) -> 0 | H7: 0 | J7: 0 | K7: 0 | L7: 0 | M7: 0 | N7: 0 | O7: 0 | P7: 0 | Q7: 0 | R7: 0
A8: 1 | G8: =F8*E8 -> 0 | H8: =E8*1% -> 0 | I8: =E8*1% -> 0 | J8: =E8*0.5% -> 0 | K8: =(E8+G8+H8)*18% -> 0 | L8: =SUM(G8:K8)+E8 -> 0 | O8: =(M8+N8)*18% -> 0 | P8: =O8+N8+M8 -> 0 | Q8: =+R8-O8-K8 -> 0 | R8: =P8+L8 -> 0
A9: =+A8+1 -> 2 | G9: =F9*E9 -> 0 | H9: =E9*1% -> 0 | I9: =E9*1% -> 0 | J9: =E9*0.5% -> 0 | K9: =(E9+G9+H9)*18% -> 0 | L9: 0 | O9: =(M9+N9)*18% -> 0 | P9: =O9+N9+M9 -> 0 | Q9: =+R9-O9-K9 -> 0 | R9: =P9+L9 -> 0
A10: =+A9+1 -> 3 | G10: =F10*E10 -> 0 | H10: 0 | I10: 0 | J10: 0 | K10: =(E10+G10+H10)*18% -> 0 | L10: 0 | O10: =(M10+N10)*18% -> 0 | P10: =O10+N10+M10 -> 0 | Q10: =+R10-O10-K10 -> 0 | R10: =P10+L10 -> 0
A11: 4 | G11: =F11*E11 -> 0 | H11: 0 | I11: 0 | J11: 0 | K11: =(E11+G11+H11)*18% -> 0 | L11: 0 | O11: =(M11+N11)*18% -> 0 | P11: =O11+N11+M11 -> 0 | Q11: =+R11-O11-K11 -> 0 | R11: =P11+L11 -> 0
A12: 5 | G12: 0 | H12: 0 | I12: 0 | J12: 0 | K12: 0 | L12: 0 | O12: 0 | P12: 0 | Q12: 0 | R12: 0
A13: 6 | G13: 0 | H13: 0 | I13: 0 | J13: 0 | K13: 0 | L13: 0 | O13: 0 | P13: 0 | Q13: 0 | R13: 0
A14: 7 | G14: 0 | H14: 0 | I14: 0 | J14: 0 | K14: 0 | L14: 0 | O14: 0 | P14: 0 | Q14: 0 | R14: 0
A15: 8 | G15: 0 | H15: 0 | I15: 0 | J15: 0 | K15: 0 | L15: 0 | O15: 0 | P15: 0 | Q15: 0 | R15: 0
A16: 9 | G16: 0 | H16: 0 | I16: 0 | J16: 0 | K16: 0 | L16: 0 | O16: 0 | P16: 0 | Q16: 0 | R16: 0
A17: 10 | G17: 0 | H17: 0 | I17: 0 | J17: 0 | K17: 0 | L17: 0 | O17: 0 | P17: 0 | Q17: 0 | R17: 0
A18: 11 | G18: 0 | H18: 0 | I18: 0 | J18: 0 | K18: 0 | L18: 0 | O18: 0 | P18: 0 | Q18: 0 | R18: 0
A19: 12 | G19: 0 | H19: 0 | I19: 0 | J19: 0 | K19: 0 | L19: 0 | O19: 0 | P19: 0 | Q19: 0 | R19: 0
A20: 13 | G20: 0 | H20: 0 | I20: 0 | J20: 0 | K20: 0 | L20: 0 | O20: 0 | P20: 0 | Q20: 0 | R20: 0
A21: 14 | G21: 0 | H21: 0 | I21: 0 | J21: 0 | K21: 0 | L21: 0 | O21: 0 | P21: 0 | Q21: 0 | R21: 0
A22: 15 | G22: 0 | H22: 0 | I22: 0 | J22: 0 | K22: 0 | L22: 0 | O22: 0 | P22: 0 | Q22: 0 | R22: 0
A23: 16 | G23: 0 | H23: 0 | I23: 0 | J23: 0 | K23: 0 | L23: 0 | O23: 0 | P23: 0 | Q23: 0 | R23: 0
A24: 17 | G24: 0 | H24: 0 | I24: 0 | J24: 0 | K24: 0 | L24: 0 | O24: 0 | P24: 0 | Q24: 0 | R24: 0
A25: 18 | G25: 0 | H25: 0 | I25: 0 | J25: 0 | K25: 0 | L25: 0 | O25: 0 | P25: 0 | Q25: 0 | R25: 0
A26: 19 | G26: 0 | H26: 0 | I26: 0 | J26: 0 | K26: 0 | L26: 0 | O26: 0 | P26: 0 | Q26: 0 | R26: 0
A27: 20 | G27: 0 | H27: 0 | I27: 0 | J27: 0 | K27: 0 | L27: 0 | O27: 0 | P27: 0 | Q27: 0 | R27: 0
A28: 21 | G28: 0 | H28: 0 | I28: 0 | J28: 0 | K28: 0 | L28: 0 | O28: 0 | P28: 0 | Q28: 0 | R28: 0
A29: 22 | G29: 0 | H29: 0 | I29: 0 | J29: 0 | K29: 0 | L29: 0 | O29: 0 | P29: 0 | Q29: 0 | R29: 0
A30: 23 | G30: 0 | H30: 0 | I30: 0 | J30: 0 | K30: 0 | L30: 0 | O30: 0 | P30: 0 | Q30: 0 | R30: 0
A31: 24 | G31: 0 | H31: 0 | I31: 0 | J31: 0 | K31: 0 | L31: 0 | O31: 0 | P31: 0 | Q31: 0 | R31: 0
A32: 25 | G32: 0 | H32: 0 | I32: 0 | J32: 0 | K32: 0 | L32: 0 | O32: 0 | P32: 0 | Q32: 0 | R32: 0
A33: 26 | G33: 0 | H33: 0 | I33: 0 | J33: 0 | K33: 0 | L33: 0 | O33: 0 | P33: 0 | Q33: 0 | R33: 0
A34: 27 | G34: 0 | H34: 0 | I34: 0 | J34: 0 | K34: 0 | L34: 0 | O34: 0 | P34: 0 | Q34: 0 | R34: 0
A35: 28 | G35: 0 | H35: 0 | I35: 0 | J35: 0 | K35: 0 | L35: 0 | O35: 0 | P35: 0 | Q35: 0 | R35: 0
A36: 29 | G36: 0 | H36: 0 | I36: 0 | J36: 0 | K36: 0 | L36: 0 | O36: 0 | P36: 0 | Q36: 0 | R36: 0
A37: 30 | G37: 0 | H37: 0 | I37: 0 | J37: 0 | K37: 0 | L37: 0 | O37: 0 | P37: 0 | Q37: 0 | R37: 0
A38: 31 | G38: 0 | H38: 0 | I38: 0 | J38: 0 | K38: 0 | L38: 0 | O38: 0 | P38: 0 | Q38: 0 | R38: 0
A39: 32 | G39: 0 | H39: 0 | I39: 0 | J39: 0 | K39: 0 | L39: 0 | O39: 0 | P39: 0 | Q39: 0 | R39: 0
A40: 33 | G40: 0 | H40: 0 | I40: 0 | J40: 0 | K40: 0 | L40: 0 | O40: 0 | P40: 0 | Q40: 0 | R40: 0
A41: 34 | G41: 0 | H41: 0 | I41: 0 | J41: 0 | K41: 0 | L41: 0 | O41: 0 | P41: 0 | Q41: 0 | R41: 0
A42: 35 | G42: 0 | H42: 0 | I42: 0 | J42: 0 | K42: 0 | L42: 0 | O42: 0 | P42: 0 | Q42: 0 | R42: 0
A43: 36 | G43: 0 | H43: 0 | I43: 0 | J43: 0 | K43: 0 | L43: 0 | O43: 0 | P43: 0 | Q43: 0 | R43: 0
A44: 37 | G44: 0 | H44: 0 | I44: 0 | J44: 0 | K44: 0 | L44: 0 | O44: 0 | P44: 0 | Q44: 0 | R44: 0
A45: 38 | G45: 0 | H45: 0 | I45: 0 | J45: 0 | K45: 0 | L45: 0 | O45: 0 | P45: 0 | Q45: 0 | R45: 0
A46: 39 | G46: 0 | H46: 0 | I46: 0 | J46: 0 | K46: 0 | L46: 0 | O46: 0 | P46: 0 | Q46: 0 | R46: 0
A47: =+A46+1 -> 40 | G47: =F47*E47 -> 0 | H47: 0 | I47: 0 | J47: 0 | K47: =(E47+G47+H47)*18% -> 0 | L47: 0 | O47: =(M47+N47)*18% -> 0 | P47: =O47+N47+M47 -> 0 | Q47: =+R47-O47-K47 -> 0 | R47: =P47+L47 -> 0
A48: 41 | G48: 0 | H48: 0 | I48: 0 | J48: 0 | K48: 0 | L48: 0 | O48: 0 | P48: 0 | Q48: 0 | R48: 0
A49: 42 | G49: 0 | H49: 0 | I49: 0 | J49: 0 | K49: 0 | L49: 0 | O49: 0 | P49: 0 | Q49: 0 | R49: 0
A50: 43 | G50: 0 | H50: 0 | I50: 0 | J50: 0 | K50: 0 | L50: 0 | O50: 0 | P50: 0 | Q50: 0 | R50: 0
A51: 44 | G51: 0 | H51: 0 | I51: 0 | J51: 0 | K51: 0 | L51: 0 | O51: 0 | P51: 0 | Q51: 0 | R51: 0
A52: 45 | G52: 0 | H52: 0 | I52: 0 | J52: 0 | K52: 0 | L52: 0 | O52: 0 | P52: 0 | Q52: 0 | R52: 0
A53: 46 | G53: 0 | H53: 0 | I53: 0 | J53: 0 | K53: 0 | L53: 0 | O53: 0 | P53: 0 | Q53: 0 | R53: 0
A54: 47 | G54: 0 | H54: 0 | I54: 0 | J54: 0 | K54: 0 | L54: 0 | O54: 0 | P54: 0 | Q54: 0 | R54: 0
A55: 48 | G55: 0 | H55: 0 | I55: 0 | J55: 0 | K55: 0 | L55: 0 | O55: 0 | P55: 0 | Q55: 0 | R55: 0

Sheet INVEST Terrains - 05
C1: ='REFERENCES - 05'!D7 -> 0 | E1: ='REFERENCES - 05'!D9 -> 0
B2: INVESTISSEMENTS PREVUS SUR LA PERIODE DE REALISATION DU PROJET | Q2: (En F. Cfa)
A3: N° | B3: Désignation | C3: ACHAT A L'ETRANGER (en F. Cfa) | L3: ACHAT EN COTE D'IVOIRE (en F. Cfa) | P3: Coût total des Investissements
C4: Position tarifaire | D4: Cout CAF | E4: Droit de douane / Droit fiscaux | G4: RSTAT (1%) | H4: PCS (1%) | I4: PCC (0,5%) | J4: TVA sur Droit de Douane | K4: Total Achat à l'étranger | L4: Achats HT | M4: Coûts locaux (Transport, montage,..) | N4: T.V.A | O4: Total Achat en RCI | P4: Coût total HT | Q4: Coût total TTC
E5: Taux | F5: Montant
B7: TERRAINS | D7: =SUM(D8:D55) -> 0 | F7: =SUM(F8:F55) -> 0 | G7: 0 | H7: 0 | I7: 0 | J7: 0 | K7: 0 | L7: 0 | M7: 0 | N7: 0 | O7: 0 | P7: 0 | Q7: 0
A8: 1 | F8: =E8*D8 -> 0 | G8: =D8*1% -> 0 | H8: =D8*1% -> 0 | I8: =D8*0.5% -> 0 | J8: =(D8+F8+G8)*18% -> 0 | K8: =SUM(F8:J8)+D8 -> 0 | N8: =(L8+M8)*0% -> 0 | O8: =N8+M8+L8 -> 0 | P8: =+Q8-N8-J8 -> 0 | Q8: =O8+K8 -> 0
A9: =+A8+1 -> 2 | F9: =E9*D9 -> 0 | G9: =D9*1% -> 0 | H9: =D9*1% -> 0 | I9: =D9*0.5% -> 0 | J9: =(D9+F9+G9)*18% -> 0 | K9: 0 | N9: =(L9+M9)*0% -> 0 | O9: =N9+M9+L9 -> 0 | P9: =+Q9-N9-J9 -> 0 | Q9: =O9+K9 -> 0
A10: =+A9+1 -> 3 | F10: =E10*D10 -> 0 | G10: 0 | H10: 0 | I10: 0 | J10: =(D10+F10+G10)*18% -> 0 | K10: 0 | N10: 0 | O10: =N10+M10+L10 -> 0 | P10: =+Q10-N10-J10 -> 0 | Q10: =O10+K10 -> 0
A11: 4 | F11: 0 | G11: 0 | H11: 0 | I11: 0 | J11: 0 | K11: 0 | N11: 0 | O11: 0 | P11: 0 | Q11: 0
A12: 5 | F12: 0 | G12: 0 | H12: 0 | I12: 0 | J12: 0 | K12: 0 | N12: 0 | O12: 0 | P12: 0 | Q12: 0
A13: 6 | F13: =E13*D13 -> 0 | G13: 0 | H13: 0 | I13: 0 | J13: =(D13+F13+G13)*18% -> 0 | K13: 0 | N13: 0 | O13: =N13+M13+L13 -> 0 | P13: =+Q13-N13-J13 -> 0 | Q13: =O13+K13 -> 0
A14: 7 | F14: 0 | G14: 0 | H14: 0 | I14: 0 | J14: 0 | K14: =SUM(F14:J14)+D14 -> 0 | N14: 0 | O14: 0 | P14: 0 | Q14: 0
A15: 8 | F15: 0 | G15: 0 | H15: 0 | I15: 0 | J15: 0 | K15: 0 | N15: 0 | O15: 0 | P15: 0 | Q15: 0
A16: 9 | F16: 0 | G16: 0 | H16: 0 | I16: 0 | J16: 0 | K16: 0 | N16: 0 | O16: 0 | P16: 0 | Q16: 0
A17: 10 | F17: 0 | G17: 0 | H17: 0 | I17: 0 | J17: 0 | K17: 0 | N17: 0 | O17: 0 | P17: 0 | Q17: 0
A18: 11 | F18: 0 | G18: 0 | H18: 0 | I18: 0 | J18: 0 | K18: 0 | N18: 0 | O18: 0 | P18: 0 | Q18: 0
A19: 12 | F19: 0 | G19: 0 | H19: 0 | I19: 0 | J19: 0 | K19: 0 | N19: 0 | O19: 0 | P19: 0 | Q19: 0
A20: 13 | F20: 0 | G20: 0 | H20: 0 | I20: 0 | J20: 0 | K20: 0 | N20: 0 | O20: 0 | P20: 0 | Q20: 0
A21: 14 | F21: 0 | G21: 0 | H21: 0 | I21: 0 | J21: 0 | K21: 0 | N21: 0 | O21: 0 | P21: 0 | Q21: 0
A22: 15 | F22: 0 | G22: 0 | H22: 0 | I22: 0 | J22: 0 | K22: 0 | N22: 0 | O22: 0 | P22: 0 | Q22: 0
A23: 16 | F23: 0 | G23: 0 | H23: 0 | I23: 0 | J23: 0 | K23: 0 | N23: 0 | O23: 0 | P23: 0 | Q23: 0
A24: 17 | F24: 0 | G24: 0 | H24: 0 | I24: 0 | J24: 0 | K24: 0 | N24: 0 | O24: 0 | P24: 0 | Q24: 0
A25: 18 | F25: 0 | G25: 0 | H25: 0 | I25: 0 | J25: 0 | K25: 0 | N25: 0 | O25: 0 | P25: 0 | Q25: 0
A26: 19 | F26: 0 | G26: 0 | H26: 0 | I26: 0 | J26: 0 | K26: 0 | N26: 0 | O26: 0 | P26: 0 | Q26: 0
A27: 20 | F27: 0 | G27: 0 | H27: 0 | I27: 0 | J27: 0 | K27: 0 | N27: 0 | O27: 0 | P27: 0 | Q27: 0
A28: 21 | F28: 0 | G28: 0 | H28: 0 | I28: 0 | J28: 0 | K28: 0 | N28: 0 | O28: 0 | P28: 0 | Q28: 0
A29: 22 | F29: 0 | G29: 0 | H29: 0 | I29: 0 | J29: 0 | K29: 0 | N29: 0 | O29: 0 | P29: 0 | Q29: 0
A30: 23 | F30: 0 | G30: 0 | H30: 0 | I30: 0 | J30: 0 | K30: 0 | N30: 0 | O30: 0 | P30: 0 | Q30: 0
A31: 24 | F31: 0 | G31: 0 | H31: 0 | I31: 0 | J31: 0 | K31: 0 | N31: 0 | O31: 0 | P31: 0 | Q31: 0
A32: 25 | F32: 0 | G32: 0 | H32: 0 | I32: 0 | J32: 0 | K32: 0 | N32: 0 | O32: 0 | P32: 0 | Q32: 0
A33: 26 | F33: 0 | G33: 0 | H33: 0 | I33: 0 | J33: 0 | K33: 0 | N33: 0 | O33: 0 | P33: 0 | Q33: 0
A34: 27 | F34: 0 | G34: 0 | H34: 0 | I34: 0 | J34: 0 | K34: 0 | N34: 0 | O34: 0 | P34: 0 | Q34: 0
A35: 28 | F35: 0 | G35: 0 | H35: 0 | I35: 0 | J35: 0 | K35: 0 | N35: 0 | O35: 0 | P35: 0 | Q35: 0
A36: 29 | F36: 0 | G36: 0 | H36: 0 | I36: 0 | J36: 0 | K36: 0 | N36: 0 | O36: 0 | P36: 0 | Q36: 0
A37: 30 | F37: 0 | G37: 0 | H37: 0 | I37: 0 | J37: 0 | K37: 0 | N37: 0 | O37: 0 | P37: 0 | Q37: 0
A38: 31 | F38: 0 | G38: 0 | H38: 0 | I38: 0 | J38: 0 | K38: 0 | N38: 0 | O38: 0 | P38: 0 | Q38: 0
A39: 32 | F39: 0 | G39: 0 | H39: 0 | I39: 0 | J39: 0 | K39: 0 | N39: 0 | O39: 0 | P39: 0 | Q39: 0
A40: 33 | F40: 0 | G40: 0 | H40: 0 | I40: 0 | J40: 0 | K40: 0 | N40: 0 | O40: 0 | P40: 0 | Q40: 0
A41: 34 | F41: 0 | G41: 0 | H41: 0 | I41: 0 | J41: 0 | K41: 0 | N41: 0 | O41: 0 | P41: 0 | Q41: 0
A42: 35 | F42: 0 | G42: 0 | H42: 0 | I42: 0 | J42: 0 | K42: 0 | N42: 0 | O42: 0 | P42: 0 | Q42: 0
A43: 36 | F43: 0 | G43: 0 | H43: 0 | I43: 0 | J43: 0 | K43: 0 | N43: 0 | O43: 0 | P43: 0 | Q43: 0
A44: 37 | F44: 0 | G44: 0 | H44: 0 | I44: 0 | J44: 0 | K44: 0 | N44: 0 | O44: 0 | P44: 0 | Q44: 0
A45: 38 | F45: 0 | G45: 0 | H45: 0 | I45: 0 | J45: 0 | K45: 0 | N45: 0 | O45: 0 | P45: 0 | Q45: 0
A46: 39 | F46: 0 | G46: 0 | H46: 0 | I46: 0 | J46: 0 | K46: 0 | N46: 0 | O46: 0 | P46: 0 | Q46: 0
A47: =+A46+1 -> 40 | F47: =E47*D47 -> 0 | G47: 0 | H47: 0 | I47: 0 | J47: =(D47+F47+G47)*18% -> 0 | K47: 0 | N47: 0 | O47: =N47+M47+L47 -> 0 | P47: =+Q47-N47-J47 -> 0 | Q47: =O47+K47 -> 0
A48: 41 | F48: 0 | G48: 0 | H48: 0 | I48: 0 | J48: 0 | K48: 0 | N48: 0 | O48: 0 | P48: 0 | Q48: 0
A49: 42 | F49: 0 | G49: 0 | H49: 0 | I49: 0 | J49: 0 | K49: 0 | N49: 0 | O49: 0 | P49: 0 | Q49: 0
A50: 43 | F50: 0 | G50: 0 | H50: 0 | I50: 0 | J50: 0 | K50: 0 | N50: 0 | O50: 0 | P50: 0 | Q50: 0
A51: 44 | F51: 0 | G51: 0 | H51: 0 | I51: 0 | J51: 0 | K51: 0 | N51: 0 | O51: 0 | P51: 0 | Q51: 0
A52: 45 | F52: 0 | G52: 0 | H52: 0 | I52: 0 | J52: 0 | K52: 0 | N52: 0 | O52: 0 | P52: 0 | Q52: 0
A53: 46 | F53: 0 | G53: 0 | H53: 0 | I53: 0 | J53: 0 | K53: 0 | N53: 0 | O53: 0 | P53: 0 | Q53: 0
A54: 47 | F54: 0 | G54: 0 | H54: 0 | I54: 0 | J54: 0 | K54: 0 | N54: 0 | O54: 0 | P54: 0 | Q54: 0
A55: =+A54+1 -> 48 | F55: =E55*D55 -> 0 | G55: 0 | H55: 0 | I55: 0 | J55: =(D55+F55+G55)*18% -> 0 | K55: 0 | N55: 0 | O55: =N55+M55+L55 -> 0 | P55: =+Q55-N55-J55 -> 0 | Q55: =O55+K55 -> 0

Sheet INVEST.Constructions & Bât - 05
D1: ='REFERENCES - 05'!D7 -> 0 | F1: ='REFERENCES - 05'!D9 -> 0
B2: INVESTISSEMENTS PREVUS SUR LA PERIODE DE REALISATION DU PROJET | R2: (En F. Cfa)
A3: N° | B3: Désignation | C3: Quantité | D3: ACHAT A L'ETRANGER (en F. Cfa) | M3: ACHAT EN COTE D'IVOIRE (en F. Cfa) | Q3: Coût total des Investissements
D4: Position tarifaire | E4: Cout CAF | F4: Droit de douane / Droit fiscaux | H4: RSTAT (1%) | I4: PCS (1%) | J4: PCC (0,5%) | K4: TVA sur Droit de Douane | L4: Total Achat à l'étranger | M4: Achats HT | N4: Coûts locaux (Transport, montage,..) | O4: T.V.A | P4: Total Achat en RCI | Q4: Coût total HT | R4: Coût total TTC
F5: Taux | G5: Montant
B7: CONSTRUCTIONS & BÂTIMENTS | C7: =SUM(C8:C507) -> 0 | E7: =SUM(E8:E507) -> 0 | G7: =SUM(G8:G507) -> 0 | H7: 0 | I7: 0 | J7: 0 | K7: 0 | L7: 0 | M7: 0 | N7: 0 | O7: 0 | P7: 0 | Q7: 0 | R7: 0
A8: 1 | G8: =F8*E8 -> 0 | H8: =E8*1% -> 0 | I8: =E8*1% -> 0 | J8: =E8*0.5% -> 0 | K8: =(E8+G8+H8)*18% -> 0 | L8: =SUM(G8:K8)+E8 -> 0 | O8: =(M8+N8)*18% -> 0 | P8: =O8+N8+M8 -> 0 | Q8: =+R8-O8-K8 -> 0 | R8: =P8+L8 -> 0
A9: =+A8+1 -> 2 | G9: =F9*E9 -> 0 | H9: =E9*1% -> 0 | I9: =E9*1% -> 0 | J9: =E9*0.5% -> 0 | K9: =(E9+G9+H9)*18% -> 0 | L9: 0 | O9: =(M9+N9)*18% -> 0 | P9: =O9+N9+M9 -> 0 | Q9: =+R9-O9-K9 -> 0 | R9: =P9+L9 -> 0
A10: =+A9+1 -> 3 | G10: =F10*E10 -> 0 | H10: 0 | I10: 0 | J10: 0 | K10: =(E10+G10+H10)*18% -> 0 | L10: 0 | O10: =(M10+N10)*18% -> 0 | P10: =O10+N10+M10 -> 0 | Q10: =+R10-O10-K10 -> 0 | R10: =P10+L10 -> 0
A11: 4 | G11: 0 | H11: 0 | I11: 0 | J11: 0 | K11: 0 | L11: 0 | O11: 0 | P11: 0 | Q11: 0 | R11: 0
A12: 5 | G12: 0 | H12: 0 | I12: 0 | J12: 0 | K12: 0 | L12: 0 | O12: 0 | P12: 0 | Q12: 0 | R12: 0
A13: 6 | G13: 0 | H13: 0 | I13: 0 | J13: 0 | K13: 0 | L13: 0 | O13: 0 | P13: 0 | Q13: 0 | R13: 0
A14: 7 | G14: 0 | H14: 0 | I14: 0 | J14: 0 | K14: 0 | L14: 0 | O14: 0 | P14: 0 | Q14: 0 | R14: 0
A15: 8 | G15: 0 | H15: 0 | I15: 0 | J15: 0 | K15: 0 | L15: 0 | O15: 0 | P15: 0 | Q15: 0 | R15: 0
A16: 9 | G16: 0 | H16: 0 | I16: 0 | J16: 0 | K16: 0 | L16: 0 | O16: 0 | P16: 0 | Q16: 0 | R16: 0
A17: 10 | G17: 0 | H17: 0 | I17: 0 | J17: 0 | K17: 0 | L17: 0 | O17: 0 | P17: 0 | Q17: 0 | R17: 0
A18: 11 | G18: =F18*E18 -> 0 | H18: 0 | I18: 0 | J18: 0 | K18: =(E18+G18+H18)*18% -> 0 | L18: 0 | O18: =(M18+N18)*18% -> 0 | P18: =O18+N18+M18 -> 0 | Q18: =+R18-O18-K18 -> 0 | R18: =P18+L18 -> 0
A19: 12 | G19: 0 | H19: 0 | I19: 0 | J19: 0 | K19: 0 | L19: 0 | O19: 0 | P19: 0 | Q19: 0 | R19: 0
A20: 13 | G20: 0 | H20: 0 | I20: 0 | J20: 0 | K20: 0 | L20: 0 | O20: 0 | P20: 0 | Q20: 0 | R20: 0
A21: 14 | G21: 0 | H21: 0 | I21: 0 | J21: 0 | K21: 0 | L21: 0 | O21: 0 | P21: 0 | Q21: 0 | R21: 0
A22: 15 | G22: 0 | H22: 0 | I22: 0 | J22: 0 | K22: 0 | L22: 0 | O22: 0 | P22: 0 | Q22: 0 | R22: 0
A23: 16 | G23: 0 | H23: 0 | I23: 0 | J23: 0 | K23: 0 | L23: 0 | O23: 0 | P23: 0 | Q23: 0 | R23: 0
A24: 17 | G24: 0 | H24: 0 | I24: 0 | J24: 0 | K24: 0 | L24: 0 | O24: 0 | P24: 0 | Q24: 0 | R24: 0
A25: 18 | G25: 0 | H25: 0 | I25: 0 | J25: 0 | K25: 0 | L25: 0 | O25: 0 | P25: 0 | Q25: 0 | R25: 0
A26: 19 | G26: 0 | H26: 0 | I26: 0 | J26: 0 | K26: 0 | L26: 0 | O26: 0 | P26: 0 | Q26: 0 | R26: 0
A27: 20 | G27: 0 | H27: 0 | I27: 0 | J27: 0 | K27: 0 | L27: 0 | O27: 0 | P27: 0 | Q27: 0 | R27: 0
A28: 21 | G28: 0 | H28: 0 | I28: 0 | J28: 0 | K28: 0 | L28: 0 | O28: 0 | P28: 0 | Q28: 0 | R28: 0
A29: 22 | G29: 0 | H29: 0 | I29: 0 | J29: 0 | K29: 0 | L29: 0 | O29: 0 | P29: 0 | Q29: 0 | R29: 0
A30: 23 | G30: 0 | H30: 0 | I30: 0 | J30: 0 | K30: 0 | L30: 0 | O30: 0 | P30: 0 | Q30: 0 | R30: 0
A31: 24 | G31: 0 | H31: 0 | I31: 0 | J31: 0 | K31: 0 | L31: 0 | O31: 0 | P31: 0 | Q31: 0 | R31: 0
A32: 25 | G32: 0 | H32: 0 | I32: 0 | J32: 0 | K32: 0 | L32: 0 | O32: 0 | P32: 0 | Q32: 0 | R32: 0
A33: 26 | G33: 0 | H33: 0 | I33: 0 | J33: 0 | K33: 0 | L33: 0 | O33: 0 | P33: 0 | Q33: 0 | R33: 0
A34: 27 | G34: 0 | H34: 0 | I34: 0 | J34: 0 | K34: 0 | L34: 0 | O34: 0 | P34: 0 | Q34: 0 | R34: 0
A35: 28 | G35: 0 | H35: 0 | I35: 0 | J35: 0 | K35: 0 | L35: 0 | O35: 0 | P35: 0 | Q35: 0 | R35: 0
A36: 29 | G36: 0 | H36: 0 | I36: 0 | J36: 0 | K36: 0 | L36: 0 | O36: 0 | P36: 0 | Q36: 0 | R36: 0
A37: 30 | G37: 0 | H37: 0 | I37: 0 | J37: 0 | K37: 0 | L37: 0 | O37: 0 | P37: 0 | Q37: 0 | R37: 0
A38: 31 | G38: 0 | H38: 0 | I38: 0 | J38: 0 | K38: 0 | L38: 0 | O38: 0 | P38: 0 | Q38: 0 | R38: 0
A39: 32 | G39: 0 | H39: 0 | I39: 0 | J39: 0 | K39: 0 | L39: 0 | O39: 0 | P39: 0 | Q39: 0 | R39: 0
A40: 33 | G40: 0 | H40: 0 | I40: 0 | J40: 0 | K40: 0 | L40: 0 | O40: 0 | P40: 0 | Q40: 0 | R40: 0
A41: 34 | G41: 0 | H41: 0 | I41: 0 | J41: 0 | K41: 0 | L41: 0 | O41: 0 | P41: 0 | Q41: 0 | R41: 0
A42: 35 | G42: 0 | H42: 0 | I42: 0 | J42: 0 | K42: 0 | L42: 0 | O42: 0 | P42: 0 | Q42: 0 | R42: 0
A43: 36 | G43: 0 | H43: 0 | I43: 0 | J43: 0 | K43: 0 | L43: 0 | O43: 0 | P43: 0 | Q43: 0 | R43: 0
A44: 37 | G44: 0 | H44: 0 | I44: 0 | J44: 0 | K44: 0 | L44: 0 | O44: 0 | P44: 0 | Q44: 0 | R44: 0
A45: 38 | G45: 0 | H45: 0 | I45: 0 | J45: 0 | K45: 0 | L45: 0 | O45: 0 | P45: 0 | Q45: 0 | R45: 0
A46: 39 | G46: 0 | H46: 0 | I46: 0 | J46: 0 | K46: 0 | L46: 0 | O46: 0 | P46: 0 | Q46: 0 | R46: 0
A47: =+A46+1 -> 40 | G47: =F47*E47 -> 0 | H47: 0 | I47: 0 | J47: 0 | K47: =(E47+G47+H47)*18% -> 0 | L47: 0 | O47: =(M47+N47)*18% -> 0 | P47: =O47+N47+M47 -> 0 | Q47: =+R47-O47-K47 -> 0 | R47: =P47+L47 -> 0
A48: 41 | G48: 0 | H48: 0 | I48: 0 | J48: 0 | K48: 0 | L48: 0 | O48: 0 | P48: 0 | Q48: 0 | R48: 0
A49: 42 | G49: 0 | H49: 0 | I49: 0 | J49: 0 | K49: 0 | L49: 0 | O49: 0 | P49: 0 | Q49: 0 | R49: 0
A50: 43 | G50: 0 | H50: 0 | I50: 0 | J50: 0 | K50: 0 | L50: 0 | O50: 0 | P50: 0 | Q50: 0 | R50: 0
A51: 44 | G51: 0 | H51: 0 | I51: 0 | J51: 0 | K51: 0 | L51: 0 | O51: 0 | P51: 0 | Q51: 0 | R51: 0
A52: 45 | G52: 0 | H52: 0 | I52: 0 | J52: 0 | K52: 0 | L52: 0 | O52: 0 | P52: 0 | Q52: 0 | R52: 0
A53: 46 | G53: 0 | H53: 0 | I53: 0 | J53: 0 | K53: 0 | L53: 0 | O53: 0 | P53: 0 | Q53: 0 | R53: 0
A54: 47 | G54: 0 | H54: 0 | I54: 0 | J54: 0 | K54: 0 | L54: 0 | O54: 0 | P54: 0 | Q54: 0 | R54: 0
A55: 48 | G55: =F55*E55 -> 0 | H55: 0 | I55: 0 | J55: 0 | K55: =(E55+G55+H55)*18% -> 0 | L55: =SUM(G55:K55)+E55 -> 0 | O55: =(M55+N55)*18% -> 0 | P55: =O55+N55+M55 -> 0 | Q55: =+R55-O55-K55 -> 0 | R55: =P55+L55 -> 0
A56: 49 | G56: 0 | H56: 0 | I56: 0 | J56: 0 | K56: 0 | L56: 0 | O56: 0 | P56: 0 | Q56: 0 | R56: 0
A57: 50 | G57: 0 | H57: 0 | I57: 0 | J57: 0 | K57: 0 | L57: 0 | O57: 0 | P57: 0 | Q57: 0 | R57: 0
A58: 51 | G58: 0 | H58: 0 | I58: 0 | J58: 0 | K58: 0 | L58: 0 | O58: 0 | P58: 0 | Q58: 0 | R58: 0
A59: 52 | G59: 0 | H59: 0 | I59: 0 | J59: 0 | K59: 0 | L59: 0 | O59: 0 | P59: 0 | Q59: 0 | R59: 0
A60: 53 | G60: 0 | H60: 0 | I60: 0 | J60: 0 | K60: 0 | L60: 0 | O60: 0 | P60: 0 | Q60: 0 | R60: 0
A61: 54 | G61: 0 | H61: 0 | I61: 0 | J61: 0 | K61: 0 | L61: 0 | O61: 0 | P61: 0 | Q61: 0 | R61: 0
A62: 55 | G62: 0 | H62: 0 | I62: 0 | J62: 0 | K62: 0 | L62: 0 | O62: 0 | P62: 0 | Q62: 0 | R62: 0
A63: 56 | G63: 0 | H63: 0 | I63: 0 | J63: 0 | K63: 0 | L63: 0 | O63: 0 | P63: 0 | Q63: 0 | R63: 0
A64: 57 | G64: 0 | H64: 0 | I64: 0 | J64: 0 | K64: 0 | L64: 0 | O64: 0 | P64: 0 | Q64: 0 | R64: 0
A65: 58 | G65: 0 | H65: 0 | I65: 0 | J65: 0 | K65: 0 | L65: 0 | O65: 0 | P65: 0 | Q65: 0 | R65: 0
A66: 59 | G66: 0 | H66: 0 | I66: 0 | J66: 0 | K66: 0 | L66: 0 | O66: 0 | P66: 0 | Q66: 0 | R66: 0
A67: 60 | G67: 0 | H67: 0 | I67: 0 | J67: 0 | K67: 0 | L67: 0 | O67: 0 | P67: 0 | Q67: 0 | R67: 0
A68: 61 | G68: 0 | H68: 0 | I68: 0 | J68: 0 | K68: 0 | L68: 0 | O68: 0 | P68: 0 | Q68: 0 | R68: 0
A69: 62 | G69: 0 | H69: 0 | I69: 0 | J69: 0 | K69: 0 | L69: 0 | O69: 0 | P69: 0 | Q69: 0 | R69: 0
A70: 63 | G70: 0 | H70: 0 | I70: 0 | J70: 0 | K70: 0 | L70: 0 | O70: 0 | P70: 0 | Q70: 0 | R70: 0
A71: 64 | G71: 0 | H71: 0 | I71: 0 | J71: 0 | K71: 0 | L71: 0 | O71: 0 | P71: 0 | Q71: 0 | R71: 0
A72: 65 | G72: 0 | H72: 0 | I72: 0 | J72: 0 | K72: 0 | L72: 0 | O72: 0 | P72: 0 | Q72: 0 | R72: 0
A73: 66 | G73: 0 | H73: =E73*1% -> 0 | I73: =E73*1% -> 0 | J73: =E73*0.5% -> 0 | K73: 0 | L73: 0 | O73: 0 | P73: 0 | Q73: 0 | R73: 0
A74: 67 | G74: 0 | H74: 0 | I74: 0 | J74: 0 | K74: 0 | L74: 0 | O74: 0 | P74: 0 | Q74: 0 | R74: 0
A75: 68 | G75: 0 | H75: 0 | I75: 0 | J75: 0 | K75: 0 | L75: 0 | O75: 0 | P75: 0 | Q75: 0 | R75: 0
A76: 69 | G76: 0 | H76: 0 | I76: 0 | J76: 0 | K76: 0 | L76: 0 | O76: 0 | P76: 0 | Q76: 0 | R76: 0
A77: 70 | G77: 0 | H77: 0 | I77: 0 | J77: 0 | K77: 0 | L77: 0 | O77: 0 | P77: 0 | Q77: 0 | R77: 0
A78: 71 | G78: 0 | H78: 0 | I78: 0 | J78: 0 | K78: 0 | L78: 0 | O78: 0 | P78: 0 | Q78: 0 | R78: 0
A79: 72 | G79: 0 | H79: 0 | I79: 0 | J79: 0 | K79: 0 | L79: 0 | O79: 0 | P79: 0 | Q79: 0 | R79: 0
A80: 73 | G80: 0 | H80: 0 | I80: 0 | J80: 0 | K80: 0 | L80: 0 | O80: 0 | P80: 0 | Q80: 0 | R80: 0
A81: 74 | G81: 0 | H81: 0 | I81: 0 | J81: 0 | K81: 0 | L81: 0 | O81: 0 | P81: 0 | Q81: 0 | R81: 0
A82: 75 | G82: 0 | H82: 0 | I82: 0 | J82: 0 | K82: 0 | L82: 0 | O82: 0 | P82: 0 | Q82: 0 | R82: 0
A83: 76 | G83: 0 | H83: 0 | I83: 0 | J83: 0 | K83: 0 | L83: 0 | O83: 0 | P83: 0 | Q83: 0 | R83: 0
A84: 77 | G84: 0 | H84: 0 | I84: 0 | J84: 0 | K84: 0 | L84: 0 | O84: 0 | P84: 0 | Q84: 0 | R84: 0
A85: 78 | G85: 0 | H85: 0 | I85: 0 | J85: 0 | K85: 0 | L85: 0 | O85: 0 | P85: 0 | Q85: 0 | R85: 0
A86: 79 | G86: 0 | H86: 0 | I86: 0 | J86: 0 | K86: 0 | L86: 0 | O86: 0 | P86: 0 | Q86: 0 | R86: 0
A87: 80 | G87: 0 | H87: 0 | I87: 0 | J87: 0 | K87: 0 | L87: 0 | O87: 0 | P87: 0 | Q87: 0 | R87: 0
A88: 81 | G88: 0 | H88: 0 | I88: 0 | J88: 0 | K88: 0 | L88: 0 | O88: 0 | P88: 0 | Q88: 0 | R88: 0
A89: 82 | G89: 0 | H89: 0 | I89: 0 | J89: 0 | K89: 0 | L89: 0 | O89: 0 | P89: 0 | Q89: 0 | R89: 0
A90: 83 | G90: 0 | H90: 0 | I90: 0 | J90: 0 | K90: 0 | L90: 0 | O90: 0 | P90: 0 | Q90: 0 | R90: 0
A91: 84 | G91: 0 | H91: 0 | I91: 0 | J91: 0 | K91: 0 | L91: 0 | O91: 0 | P91: 0 | Q91: 0 | R91: 0
A92: 85 | G92: 0 | H92: 0 | I92: 0 | J92: 0 | K92: 0 | L92: 0 | O92: 0 | P92: 0 | Q92: 0 | R92: 0
A93: 86 | G93: 0 | H93: 0 | I93: 0 | J93: 0 | K93: 0 | L93: 0 | O93: 0 | P93: 0 | Q93: 0 | R93: 0
A94: 87 | G94: 0 | H94: 0 | I94: 0 | J94: 0 | K94: 0 | L94: 0 | O94: 0 | P94: 0 | Q94: 0 | R94: 0
A95: 88 | G95: 0 | H95: 0 | I95: 0 | J95: 0 | K95: 0 | L95: 0 | O95: 0 | P95: 0 | Q95: 0 | R95: 0
A96: 89 | G96: 0 | H96: 0 | I96: 0 | J96: 0 | K96: 0 | L96: 0 | O96: 0 | P96: 0 | Q96: 0 | R96: 0
A97: 90 | G97: 0 | H97: 0 | I97: 0 | J97: 0 | K97: 0 | L97: 0 | O97: 0 | P97: 0 | Q97: 0 | R97: 0
A98: 91 | G98: 0 | H98: 0 | I98: 0 | J98: 0 | K98: 0 | L98: 0 | O98: 0 | P98: 0 | Q98: 0 | R98: 0
A99: 92 | G99: 0 | H99: 0 | I99: 0 | J99: 0 | K99: 0 | L99: 0 | O99: 0 | P99: 0 | Q99: 0 | R99: 0
A100: 93 | G100: 0 | H100: 0 | I100: 0 | J100: 0 | K100: 0 | L100: 0 | O100: 0 | P100: 0 | Q100: 0 | R100: 0
A101: 94 | G101: 0 | H101: 0 | I101: 0 | J101: 0 | K101: 0 | L101: 0 | O101: 0 | P101: 0 | Q101: 0 | R101: 0
A102: 95 | G102: 0 | H102: 0 | I102: 0 | J102: 0 | K102: 0 | L102: 0 | O102: 0 | P102: 0 | Q102: 0 | R102: 0
A103: 96 | G103: 0 | H103: 0 | I103: 0 | J103: 0 | K103: 0 | L103: 0 | O103: 0 | P103: 0 | Q103: 0 | R103: 0
A104: 97 | G104: 0 | H104: 0 | I104: 0 | J104: 0 | K104: 0 | L104: 0 | O104: 0 | P104: 0 | Q104: 0 | R104: 0
A105: 98 | G105: 0 | H105: 0 | I105: 0 | J105: 0 | K105: 0 | L105: 0 | O105: 0 | P105: 0 | Q105: 0 | R105: 0
A106: 99 | G106: 0 | H106: 0 | I106: 0 | J106: 0 | K106: 0 | L106: 0 | O106: 0 | P106: 0 | Q106: 0 | R106: 0
A107: 100 | G107: 0 | H107: 0 | I107: 0 | J107: 0 | K107: 0 | L107: 0 | O107: 0 | P107: 0 | Q107: 0 | R107: 0
A108: 101 | G108: 0 | H108: 0 | I108: 0 | J108: 0 | K108: 0 | L108: 0 | O108: 0 | P108: 0 | Q108: 0 | R108: 0
A109: 102 | G109: 0 | H109: 0 | I109: 0 | J109: 0 | K109: 0 | L109: 0 | O109: 0 | P109: 0 | Q109: 0 | R109: 0
A110: 103 | G110: 0 | H110: 0 | I110: 0 | J110: 0 | K110: 0 | L110: 0 | O110: 0 | P110: 0 | Q110: 0 | R110: 0
A111: =+A110+1 -> 104 | G111: 0 | H111: 0 | I111: 0 | J111: 0 | K111: 0 | L111: 0 | O111: 0 | P111: 0 | Q111: 0 | R111: 0
A112: 105 | G112: 0 | H112: 0 | I112: 0 | J112: 0 | K112: 0 | L112: 0 | O112: 0 | P112: 0 | Q112: 0 | R112: 0
A113: 106 | G113: 0 | H113: 0 | I113: 0 | J113: 0 | K113: 0 | L113: 0 | O113: 0 | P113: 0 | Q113: 0 | R113: 0
A114: 107 | G114: 0 | H114: 0 | I114: 0 | J114: 0 | K114: 0 | L114: 0 | O114: 0 | P114: 0 | Q114: 0 | R114: 0
A115: 108 | G115: 0 | H115: 0 | I115: 0 | J115: 0 | K115: 0 | L115: 0 | O115: 0 | P115: 0 | Q115: 0 | R115: 0
A116: 109 | G116: 0 | H116: 0 | I116: 0 | J116: 0 | K116: 0 | L116: 0 | O116: 0 | P116: 0 | Q116: 0 | R116: 0
A117: 110 | G117: 0 | H117: 0 | I117: 0 | J117: 0 | K117: 0 | L117: 0 | O117: 0 | P117: 0 | Q117: 0 | R117: 0
A118: 111 | G118: 0 | H118: 0 | I118: 0 | J118: 0 | K118: 0 | L118: 0 | O118: 0 | P118: 0 | Q118: 0 | R118: 0
A119: 112 | G119: =F119*E119 -> 0 | H119: 0 | I119: 0 | J119: 0 | K119: =(E119+G119+H119)*18% -> 0 | L119: =SUM(G119:K119)+E119 -> 0 | O119: =(M119+N119)*18% -> 0 | P119: =O119+N119+M119 -> 0 | Q119: =+R119-O119-K119 -> 0 | R119: =P119+L119 -> 0
A120: 113 | G120: 0 | H120: 0 | I120: 0 | J120: 0 | K120: 0 | L120: 0 | O120: 0 | P120: 0 | Q120: 0 | R120: 0
A121: 114 | G121: 0 | H121: 0 | I121: 0 | J121: 0 | K121: 0 | L121: 0 | O121: 0 | P121: 0 | Q121: 0 | R121: 0
A122: 115 | G122: 0 | H122: 0 | I122: 0 | J122: 0 | K122: 0 | L122: 0 | O122: 0 | P122: 0 | Q122: 0 | R122: 0
A123: 116 | G123: 0 | H123: 0 | I123: 0 | J123: 0 | K123: 0 | L123: 0 | O123: 0 | P123: 0 | Q123: 0 | R123: 0
A124: 117 | G124: 0 | H124: 0 | I124: 0 | J124: 0 | K124: 0 | L124: 0 | O124: 0 | P124: 0 | Q124: 0 | R124: 0
A125: 118 | G125: 0 | H125: 0 | I125: 0 | J125: 0 | K125: 0 | L125: 0 | O125: 0 | P125: 0 | Q125: 0 | R125: 0
A126: 119 | G126: 0 | H126: 0 | I126: 0 | J126: 0 | K126: 0 | L126: 0 | O126: 0 | P126: 0 | Q126: 0 | R126: 0
A127: 120 | G127: 0 | H127: 0 | I127: 0 | J127: 0 | K127: 0 | L127: 0 | O127: 0 | P127: 0 | Q127: 0 | R127: 0
A128: 121 | G128: 0 | H128: 0 | I128: 0 | J128: 0 | K128: 0 | L128: 0 | O128: 0 | P128: 0 | Q128: 0 | R128: 0
A129: 122 | G129: 0 | H129: 0 | I129: 0 | J129: 0 | K129: 0 | L129: 0 | O129: 0 | P129: 0 | Q129: 0 | R129: 0
A130: 123 | G130: 0 | H130: 0 | I130: 0 | J130: 0 | K130: 0 | L130: 0 | O130: 0 | P130: 0 | Q130: 0 | R130: 0
A131: 124 | G131: 0 | H131: 0 | I131: 0 | J131: 0 | K131: 0 | L131: 0 | O131: 0 | P131: 0 | Q131: 0 | R131: 0
A132: 125 | G132: 0 | H132: 0 | I132: 0 | J132: 0 | K132: 0 | L132: 0 | O132: 0 | P132: 0 | Q132: 0 | R132: 0
A133: 126 | G133: 0 | H133: 0 | I133: 0 | J133: 0 | K133: 0 | L133: 0 | O133: 0 | P133: 0 | Q133: 0 | R133: 0
A134: 127 | G134: 0 | H134: 0 | I134: 0 | J134: 0 | K134: 0 | L134: 0 | O134: 0 | P134: 0 | Q134: 0 | R134: 0
A135: 128 | G135: 0 | H135: 0 | I135: 0 | J135: 0 | K135: 0 | L135: 0 | O135: 0 | P135: 0 | Q135: 0 | R135: 0
A136: 129 | G136: 0 | H136: 0 | I136: 0 | J136: 0 | K136: 0 | L136: 0 | O136: 0 | P136: 0 | Q136: 0 | R136: 0
A137: 130 | G137: 0 | H137: =E137*1% -> 0 | I137: =E137*1% -> 0 | J137: =E137*0.5% -> 0 | K137: 0 | L137: 0 | O137: 0 | P137: 0 | Q137: 0 | R137: 0
A138: 131 | G138: 0 | H138: 0 | I138: 0 | J138: 0 | K138: 0 | L138: 0 | O138: 0 | P138: 0 | Q138: 0 | R138: 0
A139: 132 | G139: 0 | H139: 0 | I139: 0 | J139: 0 | K139: 0 | L139: 0 | O139: 0 | P139: 0 | Q139: 0 | R139: 0
A140: 133 | G140: 0 | H140: 0 | I140: 0 | J140: 0 | K140: 0 | L140: 0 | O140: 0 | P140: 0 | Q140: 0 | R140: 0
A141: 134 | G141: 0 | H141: 0 | I141: 0 | J141: 0 | K141: 0 | L141: 0 | O141: 0 | P141: 0 | Q141: 0 | R141: 0
A142: 135 | G142: 0 | H142: 0 | I142: 0 | J142: 0 | K142: 0 | L142: 0 | O142: 0 | P142: 0 | Q142: 0 | R142: 0
A143: 136 | G143: 0 | H143: 0 | I143: 0 | J143: 0 | K143: 0 | L143: 0 | O143: 0 | P143: 0 | Q143: 0 | R143: 0
A144: 137 | G144: 0 | H144: 0 | I144: 0 | J144: 0 | K144: 0 | L144: 0 | O144: 0 | P144: 0 | Q144: 0 | R144: 0
A145: 138 | G145: 0 | H145: 0 | I145: 0 | J145: 0 | K145: 0 | L145: 0 | O145: 0 | P145: 0 | Q145: 0 | R145: 0
A146: 139 | G146: 0 | H146: 0 | I146: 0 | J146: 0 | K146: 0 | L146: 0 | O146: 0 | P146: 0 | Q146: 0 | R146: 0
A147: 140 | G147: 0 | H147: 0 | I147: 0 | J147: 0 | K147: 0 | L147: 0 | O147: 0 | P147: 0 | Q147: 0 | R147: 0
A148: 141 | G148: 0 | H148: 0 | I148: 0 | J148: 0 | K148: 0 | L148: 0 | O148: 0 | P148: 0 | Q148: 0 | R148: 0
A149: 142 | G149: 0 | H149: 0 | I149: 0 | J149: 0 | K149: 0 | L149: 0 | O149: 0 | P149: 0 | Q149: 0 | R149: 0
A150: 143 | G150: 0 | H150: 0 | I150: 0 | J150: 0 | K150: 0 | L150: 0 | O150: 0 | P150: 0 | Q150: 0 | R150: 0
A151: 144 | G151: 0 | H151: 0 | I151: 0 | J151: 0 | K151: 0 | L151: 0 | O151: 0 | P151: 0 | Q151: 0 | R151: 0
A152: 145 | G152: 0 | H152: 0 | I152: 0 | J152: 0 | K152: 0 | L152: 0 | O152: 0 | P152: 0 | Q152: 0 | R152: 0
A153: 146 | G153: 0 | H153: 0 | I153: 0 | J153: 0 | K153: 0 | L153: 0 | O153: 0 | P153: 0 | Q153: 0 | R153: 0
A154: 147 | G154: 0 | H154: 0 | I154: 0 | J154: 0 | K154: 0 | L154: 0 | O154: 0 | P154: 0 | Q154: 0 | R154: 0
A155: 148 | G155: 0 | H155: 0 | I155: 0 | J155: 0 | K155: 0 | L155: 0 | O155: 0 | P155: 0 | Q155: 0 | R155: 0
A156: 149 | G156: 0 | H156: 0 | I156: 0 | J156: 0 | K156: 0 | L156: 0 | O156: 0 | P156: 0 | Q156: 0 | R156: 0
A157: 150 | G157: 0 | H157: 0 | I157: 0 | J157: 0 | K157: 0 | L157: 0 | O157: 0 | P157: 0 | Q157: 0 | R157: 0
A158: 151 | G158: 0 | H158: 0 | I158: 0 | J158: 0 | K158: 0 | L158: 0 | O158: 0 | P158: 0 | Q158: 0 | R158: 0
A159: 152 | G159: 0 | H159: 0 | I159: 0 | J159: 0 | K159: 0 | L159: 0 | O159: 0 | P159: 0 | Q159: 0 | R159: 0
A160: 153 | G160: 0 | H160: 0 | I160: 0 | J160: 0 | K160: 0 | L160: 0 | O160: 0 | P160: 0 | Q160: 0 | R160: 0
A161: 154 | G161: 0 | H161: 0 | I161: 0 | J161: 0 | K161: 0 | L161: 0 | O161: 0 | P161: 0 | Q161: 0 | R161: 0
A162: 155 | G162: 0 | H162: 0 | I162: 0 | J162: 0 | K162: 0 | L162: 0 | O162: 0 | P162: 0 | Q162: 0 | R162: 0
A163: 156 | G163: 0 | H163: 0 | I163: 0 | J163: 0 | K163: 0 | L163: 0 | O163: 0 | P163: 0 | Q163: 0 | R163: 0
A164: 157 | G164: 0 | H164: 0 | I164: 0 | J164: 0 | K164: 0 | L164: 0 | O164: 0 | P164: 0 | Q164: 0 | R164: 0
A165: 158 | G165: 0 | H165: 0 | I165: 0 | J165: 0 | K165: 0 | L165: 0 | O165: 0 | P165: 0 | Q165: 0 | R165: 0
A166: 159 | G166: 0 | H166: 0 | I166: 0 | J166: 0 | K166: 0 | L166: 0 | O166: 0 | P166: 0 | Q166: 0 | R166: 0
A167: 160 | G167: 0 | H167: 0 | I167: 0 | J167: 0 | K167: 0 | L167: 0 | O167: 0 | P167: 0 | Q167: 0 | R167: 0
A168: 161 | G168: 0 | H168: 0 | I168: 0 | J168: 0 | K168: 0 | L168: 0 | O168: 0 | P168: 0 | Q168: 0 | R168: 0
A169: 162 | G169: 0 | H169: 0 | I169: 0 | J169: 0 | K169: 0 | L169: 0 | O169: 0 | P169: 0 | Q169: 0 | R169: 0
A170: 163 | G170: 0 | H170: 0 | I170: 0 | J170: 0 | K170: 0 | L170: 0 | O170: 0 | P170: 0 | Q170: 0 | R170: 0
A171: 164 | G171: 0 | H171: 0 | I171: 0 | J171: 0 | K171: 0 | L171: 0 | O171: 0 | P171: 0 | Q171: 0 | R171: 0
A172: 165 | G172: 0 | H172: 0 | I172: 0 | J172: 0 | K172: 0 | L172: 0 | O172: 0 | P172: 0 | Q172: 0 | R172: 0
A173: 166 | G173: 0 | H173: 0 | I173: 0 | J173: 0 | K173: 0 | L173: 0 | O173: 0 | P173: 0 | Q173: 0 | R173: 0
A174: 167 | G174: 0 | H174: 0 | I174: 0 | J174: 0 | K174: 0 | L174: 0 | O174: 0 | P174: 0 | Q174: 0 | R174: 0
A175: =+A174+1 -> 168 | G175: 0 | H175: 0 | I175: 0 | J175: 0 | K175: 0 | L175: 0 | O175: 0 | P175: 0 | Q175: 0 | R175: 0
A176: 169 | G176: 0 | H176: 0 | I176: 0 | J176: 0 | K176: 0 | L176: 0 | O176: 0 | P176: 0 | Q176: 0 | R176: 0
A177: 170 | G177: 0 | H177: 0 | I177: 0 | J177: 0 | K177: 0 | L177: 0 | O177: 0 | P177: 0 | Q177: 0 | R177: 0
A178: 171 | G178: 0 | H178: 0 | I178: 0 | J178: 0 | K178: 0 | L178: 0 | O178: 0 | P178: 0 | Q178: 0 | R178: 0
A179: 172 | G179: 0 | H179: 0 | I179: 0 | J179: 0 | K179: 0 | L179: 0 | O179: 0 | P179: 0 | Q179: 0 | R179: 0
A180: 173 | G180: 0 | H180: 0 | I180: 0 | J180: 0 | K180: 0 | L180: 0 | O180: 0 | P180: 0 | Q180: 0 | R180: 0
A181: 174 | G181: 0 | H181: 0 | I181: 0 | J181: 0 | K181: 0 | L181: 0 | O181: 0 | P181: 0 | Q181: 0 | R181: 0
A182: 175 | G182: 0 | H182: 0 | I182: 0 | J182: 0 | K182: 0 | L182: 0 | O182: 0 | P182: 0 | Q182: 0 | R182: 0
A183: 176 | G183: =F183*E183 -> 0 | H183: 0 | I183: 0 | J183: 0 | K183: =(E183+G183+H183)*18% -> 0 | L183: =SUM(G183:K183)+E183 -> 0 | O183: =(M183+N183)*18% -> 0 | P183: =O183+N183+M183 -> 0 | Q183: =+R183-O183-K183 -> 0 | R183: =P183+L183 -> 0
A184: 177 | G184: 0 | H184: 0 | I184: 0 | J184: 0 | K184: 0 | L184: 0 | O184: 0 | P184: 0 | Q184: 0 | R184: 0
A185: 178 | G185: 0 | H185: 0 | I185: 0 | J185: 0 | K185: 0 | L185: 0 | O185: 0 | P185: 0 | Q185: 0 | R185: 0
A186: 179 | G186: 0 | H186: 0 | I186: 0 | J186: 0 | K186: 0 | L186: 0 | O186: 0 | P186: 0 | Q186: 0 | R186: 0
A187: 180 | G187: 0 | H187: 0 | I187: 0 | J187: 0 | K187: 0 | L187: 0 | O187: 0 | P187: 0 | Q187: 0 | R187: 0
A188: 181 | G188: 0 | H188: 0 | I188: 0 | J188: 0 | K188: 0 | L188: 0 | O188: 0 | P188: 0 | Q188: 0 | R188: 0
A189: 182 | G189: 0 | H189: 0 | I189: 0 | J189: 0 | K189: 0 | L189: 0 | O189: 0 | P189: 0 | Q189: 0 | R189: 0
A190: 183 | G190: 0 | H190: 0 | I190: 0 | J190: 0 | K190: 0 | L190: 0 | O190: 0 | P190: 0 | Q190: 0 | R190: 0
A191: 184 | G191: 0 | H191: 0 | I191: 0 | J191: 0 | K191: 0 | L191: 0 | O191: 0 | P191: 0 | Q191: 0 | R191: 0
A192: 185 | G192: 0 | H192: 0 | I192: 0 | J192: 0 | K192: 0 | L192: 0 | O192: 0 | P192: 0 | Q192: 0 | R192: 0
A193: 186 | G193: 0 | H193: 0 | I193: 0 | J193: 0 | K193: 0 | L193: 0 | O193: 0 | P193: 0 | Q193: 0 | R193: 0
A194: 187 | G194: 0 | H194: 0 | I194: 0 | J194: 0 | K194: 0 | L194: 0 | O194: 0 | P194: 0 | Q194: 0 | R194: 0
A195: 188 | G195: 0 | H195: 0 | I195: 0 | J195: 0 | K195: 0 | L195: 0 | O195: 0 | P195: 0 | Q195: 0 | R195: 0
A196: 189 | G196: 0 | H196: 0 | I196: 0 | J196: 0 | K196: 0 | L196: 0 | O196: 0 | P196: 0 | Q196: 0 | R196: 0
A197: 190 | G197: 0 | H197: 0 | I197: 0 | J197: 0 | K197: 0 | L197: 0 | O197: 0 | P197: 0 | Q197: 0 | R197: 0
A198: 191 | G198: 0 | H198: 0 | I198: 0 | J198: 0 | K198: 0 | L198: 0 | O198: 0 | P198: 0 | Q198: 0 | R198: 0
A199: 192 | G199: 0 | H199: 0 | I199: 0 | J199: 0 | K199: 0 | L199: 0 | O199: 0 | P199: 0 | Q199: 0 | R199: 0
A200: 193 | G200: 0 | H200: 0 | I200: 0 | J200: 0 | K200: 0 | L200: 0 | O200: 0 | P200: 0 | Q200: 0 | R200: 0
A201: 194 | G201: 0 | H201: =E201*1% -> 0 | I201: =E201*1% -> 0 | J201: =E201*0.5% -> 0 | K201: 0 | L201: 0 | O201: 0 | P201: 0 | Q201: 0 | R201: 0
... 306 more rows

Sheet INVEST - Installations & Agenc
D1: ='REFERENCES - 05'!D7 -> 0 | F1: ='REFERENCES - 05'!D9 -> 0
B2: INVESTISSEMENTS PREVUS SUR LA PERIODE DE REALISATION DU PROJET | R2: (En F. Cfa)
A3: N° | B3: Désignation | C3: Quantité | D3: ACHAT A L'ETRANGER (en F. Cfa) | M3: ACHAT EN COTE D'IVOIRE (en F. Cfa) | Q3: Coût total des Investissements
D4: Position tarifaire | E4: Cout CAF | F4: Droit de douane / Droit fiscaux | H4: RSTAT (1%) | I4: PCS (1%) | J4: PCC (0,5%) | K4: TVA sur Droit de Douane | L4: Total Achat à l'étranger | M4: Achats HT | N4: Coûts locaux (Transport, montage,..) | O4: T.V.A | P4: Total Achat en RCI | Q4: Coût total HT | R4: Coût total TTC
F5: Taux | G5: Montant
B7: INSTALLATIONS ET AGENCEMENTS | C7: =SUM(C8:C507) -> 0 | E7: =SUM(E8:E507) -> 0 | G7: =SUM(G8:G507) -> 0 | H7: 0 | I7: 0 | J7: 0 | K7: 0 | L7: 0 | M7: 0 | N7: 0 | O7: 0 | P7: 0 | Q7: 0 | R7: 0
A8: 1 | G8: =F8*E8 -> 0 | H8: =E8*1% -> 0 | I8: =E8*1% -> 0 | J8: =E8*0.5% -> 0 | K8: =(E8+G8+H8)*18% -> 0 | L8: =SUM(G8:K8)+E8 -> 0 | O8: =(M8+N8)*18% -> 0 | P8: =O8+N8+M8 -> 0 | Q8: =+R8-O8-K8 -> 0 | R8: =P8+L8 -> 0
A9: =+A8+1 -> 2 | G9: =F9*E9 -> 0 | H9: =E9*1% -> 0 | I9: =E9*1% -> 0 | J9: =E9*0.5% -> 0 | K9: =(E9+G9+H9)*18% -> 0 | L9: 0 | O9: =(M9+N9)*18% -> 0 | P9: =O9+N9+M9 -> 0 | Q9: =+R9-O9-K9 -> 0 | R9: =P9+L9 -> 0
A10: =+A9+1 -> 3 | G10: =F10*E10 -> 0 | H10: 0 | I10: 0 | J10: 0 | K10: =(E10+G10+H10)*18% -> 0 | L10: 0 | O10: =(M10+N10)*18% -> 0 | P10: =O10+N10+M10 -> 0 | Q10: =+R10-O10-K10 -> 0 | R10: =P10+L10 -> 0
A11: 4 | G11: 0 | H11: 0 | I11: 0 | J11: 0 | K11: 0 | L11: 0 | O11: =(M11+N11)*18% -> 0 | P11: =O11+N11+M11 -> 0 | Q11: =+R11-O11-K11 -> 0 | R11: =P11+L11 -> 0
A12: 5 | G12: 0 | H12: 0 | I12: 0 | J12: 0 | K12: 0 | L12: 0 | O12: 0 | P12: 0 | Q12: 0 | R12: 0
A13: 6 | G13: 0 | H13: 0 | I13: 0 | J13: 0 | K13: 0 | L13: 0 | O13: 0 | P13: 0 | Q13: 0 | R13: 0
A14: 7 | G14: 0 | H14: 0 | I14: 0 | J14: 0 | K14: 0 | L14: 0 | O14: 0 | P14: 0 | Q14: 0 | R14: 0
A15: 8 | G15: 0 | H15: 0 | I15: 0 | J15: 0 | K15: 0 | L15: 0 | O15: 0 | P15: 0 | Q15: 0 | R15: 0
A16: 9 | G16: 0 | H16: 0 | I16: 0 | J16: 0 | K16: 0 | L16: 0 | O16: 0 | P16: 0 | Q16: 0 | R16: 0
A17: 10 | G17: 0 | H17: 0 | I17: 0 | J17: 0 | K17: 0 | L17: 0 | O17: 0 | P17: 0 | Q17: 0 | R17: 0
A18: 11 | G18: 0 | H18: 0 | I18: 0 | J18: 0 | K18: 0 | L18: 0 | O18: 0 | P18: 0 | Q18: 0 | R18: 0
A19: 12 | G19: 0 | H19: 0 | I19: 0 | J19: 0 | K19: 0 | L19: 0 | O19: 0 | P19: 0 | Q19: 0 | R19: 0
A20: 13 | G20: 0 | H20: 0 | I20: 0 | J20: 0 | K20: 0 | L20: 0 | O20: 0 | P20: 0 | Q20: 0 | R20: 0
A21: 14 | G21: 0 | H21: 0 | I21: 0 | J21: 0 | K21: 0 | L21: 0 | O21: 0 | P21: 0 | Q21: 0 | R21: 0
A22: 15 | G22: 0 | H22: 0 | I22: 0 | J22: 0 | K22: 0 | L22: 0 | O22: 0 | P22: 0 | Q22: 0 | R22: 0
A23: 16 | G23: 0 | H23: 0 | I23: 0 | J23: 0 | K23: 0 | L23: 0 | O23: 0 | P23: 0 | Q23: 0 | R23: 0
A24: 17 | G24: 0 | H24: 0 | I24: 0 | J24: 0 | K24: 0 | L24: 0 | O24: 0 | P24: 0 | Q24: 0 | R24: 0
A25: 18 | G25: 0 | H25: 0 | I25: 0 | J25: 0 | K25: 0 | L25: 0 | O25: 0 | P25: 0 | Q25: 0 | R25: 0
A26: 19 | G26: 0 | H26: 0 | I26: 0 | J26: 0 | K26: 0 | L26: 0 | O26: 0 | P26: 0 | Q26: 0 | R26: 0
A27: 20 | G27: 0 | H27: 0 | I27: 0 | J27: 0 | K27: 0 | L27: 0 | O27: 0 | P27: 0 | Q27: 0 | R27: 0
A28: 21 | G28: 0 | H28: 0 | I28: 0 | J28: 0 | K28: 0 | L28: 0 | O28: 0 | P28: 0 | Q28: 0 | R28: 0
A29: 22 | G29: 0 | H29: 0 | I29: 0 | J29: 0 | K29: 0 | L29: 0 | O29: 0 | P29: 0 | Q29: 0 | R29: 0
A30: 23 | G30: 0 | H30: 0 | I30: 0 | J30: 0 | K30: 0 | L30: 0 | O30: 0 | P30: 0 | Q30: 0 | R30: 0
A31: 24 | G31: 0 | H31: 0 | I31: 0 | J31: 0 | K31: 0 | L31: 0 | O31: 0 | P31: 0 | Q31: 0 | R31: 0
A32: 25 | G32: 0 | H32: 0 | I32: 0 | J32: 0 | K32: 0 | L32: 0 | O32: 0 | P32: 0 | Q32: 0 | R32: 0
A33: 26 | G33: 0 | H33: 0 | I33: 0 | J33: 0 | K33: 0 | L33: 0 | O33: 0 | P33: 0 | Q33: 0 | R33: 0
A34: 27 | G34: 0 | H34: 0 | I34: 0 | J34: 0 | K34: 0 | L34: 0 | O34: 0 | P34: 0 | Q34: 0 | R34: 0
A35: 28 | G35: 0 | H35: 0 | I35: 0 | J35: 0 | K35: 0 | L35: 0 | O35: 0 | P35: 0 | Q35: 0 | R35: 0
A36: 29 | G36: 0 | H36: 0 | I36: 0 | J36: 0 | K36: 0 | L36: 0 | O36: 0 | P36: 0 | Q36: 0 | R36: 0
A37: 30 | G37: 0 | H37: 0 | I37: 0 | J37: 0 | K37: 0 | L37: 0 | O37: 0 | P37: 0 | Q37: 0 | R37: 0
A38: 31 | G38: 0 | H38: 0 | I38: 0 | J38: 0 | K38: 0 | L38: 0 | O38: 0 | P38: 0 | Q38: 0 | R38: 0
A39: 32 | G39: 0 | H39: 0 | I39: 0 | J39: 0 | K39: 0 | L39: 0 | O39: 0 | P39: 0 | Q39: 0 | R39: 0
A40: 33 | G40: 0 | H40: 0 | I40: 0 | J40: 0 | K40: 0 | L40: 0 | O40: 0 | P40: 0 | Q40: 0 | R40: 0
A41: 34 | G41: 0 | H41: 0 | I41: 0 | J41: 0 | K41: 0 | L41: 0 | O41: 0 | P41: 0 | Q41: 0 | R41: 0
A42: 35 | G42: 0 | H42: 0 | I42: 0 | J42: 0 | K42: 0 | L42: 0 | O42: 0 | P42: 0 | Q42: 0 | R42: 0
A43: 36 | G43: 0 | H43: 0 | I43: 0 | J43: 0 | K43: 0 | L43: 0 | O43: 0 | P43: 0 | Q43: 0 | R43: 0
A44: 37 | G44: 0 | H44: 0 | I44: 0 | J44: 0 | K44: 0 | L44: 0 | O44: 0 | P44: 0 | Q44: 0 | R44: 0
A45: 38 | G45: 0 | H45: 0 | I45: 0 | J45: 0 | K45: 0 | L45: 0 | O45: 0 | P45: 0 | Q45: 0 | R45: 0
A46: 39 | G46: 0 | H46: 0 | I46: 0 | J46: 0 | K46: 0 | L46: 0 | O46: 0 | P46: 0 | Q46: 0 | R46: 0
A47: =+A46+1 -> 40 | G47: =F47*E47 -> 0 | H47: 0 | I47: 0 | J47: 0 | K47: =(E47+G47+H47)*18% -> 0 | L47: 0 | O47: 0 | P47: 0 | Q47: 0 | R47: 0
A48: 41 | G48: 0 | H48: 0 | I48: 0 | J48: 0 | K48: 0 | L48: 0 | O48: 0 | P48: 0 | Q48: 0 | R48: 0
A49: 42 | G49: 0 | H49: 0 | I49: 0 | J49: 0 | K49: 0 | L49: 0 | O49: 0 | P49: 0 | Q49: 0 | R49: 0
A50: 43 | G50: 0 | H50: 0 | I50: 0 | J50: 0 | K50: 0 | L50: 0 | O50: 0 | P50: 0 | Q50: 0 | R50: 0
A51: 44 | G51: 0 | H51: 0 | I51: 0 | J51: 0 | K51: 0 | L51: 0 | O51: 0 | P51: 0 | Q51: 0 | R51: 0
A52: 45 | G52: 0 | H52: 0 | I52: 0 | J52: 0 | K52: 0 | L52: 0 | O52: 0 | P52: 0 | Q52: 0 | R52: 0
A53: 46 | G53: 0 | H53: 0 | I53: 0 | J53: 0 | K53: 0 | L53: 0 | O53: 0 | P53: 0 | Q53: 0 | R53: 0
A54: 47 | G54: 0 | H54: 0 | I54: 0 | J54: 0 | K54: 0 | L54: 0 | O54: 0 | P54: 0 | Q54: 0 | R54: 0
A55: 48 | G55: =F55*E55 -> 0 | H55: 0 | I55: 0 | J55: 0 | K55: =(E55+G55+H55)*18% -> 0 | L55: =SUM(G55:K55)+E55 -> 0 | O55: =(M55+N55)*18% -> 0 | P55: =O55+N55+M55 -> 0 | Q55: =+R55-O55-K55 -> 0 | R55: =P55+L55 -> 0
A56: 49 | G56: 0 | H56: 0 | I56: 0 | J56: 0 | K56: 0 | L56: 0 | O56: 0 | P56: 0 | Q56: 0 | R56: 0
A57: 50 | G57: 0 | H57: 0 | I57: 0 | J57: 0 | K57: 0 | L57: 0 | O57: 0 | P57: 0 | Q57: 0 | R57: 0
A58: 51 | G58: 0 | H58: 0 | I58: 0 | J58: 0 | K58: 0 | L58: 0 | O58: 0 | P58: 0 | Q58: 0 | R58: 0
A59: 52 | G59: 0 | H59: 0 | I59: 0 | J59: 0 | K59: 0 | L59: 0 | O59: 0 | P59: 0 | Q59: 0 | R59: 0
A60: 53 | G60: 0 | H60: 0 | I60: 0 | J60: 0 | K60: 0 | L60: 0 | O60: 0 | P60: 0 | Q60: 0 | R60: 0
A61: 54 | G61: 0 | H61: 0 | I61: 0 | J61: 0 | K61: 0 | L61: 0 | O61: 0 | P61: 0 | Q61: 0 | R61: 0
A62: 55 | G62: 0 | H62: 0 | I62: 0 | J62: 0 | K62: 0 | L62: 0 | O62: 0 | P62: 0 | Q62: 0 | R62: 0
A63: 56 | G63: 0 | H63: 0 | I63: 0 | J63: 0 | K63: 0 | L63: 0 | O63: 0 | P63: 0 | Q63: 0 | R63: 0
A64: 57 | G64: 0 | H64: 0 | I64: 0 | J64: 0 | K64: 0 | L64: 0 | O64: 0 | P64: 0 | Q64: 0 | R64: 0
A65: 58 | G65: 0 | H65: 0 | I65: 0 | J65: 0 | K65: 0 | L65: 0 | O65: 0 | P65: 0 | Q65: 0 | R65: 0
A66: 59 | G66: 0 | H66: 0 | I66: 0 | J66: 0 | K66: 0 | L66: 0 | O66: 0 | P66: 0 | Q66: 0 | R66: 0
A67: 60 | G67: 0 | H67: 0 | I67: 0 | J67: 0 | K67: 0 | L67: 0 | O67: 0 | P67: 0 | Q67: 0 | R67: 0
A68: 61 | G68: 0 | H68: 0 | I68: 0 | J68: 0 | K68: 0 | L68: 0 | O68: 0 | P68: 0 | Q68: 0 | R68: 0
A69: 62 | G69: 0 | H69: 0 | I69: 0 | J69: 0 | K69: 0 | L69: 0 | O69: 0 | P69: 0 | Q69: 0 | R69: 0
A70: 63 | G70: 0 | H70: 0 | I70: 0 | J70: 0 | K70: 0 | L70: 0 | O70: 0 | P70: 0 | Q70: 0 | R70: 0
A71: 64 | G71: 0 | H71: 0 | I71: 0 | J71: 0 | K71: 0 | L71: 0 | O71: 0 | P71: 0 | Q71: 0 | R71: 0
A72: 65 | G72: 0 | H72: 0 | I72: 0 | J72: 0 | K72: 0 | L72: 0 | O72: 0 | P72: 0 | Q72: 0 | R72: 0
A73: 66 | G73: 0 | H73: =E73*1% -> 0 | I73: =E73*1% -> 0 | J73: =E73*0.5% -> 0 | K73: 0 | L73: 0 | O73: 0 | P73: 0 | Q73: 0 | R73: 0
A74: 67 | G74: 0 | H74: 0 | I74: 0 | J74: 0 | K74: 0 | L74: 0 | O74: 0 | P74: 0 | Q74: 0 | R74: 0
A75: 68 | G75: 0 | H75: 0 | I75: 0 | J75: 0 | K75: 0 | L75: 0 | O75: 0 | P75: 0 | Q75: 0 | R75: 0
A76: 69 | G76: 0 | H76: 0 | I76: 0 | J76: 0 | K76: 0 | L76: 0 | O76: 0 | P76: 0 | Q76: 0 | R76: 0
A77: 70 | G77: 0 | H77: 0 | I77: 0 | J77: 0 | K77: 0 | L77: 0 | O77: 0 | P77: 0 | Q77: 0 | R77: 0
A78: 71 | G78: 0 | H78: 0 | I78: 0 | J78: 0 | K78: 0 | L78: 0 | O78: 0 | P78: 0 | Q78: 0 | R78: 0
A79: 72 | G79: 0 | H79: 0 | I79: 0 | J79: 0 | K79: 0 | L79: 0 | O79: 0 | P79: 0 | Q79: 0 | R79: 0
A80: 73 | G80: 0 | H80: 0 | I80: 0 | J80: 0 | K80: 0 | L80: 0 | O80: 0 | P80: 0 | Q80: 0 | R80: 0
A81: 74 | G81: 0 | H81: 0 | I81: 0 | J81: 0 | K81: 0 | L81: 0 | O81: 0 | P81: 0 | Q81: 0 | R81: 0
A82: 75 | G82: 0 | H82: 0 | I82: 0 | J82: 0 | K82: 0 | L82: 0 | O82: 0 | P82: 0 | Q82: 0 | R82: 0
A83: 76 | G83: 0 | H83: 0 | I83: 0 | J83: 0 | K83: 0 | L83: 0 | O83: 0 | P83: 0 | Q83: 0 | R83: 0
A84: 77 | G84: 0 | H84: 0 | I84: 0 | J84: 0 | K84: 0 | L84: 0 | O84: 0 | P84: 0 | Q84: 0 | R84: 0
A85: 78 | G85: 0 | H85: 0 | I85: 0 | J85: 0 | K85: 0 | L85: 0 | O85: 0 | P85: 0 | Q85: 0 | R85: 0
A86: 79 | G86: 0 | H86: 0 | I86: 0 | J86: 0 | K86: 0 | L86: 0 | O86: 0 | P86: 0 | Q86: 0 | R86: 0
A87: 80 | G87: 0 | H87: 0 | I87: 0 | J87: 0 | K87: 0 | L87: 0 | O87: 0 | P87: 0 | Q87: 0 | R87: 0
A88: 81 | G88: 0 | H88: 0 | I88: 0 | J88: 0 | K88: 0 | L88: 0 | O88: 0 | P88: 0 | Q88: 0 | R88: 0
A89: 82 | G89: 0 | H89: 0 | I89: 0 | J89: 0 | K89: 0 | L89: 0 | O89: 0 | P89: 0 | Q89: 0 | R89: 0
A90: 83 | G90: 0 | H90: 0 | I90: 0 | J90: 0 | K90: 0 | L90: 0 | O90: 0 | P90: 0 | Q90: 0 | R90: 0
A91: 84 | G91: 0 | H91: 0 | I91: 0 | J91: 0 | K91: 0 | L91: 0 | O91: 0 | P91: 0 | Q91: 0 | R91: 0
A92: 85 | G92: 0 | H92: 0 | I92: 0 | J92: 0 | K92: 0 | L92: 0 | O92: 0 | P92: 0 | Q92: 0 | R92: 0
A93: 86 | G93: 0 | H93: 0 | I93: 0 | J93: 0 | K93: 0 | L93: 0 | O93: 0 | P93: 0 | Q93: 0 | R93: 0
A94: 87 | G94: 0 | H94: 0 | I94: 0 | J94: 0 | K94: 0 | L94: 0 | O94: 0 | P94: 0 | Q94: 0 | R94: 0
A95: 88 | G95: 0 | H95: 0 | I95: 0 | J95: 0 | K95: 0 | L95: 0 | O95: 0 | P95: 0 | Q95: 0 | R95: 0
A96: 89 | G96: 0 | H96: 0 | I96: 0 | J96: 0 | K96: 0 | L96: 0 | O96: 0 | P96: 0 | Q96: 0 | R96: 0
A97: 90 | G97: 0 | H97: 0 | I97: 0 | J97: 0 | K97: 0 | L97: 0 | O97: 0 | P97: 0 | Q97: 0 | R97: 0
A98: 91 | G98: 0 | H98: 0 | I98: 0 | J98: 0 | K98: 0 | L98: 0 | O98: 0 | P98: 0 | Q98: 0 | R98: 0
A99: 92 | G99: 0 | H99: 0 | I99: 0 | J99: 0 | K99: 0 | L99: 0 | O99: 0 | P99: 0 | Q99: 0 | R99: 0
A100: 93 | G100: 0 | H100: 0 | I100: 0 | J100: 0 | K100: 0 | L100: 0 | O100: 0 | P100: 0 | Q100: 0 | R100: 0
A101: 94 | G101: 0 | H101: 0 | I101: 0 | J101: 0 | K101: 0 | L101: 0 | O101: 0 | P101: 0 | Q101: 0 | R101: 0
A102: 95 | G102: 0 | H102: 0 | I102: 0 | J102: 0 | K102: 0 | L102: 0 | O102: 0 | P102: 0 | Q102: 0 | R102: 0
A103: 96 | G103: 0 | H103: 0 | I103: 0 | J103: 0 | K103: 0 | L103: 0 | O103: 0 | P103: 0 | Q103: 0 | R103: 0
A104: 97 | G104: 0 | H104: 0 | I104: 0 | J104: 0 | K104: 0 | L104: 0 | O104: 0 | P104: 0 | Q104: 0 | R104: 0
A105: 98 | G105: 0 | H105: 0 | I105: 0 | J105: 0 | K105: 0 | L105: 0 | O105: 0 | P105: 0 | Q105: 0 | R105: 0
A106: 99 | G106: 0 | H106: 0 | I106: 0 | J106: 0 | K106: 0 | L106: 0 | O106: 0 | P106: 0 | Q106: 0 | R106: 0
A107: =+A106+1 -> 100 | G107: 0 | H107: 0 | I107: 0 | J107: 0 | K107: 0 | L107: 0 | O107: 0 | P107: 0 | Q107: 0 | R107: 0
A108: =+A107+1 -> 101 | G108: 0 | H108: 0 | I108: 0 | J108: 0 | K108: 0 | L108: 0 | O108: 0 | P108: 0 | Q108: 0 | R108: 0
A109: 102 | G109: 0 | H109: 0 | I109: 0 | J109: 0 | K109: 0 | L109: 0 | O109: 0 | P109: 0 | Q109: 0 | R109: 0
A110: 103 | G110: 0 | H110: 0 | I110: 0 | J110: 0 | K110: 0 | L110: 0 | O110: 0 | P110: 0 | Q110: 0 | R110: 0
A111: 104 | G111: 0 | H111: 0 | I111: 0 | J111: 0 | K111: 0 | L111: 0 | O111: 0 | P111: 0 | Q111: 0 | R111: 0
A112: 105 | G112: 0 | H112: 0 | I112: 0 | J112: 0 | K112: 0 | L112: 0 | O112: 0 | P112: 0 | Q112: 0 | R112: 0
A113: 106 | G113: 0 | H113: 0 | I113: 0 | J113: 0 | K113: 0 | L113: 0 | O113: 0 | P113: 0 | Q113: 0 | R113: 0
A114: 107 | G114: 0 | H114: 0 | I114: 0 | J114: 0 | K114: 0 | L114: 0 | O114: 0 | P114: 0 | Q114: 0 | R114: 0
A115: 108 | G115: 0 | H115: 0 | I115: 0 | J115: 0 | K115: 0 | L115: 0 | O115: 0 | P115: 0 | Q115: 0 | R115: 0
A116: 109 | G116: 0 | H116: 0 | I116: 0 | J116: 0 | K116: 0 | L116: 0 | O116: 0 | P116: 0 | Q116: 0 | R116: 0
A117: 110 | G117: 0 | H117: 0 | I117: 0 | J117: 0 | K117: 0 | L117: 0 | O117: 0 | P117: 0 | Q117: 0 | R117: 0
A118: 111 | G118: 0 | H118: 0 | I118: 0 | J118: 0 | K118: 0 | L118: 0 | O118: 0 | P118: 0 | Q118: 0 | R118: 0
A119: 112 | G119: =F119*E119 -> 0 | H119: 0 | I119: 0 | J119: 0 | K119: =(E119+G119+H119)*18% -> 0 | L119: =SUM(G119:K119)+E119 -> 0 | O119: =(M119+N119)*18% -> 0 | P119: =O119+N119+M119 -> 0 | Q119: =+R119-O119-K119 -> 0 | R119: =P119+L119 -> 0
A120: 113 | G120: 0 | H120: 0 | I120: 0 | J120: 0 | K120: 0 | L120: 0 | O120: 0 | P120: 0 | Q120: 0 | R120: 0
A121: 114 | G121: 0 | H121: 0 | I121: 0 | J121: 0 | K121: 0 | L121: 0 | O121: 0 | P121: 0 | Q121: 0 | R121: 0
A122: 115 | G122: 0 | H122: 0 | I122: 0 | J122: 0 | K122: 0 | L122: 0 | O122: 0 | P122: 0 | Q122: 0 | R122: 0
A123: 116 | G123: 0 | H123: 0 | I123: 0 | J123: 0 | K123: 0 | L123: 0 | O123: 0 | P123: 0 | Q123: 0 | R123: 0
A124: 117 | G124: 0 | H124: 0 | I124: 0 | J124: 0 | K124: 0 | L124: 0 | O124: 0 | P124: 0 | Q124: 0 | R124: 0
A125: 118 | G125: 0 | H125: 0 | I125: 0 | J125: 0 | K125: 0 | L125: 0 | O125: 0 | P125: 0 | Q125: 0 | R125: 0
A126: 119 | G126: 0 | H126: 0 | I126: 0 | J126: 0 | K126: 0 | L126: 0 | O126: 0 | P126: 0 | Q126: 0 | R126: 0
A127: 120 | G127: 0 | H127: 0 | I127: 0 | J127: 0 | K127: 0 | L127: 0 | O127: 0 | P127: 0 | Q127: 0 | R127: 0
A128: 121 | G128: 0 | H128: 0 | I128: 0 | J128: 0 | K128: 0 | L128: 0 | O128: 0 | P128: 0 | Q128: 0 | R128: 0
A129: 122 | G129: 0 | H129: 0 | I129: 0 | J129: 0 | K129: 0 | L129: 0 | O129: 0 | P129: 0 | Q129: 0 | R129: 0
A130: 123 | G130: 0 | H130: 0 | I130: 0 | J130: 0 | K130: 0 | L130: 0 | O130: 0 | P130: 0 | Q130: 0 | R130: 0
A131: 124 | G131: 0 | H131: 0 | I131: 0 | J131: 0 | K131: 0 | L131: 0 | O131: 0 | P131: 0 | Q131: 0 | R131: 0
A132: 125 | G132: 0 | H132: 0 | I132: 0 | J132: 0 | K132: 0 | L132: 0 | O132: 0 | P132: 0 | Q132: 0 | R132: 0
A133: 126 | G133: 0 | H133: 0 | I133: 0 | J133: 0 | K133: 0 | L133: 0 | O133: 0 | P133: 0 | Q133: 0 | R133: 0
A134: 127 | G134: 0 | H134: 0 | I134: 0 | J134: 0 | K134: 0 | L134: 0 | O134: 0 | P134: 0 | Q134: 0 | R134: 0
A135: 128 | G135: 0 | H135: 0 | I135: 0 | J135: 0 | K135: 0 | L135: 0 | O135: 0 | P135: 0 | Q135: 0 | R135: 0
A136: 129 | G136: 0 | H136: 0 | I136: 0 | J136: 0 | K136: 0 | L136: 0 | O136: 0 | P136: 0 | Q136: 0 | R136: 0
A137: 130 | G137: 0 | H137: =E137*1% -> 0 | I137: =E137*1% -> 0 | J137: =E137*0.5% -> 0 | K137: 0 | L137: 0 | O137: 0 | P137: 0 | Q137: 0 | R137: 0
A138: 131 | G138: 0 | H138: 0 | I138: 0 | J138: 0 | K138: 0 | L138: 0 | O138: 0 | P138: 0 | Q138: 0 | R138: 0
A139: 132 | G139: 0 | H139: 0 | I139: 0 | J139: 0 | K139: 0 | L139: 0 | O139: 0 | P139: 0 | Q139: 0 | R139: 0
A140: 133 | G140: 0 | H140: 0 | I140: 0 | J140: 0 | K140: 0 | L140: 0 | O140: 0 | P140: 0 | Q140: 0 | R140: 0
A141: 134 | G141: 0 | H141: 0 | I141: 0 | J141: 0 | K141: 0 | L141: 0 | O141: 0 | P141: 0 | Q141: 0 | R141: 0
A142: 135 | G142: 0 | H142: 0 | I142: 0 | J142: 0 | K142: 0 | L142: 0 | O142: 0 | P142: 0 | Q142: 0 | R142: 0
A143: 136 | G143: 0 | H143: 0 | I143: 0 | J143: 0 | K143: 0 | L143: 0 | O143: 0 | P143: 0 | Q143: 0 | R143: 0
A144: 137 | G144: 0 | H144: 0 | I144: 0 | J144: 0 | K144: 0 | L144: 0 | O144: 0 | P144: 0 | Q144: 0 | R144: 0
A145: 138 | G145: 0 | H145: 0 | I145: 0 | J145: 0 | K145: 0 | L145: 0 | O145: 0 | P145: 0 | Q145: 0 | R145: 0
A146: 139 | G146: 0 | H146: 0 | I146: 0 | J146: 0 | K146: 0 | L146: 0 | O146: 0 | P146: 0 | Q146: 0 | R146: 0
A147: 140 | G147: 0 | H147: 0 | I147: 0 | J147: 0 | K147: 0 | L147: 0 | O147: 0 | P147: 0 | Q147: 0 | R147: 0
A148: 141 | G148: 0 | H148: 0 | I148: 0 | J148: 0 | K148: 0 | L148: 0 | O148: 0 | P148: 0 | Q148: 0 | R148: 0
A149: 142 | G149: 0 | H149: 0 | I149: 0 | J149: 0 | K149: 0 | L149: 0 | O149: 0 | P149: 0 | Q149: 0 | R149: 0
A150: 143 | G150: 0 | H150: 0 | I150: 0 | J150: 0 | K150: 0 | L150: 0 | O150: 0 | P150: 0 | Q150: 0 | R150: 0
A151: 144 | G151: 0 | H151: 0 | I151: 0 | J151: 0 | K151: 0 | L151: 0 | O151: 0 | P151: 0 | Q151: 0 | R151: 0
A152: 145 | G152: 0 | H152: 0 | I152: 0 | J152: 0 | K152: 0 | L152: 0 | O152: 0 | P152: 0 | Q152: 0 | R152: 0
A153: 146 | G153: 0 | H153: 0 | I153: 0 | J153: 0 | K153: 0 | L153: 0 | O153: 0 | P153: 0 | Q153: 0 | R153: 0
A154: 147 | G154: 0 | H154: 0 | I154: 0 | J154: 0 | K154: 0 | L154: 0 | O154: 0 | P154: 0 | Q154: 0 | R154: 0
A155: 148 | G155: 0 | H155: 0 | I155: 0 | J155: 0 | K155: 0 | L155: 0 | O155: 0 | P155: 0 | Q155: 0 | R155: 0
A156: 149 | G156: 0 | H156: 0 | I156: 0 | J156: 0 | K156: 0 | L156: 0 | O156: 0 | P156: 0 | Q156: 0 | R156: 0
A157: 150 | G157: 0 | H157: 0 | I157: 0 | J157: 0 | K157: 0 | L157: 0 | O157: 0 | P157: 0 | Q157: 0 | R157: 0
A158: 151 | G158: 0 | H158: 0 | I158: 0 | J158: 0 | K158: 0 | L158: 0 | O158: 0 | P158: 0 | Q158: 0 | R158: 0
A159: 152 | G159: 0 | H159: 0 | I159: 0 | J159: 0 | K159: 0 | L159: 0 | O159: 0 | P159: 0 | Q159: 0 | R159: 0
A160: 153 | G160: 0 | H160: 0 | I160: 0 | J160: 0 | K160: 0 | L160: 0 | O160: 0 | P160: 0 | Q160: 0 | R160: 0
A161: 154 | G161: 0 | H161: 0 | I161: 0 | J161: 0 | K161: 0 | L161: 0 | O161: 0 | P161: 0 | Q161: 0 | R161: 0
A162: 155 | G162: 0 | H162: 0 | I162: 0 | J162: 0 | K162: 0 | L162: 0 | O162: 0 | P162: 0 | Q162: 0 | R162: 0
A163: 156 | G163: 0 | H163: 0 | I163: 0 | J163: 0 | K163: 0 | L163: 0 | O163: 0 | P163: 0 | Q163: 0 | R163: 0
A164: 157 | G164: 0 | H164: 0 | I164: 0 | J164: 0 | K164: 0 | L164: 0 | O164: 0 | P164: 0 | Q164: 0 | R164: 0
A165: 158 | G165: 0 | H165: 0 | I165: 0 | J165: 0 | K165: 0 | L165: 0 | O165: 0 | P165: 0 | Q165: 0 | R165: 0
A166: 159 | G166: 0 | H166: 0 | I166: 0 | J166: 0 | K166: 0 | L166: 0 | O166: 0 | P166: 0 | Q166: 0 | R166: 0
A167: 160 | G167: 0 | H167: 0 | I167: 0 | J167: 0 | K167: 0 | L167: 0 | O167: 0 | P167: 0 | Q167: 0 | R167: 0
A168: 161 | G168: 0 | H168: 0 | I168: 0 | J168: 0 | K168: 0 | L168: 0 | O168: 0 | P168: 0 | Q168: 0 | R168: 0
A169: 162 | G169: 0 | H169: 0 | I169: 0 | J169: 0 | K169: 0 | L169: 0 | O169: 0 | P169: 0 | Q169: 0 | R169: 0
A170: 163 | G170: 0 | H170: 0 | I170: 0 | J170: 0 | K170: 0 | L170: 0 | O170: 0 | P170: 0 | Q170: 0 | R170: 0
A171: 164 | G171: 0 | H171: 0 | I171: 0 | J171: 0 | K171: 0 | L171: 0 | O171: 0 | P171: 0 | Q171: 0 | R171: 0
A172: =+A171+1 -> 165 | G172: 0 | H172: 0 | I172: 0 | J172: 0 | K172: 0 | L172: 0 | O172: 0 | P172: 0 | Q172: 0 | R172: 0
A173: 166 | G173: 0 | H173: 0 | I173: 0 | J173: 0 | K173: 0 | L173: 0 | O173: 0 | P173: 0 | Q173: 0 | R173: 0
A174: 167 | G174: 0 | H174: 0 | I174: 0 | J174: 0 | K174: 0 | L174: 0 | O174: 0 | P174: 0 | Q174: 0 | R174: 0
A175: 168 | G175: 0 | H175: 0 | I175: 0 | J175: 0 | K175: 0 | L175: 0 | O175: 0 | P175: 0 | Q175: 0 | R175: 0
A176: 169 | G176: 0 | H176: 0 | I176: 0 | J176: 0 | K176: 0 | L176: 0 | O176: 0 | P176: 0 | Q176: 0 | R176: 0
A177: 170 | G177: 0 | H177: 0 | I177: 0 | J177: 0 | K177: 0 | L177: 0 | O177: 0 | P177: 0 | Q177: 0 | R177: 0
A178: 171 | G178: 0 | H178: 0 | I178: 0 | J178: 0 | K178: 0 | L178: 0 | O178: 0 | P178: 0 | Q178: 0 | R178: 0
A179: 172 | G179: 0 | H179: 0 | I179: 0 | J179: 0 | K179: 0 | L179: 0 | O179: 0 | P179: 0 | Q179: 0 | R179: 0
A180: 173 | G180: 0 | H180: 0 | I180: 0 | J180: 0 | K180: 0 | L180: 0 | O180: 0 | P180: 0 | Q180: 0 | R180: 0
A181: 174 | G181: 0 | H181: 0 | I181: 0 | J181: 0 | K181: 0 | L181: 0 | O181: 0 | P181: 0 | Q181: 0 | R181: 0
A182: 175 | G182: 0 | H182: 0 | I182: 0 | J182: 0 | K182: 0 | L182: 0 | O182: 0 | P182: 0 | Q182: 0 | R182: 0
A183: 176 | G183: =F183*E183 -> 0 | H183: 0 | I183: 0 | J183: 0 | K183: =(E183+G183+H183)*18% -> 0 | L183: =SUM(G183:K183)+E183 -> 0 | O183: =(M183+N183)*18% -> 0 | P183: =O183+N183+M183 -> 0 | Q183: =+R183-O183-K183 -> 0 | R183: =P183+L183 -> 0
A184: 177 | G184: 0 | H184: 0 | I184: 0 | J184: 0 | K184: 0 | L184: 0 | O184: 0 | P184: 0 | Q184: 0 | R184: 0
A185: 178 | G185: 0 | H185: 0 | I185: 0 | J185: 0 | K185: 0 | L185: 0 | O185: 0 | P185: 0 | Q185: 0 | R185: 0
A186: 179 | G186: 0 | H186: 0 | I186: 0 | J186: 0 | K186: 0 | L186: 0 | O186: 0 | P186: 0 | Q186: 0 | R186: 0
A187: 180 | G187: 0 | H187: 0 | I187: 0 | J187: 0 | K187: 0 | L187: 0 | O187: 0 | P187: 0 | Q187: 0 | R187: 0
A188: 181 | G188: 0 | H188: 0 | I188: 0 | J188: 0 | K188: 0 | L188: 0 | O188: 0 | P188: 0 | Q188: 0 | R188: 0
A189: 182 | G189: 0 | H189: 0 | I189: 0 | J189: 0 | K189: 0 | L189: 0 | O189: 0 | P189: 0 | Q189: 0 | R189: 0
A190: 183 | G190: 0 | H190: 0 | I190: 0 | J190: 0 | K190: 0 | L190: 0 | O190: 0 | P190: 0 | Q190: 0 | R190: 0
A191: 184 | G191: 0 | H191: 0 | I191: 0 | J191: 0 | K191: 0 | L191: 0 | O191: 0 | P191: 0 | Q191: 0 | R191: 0
A192: 185 | G192: 0 | H192: 0 | I192: 0 | J192: 0 | K192: 0 | L192: 0 | O192: 0 | P192: 0 | Q192: 0 | R192: 0
A193: 186 | G193: 0 | H193: 0 | I193: 0 | J193: 0 | K193: 0 | L193: 0 | O193: 0 | P193: 0 | Q193: 0 | R193: 0
A194: 187 | G194: 0 | H194: 0 | I194: 0 | J194: 0 | K194: 0 | L194: 0 | O194: 0 | P194: 0 | Q194: 0 | R194: 0
A195: 188 | G195: 0 | H195: 0 | I195: 0 | J195: 0 | K195: 0 | L195: 0 | O195: 0 | P195: 0 | Q195: 0 | R195: 0
A196: 189 | G196: 0 | H196: 0 | I196: 0 | J196: 0 | K196: 0 | L196: 0 | O196: 0 | P196: 0 | Q196: 0 | R196: 0
A197: 190 | G197: 0 | H197: 0 | I197: 0 | J197: 0 | K197: 0 | L197: 0 | O197: 0 | P197: 0 | Q197: 0 | R197: 0
A198: 191 | G198: 0 | H198: 0 | I198: 0 | J198: 0 | K198: 0 | L198: 0 | O198: 0 | P198: 0 | Q198: 0 | R198: 0
A199: 192 | G199: 0 | H199: 0 | I199: 0 | J199: 0 | K199: 0 | L199: 0 | O199: 0 | P199: 0 | Q199: 0 | R199: 0
A200: 193 | G200: 0 | H200: 0 | I200: 0 | J200: 0 | K200: 0 | L200: 0 | O200: 0 | P200: 0 | Q200: 0 | R200: 0
A201: 194 | G201: 0 | H201: =E201*1% -> 0 | I201: =E201*1% -> 0 | J201: =E201*0.5% -> 0 | K201: 0 | L201: 0 | O201: 0 | P201: 0 | Q201: 0 | R201: 0
... 306 more rows

Sheet INVEST.Mat & Outillages - 05
D1: ='REFERENCES - 05'!D7 -> 0 | F1: ='REFERENCES - 05'!D9 -> 0
B2: INVESTISSEMENTS PREVUS SUR LA PERIODE DE REALISATION DU PROJET | R2: (En F. Cfa)
A3: N° | B3: Désignation | C3: Quantité | D3: ACHAT A L'ETRANGER (en F. Cfa) | M3: ACHAT EN COTE D'IVOIRE (en F. Cfa) | Q3: Coût total des Investissements
D4: Position tarifaire | E4: Cout CAF | F4: Droit de douane / Droit fiscaux | H4: RSTAT (1%) | I4: PCS (1%) | J4: PCC (0,5%) | K4: TVA sur Droit de Douane | L4: Total Achat à l'étranger | M4: Achats HT | N4: Coûts locaux (Transport, montage,..) | O4: T.V.A | P4: Total Achat en RCI | Q4: Coût total HT | R4: Coût total TTC
F5: Taux | G5: Montant
B7: MATERIELS & OUTILLAGES | C7: =SUM(C8:C1007) -> 0 | E7: =SUM(E8:E1007) -> 0 | G7: =SUM(G8:G1007) -> 0 | H7: =SUM(H8:H1007) -> 0 | I7: 0 | J7: 0 | K7: 0 | L7: 0 | M7: 0 | N7: 0 | O7: 0 | P7: 0 | Q7: 0 | R7: 0
A8: 1 | G8: =F8*E8 -> 0 | H8: =E8*1% -> 0 | I8: =E8*1% -> 0 | J8: =E8*0.5% -> 0 | K8: =(E8+G8+H8)*18% -> 0 | L8: =SUM(G8:K8)+E8 -> 0 | O8: =(M8+N8)*18% -> 0 | P8: =O8+N8+M8 -> 0 | Q8: =+R8-O8-K8 -> 0 | R8: =P8+L8 -> 0
A9: =+A8+1 -> 2 | G9: =F9*E9 -> 0 | H9: =E9*1% -> 0 | I9: =E9*1% -> 0 | J9: =E9*0.5% -> 0 | K9: =(E9+G9+H9)*18% -> 0 | L9: 0 | O9: =(M9+N9)*18% -> 0 | P9: =O9+N9+M9 -> 0 | Q9: =+R9-O9-K9 -> 0 | R9: =P9+L9 -> 0
A10: =+A9+1 -> 3 | G10: =F10*E10 -> 0 | H10: 0 | I10: 0 | J10: 0 | K10: =(E10+G10+H10)*18% -> 0 | L10: 0 | O10: =(M10+N10)*18% -> 0 | P10: =O10+N10+M10 -> 0 | Q10: =+R10-O10-K10 -> 0 | R10: =P10+L10 -> 0
A11: 4 | G11: 0 | H11: 0 | I11: 0 | J11: 0 | K11: 0 | L11: 0 | O11: =(M11+N11)*18% -> 0 | P11: =O11+N11+M11 -> 0 | Q11: =+R11-O11-K11 -> 0 | R11: =P11+L11 -> 0
A12: 5 | G12: 0 | H12: 0 | I12: 0 | J12: 0 | K12: 0 | L12: 0 | O12: 0 | P12: 0 | Q12: 0 | R12: 0
A13: 6 | G13: 0 | H13: 0 | I13: 0 | J13: 0 | K13: 0 | L13: 0 | O13: 0 | P13: 0 | Q13: 0 | R13: 0
A14: 7 | G14: 0 | H14: 0 | I14: 0 | J14: 0 | K14: 0 | L14: 0 | O14: 0 | P14: 0 | Q14: 0 | R14: 0
A15: 8 | G15: 0 | H15: 0 | I15: 0 | J15: 0 | K15: 0 | L15: 0 | O15: 0 | P15: 0 | Q15: 0 | R15: 0
A16: 9 | G16: 0 | H16: 0 | I16: 0 | J16: 0 | K16: 0 | L16: 0 | O16: 0 | P16: 0 | Q16: 0 | R16: 0
A17: 10 | G17: 0 | H17: 0 | I17: 0 | J17: 0 | K17: 0 | L17: 0 | O17: 0 | P17: 0 | Q17: 0 | R17: 0
A18: 11 | G18: 0 | H18: 0 | I18: 0 | J18: 0 | K18: 0 | L18: 0 | O18: 0 | P18: 0 | Q18: 0 | R18: 0
A19: 12 | G19: 0 | H19: 0 | I19: 0 | J19: 0 | K19: 0 | L19: 0 | O19: 0 | P19: 0 | Q19: 0 | R19: 0
A20: 13 | G20: 0 | H20: 0 | I20: 0 | J20: 0 | K20: 0 | L20: 0 | O20: 0 | P20: 0 | Q20: 0 | R20: 0
A21: 14 | G21: 0 | H21: 0 | I21: 0 | J21: 0 | K21: 0 | L21: 0 | O21: 0 | P21: 0 | Q21: 0 | R21: 0
A22: 15 | G22: 0 | H22: 0 | I22: 0 | J22: 0 | K22: 0 | L22: 0 | O22: 0 | P22: 0 | Q22: 0 | R22: 0
A23: 16 | G23: 0 | H23: 0 | I23: 0 | J23: 0 | K23: 0 | L23: 0 | O23: 0 | P23: 0 | Q23: 0 | R23: 0
A24: 17 | G24: 0 | H24: 0 | I24: 0 | J24: 0 | K24: 0 | L24: 0 | O24: 0 | P24: 0 | Q24: 0 | R24: 0
A25: 18 | G25: 0 | H25: 0 | I25: 0 | J25: 0 | K25: 0 | L25: 0 | O25: 0 | P25: 0 | Q25: 0 | R25: 0
A26: 19 | G26: 0 | H26: 0 | I26: 0 | J26: 0 | K26: 0 | L26: 0 | O26: 0 | P26: 0 | Q26: 0 | R26: 0
A27: 20 | G27: 0 | H27: 0 | I27: 0 | J27: 0 | K27: 0 | L27: 0 | O27: 0 | P27: 0 | Q27: 0 | R27: 0
A28: 21 | G28: 0 | H28: 0 | I28: 0 | J28: 0 | K28: 0 | L28: 0 | O28: 0 | P28: 0 | Q28: 0 | R28: 0
A29: 22 | G29: 0 | H29: 0 | I29: 0 | J29: 0 | K29: 0 | L29: 0 | O29: 0 | P29: 0 | Q29: 0 | R29: 0
A30: 23 | G30: 0 | H30: 0 | I30: 0 | J30: 0 | K30: 0 | L30: 0 | O30: 0 | P30: 0 | Q30: 0 | R30: 0
A31: 24 | G31: 0 | H31: 0 | I31: 0 | J31: 0 | K31: 0 | L31: 0 | O31: 0 | P31: 0 | Q31: 0 | R31: 0
A32: 25 | G32: 0 | H32: 0 | I32: 0 | J32: 0 | K32: 0 | L32: 0 | O32: 0 | P32: 0 | Q32: 0 | R32: 0
A33: 26 | G33: 0 | H33: 0 | I33: 0 | J33: 0 | K33: 0 | L33: 0 | O33: 0 | P33: 0 | Q33: 0 | R33: 0
A34: 27 | G34: 0 | H34: 0 | I34: 0 | J34: 0 | K34: 0 | L34: 0 | O34: 0 | P34: 0 | Q34: 0 | R34: 0
A35: 28 | G35: 0 | H35: 0 | I35: 0 | J35: 0 | K35: 0 | L35: 0 | O35: 0 | P35: 0 | Q35: 0 | R35: 0
A36: 29 | G36: 0 | H36: 0 | I36: 0 | J36: 0 | K36: 0 | L36: 0 | O36: 0 | P36: 0 | Q36: 0 | R36: 0
A37: 30 | G37: 0 | H37: 0 | I37: 0 | J37: 0 | K37: 0 | L37: 0 | O37: 0 | P37: 0 | Q37: 0 | R37: 0
A38: 31 | G38: 0 | H38: 0 | I38: 0 | J38: 0 | K38: 0 | L38: 0 | O38: 0 | P38: 0 | Q38: 0 | R38: 0
A39: 32 | G39: 0 | H39: 0 | I39: 0 | J39: 0 | K39: 0 | L39: 0 | O39: 0 | P39: 0 | Q39: 0 | R39: 0
A40: 33 | G40: 0 | H40: 0 | I40: 0 | J40: 0 | K40: 0 | L40: 0 | O40: 0 | P40: 0 | Q40: 0 | R40: 0
A41: 34 | G41: 0 | H41: 0 | I41: 0 | J41: 0 | K41: 0 | L41: 0 | O41: 0 | P41: 0 | Q41: 0 | R41: 0
A42: 35 | G42: 0 | H42: 0 | I42: 0 | J42: 0 | K42: 0 | L42: 0 | O42: 0 | P42: 0 | Q42: 0 | R42: 0
A43: 36 | G43: 0 | H43: 0 | I43: 0 | J43: 0 | K43: 0 | L43: 0 | O43: 0 | P43: 0 | Q43: 0 | R43: 0
A44: 37 | G44: 0 | H44: 0 | I44: 0 | J44: 0 | K44: 0 | L44: 0 | O44: 0 | P44: 0 | Q44: 0 | R44: 0
A45: 38 | G45: =F45*E45 -> 0 | H45: 0 | I45: 0 | J45: 0 | K45: =(E45+G45+H45)*18% -> 0 | L45: 0 | O45: 0 | P45: 0 | Q45: 0 | R45: 0
A46: 39 | G46: 0 | H46: 0 | I46: 0 | J46: 0 | K46: 0 | L46: 0 | O46: 0 | P46: 0 | Q46: 0 | R46: 0
A47: =+A46+1 -> 40 | G47: =F47*E47 -> 0 | H47: 0 | I47: 0 | J47: 0 | K47: =(E47+G47+H47)*18% -> 0 | L47: 0 | O47: 0 | P47: 0 | Q47: 0 | R47: 0
A48: 41 | G48: 0 | H48: 0 | I48: 0 | J48: 0 | K48: 0 | L48: 0 | O48: 0 | P48: 0 | Q48: 0 | R48: 0
A49: 42 | G49: 0 | H49: 0 | I49: 0 | J49: 0 | K49: 0 | L49: 0 | O49: 0 | P49: 0 | Q49: 0 | R49: 0
A50: 43 | G50: 0 | H50: 0 | I50: 0 | J50: 0 | K50: 0 | L50: 0 | O50: 0 | P50: 0 | Q50: 0 | R50: 0
A51: 44 | G51: 0 | H51: 0 | I51: 0 | J51: 0 | K51: 0 | L51: 0 | O51: 0 | P51: 0 | Q51: 0 | R51: 0
A52: 45 | G52: 0 | H52: 0 | I52: 0 | J52: 0 | K52: 0 | L52: 0 | O52: 0 | P52: 0 | Q52: 0 | R52: 0
A53: 46 | G53: 0 | H53: 0 | I53: 0 | J53: 0 | K53: 0 | L53: 0 | O53: 0 | P53: 0 | Q53: 0 | R53: 0
A54: 47 | G54: 0 | H54: 0 | I54: 0 | J54: 0 | K54: 0 | L54: 0 | O54: 0 | P54: 0 | Q54: 0 | R54: 0
A55: 48 | G55: =F55*E55 -> 0 | H55: 0 | I55: 0 | J55: 0 | K55: =(E55+G55+H55)*18% -> 0 | L55: =SUM(G55:K55)+E55 -> 0 | O55: =(M55+N55)*18% -> 0 | P55: =O55+N55+M55 -> 0 | Q55: =+R55-O55-K55 -> 0 | R55: =P55+L55 -> 0
A56: 49 | G56: 0 | H56: 0 | I56: 0 | J56: 0 | K56: 0 | L56: 0 | O56: 0 | P56: 0 | Q56: 0 | R56: 0
A57: 50 | G57: 0 | H57: 0 | I57: 0 | J57: 0 | K57: 0 | L57: 0 | O57: 0 | P57: 0 | Q57: 0 | R57: 0
A58: 51 | G58: 0 | H58: 0 | I58: 0 | J58: 0 | K58: 0 | L58: 0 | O58: 0 | P58: 0 | Q58: 0 | R58: 0
A59: 52 | G59: 0 | H59: 0 | I59: 0 | J59: 0 | K59: 0 | L59: 0 | O59: 0 | P59: 0 | Q59: 0 | R59: 0
A60: 53 | G60: 0 | H60: 0 | I60: 0 | J60: 0 | K60: 0 | L60: 0 | O60: 0 | P60: 0 | Q60: 0 | R60: 0
A61: 54 | G61: 0 | H61: 0 | I61: 0 | J61: 0 | K61: 0 | L61: 0 | O61: 0 | P61: 0 | Q61: 0 | R61: 0
A62: 55 | G62: 0 | H62: 0 | I62: 0 | J62: 0 | K62: 0 | L62: 0 | O62: 0 | P62: 0 | Q62: 0 | R62: 0
A63: 56 | G63: 0 | H63: 0 | I63: 0 | J63: 0 | K63: 0 | L63: 0 | O63: 0 | P63: 0 | Q63: 0 | R63: 0
A64: 57 | G64: 0 | H64: 0 | I64: 0 | J64: 0 | K64: 0 | L64: 0 | O64: 0 | P64: 0 | Q64: 0 | R64: 0
A65: 58 | G65: 0 | H65: 0 | I65: 0 | J65: 0 | K65: 0 | L65: 0 | O65: 0 | P65: 0 | Q65: 0 | R65: 0
A66: 59 | G66: 0 | H66: 0 | I66: 0 | J66: 0 | K66: 0 | L66: 0 | O66: 0 | P66: 0 | Q66: 0 | R66: 0
A67: 60 | G67: 0 | H67: 0 | I67: 0 | J67: 0 | K67: 0 | L67: 0 | O67: 0 | P67: 0 | Q67: 0 | R67: 0
A68: 61 | G68: 0 | H68: 0 | I68: 0 | J68: 0 | K68: 0 | L68: 0 | O68: 0 | P68: 0 | Q68: 0 | R68: 0
A69: 62 | G69: 0 | H69: 0 | I69: 0 | J69: 0 | K69: 0 | L69: 0 | O69: 0 | P69: 0 | Q69: 0 | R69: 0
A70: 63 | G70: 0 | H70: 0 | I70: 0 | J70: 0 | K70: 0 | L70: 0 | O70: 0 | P70: 0 | Q70: 0 | R70: 0
A71: 64 | G71: 0 | H71: 0 | I71: 0 | J71: 0 | K71: 0 | L71: 0 | O71: 0 | P71: 0 | Q71: 0 | R71: 0
A72: 65 | G72: 0 | H72: 0 | I72: 0 | J72: 0 | K72: 0 | L72: 0 | O72: 0 | P72: 0 | Q72: 0 | R72: 0
A73: 66 | G73: 0 | H73: =E73*1% -> 0 | I73: =E73*1% -> 0 | J73: =E73*0.5% -> 0 | K73: 0 | L73: 0 | O73: 0 | P73: 0 | Q73: 0 | R73: 0
A74: 67 | G74: 0 | H74: 0 | I74: 0 | J74: 0 | K74: 0 | L74: 0 | O74: 0 | P74: 0 | Q74: 0 | R74: 0
A75: 68 | G75: 0 | H75: 0 | I75: 0 | J75: 0 | K75: 0 | L75: 0 | O75: 0 | P75: 0 | Q75: 0 | R75: 0
A76: 69 | G76: 0 | H76: 0 | I76: 0 | J76: 0 | K76: 0 | L76: 0 | O76: 0 | P76: 0 | Q76: 0 | R76: 0
A77: 70 | G77: 0 | H77: 0 | I77: 0 | J77: 0 | K77: 0 | L77: 0 | O77: 0 | P77: 0 | Q77: 0 | R77: 0
A78: 71 | G78: 0 | H78: 0 | I78: 0 | J78: 0 | K78: 0 | L78: 0 | O78: 0 | P78: 0 | Q78: 0 | R78: 0
A79: 72 | G79: 0 | H79: 0 | I79: 0 | J79: 0 | K79: 0 | L79: 0 | O79: 0 | P79: 0 | Q79: 0 | R79: 0
A80: 73 | G80: 0 | H80: 0 | I80: 0 | J80: 0 | K80: 0 | L80: 0 | O80: 0 | P80: 0 | Q80: 0 | R80: 0
A81: 74 | G81: 0 | H81: 0 | I81: 0 | J81: 0 | K81: 0 | L81: 0 | O81: 0 | P81: 0 | Q81: 0 | R81: 0
A82: 75 | G82: 0 | H82: 0 | I82: 0 | J82: 0 | K82: 0 | L82: 0 | O82: 0 | P82: 0 | Q82: 0 | R82: 0
A83: 76 | G83: 0 | H83: 0 | I83: 0 | J83: 0 | K83: 0 | L83: 0 | O83: 0 | P83: 0 | Q83: 0 | R83: 0
A84: 77 | G84: 0 | H84: 0 | I84: 0 | J84: 0 | K84: 0 | L84: 0 | O84: 0 | P84: 0 | Q84: 0 | R84: 0
A85: 78 | G85: 0 | H85: 0 | I85: 0 | J85: 0 | K85: 0 | L85: 0 | O85: 0 | P85: 0 | Q85: 0 | R85: 0
A86: 79 | G86: 0 | H86: 0 | I86: 0 | J86: 0 | K86: 0 | L86: 0 | O86: 0 | P86: 0 | Q86: 0 | R86: 0
A87: 80 | G87: 0 | H87: 0 | I87: 0 | J87: 0 | K87: 0 | L87: 0 | O87: 0 | P87: 0 | Q87: 0 | R87: 0
A88: 81 | G88: 0 | H88: 0 | I88: 0 | J88: 0 | K88: 0 | L88: 0 | O88: 0 | P88: 0 | Q88: 0 | R88: 0
A89: 82 | G89: 0 | H89: 0 | I89: 0 | J89: 0 | K89: 0 | L89: 0 | O89: 0 | P89: 0 | Q89: 0 | R89: 0
A90: 83 | G90: 0 | H90: 0 | I90: 0 | J90: 0 | K90: 0 | L90: 0 | O90: 0 | P90: 0 | Q90: 0 | R90: 0
A91: 84 | G91: 0 | H91: 0 | I91: 0 | J91: 0 | K91: 0 | L91: 0 | O91: 0 | P91: 0 | Q91: 0 | R91: 0
A92: 85 | G92: 0 | H92: 0 | I92: 0 | J92: 0 | K92: 0 | L92: 0 | O92: 0 | P92: 0 | Q92: 0 | R92: 0
A93: 86 | G93: 0 | H93: 0 | I93: 0 | J93: 0 | K93: 0 | L93: 0 | O93: 0 | P93: 0 | Q93: 0 | R93: 0
A94: 87 | G94: 0 | H94: 0 | I94: 0 | J94: 0 | K94: 0 | L94: 0 | O94: 0 | P94: 0 | Q94: 0 | R94: 0
A95: 88 | G95: 0 | H95: 0 | I95: 0 | J95: 0 | K95: 0 | L95: 0 | O95: 0 | P95: 0 | Q95: 0 | R95: 0
A96: 89 | G96: 0 | H96: 0 | I96: 0 | J96: 0 | K96: 0 | L96: 0 | O96: 0 | P96: 0 | Q96: 0 | R96: 0
A97: 90 | G97: 0 | H97: 0 | I97: 0 | J97: 0 | K97: 0 | L97: 0 | O97: 0 | P97: 0 | Q97: 0 | R97: 0
A98: 91 | G98: 0 | H98: 0 | I98: 0 | J98: 0 | K98: 0 | L98: 0 | O98: 0 | P98: 0 | Q98: 0 | R98: 0
A99: 92 | G99: 0 | H99: 0 | I99: 0 | J99: 0 | K99: 0 | L99: 0 | O99: 0 | P99: 0 | Q99: 0 | R99: 0
A100: 93 | G100: 0 | H100: 0 | I100: 0 | J100: 0 | K100: 0 | L100: 0 | O100: 0 | P100: 0 | Q100: 0 | R100: 0
A101: 94 | G101: 0 | H101: 0 | I101: 0 | J101: 0 | K101: 0 | L101: 0 | O101: 0 | P101: 0 | Q101: 0 | R101: 0
A102: 95 | G102: 0 | H102: 0 | I102: 0 | J102: 0 | K102: 0 | L102: 0 | O102: 0 | P102: 0 | Q102: 0 | R102: 0
A103: 96 | G103: 0 | H103: 0 | I103: 0 | J103: 0 | K103: 0 | L103: 0 | O103: 0 | P103: 0 | Q103: 0 | R103: 0
A104: 97 | G104: 0 | H104: 0 | I104: 0 | J104: 0 | K104: 0 | L104: 0 | O104: 0 | P104: 0 | Q104: 0 | R104: 0
A105: 98 | G105: 0 | H105: 0 | I105: 0 | J105: 0 | K105: 0 | L105: 0 | O105: 0 | P105: 0 | Q105: 0 | R105: 0
A106: 99 | G106: 0 | H106: 0 | I106: 0 | J106: 0 | K106: 0 | L106: 0 | O106: 0 | P106: 0 | Q106: 0 | R106: 0
A107: 100 | G107: 0 | H107: 0 | I107: 0 | J107: 0 | K107: 0 | L107: 0 | O107: 0 | P107: 0 | Q107: 0 | R107: 0
A108: 101 | G108: 0 | H108: 0 | I108: 0 | J108: 0 | K108: 0 | L108: 0 | O108: 0 | P108: 0 | Q108: 0 | R108: 0
A109: 102 | G109: 0 | H109: 0 | I109: 0 | J109: 0 | K109: 0 | L109: 0 | O109: 0 | P109: 0 | Q109: 0 | R109: 0
A110: 103 | G110: 0 | H110: 0 | I110: 0 | J110: 0 | K110: 0 | L110: 0 | O110: 0 | P110: 0 | Q110: 0 | R110: 0
A111: =+A110+1 -> 104 | G111: 0 | H111: 0 | I111: 0 | J111: 0 | K111: 0 | L111: 0 | O111: 0 | P111: 0 | Q111: 0 | R111: 0
A112: 105 | G112: 0 | H112: 0 | I112: 0 | J112: 0 | K112: 0 | L112: 0 | O112: 0 | P112: 0 | Q112: 0 | R112: 0
A113: 106 | G113: 0 | H113: 0 | I113: 0 | J113: 0 | K113: 0 | L113: 0 | O113: 0 | P113: 0 | Q113: 0 | R113: 0
A114: 107 | G114: 0 | H114: 0 | I114: 0 | J114: 0 | K114: 0 | L114: 0 | O114: 0 | P114: 0 | Q114: 0 | R114: 0
A115: 108 | G115: 0 | H115: 0 | I115: 0 | J115: 0 | K115: 0 | L115: 0 | O115: 0 | P115: 0 | Q115: 0 | R115: 0
A116: 109 | G116: 0 | H116: 0 | I116: 0 | J116: 0 | K116: 0 | L116: 0 | O116: 0 | P116: 0 | Q116: 0 | R116: 0
A117: 110 | G117: 0 | H117: 0 | I117: 0 | J117: 0 | K117: 0 | L117: 0 | O117: 0 | P117: 0 | Q117: 0 | R117: 0
A118: 111 | G118: 0 | H118: 0 | I118: 0 | J118: 0 | K118: 0 | L118: 0 | O118: 0 | P118: 0 | Q118: 0 | R118: 0
A119: 112 | G119: =F119*E119 -> 0 | H119: 0 | I119: 0 | J119: 0 | K119: =(E119+G119+H119)*18% -> 0 | L119: =SUM(G119:K119)+E119 -> 0 | O119: =(M119+N119)*18% -> 0 | P119: =O119+N119+M119 -> 0 | Q119: =+R119-O119-K119 -> 0 | R119: =P119+L119 -> 0
A120: 113 | G120: 0 | H120: 0 | I120: 0 | J120: 0 | K120: 0 | L120: 0 | O120: 0 | P120: 0 | Q120: 0 | R120: 0
A121: 114 | G121: 0 | H121: 0 | I121: 0 | J121: 0 | K121: 0 | L121: 0 | O121: 0 | P121: 0 | Q121: 0 | R121: 0
A122: 115 | G122: 0 | H122: 0 | I122: 0 | J122: 0 | K122: 0 | L122: 0 | O122: 0 | P122: 0 | Q122: 0 | R122: 0
A123: 116 | G123: 0 | H123: 0 | I123: 0 | J123: 0 | K123: 0 | L123: 0 | O123: 0 | P123: 0 | Q123: 0 | R123: 0
A124: 117 | G124: 0 | H124: 0 | I124: 0 | J124: 0 | K124: 0 | L124: 0 | O124: 0 | P124: 0 | Q124: 0 | R124: 0
A125: 118 | G125: 0 | H125: 0 | I125: 0 | J125: 0 | K125: 0 | L125: 0 | O125: 0 | P125: 0 | Q125: 0 | R125: 0
A126: 119 | G126: 0 | H126: 0 | I126: 0 | J126: 0 | K126: 0 | L126: 0 | O126: 0 | P126: 0 | Q126: 0 | R126: 0
A127: 120 | G127: 0 | H127: 0 | I127: 0 | J127: 0 | K127: 0 | L127: 0 | O127: 0 | P127: 0 | Q127: 0 | R127: 0
A128: 121 | G128: 0 | H128: 0 | I128: 0 | J128: 0 | K128: 0 | L128: 0 | O128: 0 | P128: 0 | Q128: 0 | R128: 0
A129: 122 | G129: 0 | H129: 0 | I129: 0 | J129: 0 | K129: 0 | L129: 0 | O129: 0 | P129: 0 | Q129: 0 | R129: 0
A130: 123 | G130: 0 | H130: 0 | I130: 0 | J130: 0 | K130: 0 | L130: 0 | O130: 0 | P130: 0 | Q130: 0 | R130: 0
A131: 124 | G131: 0 | H131: 0 | I131: 0 | J131: 0 | K131: 0 | L131: 0 | O131: 0 | P131: 0 | Q131: 0 | R131: 0
A132: 125 | G132: 0 | H132: 0 | I132: 0 | J132: 0 | K132: 0 | L132: 0 | O132: 0 | P132: 0 | Q132: 0 | R132: 0
A133: 126 | G133: 0 | H133: 0 | I133: 0 | J133: 0 | K133: 0 | L133: 0 | O133: 0 | P133: 0 | Q133: 0 | R133: 0
A134: 127 | G134: 0 | H134: 0 | I134: 0 | J134: 0 | K134: 0 | L134: 0 | O134: 0 | P134: 0 | Q134: 0 | R134: 0
A135: 128 | G135: 0 | H135: 0 | I135: 0 | J135: 0 | K135: 0 | L135: 0 | O135: 0 | P135: 0 | Q135: 0 | R135: 0
A136: 129 | G136: 0 | H136: 0 | I136: 0 | J136: 0 | K136: 0 | L136: 0 | O136: 0 | P136: 0 | Q136: 0 | R136: 0
A137: 130 | G137: 0 | H137: =E137*1% -> 0 | I137: =E137*1% -> 0 | J137: =E137*0.5% -> 0 | K137: 0 | L137: 0 | O137: 0 | P137: 0 | Q137: 0 | R137: 0
A138: 131 | G138: 0 | H138: 0 | I138: 0 | J138: 0 | K138: 0 | L138: 0 | O138: 0 | P138: 0 | Q138: 0 | R138: 0
A139: 132 | G139: 0 | H139: 0 | I139: 0 | J139: 0 | K139: 0 | L139: 0 | O139: 0 | P139: 0 | Q139: 0 | R139: 0
A140: 133 | G140: 0 | H140: 0 | I140: 0 | J140: 0 | K140: 0 | L140: 0 | O140: 0 | P140: 0 | Q140: 0 | R140: 0
A141: 134 | G141: 0 | H141: 0 | I141: 0 | J141: 0 | K141: 0 | L141: 0 | O141: 0 | P141: 0 | Q141: 0 | R141: 0
A142: 135 | G142: 0 | H142: 0 | I142: 0 | J142: 0 | K142: 0 | L142: 0 | O142: 0 | P142: 0 | Q142: 0 | R142: 0
A143: 136 | G143: 0 | H143: 0 | I143: 0 | J143: 0 | K143: 0 | L143: 0 | O143: 0 | P143: 0 | Q143: 0 | R143: 0
A144: 137 | G144: 0 | H144: 0 | I144: 0 | J144: 0 | K144: 0 | L144: 0 | O144: 0 | P144: 0 | Q144: 0 | R144: 0
A145: 138 | G145: 0 | H145: 0 | I145: 0 | J145: 0 | K145: 0 | L145: 0 | O145: 0 | P145: 0 | Q145: 0 | R145: 0
A146: 139 | G146: 0 | H146: 0 | I146: 0 | J146: 0 | K146: 0 | L146: 0 | O146: 0 | P146: 0 | Q146: 0 | R146: 0
A147: 140 | G147: 0 | H147: 0 | I147: 0 | J147: 0 | K147: 0 | L147: 0 | O147: 0 | P147: 0 | Q147: 0 | R147: 0
A148: 141 | G148: 0 | H148: 0 | I148: 0 | J148: 0 | K148: 0 | L148: 0 | O148: 0 | P148: 0 | Q148: 0 | R148: 0
A149: 142 | G149: 0 | H149: 0 | I149: 0 | J149: 0 | K149: 0 | L149: 0 | O149: 0 | P149: 0 | Q149: 0 | R149: 0
A150: 143 | G150: 0 | H150: 0 | I150: 0 | J150: 0 | K150: 0 | L150: 0 | O150: 0 | P150: 0 | Q150: 0 | R150: 0
A151: 144 | G151: 0 | H151: 0 | I151: 0 | J151: 0 | K151: 0 | L151: 0 | O151: 0 | P151: 0 | Q151: 0 | R151: 0
A152: 145 | G152: 0 | H152: 0 | I152: 0 | J152: 0 | K152: 0 | L152: 0 | O152: 0 | P152: 0 | Q152: 0 | R152: 0
A153: 146 | G153: 0 | H153: 0 | I153: 0 | J153: 0 | K153: 0 | L153: 0 | O153: 0 | P153: 0 | Q153: 0 | R153: 0
A154: 147 | G154: 0 | H154: 0 | I154: 0 | J154: 0 | K154: 0 | L154: 0 | O154: 0 | P154: 0 | Q154: 0 | R154: 0
A155: 148 | G155: 0 | H155: 0 | I155: 0 | J155: 0 | K155: 0 | L155: 0 | O155: 0 | P155: 0 | Q155: 0 | R155: 0
A156: 149 | G156: 0 | H156: 0 | I156: 0 | J156: 0 | K156: 0 | L156: 0 | O156: 0 | P156: 0 | Q156: 0 | R156: 0
A157: 150 | G157: 0 | H157: 0 | I157: 0 | J157: 0 | K157: 0 | L157: 0 | O157: 0 | P157: 0 | Q157: 0 | R157: 0
A158: 151 | G158: 0 | H158: 0 | I158: 0 | J158: 0 | K158: 0 | L158: 0 | O158: 0 | P158: 0 | Q158: 0 | R158: 0
A159: 152 | G159: 0 | H159: 0 | I159: 0 | J159: 0 | K159: 0 | L159: 0 | O159: 0 | P159: 0 | Q159: 0 | R159: 0
A160: 153 | G160: 0 | H160: 0 | I160: 0 | J160: 0 | K160: 0 | L160: 0 | O160: 0 | P160: 0 | Q160: 0 | R160: 0
A161: 154 | G161: 0 | H161: 0 | I161: 0 | J161: 0 | K161: 0 | L161: 0 | O161: 0 | P161: 0 | Q161: 0 | R161: 0
A162: 155 | G162: 0 | H162: 0 | I162: 0 | J162: 0 | K162: 0 | L162: 0 | O162: 0 | P162: 0 | Q162: 0 | R162: 0
A163: 156 | G163: 0 | H163: 0 | I163: 0 | J163: 0 | K163: 0 | L163: 0 | O163: 0 | P163: 0 | Q163: 0 | R163: 0
A164: 157 | G164: 0 | H164: 0 | I164: 0 | J164: 0 | K164: 0 | L164: 0 | O164: 0 | P164: 0 | Q164: 0 | R164: 0
A165: 158 | G165: 0 | H165: 0 | I165: 0 | J165: 0 | K165: 0 | L165: 0 | O165: 0 | P165: 0 | Q165: 0 | R165: 0
A166: 159 | G166: 0 | H166: 0 | I166: 0 | J166: 0 | K166: 0 | L166: 0 | O166: 0 | P166: 0 | Q166: 0 | R166: 0
A167: 160 | G167: 0 | H167: 0 | I167: 0 | J167: 0 | K167: 0 | L167: 0 | O167: 0 | P167: 0 | Q167: 0 | R167: 0
A168: 161 | G168: 0 | H168: 0 | I168: 0 | J168: 0 | K168: 0 | L168: 0 | O168: 0 | P168: 0 | Q168: 0 | R168: 0
A169: 162 | G169: 0 | H169: 0 | I169: 0 | J169: 0 | K169: 0 | L169: 0 | O169: 0 | P169: 0 | Q169: 0 | R169: 0
A170: 163 | G170: 0 | H170: 0 | I170: 0 | J170: 0 | K170: 0 | L170: 0 | O170: 0 | P170: 0 | Q170: 0 | R170: 0
A171: 164 | G171: 0 | H171: 0 | I171: 0 | J171: 0 | K171: 0 | L171: 0 | O171: 0 | P171: 0 | Q171: 0 | R171: 0
A172: 165 | G172: 0 | H172: 0 | I172: 0 | J172: 0 | K172: 0 | L172: 0 | O172: 0 | P172: 0 | Q172: 0 | R172: 0
A173: 166 | G173: 0 | H173: 0 | I173: 0 | J173: 0 | K173: 0 | L173: 0 | O173: 0 | P173: 0 | Q173: 0 | R173: 0
A174: 167 | G174: 0 | H174: 0 | I174: 0 | J174: 0 | K174: 0 | L174: 0 | O174: 0 | P174: 0 | Q174: 0 | R174: 0
A175: =+A174+1 -> 168 | G175: 0 | H175: 0 | I175: 0 | J175: 0 | K175: 0 | L175: 0 | O175: 0 | P175: 0 | Q175: 0 | R175: 0
A176: 169 | G176: 0 | H176: 0 | I176: 0 | J176: 0 | K176: 0 | L176: 0 | O176: 0 | P176: 0 | Q176: 0 | R176: 0
A177: 170 | G177: 0 | H177: 0 | I177: 0 | J177: 0 | K177: 0 | L177: 0 | O177: 0 | P177: 0 | Q177: 0 | R177: 0
A178: 171 | G178: 0 | H178: 0 | I178: 0 | J178: 0 | K178: 0 | L178: 0 | O178: 0 | P178: 0 | Q178: 0 | R178: 0
A179: 172 | G179: 0 | H179: 0 | I179: 0 | J179: 0 | K179: 0 | L179: 0 | O179: 0 | P179: 0 | Q179: 0 | R179: 0
A180: 173 | G180: 0 | H180: 0 | I180: 0 | J180: 0 | K180: 0 | L180: 0 | O180: 0 | P180: 0 | Q180: 0 | R180: 0
A181: 174 | G181: 0 | H181: 0 | I181: 0 | J181: 0 | K181: 0 | L181: 0 | O181: 0 | P181: 0 | Q181: 0 | R181: 0
A182: 175 | G182: 0 | H182: 0 | I182: 0 | J182: 0 | K182: 0 | L182: 0 | O182: 0 | P182: 0 | Q182: 0 | R182: 0
A183: 176 | G183: =F183*E183 -> 0 | H183: 0 | I183: 0 | J183: 0 | K183: =(E183+G183+H183)*18% -> 0 | L183: =SUM(G183:K183)+E183 -> 0 | O183: =(M183+N183)*18% -> 0 | P183: =O183+N183+M183 -> 0 | Q183: =+R183-O183-K183 -> 0 | R183: =P183+L183 -> 0
A184: 177 | G184: 0 | H184: 0 | I184: 0 | J184: 0 | K184: 0 | L184: 0 | O184: 0 | P184: 0 | Q184: 0 | R184: 0
A185: 178 | G185: 0 | H185: 0 | I185: 0 | J185: 0 | K185: 0 | L185: 0 | O185: 0 | P185: 0 | Q185: 0 | R185: 0
A186: 179 | G186: 0 | H186: 0 | I186: 0 | J186: 0 | K186: 0 | L186: 0 | O186: 0 | P186: 0 | Q186: 0 | R186: 0
A187: 180 | G187: 0 | H187: 0 | I187: 0 | J187: 0 | K187: 0 | L187: 0 | O187: 0 | P187: 0 | Q187: 0 | R187: 0
A188: 181 | G188: 0 | H188: 0 | I188: 0 | J188: 0 | K188: 0 | L188: 0 | O188: 0 | P188: 0 | Q188: 0 | R188: 0
A189: 182 | G189: 0 | H189: 0 | I189: 0 | J189: 0 | K189: 0 | L189: 0 | O189: 0 | P189: 0 | Q189: 0 | R189: 0
A190: 183 | G190: 0 | H190: 0 | I190: 0 | J190: 0 | K190: 0 | L190: 0 | O190: 0 | P190: 0 | Q190: 0 | R190: 0
A191: 184 | G191: 0 | H191: 0 | I191: 0 | J191: 0 | K191: 0 | L191: 0 | O191: 0 | P191: 0 | Q191: 0 | R191: 0
A192: 185 | G192: 0 | H192: 0 | I192: 0 | J192: 0 | K192: 0 | L192: 0 | O192: 0 | P192: 0 | Q192: 0 | R192: 0
A193: 186 | G193: 0 | H193: 0 | I193: 0 | J193: 0 | K193: 0 | L193: 0 | O193: 0 | P193: 0 | Q193: 0 | R193: 0
A194: 187 | G194: 0 | H194: 0 | I194: 0 | J194: 0 | K194: 0 | L194: 0 | O194: 0 | P194: 0 | Q194: 0 | R194: 0
A195: 188 | G195: 0 | H195: 0 | I195: 0 | J195: 0 | K195: 0 | L195: 0 | O195: 0 | P195: 0 | Q195: 0 | R195: 0
A196: 189 | G196: 0 | H196: 0 | I196: 0 | J196: 0 | K196: 0 | L196: 0 | O196: 0 | P196: 0 | Q196: 0 | R196: 0
A197: 190 | G197: 0 | H197: 0 | I197: 0 | J197: 0 | K197: 0 | L197: 0 | O197: 0 | P197: 0 | Q197: 0 | R197: 0
A198: 191 | G198: 0 | H198: 0 | I198: 0 | J198: 0 | K198: 0 | L198: 0 | O198: 0 | P198: 0 | Q198: 0 | R198: 0
A199: 192 | G199: 0 | H199: 0 | I199: 0 | J199: 0 | K199: 0 | L199: 0 | O199: 0 | P199: 0 | Q199: 0 | R199: 0
A200: 193 | G200: 0 | H200: 0 | I200: 0 | J200: 0 | K200: 0 | L200: 0 | O200: 0 | P200: 0 | Q200: 0 | R200: 0
A201: 194 | G201: 0 | H201: =E201*1% -> 0 | I201: =E201*1% -> 0 | J201: =E201*0.5% -> 0 | K201: 0 | L201: 0 | O201: 0 | P201: 0 | Q201: 0 | R201: 0
... 806 more rows

Sheet INVEST.Matériels Transport - 05
D1: ='REFERENCES - 05'!D7 -> 0 | F1: ='REFERENCES - 05'!D9 -> 0
B2: INVESTISSEMENTS PREVUS SUR LA PERIODE DE REALISATION DU PROJET | R2: (En F. Cfa)
A3: N° | B3: Désignation | C3: Quantité | D3: ACHAT A L'ETRANGER (en F. Cfa) | M3: ACHAT EN COTE D'IVOIRE (en F. Cfa) | Q3: Coût total des Investissements
D4: Position tarifaire | E4: Cout CAF | F4: Droit de douane / Droit fiscaux | H4: RSTAT (1%) | I4: PCS (1%) | J4: PCC (0,5%) | K4: TVA sur Droit de Douane | L4: Total Achat à l'étranger | M4: Achats HT | N4: Coûts locaux (Transport, montage,..) | O4: T.V.A | P4: Total Achat en RCI | Q4: Coût total HT | R4: Coût total TTC
F5: Taux | G5: Montant
B7: MATERIELS DE TRANSPORT | C7: =SUM(C8:C1007) -> 0 | E7: =SUM(E8:E1007) -> 0 | G7: =SUM(G8:G1007) -> 0 | H7: =SUM(H8:H1007) -> 0 | I7: 0 | J7: 0 | K7: 0 | L7: 0 | M7: 0 | N7: 0 | O7: 0 | P7: 0 | Q7: 0 | R7: 0
A8: 1 | G8: =F8*E8 -> 0 | H8: =E8*1% -> 0 | I8: =E8*1% -> 0 | J8: =E8*0.5% -> 0 | K8: =(E8+G8+H8)*18% -> 0 | L8: =SUM(G8:K8)+E8 -> 0 | O8: =(M8+N8)*18% -> 0 | P8: =O8+N8+M8 -> 0 | Q8: =+R8-O8-K8 -> 0 | R8: =P8+L8 -> 0
A9: =+A8+1 -> 2 | G9: =F9*E9 -> 0 | H9: =E9*1% -> 0 | I9: =E9*1% -> 0 | J9: =E9*0.5% -> 0 | K9: =(E9+G9+H9)*18% -> 0 | L9: 0 | O9: =(M9+N9)*18% -> 0 | P9: =O9+N9+M9 -> 0 | Q9: =+R9-O9-K9 -> 0 | R9: =P9+L9 -> 0
A10: =+A9+1 -> 3 | G10: =F10*E10 -> 0 | H10: 0 | I10: 0 | J10: 0 | K10: =(E10+G10+H10)*18% -> 0 | L10: 0 | O10: =(M10+N10)*18% -> 0 | P10: =O10+N10+M10 -> 0 | Q10: =+R10-O10-K10 -> 0 | R10: =P10+L10 -> 0
A11: 4 | G11: 0 | H11: 0 | I11: 0 | J11: 0 | K11: 0 | L11: 0 | O11: =(M11+N11)*18% -> 0 | P11: =O11+N11+M11 -> 0 | Q11: =+R11-O11-K11 -> 0 | R11: =P11+L11 -> 0
A12: 5 | G12: 0 | H12: 0 | I12: 0 | J12: 0 | K12: 0 | L12: 0 | O12: 0 | P12: 0 | Q12: 0 | R12: 0
A13: 6 | G13: =F13*E13 -> 0 | H13: 0 | I13: 0 | J13: 0 | K13: =(E13+G13+H13)*18% -> 0 | L13: 0 | O13: 0 | P13: 0 | Q13: 0 | R13: 0
A14: 7 | G14: 0 | H14: 0 | I14: 0 | J14: 0 | K14: 0 | L14: 0 | O14: 0 | P14: 0 | Q14: 0 | R14: 0
A15: 8 | G15: 0 | H15: 0 | I15: 0 | J15: 0 | K15: 0 | L15: 0 | O15: 0 | P15: 0 | Q15: 0 | R15: 0
A16: 9 | G16: 0 | H16: 0 | I16: 0 | J16: 0 | K16: 0 | L16: 0 | O16: 0 | P16: 0 | Q16: 0 | R16: 0
A17: 10 | G17: 0 | H17: 0 | I17: 0 | J17: 0 | K17: 0 | L17: 0 | O17: 0 | P17: 0 | Q17: 0 | R17: 0
A18: 11 | G18: 0 | H18: 0 | I18: 0 | J18: 0 | K18: 0 | L18: 0 | O18: 0 | P18: 0 | Q18: 0 | R18: 0
A19: 12 | G19: 0 | H19: 0 | I19: 0 | J19: 0 | K19: 0 | L19: 0 | O19: 0 | P19: 0 | Q19: 0 | R19: 0
A20: 13 | G20: 0 | H20: 0 | I20: 0 | J20: 0 | K20: 0 | L20: 0 | O20: 0 | P20: 0 | Q20: 0 | R20: 0
A21: 14 | G21: 0 | H21: 0 | I21: 0 | J21: 0 | K21: 0 | L21: 0 | O21: 0 | P21: 0 | Q21: 0 | R21: 0
A22: 15 | G22: 0 | H22: 0 | I22: 0 | J22: 0 | K22: 0 | L22: 0 | O22: 0 | P22: 0 | Q22: 0 | R22: 0
A23: 16 | G23: 0 | H23: 0 | I23: 0 | J23: 0 | K23: 0 | L23: 0 | O23: 0 | P23: 0 | Q23: 0 | R23: 0
A24: 17 | G24: 0 | H24: 0 | I24: 0 | J24: 0 | K24: 0 | L24: 0 | O24: 0 | P24: 0 | Q24: 0 | R24: 0
A25: 18 | G25: 0 | H25: 0 | I25: 0 | J25: 0 | K25: 0 | L25: 0 | O25: 0 | P25: 0 | Q25: 0 | R25: 0
A26: 19 | G26: 0 | H26: 0 | I26: 0 | J26: 0 | K26: 0 | L26: 0 | O26: 0 | P26: 0 | Q26: 0 | R26: 0
A27: 20 | G27: 0 | H27: 0 | I27: 0 | J27: 0 | K27: 0 | L27: 0 | O27: 0 | P27: 0 | Q27: 0 | R27: 0
A28: 21 | G28: 0 | H28: 0 | I28: 0 | J28: 0 | K28: 0 | L28: 0 | O28: 0 | P28: 0 | Q28: 0 | R28: 0
A29: 22 | G29: 0 | H29: 0 | I29: 0 | J29: 0 | K29: 0 | L29: 0 | O29: 0 | P29: 0 | Q29: 0 | R29: 0
A30: 23 | G30: 0 | H30: 0 | I30: 0 | J30: 0 | K30: 0 | L30: 0 | O30: 0 | P30: 0 | Q30: 0 | R30: 0
A31: 24 | G31: 0 | H31: 0 | I31: 0 | J31: 0 | K31: 0 | L31: 0 | O31: 0 | P31: 0 | Q31: 0 | R31: 0
A32: 25 | G32: 0 | H32: 0 | I32: 0 | J32: 0 | K32: 0 | L32: 0 | O32: 0 | P32: 0 | Q32: 0 | R32: 0
A33: 26 | G33: 0 | H33: 0 | I33: 0 | J33: 0 | K33: 0 | L33: 0 | O33: 0 | P33: 0 | Q33: 0 | R33: 0
A34: 27 | G34: 0 | H34: 0 | I34: 0 | J34: 0 | K34: 0 | L34: 0 | O34: 0 | P34: 0 | Q34: 0 | R34: 0
A35: 28 | G35: 0 | H35: 0 | I35: 0 | J35: 0 | K35: 0 | L35: 0 | O35: 0 | P35: 0 | Q35: 0 | R35: 0
A36: 29 | G36: 0 | H36: 0 | I36: 0 | J36: 0 | K36: 0 | L36: 0 | O36: 0 | P36: 0 | Q36: 0 | R36: 0
A37: 30 | G37: 0 | H37: 0 | I37: 0 | J37: 0 | K37: 0 | L37: 0 | O37: 0 | P37: 0 | Q37: 0 | R37: 0
A38: 31 | G38: 0 | H38: 0 | I38: 0 | J38: 0 | K38: 0 | L38: 0 | O38: 0 | P38: 0 | Q38: 0 | R38: 0
A39: 32 | G39: 0 | H39: 0 | I39: 0 | J39: 0 | K39: 0 | L39: 0 | O39: 0 | P39: 0 | Q39: 0 | R39: 0
A40: 33 | G40: 0 | H40: 0 | I40: 0 | J40: 0 | K40: 0 | L40: 0 | O40: 0 | P40: 0 | Q40: 0 | R40: 0
A41: 34 | G41: 0 | H41: 0 | I41: 0 | J41: 0 | K41: 0 | L41: 0 | O41: 0 | P41: 0 | Q41: 0 | R41: 0
A42: 35 | G42: 0 | H42: 0 | I42: 0 | J42: 0 | K42: 0 | L42: 0 | O42: 0 | P42: 0 | Q42: 0 | R42: 0
A43: 36 | G43: 0 | H43: 0 | I43: 0 | J43: 0 | K43: 0 | L43: 0 | O43: 0 | P43: 0 | Q43: 0 | R43: 0
A44: 37 | G44: 0 | H44: 0 | I44: 0 | J44: 0 | K44: 0 | L44: 0 | O44: 0 | P44: 0 | Q44: 0 | R44: 0
A45: 38 | G45: 0 | H45: 0 | I45: 0 | J45: 0 | K45: 0 | L45: 0 | O45: 0 | P45: 0 | Q45: 0 | R45: 0
A46: 39 | G46: 0 | H46: 0 | I46: 0 | J46: 0 | K46: 0 | L46: 0 | O46: 0 | P46: 0 | Q46: 0 | R46: 0
A47: =+A46+1 -> 40 | G47: =F47*E47 -> 0 | H47: 0 | I47: 0 | J47: 0 | K47: =(E47+G47+H47)*18% -> 0 | L47: 0 | O47: 0 | P47: 0 | Q47: 0 | R47: 0
A48: 41 | G48: 0 | H48: 0 | I48: 0 | J48: 0 | K48: 0 | L48: 0 | O48: 0 | P48: 0 | Q48: 0 | R48: 0
A49: 42 | G49: 0 | H49: 0 | I49: 0 | J49: 0 | K49: 0 | L49: 0 | O49: 0 | P49: 0 | Q49: 0 | R49: 0
A50: 43 | G50: 0 | H50: 0 | I50: 0 | J50: 0 | K50: 0 | L50: 0 | O50: 0 | P50: 0 | Q50: 0 | R50: 0
A51: 44 | G51: 0 | H51: 0 | I51: 0 | J51: 0 | K51: 0 | L51: 0 | O51: 0 | P51: 0 | Q51: 0 | R51: 0
A52: 45 | G52: 0 | H52: 0 | I52: 0 | J52: 0 | K52: 0 | L52: 0 | O52: 0 | P52: 0 | Q52: 0 | R52: 0
A53: 46 | G53: 0 | H53: 0 | I53: 0 | J53: 0 | K53: 0 | L53: 0 | O53: 0 | P53: 0 | Q53: 0 | R53: 0
A54: 47 | G54: 0 | H54: 0 | I54: 0 | J54: 0 | K54: 0 | L54: 0 | O54: 0 | P54: 0 | Q54: 0 | R54: 0
A55: 48 | G55: =F55*E55 -> 0 | H55: 0 | I55: 0 | J55: 0 | K55: =(E55+G55+H55)*18% -> 0 | L55: =SUM(G55:K55)+E55 -> 0 | O55: =(M55+N55)*18% -> 0 | P55: =O55+N55+M55 -> 0 | Q55: =+R55-O55-K55 -> 0 | R55: =P55+L55 -> 0
A56: 49 | G56: =F56*E56 -> 0 | H56: 0 | I56: 0 | J56: 0 | K56: =(E56+G56+H56)*18% -> 0 | L56: =SUM(G56:K56)+E56 -> 0 | O56: =(M56+N56)*18% -> 0 | P56: =O56+N56+M56 -> 0 | Q56: =+R56-O56-K56 -> 0 | R56: =P56+L56 -> 0
A57: 50 | G57: =F57*E57 -> 0 | H57: 0 | I57: 0 | J57: 0 | K57: =(E57+G57+H57)*18% -> 0 | L57: =SUM(G57:K57)+E57 -> 0 | O57: =(M57+N57)*18% -> 0 | P57: =O57+N57+M57 -> 0 | Q57: =+R57-O57-K57 -> 0 | R57: =P57+L57 -> 0
A58: 51 | G58: =F58*E58 -> 0 | H58: =E58*1% -> 0 | I58: =E58*1% -> 0 | J58: =E58*0.5% -> 0 | K58: =(E58+G58+H58)*18% -> 0 | L58: =SUM(G58:K58)+E58 -> 0 | O58: =(M58+N58)*18% -> 0 | P58: =O58+N58+M58 -> 0 | Q58: =+R58-O58-K58 -> 0 | R58: =P58+L58 -> 0
A59: 52 | G59: 0 | H59: 0 | I59: 0 | J59: 0 | K59: 0 | L59: 0 | O59: 0 | P59: 0 | Q59: 0 | R59: 0
A60: 53 | G60: 0 | H60: 0 | I60: 0 | J60: 0 | K60: 0 | L60: 0 | O60: 0 | P60: 0 | Q60: 0 | R60: 0
A61: 54 | G61: 0 | H61: 0 | I61: 0 | J61: 0 | K61: 0 | L61: 0 | O61: 0 | P61: 0 | Q61: 0 | R61: 0
A62: 55 | G62: 0 | H62: 0 | I62: 0 | J62: 0 | K62: 0 | L62: 0 | O62: 0 | P62: 0 | Q62: 0 | R62: 0
A63: 56 | G63: 0 | H63: 0 | I63: 0 | J63: 0 | K63: 0 | L63: 0 | O63: 0 | P63: 0 | Q63: 0 | R63: 0
A64: 57 | G64: 0 | H64: 0 | I64: 0 | J64: 0 | K64: 0 | L64: 0 | O64: 0 | P64: 0 | Q64: 0 | R64: 0
A65: 58 | G65: 0 | H65: 0 | I65: 0 | J65: 0 | K65: 0 | L65: 0 | O65: 0 | P65: 0 | Q65: 0 | R65: 0
A66: 59 | G66: 0 | H66: 0 | I66: 0 | J66: 0 | K66: 0 | L66: 0 | O66: 0 | P66: 0 | Q66: 0 | R66: 0
A67: 60 | G67: 0 | H67: 0 | I67: 0 | J67: 0 | K67: 0 | L67: 0 | O67: 0 | P67: 0 | Q67: 0 | R67: 0
A68: 61 | G68: 0 | H68: 0 | I68: 0 | J68: 0 | K68: 0 | L68: 0 | O68: 0 | P68: 0 | Q68: 0 | R68: 0
A69: 62 | G69: 0 | H69: 0 | I69: 0 | J69: 0 | K69: 0 | L69: 0 | O69: 0 | P69: 0 | Q69: 0 | R69: 0
A70: 63 | G70: 0 | H70: 0 | I70: 0 | J70: 0 | K70: 0 | L70: 0 | O70: 0 | P70: 0 | Q70: 0 | R70: 0
A71: 64 | G71: 0 | H71: 0 | I71: 0 | J71: 0 | K71: 0 | L71: 0 | O71: 0 | P71: 0 | Q71: 0 | R71: 0
A72: 65 | G72: 0 | H72: 0 | I72: 0 | J72: 0 | K72: 0 | L72: 0 | O72: 0 | P72: 0 | Q72: 0 | R72: 0
A73: 66 | G73: 0 | H73: 0 | I73: 0 | J73: 0 | K73: 0 | L73: 0 | O73: 0 | P73: 0 | Q73: 0 | R73: 0
A74: 67 | G74: 0 | H74: 0 | I74: 0 | J74: 0 | K74: 0 | L74: 0 | O74: 0 | P74: 0 | Q74: 0 | R74: 0
A75: 68 | G75: 0 | H75: 0 | I75: 0 | J75: 0 | K75: 0 | L75: 0 | O75: 0 | P75: 0 | Q75: 0 | R75: 0
A76: 69 | G76: 0 | H76: 0 | I76: 0 | J76: 0 | K76: 0 | L76: 0 | O76: 0 | P76: 0 | Q76: 0 | R76: 0
A77: 70 | G77: 0 | H77: 0 | I77: 0 | J77: 0 | K77: 0 | L77: 0 | O77: 0 | P77: 0 | Q77: 0 | R77: 0
A78: 71 | G78: 0 | H78: 0 | I78: 0 | J78: 0 | K78: 0 | L78: 0 | O78: 0 | P78: 0 | Q78: 0 | R78: 0
A79: 72 | G79: 0 | H79: 0 | I79: 0 | J79: 0 | K79: 0 | L79: 0 | O79: 0 | P79: 0 | Q79: 0 | R79: 0
A80: 73 | G80: 0 | H80: 0 | I80: 0 | J80: 0 | K80: 0 | L80: 0 | O80: 0 | P80: 0 | Q80: 0 | R80: 0
A81: 74 | G81: 0 | H81: 0 | I81: 0 | J81: 0 | K81: 0 | L81: 0 | O81: 0 | P81: 0 | Q81: 0 | R81: 0
A82: 75 | G82: 0 | H82: 0 | I82: 0 | J82: 0 | K82: 0 | L82: 0 | O82: 0 | P82: 0 | Q82: 0 | R82: 0
A83: 76 | G83: 0 | H83: 0 | I83: 0 | J83: 0 | K83: 0 | L83: 0 | O83: 0 | P83: 0 | Q83: 0 | R83: 0
A84: 77 | G84: 0 | H84: 0 | I84: 0 | J84: 0 | K84: 0 | L84: 0 | O84: 0 | P84: 0 | Q84: 0 | R84: 0
A85: 78 | G85: 0 | H85: 0 | I85: 0 | J85: 0 | K85: 0 | L85: 0 | O85: 0 | P85: 0 | Q85: 0 | R85: 0
A86: 79 | G86: 0 | H86: 0 | I86: 0 | J86: 0 | K86: 0 | L86: 0 | O86: 0 | P86: 0 | Q86: 0 | R86: 0
A87: 80 | G87: 0 | H87: 0 | I87: 0 | J87: 0 | K87: 0 | L87: 0 | O87: 0 | P87: 0 | Q87: 0 | R87: 0
A88: 81 | G88: 0 | H88: 0 | I88: 0 | J88: 0 | K88: 0 | L88: 0 | O88: 0 | P88: 0 | Q88: 0 | R88: 0
A89: 82 | G89: 0 | H89: 0 | I89: 0 | J89: 0 | K89: 0 | L89: 0 | O89: 0 | P89: 0 | Q89: 0 | R89: 0
A90: 83 | G90: 0 | H90: 0 | I90: 0 | J90: 0 | K90: 0 | L90: 0 | O90: 0 | P90: 0 | Q90: 0 | R90: 0
A91: 84 | G91: 0 | H91: 0 | I91: 0 | J91: 0 | K91: 0 | L91: 0 | O91: 0 | P91: 0 | Q91: 0 | R91: 0
A92: 85 | G92: 0 | H92: 0 | I92: 0 | J92: 0 | K92: 0 | L92: 0 | O92: 0 | P92: 0 | Q92: 0 | R92: 0
A93: 86 | G93: 0 | H93: 0 | I93: 0 | J93: 0 | K93: 0 | L93: 0 | O93: 0 | P93: 0 | Q93: 0 | R93: 0
A94: 87 | G94: 0 | H94: 0 | I94: 0 | J94: 0 | K94: 0 | L94: 0 | O94: 0 | P94: 0 | Q94: 0 | R94: 0
A95: 88 | G95: 0 | H95: 0 | I95: 0 | J95: 0 | K95: 0 | L95: 0 | O95: 0 | P95: 0 | Q95: 0 | R95: 0
A96: 89 | G96: 0 | H96: 0 | I96: 0 | J96: 0 | K96: 0 | L96: 0 | O96: 0 | P96: 0 | Q96: 0 | R96: 0
A97: 90 | G97: 0 | H97: 0 | I97: 0 | J97: 0 | K97: 0 | L97: 0 | O97: 0 | P97: 0 | Q97: 0 | R97: 0
A98: 91 | G98: 0 | H98: 0 | I98: 0 | J98: 0 | K98: 0 | L98: 0 | O98: 0 | P98: 0 | Q98: 0 | R98: 0
A99: 92 | G99: 0 | H99: 0 | I99: 0 | J99: 0 | K99: 0 | L99: 0 | O99: 0 | P99: 0 | Q99: 0 | R99: 0
A100: 93 | G100: 0 | H100: 0 | I100: 0 | J100: 0 | K100: 0 | L100: 0 | O100: 0 | P100: 0 | Q100: 0 | R100: 0
A101: 94 | G101: 0 | H101: 0 | I101: 0 | J101: 0 | K101: 0 | L101: 0 | O101: 0 | P101: 0 | Q101: 0 | R101: 0
A102: 95 | G102: 0 | H102: 0 | I102: 0 | J102: 0 | K102: 0 | L102: 0 | O102: 0 | P102: 0 | Q102: 0 | R102: 0
A103: 96 | G103: 0 | H103: 0 | I103: 0 | J103: 0 | K103: 0 | L103: 0 | O103: 0 | P103: 0 | Q103: 0 | R103: 0
A104: 97 | G104: 0 | H104: 0 | I104: 0 | J104: 0 | K104: 0 | L104: 0 | O104: 0 | P104: 0 | Q104: 0 | R104: 0
A105: 98 | G105: 0 | H105: 0 | I105: 0 | J105: 0 | K105: 0 | L105: 0 | O105: 0 | P105: 0 | Q105: 0 | R105: 0
A106: 99 | G106: 0 | H106: 0 | I106: 0 | J106: 0 | K106: 0 | L106: 0 | O106: 0 | P106: 0 | Q106: 0 | R106: 0
A107: 100 | G107: 0 | H107: 0 | I107: 0 | J107: 0 | K107: 0 | L107: 0 | O107: 0 | P107: 0 | Q107: 0 | R107: 0
A108: 101 | G108: 0 | H108: 0 | I108: 0 | J108: 0 | K108: 0 | L108: 0 | O108: 0 | P108: 0 | Q108: 0 | R108: 0
A109: 102 | G109: 0 | H109: 0 | I109: 0 | J109: 0 | K109: 0 | L109: 0 | O109: 0 | P109: 0 | Q109: 0 | R109: 0
A110: 103 | G110: 0 | H110: 0 | I110: 0 | J110: 0 | K110: 0 | L110: 0 | O110: 0 | P110: 0 | Q110: 0 | R110: 0
A111: =+A110+1 -> 104 | G111: 0 | H111: 0 | I111: 0 | J111: 0 | K111: 0 | L111: 0 | O111: 0 | P111: 0 | Q111: 0 | R111: 0
A112: 105 | G112: 0 | H112: 0 | I112: 0 | J112: 0 | K112: 0 | L112: 0 | O112: 0 | P112: 0 | Q112: 0 | R112: 0
A113: 106 | G113: 0 | H113: 0 | I113: 0 | J113: 0 | K113: 0 | L113: 0 | O113: 0 | P113: 0 | Q113: 0 | R113: 0
A114: 107 | G114: 0 | H114: 0 | I114: 0 | J114: 0 | K114: 0 | L114: 0 | O114: 0 | P114: 0 | Q114: 0 | R114: 0
A115: 108 | G115: 0 | H115: 0 | I115: 0 | J115: 0 | K115: 0 | L115: 0 | O115: 0 | P115: 0 | Q115: 0 | R115: 0
A116: 109 | G116: 0 | H116: 0 | I116: 0 | J116: 0 | K116: 0 | L116: 0 | O116: 0 | P116: 0 | Q116: 0 | R116: 0
A117: 110 | G117: 0 | H117: 0 | I117: 0 | J117: 0 | K117: 0 | L117: 0 | O117: 0 | P117: 0 | Q117: 0 | R117: 0
A118: 111 | G118: 0 | H118: 0 | I118: 0 | J118: 0 | K118: 0 | L118: 0 | O118: 0 | P118: 0 | Q118: 0 | R118: 0
A119: 112 | G119: 0 | H119: 0 | I119: 0 | J119: 0 | K119: 0 | L119: 0 | O119: 0 | P119: 0 | Q119: 0 | R119: 0
A120: 113 | G120: 0 | H120: 0 | I120: 0 | J120: 0 | K120: 0 | L120: 0 | O120: 0 | P120: 0 | Q120: 0 | R120: 0
A121: 114 | G121: 0 | H121: 0 | I121: 0 | J121: 0 | K121: 0 | L121: 0 | O121: 0 | P121: 0 | Q121: 0 | R121: 0
A122: 115 | G122: =F122*E122 -> 0 | H122: =E122*1% -> 0 | I122: =E122*1% -> 0 | J122: =E122*0.5% -> 0 | K122: =(E122+G122+H122)*18% -> 0 | L122: =SUM(G122:K122)+E122 -> 0 | O122: =(M122+N122)*18% -> 0 | P122: =O122+N122+M122 -> 0 | Q122: =+R122-O122-K122 -> 0 | R122: =P122+L122 -> 0
A123: 116 | G123: 0 | H123: 0 | I123: 0 | J123: 0 | K123: 0 | L123: 0 | O123: 0 | P123: 0 | Q123: 0 | R123: 0
A124: 117 | G124: 0 | H124: 0 | I124: 0 | J124: 0 | K124: 0 | L124: 0 | O124: 0 | P124: 0 | Q124: 0 | R124: 0
A125: 118 | G125: 0 | H125: 0 | I125: 0 | J125: 0 | K125: 0 | L125: 0 | O125: 0 | P125: 0 | Q125: 0 | R125: 0
A126: 119 | G126: 0 | H126: 0 | I126: 0 | J126: 0 | K126: 0 | L126: 0 | O126: 0 | P126: 0 | Q126: 0 | R126: 0
A127: 120 | G127: 0 | H127: 0 | I127: 0 | J127: 0 | K127: 0 | L127: 0 | O127: 0 | P127: 0 | Q127: 0 | R127: 0
A128: 121 | G128: 0 | H128: 0 | I128: 0 | J128: 0 | K128: 0 | L128: 0 | O128: 0 | P128: 0 | Q128: 0 | R128: 0
A129: 122 | G129: 0 | H129: 0 | I129: 0 | J129: 0 | K129: 0 | L129: 0 | O129: 0 | P129: 0 | Q129: 0 | R129: 0
A130: 123 | G130: 0 | H130: 0 | I130: 0 | J130: 0 | K130: 0 | L130: 0 | O130: 0 | P130: 0 | Q130: 0 | R130: 0
A131: 124 | G131: 0 | H131: 0 | I131: 0 | J131: 0 | K131: 0 | L131: 0 | O131: 0 | P131: 0 | Q131: 0 | R131: 0
A132: 125 | G132: 0 | H132: 0 | I132: 0 | J132: 0 | K132: 0 | L132: 0 | O132: 0 | P132: 0 | Q132: 0 | R132: 0
A133: 126 | G133: 0 | H133: 0 | I133: 0 | J133: 0 | K133: 0 | L133: 0 | O133: 0 | P133: 0 | Q133: 0 | R133: 0
A134: 127 | G134: 0 | H134: 0 | I134: 0 | J134: 0 | K134: 0 | L134: 0 | O134: 0 | P134: 0 | Q134: 0 | R134: 0
A135: 128 | G135: 0 | H135: 0 | I135: 0 | J135: 0 | K135: 0 | L135: 0 | O135: 0 | P135: 0 | Q135: 0 | R135: 0
A136: 129 | G136: 0 | H136: 0 | I136: 0 | J136: 0 | K136: 0 | L136: 0 | O136: 0 | P136: 0 | Q136: 0 | R136: 0
A137: 130 | G137: 0 | H137: 0 | I137: 0 | J137: 0 | K137: 0 | L137: 0 | O137: 0 | P137: 0 | Q137: 0 | R137: 0
A138: 131 | G138: 0 | H138: 0 | I138: 0 | J138: 0 | K138: 0 | L138: 0 | O138: 0 | P138: 0 | Q138: 0 | R138: 0
A139: 132 | G139: 0 | H139: 0 | I139: 0 | J139: 0 | K139: 0 | L139: 0 | O139: 0 | P139: 0 | Q139: 0 | R139: 0
A140: 133 | G140: 0 | H140: 0 | I140: 0 | J140: 0 | K140: 0 | L140: 0 | O140: 0 | P140: 0 | Q140: 0 | R140: 0
A141: 134 | G141: 0 | H141: 0 | I141: 0 | J141: 0 | K141: 0 | L141: 0 | O141: 0 | P141: 0 | Q141: 0 | R141: 0
A142: 135 | G142: 0 | H142: 0 | I142: 0 | J142: 0 | K142: 0 | L142: 0 | O142: 0 | P142: 0 | Q142: 0 | R142: 0
A143: 136 | G143: 0 | H143: 0 | I143: 0 | J143: 0 | K143: 0 | L143: 0 | O143: 0 | P143: 0 | Q143: 0 | R143: 0
A144: 137 | G144: 0 | H144: 0 | I144: 0 | J144: 0 | K144: 0 | L144: 0 | O144: 0 | P144: 0 | Q144: 0 | R144: 0
A145: 138 | G145: 0 | H145: 0 | I145: 0 | J145: 0 | K145: 0 | L145: 0 | O145: 0 | P145: 0 | Q145: 0 | R145: 0
A146: 139 | G146: 0 | H146: 0 | I146: 0 | J146: 0 | K146: 0 | L146: 0 | O146: 0 | P146: 0 | Q146: 0 | R146: 0
A147: 140 | G147: 0 | H147: 0 | I147: 0 | J147: 0 | K147: 0 | L147: 0 | O147: 0 | P147: 0 | Q147: 0 | R147: 0
A148: 141 | G148: 0 | H148: 0 | I148: 0 | J148: 0 | K148: 0 | L148: 0 | O148: 0 | P148: 0 | Q148: 0 | R148: 0
A149: 142 | G149: 0 | H149: 0 | I149: 0 | J149: 0 | K149: 0 | L149: 0 | O149: 0 | P149: 0 | Q149: 0 | R149: 0
A150: 143 | G150: 0 | H150: 0 | I150: 0 | J150: 0 | K150: 0 | L150: 0 | O150: 0 | P150: 0 | Q150: 0 | R150: 0
A151: 144 | G151: 0 | H151: 0 | I151: 0 | J151: 0 | K151: 0 | L151: 0 | O151: 0 | P151: 0 | Q151: 0 | R151: 0
A152: 145 | G152: 0 | H152: 0 | I152: 0 | J152: 0 | K152: 0 | L152: 0 | O152: 0 | P152: 0 | Q152: 0 | R152: 0
A153: 146 | G153: 0 | H153: 0 | I153: 0 | J153: 0 | K153: 0 | L153: 0 | O153: 0 | P153: 0 | Q153: 0 | R153: 0
A154: 147 | G154: 0 | H154: 0 | I154: 0 | J154: 0 | K154: 0 | L154: 0 | O154: 0 | P154: 0 | Q154: 0 | R154: 0
A155: 148 | G155: 0 | H155: 0 | I155: 0 | J155: 0 | K155: 0 | L155: 0 | O155: 0 | P155: 0 | Q155: 0 | R155: 0
A156: 149 | G156: 0 | H156: 0 | I156: 0 | J156: 0 | K156: 0 | L156: 0 | O156: 0 | P156: 0 | Q156: 0 | R156: 0
A157: 150 | G157: 0 | H157: 0 | I157: 0 | J157: 0 | K157: 0 | L157: 0 | O157: 0 | P157: 0 | Q157: 0 | R157: 0
A158: 151 | G158: 0 | H158: 0 | I158: 0 | J158: 0 | K158: 0 | L158: 0 | O158: 0 | P158: 0 | Q158: 0 | R158: 0
A159: 152 | G159: 0 | H159: 0 | I159: 0 | J159: 0 | K159: 0 | L159: 0 | O159: 0 | P159: 0 | Q159: 0 | R159: 0
A160: 153 | G160: 0 | H160: 0 | I160: 0 | J160: 0 | K160: 0 | L160: 0 | O160: 0 | P160: 0 | Q160: 0 | R160: 0
A161: 154 | G161: 0 | H161: 0 | I161: 0 | J161: 0 | K161: 0 | L161: 0 | O161: 0 | P161: 0 | Q161: 0 | R161: 0
A162: 155 | G162: 0 | H162: 0 | I162: 0 | J162: 0 | K162: 0 | L162: 0 | O162: 0 | P162: 0 | Q162: 0 | R162: 0
A163: 156 | G163: 0 | H163: 0 | I163: 0 | J163: 0 | K163: 0 | L163: 0 | O163: 0 | P163: 0 | Q163: 0 | R163: 0
A164: 157 | G164: 0 | H164: 0 | I164: 0 | J164: 0 | K164: 0 | L164: 0 | O164: 0 | P164: 0 | Q164: 0 | R164: 0
A165: 158 | G165: 0 | H165: 0 | I165: 0 | J165: 0 | K165: 0 | L165: 0 | O165: 0 | P165: 0 | Q165: 0 | R165: 0
A166: 159 | G166: 0 | H166: 0 | I166: 0 | J166: 0 | K166: 0 | L166: 0 | O166: 0 | P166: 0 | Q166: 0 | R166: 0
A167: 160 | G167: 0 | H167: 0 | I167: 0 | J167: 0 | K167: 0 | L167: 0 | O167: 0 | P167: 0 | Q167: 0 | R167: 0
A168: 161 | G168: 0 | H168: 0 | I168: 0 | J168: 0 | K168: 0 | L168: 0 | O168: 0 | P168: 0 | Q168: 0 | R168: 0
A169: 162 | G169: 0 | H169: 0 | I169: 0 | J169: 0 | K169: 0 | L169: 0 | O169: 0 | P169: 0 | Q169: 0 | R169: 0
A170: 163 | G170: 0 | H170: 0 | I170: 0 | J170: 0 | K170: 0 | L170: 0 | O170: 0 | P170: 0 | Q170: 0 | R170: 0
A171: 164 | G171: 0 | H171: 0 | I171: 0 | J171: 0 | K171: 0 | L171: 0 | O171: 0 | P171: 0 | Q171: 0 | R171: 0
A172: 165 | G172: 0 | H172: 0 | I172: 0 | J172: 0 | K172: 0 | L172: 0 | O172: 0 | P172: 0 | Q172: 0 | R172: 0
A173: 166 | G173: 0 | H173: 0 | I173: 0 | J173: 0 | K173: 0 | L173: 0 | O173: 0 | P173: 0 | Q173: 0 | R173: 0
A174: 167 | G174: 0 | H174: 0 | I174: 0 | J174: 0 | K174: 0 | L174: 0 | O174: 0 | P174: 0 | Q174: 0 | R174: 0
A175: =+A174+1 -> 168 | G175: 0 | H175: 0 | I175: 0 | J175: 0 | K175: 0 | L175: 0 | O175: 0 | P175: 0 | Q175: 0 | R175: 0
A176: 169 | G176: 0 | H176: 0 | I176: 0 | J176: 0 | K176: 0 | L176: 0 | O176: 0 | P176: 0 | Q176: 0 | R176: 0
A177: 170 | G177: 0 | H177: 0 | I177: 0 | J177: 0 | K177: 0 | L177: 0 | O177: 0 | P177: 0 | Q177: 0 | R177: 0
A178: 171 | G178: 0 | H178: 0 | I178: 0 | J178: 0 | K178: 0 | L178: 0 | O178: 0 | P178: 0 | Q178: 0 | R178: 0
A179: 172 | G179: 0 | H179: 0 | I179: 0 | J179: 0 | K179: 0 | L179: 0 | O179: 0 | P179: 0 | Q179: 0 | R179: 0
A180: 173 | G180: 0 | H180: 0 | I180: 0 | J180: 0 | K180: 0 | L180: 0 | O180: 0 | P180: 0 | Q180: 0 | R180: 0
A181: 174 | G181: 0 | H181: 0 | I181: 0 | J181: 0 | K181: 0 | L181: 0 | O181: 0 | P181: 0 | Q181: 0 | R181: 0
A182: 175 | G182: 0 | H182: 0 | I182: 0 | J182: 0 | K182: 0 | L182: 0 | O182: 0 | P182: 0 | Q182: 0 | R182: 0
A183: 176 | G183: 0 | H183: 0 | I183: 0 | J183: 0 | K183: 0 | L183: 0 | O183: 0 | P183: 0 | Q183: 0 | R183: 0
A184: 177 | G184: 0 | H184: 0 | I184: 0 | J184: 0 | K184: 0 | L184: 0 | O184: 0 | P184: 0 | Q184: 0 | R184: 0
A185: 178 | G185: 0 | H185: 0 | I185: 0 | J185: 0 | K185: 0 | L185: 0 | O185: 0 | P185: 0 | Q185: 0 | R185: 0
A186: 179 | G186: =F186*E186 -> 0 | H186: =E186*1% -> 0 | I186: =E186*1% -> 0 | J186: =E186*0.5% -> 0 | K186: =(E186+G186+H186)*18% -> 0 | L186: =SUM(G186:K186)+E186 -> 0 | O186: =(M186+N186)*18% -> 0 | P186: =O186+N186+M186 -> 0 | Q186: =+R186-O186-K186 -> 0 | R186: =P186+L186 -> 0
A187: 180 | G187: 0 | H187: 0 | I187: 0 | J187: 0 | K187: 0 | L187: 0 | O187: 0 | P187: 0 | Q187: 0 | R187: 0
A188: 181 | G188: 0 | H188: 0 | I188: 0 | J188: 0 | K188: 0 | L188: 0 | O188: 0 | P188: 0 | Q188: 0 | R188: 0
A189: 182 | G189: 0 | H189: 0 | I189: 0 | J189: 0 | K189: 0 | L189: 0 | O189: 0 | P189: 0 | Q189: 0 | R189: 0
A190: 183 | G190: 0 | H190: 0 | I190: 0 | J190: 0 | K190: 0 | L190: 0 | O190: 0 | P190: 0 | Q190: 0 | R190: 0
A191: 184 | G191: 0 | H191: 0 | I191: 0 | J191: 0 | K191: 0 | L191: 0 | O191: 0 | P191: 0 | Q191: 0 | R191: 0
A192: 185 | G192: 0 | H192: 0 | I192: 0 | J192: 0 | K192: 0 | L192: 0 | O192: 0 | P192: 0 | Q192: 0 | R192: 0
A193: 186 | G193: 0 | H193: 0 | I193: 0 | J193: 0 | K193: 0 | L193: 0 | O193: 0 | P193: 0 | Q193: 0 | R193: 0
A194: 187 | G194: 0 | H194: 0 | I194: 0 | J194: 0 | K194: 0 | L194: 0 | O194: 0 | P194: 0 | Q194: 0 | R194: 0
A195: 188 | G195: 0 | H195: 0 | I195: 0 | J195: 0 | K195: 0 | L195: 0 | O195: 0 | P195: 0 | Q195: 0 | R195: 0
A196: 189 | G196: 0 | H196: 0 | I196: 0 | J196: 0 | K196: 0 | L196: 0 | O196: 0 | P196: 0 | Q196: 0 | R196: 0
A197: 190 | G197: 0 | H197: 0 | I197: 0 | J197: 0 | K197: 0 | L197: 0 | O197: 0 | P197: 0 | Q197: 0 | R197: 0
A198: 191 | G198: 0 | H198: 0 | I198: 0 | J198: 0 | K198: 0 | L198: 0 | O198: 0 | P198: 0 | Q198: 0 | R198: 0
A199: 192 | G199: 0 | H199: 0 | I199: 0 | J199: 0 | K199: 0 | L199: 0 | O199: 0 | P199: 0 | Q199: 0 | R199: 0
A200: 193 | G200: 0 | H200: 0 | I200: 0 | J200: 0 | K200: 0 | L200: 0 | O200: 0 | P200: 0 | Q200: 0 | R200: 0
A201: 194 | G201: 0 | H201: 0 | I201: 0 | J201: 0 | K201: 0 | L201: 0 | O201: 0 | P201: 0 | Q201: 0 | R201: 0
... 806 more rows

Sheet INVEST Mat & Mob Bureau - 05
D1: ='REFERENCES - 05'!D7 -> 0 | F1: ='REFERENCES - 05'!D9 -> 0
B2: INVESTISSEMENTS PREVUS SUR LA PERIODE DE REALISATION DU PROJET | R2: (En F. Cfa)
A3: N° | B3: Désignation | C3: Quantité | D3: ACHAT A L'ETRANGER (en F. Cfa) | M3: ACHAT EN COTE D'IVOIRE (en F. Cfa) | Q3: Coût total des Investissements
D4: Position tarifaire | E4: Cout CAF | F4: Droit de douane / Droit fiscaux | H4: RSTAT (1%) | I4: PCS (1%) | J4: PCC (0,5%) | K4: TVA sur Droit de Douane | L4: Total Achat à l'étranger | M4: Achats HT | N4: Coûts locaux (Transport, montage,..) | O4: T.V.A | P4: Total Achat en RCI | Q4: Coût total HT | R4: Coût total TTC
F5: Taux | G5: Montant
B7: MAT. & MOBIL. DE BUREAU | C7: =SUM(C8:C1007) -> 0 | E7: =SUM(E8:E1007) -> 0 | G7: =SUM(G8:G1007) -> 0 | H7: =SUM(H8:H1007) -> 0 | I7: 0 | J7: 0 | K7: 0 | L7: 0 | M7: 0 | N7: 0 | O7: 0 | P7: 0 | Q7: 0 | R7: 0
A8: 1 | G8: =F8*E8 -> 0 | H8: =E8*1% -> 0 | I8: =E8*1% -> 0 | J8: =E8*0.5% -> 0 | K8: =(E8+G8+H8)*18% -> 0 | L8: =SUM(G8:K8)+E8 -> 0 | O8: =(M8+N8)*18% -> 0 | P8: =O8+N8+M8 -> 0 | Q8: =+R8-O8-K8 -> 0 | R8: =P8+L8 -> 0
A9: =+A8+1 -> 2 | G9: 0 | H9: =E9*1% -> 0 | I9: =E9*1% -> 0 | J9: =E9*0.5% -> 0 | K9: 0 | L9: 0 | O9: 0 | P9: 0 | Q9: 0 | R9: 0
A10: =+A9+1 -> 3 | G10: 0 | H10: 0 | I10: 0 | J10: 0 | K10: 0 | L10: 0 | O10: 0 | P10: 0 | Q10: 0 | R10: 0
A11: 4 | G11: 0 | H11: 0 | I11: 0 | J11: 0 | K11: 0 | L11: 0 | O11: 0 | P11: 0 | Q11: 0 | R11: 0
A12: 5 | G12: 0 | H12: 0 | I12: 0 | J12: 0 | K12: 0 | L12: 0 | O12: 0 | P12: 0 | Q12: 0 | R12: 0
A13: 6 | G13: 0 | H13: 0 | I13: 0 | J13: 0 | K13: 0 | L13: 0 | O13: 0 | P13: 0 | Q13: 0 | R13: 0
A14: 7 | G14: 0 | H14: 0 | I14: 0 | J14: 0 | K14: 0 | L14: 0 | O14: 0 | P14: 0 | Q14: 0 | R14: 0
A15: 8 | G15: 0 | H15: 0 | I15: 0 | J15: 0 | K15: 0 | L15: 0 | O15: 0 | P15: 0 | Q15: 0 | R15: 0
A16: 9 | G16: 0 | H16: 0 | I16: 0 | J16: 0 | K16: 0 | L16: 0 | O16: 0 | P16: 0 | Q16: 0 | R16: 0
A17: 10 | G17: 0 | H17: 0 | I17: 0 | J17: 0 | K17: 0 | L17: 0 | O17: 0 | P17: 0 | Q17: 0 | R17: 0
A18: 11 | G18: 0 | H18: 0 | I18: 0 | J18: 0 | K18: 0 | L18: 0 | O18: 0 | P18: 0 | Q18: 0 | R18: 0
A19: 12 | G19: 0 | H19: 0 | I19: 0 | J19: 0 | K19: 0 | L19: 0 | O19: 0 | P19: 0 | Q19: 0 | R19: 0
A20: 13 | G20: 0 | H20: 0 | I20: 0 | J20: 0 | K20: 0 | L20: 0 | O20: 0 | P20: 0 | Q20: 0 | R20: 0
A21: 14 | G21: 0 | H21: 0 | I21: 0 | J21: 0 | K21: 0 | L21: 0 | O21: 0 | P21: 0 | Q21: 0 | R21: 0
A22: 15 | G22: 0 | H22: 0 | I22: 0 | J22: 0 | K22: 0 | L22: 0 | O22: 0 | P22: 0 | Q22: 0 | R22: 0
A23: 16 | G23: 0 | H23: 0 | I23: 0 | J23: 0 | K23: 0 | L23: 0 | O23: 0 | P23: 0 | Q23: 0 | R23: 0
A24: 17 | G24: 0 | H24: 0 | I24: 0 | J24: 0 | K24: 0 | L24: 0 | O24: 0 | P24: 0 | Q24: 0 | R24: 0
A25: 18 | G25: 0 | H25: 0 | I25: 0 | J25: 0 | K25: 0 | L25: 0 | O25: 0 | P25: 0 | Q25: 0 | R25: 0
A26: 19 | G26: 0 | H26: 0 | I26: 0 | J26: 0 | K26: 0 | L26: 0 | O26: 0 | P26: 0 | Q26: 0 | R26: 0
A27: 20 | G27: 0 | H27: 0 | I27: 0 | J27: 0 | K27: 0 | L27: 0 | O27: 0 | P27: 0 | Q27: 0 | R27: 0
A28: 21 | G28: 0 | H28: 0 | I28: 0 | J28: 0 | K28: 0 | L28: 0 | O28: 0 | P28: 0 | Q28: 0 | R28: 0
A29: 22 | G29: 0 | H29: 0 | I29: 0 | J29: 0 | K29: 0 | L29: 0 | O29: 0 | P29: 0 | Q29: 0 | R29: 0
A30: 23 | G30: 0 | H30: 0 | I30: 0 | J30: 0 | K30: 0 | L30: 0 | O30: 0 | P30: 0 | Q30: 0 | R30: 0
A31: 24 | G31: 0 | H31: 0 | I31: 0 | J31: 0 | K31: 0 | L31: 0 | O31: 0 | P31: 0 | Q31: 0 | R31: 0
A32: 25 | G32: 0 | H32: 0 | I32: 0 | J32: 0 | K32: 0 | L32: 0 | O32: 0 | P32: 0 | Q32: 0 | R32: 0
A33: 26 | G33: 0 | H33: 0 | I33: 0 | J33: 0 | K33: 0 | L33: 0 | O33: 0 | P33: 0 | Q33: 0 | R33: 0
A34: 27 | G34: 0 | H34: 0 | I34: 0 | J34: 0 | K34: 0 | L34: 0 | O34: 0 | P34: 0 | Q34: 0 | R34: 0
A35: 28 | G35: 0 | H35: 0 | I35: 0 | J35: 0 | K35: 0 | L35: 0 | O35: 0 | P35: 0 | Q35: 0 | R35: 0
A36: 29 | G36: 0 | H36: 0 | I36: 0 | J36: 0 | K36: 0 | L36: 0 | O36: 0 | P36: 0 | Q36: 0 | R36: 0
A37: 30 | G37: =F37*E37 -> 0 | H37: 0 | I37: 0 | J37: 0 | K37: =(E37+G37+H37)*18% -> 0 | L37: =SUM(G37:K37)+E37 -> 0 | O37: =(M37+N37)*18% -> 0 | P37: =O37+N37+M37 -> 0 | Q37: =+R37-O37-K37 -> 0 | R37: =P37+L37 -> 0
A38: 31 | G38: 0 | H38: 0 | I38: 0 | J38: 0 | K38: 0 | L38: 0 | O38: 0 | P38: 0 | Q38: 0 | R38: 0
A39: 32 | G39: 0 | H39: 0 | I39: 0 | J39: 0 | K39: 0 | L39: 0 | O39: 0 | P39: 0 | Q39: 0 | R39: 0
A40: 33 | G40: 0 | H40: 0 | I40: 0 | J40: 0 | K40: 0 | L40: 0 | O40: 0 | P40: 0 | Q40: 0 | R40: 0
A41: 34 | G41: 0 | H41: 0 | I41: 0 | J41: 0 | K41: 0 | L41: 0 | O41: 0 | P41: 0 | Q41: 0 | R41: 0
A42: 35 | G42: 0 | H42: 0 | I42: 0 | J42: 0 | K42: 0 | L42: 0 | O42: 0 | P42: 0 | Q42: 0 | R42: 0
A43: 36 | G43: 0 | H43: 0 | I43: 0 | J43: 0 | K43: 0 | L43: 0 | O43: 0 | P43: 0 | Q43: 0 | R43: 0
A44: 37 | G44: 0 | H44: 0 | I44: 0 | J44: 0 | K44: 0 | L44: 0 | O44: 0 | P44: 0 | Q44: 0 | R44: 0
A45: 38 | G45: 0 | H45: 0 | I45: 0 | J45: 0 | K45: 0 | L45: 0 | O45: 0 | P45: 0 | Q45: 0 | R45: 0
A46: 39 | G46: 0 | H46: 0 | I46: 0 | J46: 0 | K46: 0 | L46: 0 | O46: 0 | P46: 0 | Q46: 0 | R46: 0
A47: 40 | G47: 0 | H47: 0 | I47: 0 | J47: 0 | K47: 0 | L47: 0 | O47: 0 | P47: 0 | Q47: 0 | R47: 0
A48: 41 | G48: 0 | H48: 0 | I48: 0 | J48: 0 | K48: 0 | L48: 0 | O48: 0 | P48: 0 | Q48: 0 | R48: 0
A49: 42 | G49: 0 | H49: 0 | I49: 0 | J49: 0 | K49: 0 | L49: 0 | O49: 0 | P49: 0 | Q49: 0 | R49: 0
A50: 43 | G50: 0 | H50: 0 | I50: 0 | J50: 0 | K50: 0 | L50: 0 | O50: 0 | P50: 0 | Q50: 0 | R50: 0
A51: 44 | G51: 0 | H51: 0 | I51: 0 | J51: 0 | K51: 0 | L51: 0 | O51: 0 | P51: 0 | Q51: 0 | R51: 0
A52: 45 | G52: 0 | H52: 0 | I52: 0 | J52: 0 | K52: 0 | L52: 0 | O52: 0 | P52: 0 | Q52: 0 | R52: 0
A53: 46 | G53: 0 | H53: 0 | I53: 0 | J53: 0 | K53: 0 | L53: 0 | O53: 0 | P53: 0 | Q53: 0 | R53: 0
A54: 47 | G54: 0 | H54: 0 | I54: 0 | J54: 0 | K54: 0 | L54: 0 | O54: 0 | P54: 0 | Q54: 0 | R54: 0
A55: 48 | G55: 0 | H55: 0 | I55: 0 | J55: 0 | K55: 0 | L55: 0 | O55: 0 | P55: 0 | Q55: 0 | R55: 0
A56: 49 | G56: 0 | H56: 0 | I56: 0 | J56: 0 | K56: 0 | L56: 0 | O56: 0 | P56: 0 | Q56: 0 | R56: 0
A57: 50 | G57: 0 | H57: 0 | I57: 0 | J57: 0 | K57: 0 | L57: 0 | O57: 0 | P57: 0 | Q57: 0 | R57: 0
A58: 51 | G58: 0 | H58: 0 | I58: 0 | J58: 0 | K58: 0 | L58: 0 | O58: 0 | P58: 0 | Q58: 0 | R58: 0
A59: 52 | G59: 0 | H59: 0 | I59: 0 | J59: 0 | K59: 0 | L59: 0 | O59: 0 | P59: 0 | Q59: 0 | R59: 0
A60: 53 | G60: 0 | H60: 0 | I60: 0 | J60: 0 | K60: 0 | L60: 0 | O60: 0 | P60: 0 | Q60: 0 | R60: 0
A61: 54 | G61: 0 | H61: 0 | I61: 0 | J61: 0 | K61: 0 | L61: 0 | O61: 0 | P61: 0 | Q61: 0 | R61: 0
A62: 55 | G62: 0 | H62: 0 | I62: 0 | J62: 0 | K62: 0 | L62: 0 | O62: 0 | P62: 0 | Q62: 0 | R62: 0
A63: 56 | G63: 0 | H63: 0 | I63: 0 | J63: 0 | K63: 0 | L63: 0 | O63: 0 | P63: 0 | Q63: 0 | R63: 0
A64: 57 | G64: 0 | H64: 0 | I64: 0 | J64: 0 | K64: 0 | L64: 0 | O64: 0 | P64: 0 | Q64: 0 | R64: 0
A65: 58 | G65: 0 | H65: 0 | I65: 0 | J65: 0 | K65: 0 | L65: 0 | O65: 0 | P65: 0 | Q65: 0 | R65: 0
A66: 59 | G66: 0 | H66: 0 | I66: 0 | J66: 0 | K66: 0 | L66: 0 | O66: 0 | P66: 0 | Q66: 0 | R66: 0
A67: 60 | G67: 0 | H67: 0 | I67: 0 | J67: 0 | K67: 0 | L67: 0 | O67: 0 | P67: 0 | Q67: 0 | R67: 0
A68: 61 | G68: 0 | H68: 0 | I68: 0 | J68: 0 | K68: 0 | L68: 0 | O68: 0 | P68: 0 | Q68: 0 | R68: 0
A69: 62 | G69: 0 | H69: 0 | I69: 0 | J69: 0 | K69: 0 | L69: 0 | O69: 0 | P69: 0 | Q69: 0 | R69: 0
A70: 63 | G70: 0 | H70: 0 | I70: 0 | J70: 0 | K70: 0 | L70: 0 | O70: 0 | P70: 0 | Q70: 0 | R70: 0
A71: 64 | G71: 0 | H71: 0 | I71: 0 | J71: 0 | K71: 0 | L71: 0 | O71: 0 | P71: 0 | Q71: 0 | R71: 0
A72: 65 | G72: 0 | H72: 0 | I72: 0 | J72: 0 | K72: 0 | L72: 0 | O72: 0 | P72: 0 | Q72: 0 | R72: 0
A73: 66 | G73: 0 | H73: =E73*1% -> 0 | I73: =E73*1% -> 0 | J73: =E73*0.5% -> 0 | K73: 0 | L73: 0 | O73: 0 | P73: 0 | Q73: 0 | R73: 0
A74: =+A73+1 -> 67 | G74: 0 | H74: 0 | I74: 0 | J74: 0 | K74: 0 | L74: 0 | O74: 0 | P74: 0 | Q74: 0 | R74: 0
A75: 68 | G75: 0 | H75: 0 | I75: 0 | J75: 0 | K75: 0 | L75: 0 | O75: 0 | P75: 0 | Q75: 0 | R75: 0
A76: 69 | G76: 0 | H76: 0 | I76: 0 | J76: 0 | K76: 0 | L76: 0 | O76: 0 | P76: 0 | Q76: 0 | R76: 0
A77: 70 | G77: 0 | H77: 0 | I77: 0 | J77: 0 | K77: 0 | L77: 0 | O77: 0 | P77: 0 | Q77: 0 | R77: 0
A78: 71 | G78: 0 | H78: 0 | I78: 0 | J78: 0 | K78: 0 | L78: 0 | O78: 0 | P78: 0 | Q78: 0 | R78: 0
A79: 72 | G79: 0 | H79: 0 | I79: 0 | J79: 0 | K79: 0 | L79: 0 | O79: 0 | P79: 0 | Q79: 0 | R79: 0
A80: 73 | G80: 0 | H80: 0 | I80: 0 | J80: 0 | K80: 0 | L80: 0 | O80: 0 | P80: 0 | Q80: 0 | R80: 0
A81: 74 | G81: 0 | H81: 0 | I81: 0 | J81: 0 | K81: 0 | L81: 0 | O81: 0 | P81: 0 | Q81: 0 | R81: 0
A82: 75 | G82: 0 | H82: 0 | I82: 0 | J82: 0 | K82: 0 | L82: 0 | O82: 0 | P82: 0 | Q82: 0 | R82: 0
A83: 76 | G83: 0 | H83: 0 | I83: 0 | J83: 0 | K83: 0 | L83: 0 | O83: 0 | P83: 0 | Q83: 0 | R83: 0
A84: 77 | G84: 0 | H84: 0 | I84: 0 | J84: 0 | K84: 0 | L84: 0 | O84: 0 | P84: 0 | Q84: 0 | R84: 0
A85: 78 | G85: 0 | H85: 0 | I85: 0 | J85: 0 | K85: 0 | L85: 0 | O85: 0 | P85: 0 | Q85: 0 | R85: 0
A86: 79 | G86: 0 | H86: 0 | I86: 0 | J86: 0 | K86: 0 | L86: 0 | O86: 0 | P86: 0 | Q86: 0 | R86: 0
A87: 80 | G87: 0 | H87: 0 | I87: 0 | J87: 0 | K87: 0 | L87: 0 | O87: 0 | P87: 0 | Q87: 0 | R87: 0
A88: 81 | G88: 0 | H88: 0 | I88: 0 | J88: 0 | K88: 0 | L88: 0 | O88: 0 | P88: 0 | Q88: 0 | R88: 0
A89: 82 | G89: 0 | H89: 0 | I89: 0 | J89: 0 | K89: 0 | L89: 0 | O89: 0 | P89: 0 | Q89: 0 | R89: 0
A90: 83 | G90: 0 | H90: 0 | I90: 0 | J90: 0 | K90: 0 | L90: 0 | O90: 0 | P90: 0 | Q90: 0 | R90: 0
A91: 84 | G91: 0 | H91: 0 | I91: 0 | J91: 0 | K91: 0 | L91: 0 | O91: 0 | P91: 0 | Q91: 0 | R91: 0
A92: 85 | G92: 0 | H92: 0 | I92: 0 | J92: 0 | K92: 0 | L92: 0 | O92: 0 | P92: 0 | Q92: 0 | R92: 0
A93: 86 | G93: 0 | H93: 0 | I93: 0 | J93: 0 | K93: 0 | L93: 0 | O93: 0 | P93: 0 | Q93: 0 | R93: 0
A94: 87 | G94: 0 | H94: 0 | I94: 0 | J94: 0 | K94: 0 | L94: 0 | O94: 0 | P94: 0 | Q94: 0 | R94: 0
A95: 88 | G95: 0 | H95: 0 | I95: 0 | J95: 0 | K95: 0 | L95: 0 | O95: 0 | P95: 0 | Q95: 0 | R95: 0
A96: 89 | G96: 0 | H96: 0 | I96: 0 | J96: 0 | K96: 0 | L96: 0 | O96: 0 | P96: 0 | Q96: 0 | R96: 0
A97: 90 | G97: 0 | H97: 0 | I97: 0 | J97: 0 | K97: 0 | L97: 0 | O97: 0 | P97: 0 | Q97: 0 | R97: 0
A98: 91 | G98: 0 | H98: 0 | I98: 0 | J98: 0 | K98: 0 | L98: 0 | O98: 0 | P98: 0 | Q98: 0 | R98: 0
A99: 92 | G99: 0 | H99: 0 | I99: 0 | J99: 0 | K99: 0 | L99: 0 | O99: 0 | P99: 0 | Q99: 0 | R99: 0
A100: 93 | G100: 0 | H100: 0 | I100: 0 | J100: 0 | K100: 0 | L100: 0 | O100: 0 | P100: 0 | Q100: 0 | R100: 0
A101: 94 | G101: =F101*E101 -> 0 | H101: 0 | I101: 0 | J101: =E101*0.5% -> 0 | K101: =(E101+G101+H101)*18% -> 0 | L101: =SUM(G101:K101)+E101 -> 0 | O101: =(M101+N101)*18% -> 0 | P101: =O101+N101+M101 -> 0 | Q101: =+R101-O101-K101 -> 0 | R101: =P101+L101 -> 0
A102: 95 | G102: 0 | H102: 0 | I102: 0 | J102: 0 | K102: 0 | L102: 0 | O102: 0 | P102: 0 | Q102: 0 | R102: 0
A103: 96 | G103: 0 | H103: 0 | I103: 0 | J103: 0 | K103: 0 | L103: 0 | O103: 0 | P103: 0 | Q103: 0 | R103: 0
A104: 97 | G104: 0 | H104: 0 | I104: 0 | J104: 0 | K104: 0 | L104: 0 | O104: 0 | P104: 0 | Q104: 0 | R104: 0
A105: 98 | G105: 0 | H105: 0 | I105: 0 | J105: 0 | K105: 0 | L105: 0 | O105: 0 | P105: 0 | Q105: 0 | R105: 0
A106: 99 | G106: 0 | H106: 0 | I106: 0 | J106: 0 | K106: 0 | L106: 0 | O106: 0 | P106: 0 | Q106: 0 | R106: 0
A107: 100 | G107: =F107*E107 -> 0 | H107: 0 | I107: 0 | J107: 0 | K107: =(E107+G107+H107)*18% -> 0 | L107: =SUM(G107:K107)+E107 -> 0 | O107: =(M107+N107)*18% -> 0 | P107: =O107+N107+M107 -> 0 | Q107: =+R107-O107-K107 -> 0 | R107: =P107+L107 -> 0
A108: 101 | G108: =F108*E108 -> 0 | H108: =E108*1% -> 0 | I108: =E108*1% -> 0 | J108: =E108*0.5% -> 0 | K108: =(E108+G108+H108)*18% -> 0 | L108: =SUM(G108:K108)+E108 -> 0 | O108: =(M108+N108)*18% -> 0 | P108: =O108+N108+M108 -> 0 | Q108: =+R108-O108-K108 -> 0 | R108: =P108+L108 -> 0
A109: 102 | G109: 0 | H109: 0 | I109: 0 | J109: 0 | K109: 0 | L109: 0 | O109: 0 | P109: 0 | Q109: 0 | R109: 0
A110: 103 | G110: 0 | H110: 0 | I110: 0 | J110: 0 | K110: 0 | L110: 0 | O110: 0 | P110: 0 | Q110: 0 | R110: 0
A111: 104 | G111: 0 | H111: 0 | I111: 0 | J111: 0 | K111: 0 | L111: 0 | O111: 0 | P111: 0 | Q111: 0 | R111: 0
A112: 105 | G112: 0 | H112: 0 | I112: 0 | J112: 0 | K112: 0 | L112: 0 | O112: 0 | P112: 0 | Q112: 0 | R112: 0
A113: 106 | G113: 0 | H113: 0 | I113: 0 | J113: 0 | K113: 0 | L113: 0 | O113: 0 | P113: 0 | Q113: 0 | R113: 0
A114: 107 | G114: 0 | H114: 0 | I114: 0 | J114: 0 | K114: 0 | L114: 0 | O114: 0 | P114: 0 | Q114: 0 | R114: 0
A115: 108 | G115: 0 | H115: 0 | I115: 0 | J115: 0 | K115: 0 | L115: 0 | O115: 0 | P115: 0 | Q115: 0 | R115: 0
A116: 109 | G116: 0 | H116: 0 | I116: 0 | J116: 0 | K116: 0 | L116: 0 | O116: 0 | P116: 0 | Q116: 0 | R116: 0
A117: 110 | G117: 0 | H117: 0 | I117: 0 | J117: 0 | K117: 0 | L117: 0 | O117: 0 | P117: 0 | Q117: 0 | R117: 0
A118: 111 | G118: 0 | H118: 0 | I118: 0 | J118: 0 | K118: 0 | L118: 0 | O118: 0 | P118: 0 | Q118: 0 | R118: 0
A119: 112 | G119: 0 | H119: 0 | I119: 0 | J119: 0 | K119: 0 | L119: 0 | O119: 0 | P119: 0 | Q119: 0 | R119: 0
A120: 113 | G120: 0 | H120: 0 | I120: 0 | J120: 0 | K120: 0 | L120: 0 | O120: 0 | P120: 0 | Q120: 0 | R120: 0
A121: 114 | G121: 0 | H121: 0 | I121: 0 | J121: 0 | K121: 0 | L121: 0 | O121: 0 | P121: 0 | Q121: 0 | R121: 0
A122: 115 | G122: 0 | H122: 0 | I122: 0 | J122: 0 | K122: 0 | L122: 0 | O122: 0 | P122: 0 | Q122: 0 | R122: 0
A123: 116 | G123: 0 | H123: 0 | I123: 0 | J123: 0 | K123: 0 | L123: 0 | O123: 0 | P123: 0 | Q123: 0 | R123: 0
A124: 117 | G124: 0 | H124: 0 | I124: 0 | J124: 0 | K124: 0 | L124: 0 | O124: 0 | P124: 0 | Q124: 0 | R124: 0
A125: 118 | G125: 0 | H125: 0 | I125: 0 | J125: 0 | K125: 0 | L125: 0 | O125: 0 | P125: 0 | Q125: 0 | R125: 0
A126: 119 | G126: 0 | H126: 0 | I126: 0 | J126: 0 | K126: 0 | L126: 0 | O126: 0 | P126: 0 | Q126: 0 | R126: 0
A127: 120 | G127: 0 | H127: 0 | I127: 0 | J127: 0 | K127: 0 | L127: 0 | O127: 0 | P127: 0 | Q127: 0 | R127: 0
A128: 121 | G128: 0 | H128: 0 | I128: 0 | J128: 0 | K128: 0 | L128: 0 | O128: 0 | P128: 0 | Q128: 0 | R128: 0
A129: 122 | G129: 0 | H129: 0 | I129: 0 | J129: 0 | K129: 0 | L129: 0 | O129: 0 | P129: 0 | Q129: 0 | R129: 0
A130: 123 | G130: 0 | H130: 0 | I130: 0 | J130: 0 | K130: 0 | L130: 0 | O130: 0 | P130: 0 | Q130: 0 | R130: 0
A131: 124 | G131: 0 | H131: 0 | I131: 0 | J131: 0 | K131: 0 | L131: 0 | O131: 0 | P131: 0 | Q131: 0 | R131: 0
A132: 125 | G132: 0 | H132: 0 | I132: 0 | J132: 0 | K132: 0 | L132: 0 | O132: 0 | P132: 0 | Q132: 0 | R132: 0
A133: 126 | G133: 0 | H133: 0 | I133: 0 | J133: 0 | K133: 0 | L133: 0 | O133: 0 | P133: 0 | Q133: 0 | R133: 0
A134: 127 | G134: 0 | H134: 0 | I134: 0 | J134: 0 | K134: 0 | L134: 0 | O134: 0 | P134: 0 | Q134: 0 | R134: 0
A135: 128 | G135: 0 | H135: 0 | I135: 0 | J135: 0 | K135: 0 | L135: 0 | O135: 0 | P135: 0 | Q135: 0 | R135: 0
A136: 129 | G136: 0 | H136: 0 | I136: 0 | J136: 0 | K136: 0 | L136: 0 | O136: 0 | P136: 0 | Q136: 0 | R136: 0
A137: 130 | G137: 0 | H137: 0 | I137: 0 | J137: 0 | K137: 0 | L137: 0 | O137: 0 | P137: 0 | Q137: 0 | R137: 0
A138: =+A137+1 -> 131 | G138: 0 | H138: 0 | I138: 0 | J138: 0 | K138: 0 | L138: 0 | O138: 0 | P138: 0 | Q138: 0 | R138: 0
A139: 132 | G139: 0 | H139: 0 | I139: 0 | J139: 0 | K139: 0 | L139: 0 | O139: 0 | P139: 0 | Q139: 0 | R139: 0
A140: 133 | G140: 0 | H140: 0 | I140: 0 | J140: 0 | K140: 0 | L140: 0 | O140: 0 | P140: 0 | Q140: 0 | R140: 0
A141: 134 | G141: 0 | H141: 0 | I141: 0 | J141: 0 | K141: 0 | L141: 0 | O141: 0 | P141: 0 | Q141: 0 | R141: 0
A142: 135 | G142: 0 | H142: 0 | I142: 0 | J142: 0 | K142: 0 | L142: 0 | O142: 0 | P142: 0 | Q142: 0 | R142: 0
A143: 136 | G143: 0 | H143: 0 | I143: 0 | J143: 0 | K143: 0 | L143: 0 | O143: 0 | P143: 0 | Q143: 0 | R143: 0
A144: 137 | G144: 0 | H144: 0 | I144: 0 | J144: 0 | K144: 0 | L144: 0 | O144: 0 | P144: 0 | Q144: 0 | R144: 0
A145: 138 | G145: 0 | H145: 0 | I145: 0 | J145: 0 | K145: 0 | L145: 0 | O145: 0 | P145: 0 | Q145: 0 | R145: 0
A146: 139 | G146: 0 | H146: 0 | I146: 0 | J146: 0 | K146: 0 | L146: 0 | O146: 0 | P146: 0 | Q146: 0 | R146: 0
A147: 140 | G147: 0 | H147: 0 | I147: 0 | J147: 0 | K147: 0 | L147: 0 | O147: 0 | P147: 0 | Q147: 0 | R147: 0
A148: 141 | G148: 0 | H148: 0 | I148: 0 | J148: 0 | K148: 0 | L148: 0 | O148: 0 | P148: 0 | Q148: 0 | R148: 0
A149: 142 | G149: 0 | H149: 0 | I149: 0 | J149: 0 | K149: 0 | L149: 0 | O149: 0 | P149: 0 | Q149: 0 | R149: 0
A150: 143 | G150: 0 | H150: 0 | I150: 0 | J150: 0 | K150: 0 | L150: 0 | O150: 0 | P150: 0 | Q150: 0 | R150: 0
A151: 144 | G151: 0 | H151: 0 | I151: 0 | J151: 0 | K151: 0 | L151: 0 | O151: 0 | P151: 0 | Q151: 0 | R151: 0
A152: 145 | G152: 0 | H152: 0 | I152: 0 | J152: 0 | K152: 0 | L152: 0 | O152: 0 | P152: 0 | Q152: 0 | R152: 0
A153: 146 | G153: 0 | H153: 0 | I153: 0 | J153: 0 | K153: 0 | L153: 0 | O153: 0 | P153: 0 | Q153: 0 | R153: 0
A154: 147 | G154: 0 | H154: 0 | I154: 0 | J154: 0 | K154: 0 | L154: 0 | O154: 0 | P154: 0 | Q154: 0 | R154: 0
A155: 148 | G155: 0 | H155: 0 | I155: 0 | J155: 0 | K155: 0 | L155: 0 | O155: 0 | P155: 0 | Q155: 0 | R155: 0
A156: 149 | G156: 0 | H156: 0 | I156: 0 | J156: 0 | K156: 0 | L156: 0 | O156: 0 | P156: 0 | Q156: 0 | R156: 0
A157: 150 | G157: 0 | H157: 0 | I157: 0 | J157: 0 | K157: 0 | L157: 0 | O157: 0 | P157: 0 | Q157: 0 | R157: 0
A158: 151 | G158: 0 | H158: 0 | I158: 0 | J158: 0 | K158: 0 | L158: 0 | O158: 0 | P158: 0 | Q158: 0 | R158: 0
A159: 152 | G159: 0 | H159: 0 | I159: 0 | J159: 0 | K159: 0 | L159: 0 | O159: 0 | P159: 0 | Q159: 0 | R159: 0
A160: 153 | G160: 0 | H160: 0 | I160: 0 | J160: 0 | K160: 0 | L160: 0 | O160: 0 | P160: 0 | Q160: 0 | R160: 0
A161: 154 | G161: 0 | H161: 0 | I161: 0 | J161: 0 | K161: 0 | L161: 0 | O161: 0 | P161: 0 | Q161: 0 | R161: 0
A162: 155 | G162: 0 | H162: 0 | I162: 0 | J162: 0 | K162: 0 | L162: 0 | O162: 0 | P162: 0 | Q162: 0 | R162: 0
A163: 156 | G163: 0 | H163: 0 | I163: 0 | J163: 0 | K163: 0 | L163: 0 | O163: 0 | P163: 0 | Q163: 0 | R163: 0
A164: 157 | G164: 0 | H164: 0 | I164: 0 | J164: 0 | K164: 0 | L164: 0 | O164: 0 | P164: 0 | Q164: 0 | R164: 0
A165: 158 | G165: 0 | H165: 0 | I165: 0 | J165: 0 | K165: 0 | L165: 0 | O165: 0 | P165: 0 | Q165: 0 | R165: 0
A166: 159 | G166: 0 | H166: 0 | I166: 0 | J166: 0 | K166: 0 | L166: 0 | O166: 0 | P166: 0 | Q166: 0 | R166: 0
A167: 160 | G167: 0 | H167: 0 | I167: 0 | J167: 0 | K167: 0 | L167: 0 | O167: 0 | P167: 0 | Q167: 0 | R167: 0
A168: 161 | G168: 0 | H168: 0 | I168: 0 | J168: 0 | K168: 0 | L168: 0 | O168: 0 | P168: 0 | Q168: 0 | R168: 0
A169: 162 | G169: 0 | H169: 0 | I169: 0 | J169: 0 | K169: 0 | L169: 0 | O169: 0 | P169: 0 | Q169: 0 | R169: 0
A170: 163 | G170: 0 | H170: 0 | I170: 0 | J170: 0 | K170: 0 | L170: 0 | O170: 0 | P170: 0 | Q170: 0 | R170: 0
A171: 164 | G171: 0 | H171: 0 | I171: 0 | J171: 0 | K171: 0 | L171: 0 | O171: 0 | P171: 0 | Q171: 0 | R171: 0
A172: 165 | G172: =F172*E172 -> 0 | H172: =E172*1% -> 0 | I172: =E172*1% -> 0 | J172: =E172*0.5% -> 0 | K172: =(E172+G172+H172)*18% -> 0 | L172: =SUM(G172:K172)+E172 -> 0 | O172: =(M172+N172)*18% -> 0 | P172: =O172+N172+M172 -> 0 | Q172: =+R172-O172-K172 -> 0 | R172: =P172+L172 -> 0
A173: 166 | G173: 0 | H173: 0 | I173: 0 | J173: 0 | K173: 0 | L173: 0 | O173: 0 | P173: 0 | Q173: 0 | R173: 0
A174: 167 | G174: 0 | H174: 0 | I174: 0 | J174: 0 | K174: 0 | L174: 0 | O174: 0 | P174: 0 | Q174: 0 | R174: 0
A175: 168 | G175: 0 | H175: 0 | I175: 0 | J175: 0 | K175: 0 | L175: 0 | O175: 0 | P175: 0 | Q175: 0 | R175: 0
A176: 169 | G176: 0 | H176: 0 | I176: 0 | J176: 0 | K176: 0 | L176: 0 | O176: 0 | P176: 0 | Q176: 0 | R176: 0
A177: 170 | G177: 0 | H177: 0 | I177: 0 | J177: 0 | K177: 0 | L177: 0 | O177: 0 | P177: 0 | Q177: 0 | R177: 0
A178: 171 | G178: 0 | H178: 0 | I178: 0 | J178: 0 | K178: 0 | L178: 0 | O178: 0 | P178: 0 | Q178: 0 | R178: 0
A179: 172 | G179: 0 | H179: 0 | I179: 0 | J179: 0 | K179: 0 | L179: 0 | O179: 0 | P179: 0 | Q179: 0 | R179: 0
A180: 173 | G180: 0 | H180: 0 | I180: 0 | J180: 0 | K180: 0 | L180: 0 | O180: 0 | P180: 0 | Q180: 0 | R180: 0
A181: 174 | G181: 0 | H181: 0 | I181: 0 | J181: 0 | K181: 0 | L181: 0 | O181: 0 | P181: 0 | Q181: 0 | R181: 0
A182: 175 | G182: 0 | H182: 0 | I182: 0 | J182: 0 | K182: 0 | L182: 0 | O182: 0 | P182: 0 | Q182: 0 | R182: 0
A183: 176 | G183: 0 | H183: 0 | I183: 0 | J183: 0 | K183: 0 | L183: 0 | O183: 0 | P183: 0 | Q183: 0 | R183: 0
A184: 177 | G184: 0 | H184: 0 | I184: 0 | J184: 0 | K184: 0 | L184: 0 | O184: 0 | P184: 0 | Q184: 0 | R184: 0
A185: 178 | G185: 0 | H185: 0 | I185: 0 | J185: 0 | K185: 0 | L185: 0 | O185: 0 | P185: 0 | Q185: 0 | R185: 0
A186: 179 | G186: 0 | H186: 0 | I186: 0 | J186: 0 | K186: 0 | L186: 0 | O186: 0 | P186: 0 | Q186: 0 | R186: 0
A187: 180 | G187: 0 | H187: 0 | I187: 0 | J187: 0 | K187: 0 | L187: 0 | O187: 0 | P187: 0 | Q187: 0 | R187: 0
A188: 181 | G188: 0 | H188: 0 | I188: 0 | J188: 0 | K188: 0 | L188: 0 | O188: 0 | P188: 0 | Q188: 0 | R188: 0
A189: 182 | G189: 0 | H189: 0 | I189: 0 | J189: 0 | K189: 0 | L189: 0 | O189: 0 | P189: 0 | Q189: 0 | R189: 0
A190: 183 | G190: 0 | H190: 0 | I190: 0 | J190: 0 | K190: 0 | L190: 0 | O190: 0 | P190: 0 | Q190: 0 | R190: 0
A191: 184 | G191: 0 | H191: 0 | I191: 0 | J191: 0 | K191: 0 | L191: 0 | O191: 0 | P191: 0 | Q191: 0 | R191: 0
A192: 185 | G192: 0 | H192: 0 | I192: 0 | J192: 0 | K192: 0 | L192: 0 | O192: 0 | P192: 0 | Q192: 0 | R192: 0
A193: 186 | G193: 0 | H193: 0 | I193: 0 | J193: 0 | K193: 0 | L193: 0 | O193: 0 | P193: 0 | Q193: 0 | R193: 0
A194: 187 | G194: 0 | H194: 0 | I194: 0 | J194: 0 | K194: 0 | L194: 0 | O194: 0 | P194: 0 | Q194: 0 | R194: 0
A195: 188 | G195: 0 | H195: 0 | I195: 0 | J195: 0 | K195: 0 | L195: 0 | O195: 0 | P195: 0 | Q195: 0 | R195: 0
A196: 189 | G196: 0 | H196: 0 | I196: 0 | J196: 0 | K196: 0 | L196: 0 | O196: 0 | P196: 0 | Q196: 0 | R196: 0
A197: 190 | G197: 0 | H197: 0 | I197: 0 | J197: 0 | K197: 0 | L197: 0 | O197: 0 | P197: 0 | Q197: 0 | R197: 0
A198: 191 | G198: 0 | H198: 0 | I198: 0 | J198: 0 | K198: 0 | L198: 0 | O198: 0 | P198: 0 | Q198: 0 | R198: 0
A199: 192 | G199: 0 | H199: 0 | I199: 0 | J199: 0 | K199: 0 | L199: 0 | O199: 0 | P199: 0 | Q199: 0 | R199: 0
A200: 193 | G200: 0 | H200: 0 | I200: 0 | J200: 0 | K200: 0 | L200: 0 | O200: 0 | P200: 0 | Q200: 0 | R200: 0
A201: 194 | G201: 0 | H201: 0 | I201: 0 | J201: 0 | K201: 0 | L201: 0 | O201: 0 | P201: 0 | Q201: 0 | R201: 0
... 806 more rows

Sheet INVEST Mat Informatiques - 05
D1: ='REFERENCES - 05'!D7 -> 0 | F1: ='REFERENCES - 05'!D9 -> 0
B2: INVESTISSEMENTS PREVUS SUR LA PERIODE DE REALISATION DU PROJET | R2: (En F. Cfa)
A3: N° | B3: Désignation | C3: Quantité | D3: ACHAT A L'ETRANGER (en F. Cfa) | M3: ACHAT EN COTE D'IVOIRE (en F. Cfa) | Q3: Coût total des Investissements
D4: Position tarifaire | E4: Cout CAF | F4: Droit de douane / Droit fiscaux | H4: RSTAT (1%) | I4: PCS (1%) | J4: PCC (0,5%) | K4: TVA sur Droit de Douane | L4: Total Achat à l'étranger | M4: Achats HT | N4: Coûts locaux (Transport, montage,..) | O4: T.V.A | P4: Total Achat en RCI | Q4: Coût total HT | R4: Coût total TTC
F5: Taux | G5: Montant
B7: MATERIEL INFORMATIQUE | C7: =SUM(C8:C1007) -> 0 | E7: =SUM(E8:E1007) -> 0 | G7: =SUM(G8:G1007) -> 0 | H7: =SUM(H8:H1007) -> 0 | I7: 0 | J7: 0 | K7: 0 | L7: 0 | M7: 0 | N7: 0 | O7: 0 | P7: 0 | Q7: 0 | R7: 0
A8: 1 | G8: =F8*E8 -> 0 | H8: =E8*1% -> 0 | I8: =E8*1% -> 0 | J8: =E8*0.5% -> 0 | K8: =(E8+G8+H8)*18% -> 0 | L8: =SUM(G8:K8)+E8 -> 0 | O8: =(M8+N8)*18% -> 0 | P8: =O8+N8+M8 -> 0 | Q8: =+R8-O8-K8 -> 0 | R8: =P8+L8 -> 0
A9: =+A8+1 -> 2 | G9: =F9*E9 -> 0 | H9: =E9*1% -> 0 | I9: =E9*1% -> 0 | J9: =E9*0.5% -> 0 | K9: =(E9+G9+H9)*18% -> 0 | L9: 0 | O9: =(M9+N9)*18% -> 0 | P9: =O9+N9+M9 -> 0 | Q9: =+R9-O9-K9 -> 0 | R9: =P9+L9 -> 0
A10: =+A9+1 -> 3 | G10: =F10*E10 -> 0 | H10: 0 | I10: 0 | J10: 0 | K10: =(E10+G10+H10)*18% -> 0 | L10: 0 | O10: =(M10+N10)*18% -> 0 | P10: =O10+N10+M10 -> 0 | Q10: =+R10-O10-K10 -> 0 | R10: =P10+L10 -> 0
A11: 4 | G11: 0 | H11: 0 | I11: 0 | J11: 0 | K11: 0 | L11: 0 | O11: 0 | P11: 0 | Q11: 0 | R11: 0
A12: 5 | G12: 0 | H12: 0 | I12: 0 | J12: 0 | K12: 0 | L12: 0 | O12: 0 | P12: 0 | Q12: 0 | R12: 0
A13: 6 | G13: =F13*E13 -> 0 | H13: 0 | I13: 0 | J13: 0 | K13: =(E13+G13+H13)*18% -> 0 | L13: 0 | O13: =(M13+N13)*18% -> 0 | P13: =O13+N13+M13 -> 0 | Q13: =+R13-O13-K13 -> 0 | R13: =P13+L13 -> 0
A14: 7 | G14: 0 | H14: 0 | I14: 0 | J14: 0 | K14: 0 | L14: 0 | O14: 0 | P14: 0 | Q14: 0 | R14: 0
A15: 8 | G15: 0 | H15: 0 | I15: 0 | J15: 0 | K15: 0 | L15: 0 | O15: 0 | P15: 0 | Q15: 0 | R15: 0
A16: 9 | G16: 0 | H16: 0 | I16: 0 | J16: 0 | K16: 0 | L16: 0 | O16: 0 | P16: 0 | Q16: 0 | R16: 0
A17: 10 | G17: 0 | H17: 0 | I17: 0 | J17: 0 | K17: 0 | L17: 0 | O17: 0 | P17: 0 | Q17: 0 | R17: 0
A18: 11 | G18: 0 | H18: 0 | I18: 0 | J18: 0 | K18: 0 | L18: 0 | O18: 0 | P18: 0 | Q18: 0 | R18: 0
A19: 12 | G19: 0 | H19: 0 | I19: 0 | J19: 0 | K19: 0 | L19: 0 | O19: 0 | P19: 0 | Q19: 0 | R19: 0
A20: 13 | G20: 0 | H20: 0 | I20: 0 | J20: 0 | K20: 0 | L20: 0 | O20: 0 | P20: 0 | Q20: 0 | R20: 0
A21: 14 | G21: 0 | H21: 0 | I21: 0 | J21: 0 | K21: 0 | L21: 0 | O21: 0 | P21: 0 | Q21: 0 | R21: 0
A22: 15 | G22: 0 | H22: 0 | I22: 0 | J22: 0 | K22: 0 | L22: 0 | O22: 0 | P22: 0 | Q22: 0 | R22: 0
A23: 16 | G23: 0 | H23: 0 | I23: 0 | J23: 0 | K23: 0 | L23: 0 | O23: 0 | P23: 0 | Q23: 0 | R23: 0
A24: 17 | G24: 0 | H24: 0 | I24: 0 | J24: 0 | K24: 0 | L24: 0 | O24: 0 | P24: 0 | Q24: 0 | R24: 0
A25: 18 | G25: 0 | H25: 0 | I25: 0 | J25: 0 | K25: 0 | L25: 0 | O25: 0 | P25: 0 | Q25: 0 | R25: 0
A26: 19 | G26: 0 | H26: 0 | I26: 0 | J26: 0 | K26: 0 | L26: 0 | O26: 0 | P26: 0 | Q26: 0 | R26: 0
A27: 20 | G27: 0 | H27: 0 | I27: 0 | J27: 0 | K27: 0 | L27: 0 | O27: 0 | P27: 0 | Q27: 0 | R27: 0
A28: 21 | G28: 0 | H28: 0 | I28: 0 | J28: 0 | K28: 0 | L28: 0 | O28: 0 | P28: 0 | Q28: 0 | R28: 0
A29: 22 | G29: 0 | H29: 0 | I29: 0 | J29: 0 | K29: 0 | L29: 0 | O29: 0 | P29: 0 | Q29: 0 | R29: 0
A30: 23 | G30: 0 | H30: 0 | I30: 0 | J30: 0 | K30: 0 | L30: 0 | O30: 0 | P30: 0 | Q30: 0 | R30: 0
A31: 24 | G31: 0 | H31: 0 | I31: 0 | J31: 0 | K31: 0 | L31: 0 | O31: 0 | P31: 0 | Q31: 0 | R31: 0
A32: 25 | G32: 0 | H32: 0 | I32: 0 | J32: 0 | K32: 0 | L32: 0 | O32: 0 | P32: 0 | Q32: 0 | R32: 0
A33: 26 | G33: 0 | H33: 0 | I33: 0 | J33: 0 | K33: 0 | L33: 0 | O33: 0 | P33: 0 | Q33: 0 | R33: 0
A34: 27 | G34: 0 | H34: 0 | I34: 0 | J34: 0 | K34: 0 | L34: 0 | O34: 0 | P34: 0 | Q34: 0 | R34: 0
A35: 28 | G35: 0 | H35: 0 | I35: 0 | J35: 0 | K35: 0 | L35: 0 | O35: 0 | P35: 0 | Q35: 0 | R35: 0
A36: 29 | G36: 0 | H36: 0 | I36: 0 | J36: 0 | K36: 0 | L36: 0 | O36: 0 | P36: 0 | Q36: 0 | R36: 0
A37: 30 | G37: 0 | H37: 0 | I37: 0 | J37: 0 | K37: 0 | L37: 0 | O37: 0 | P37: 0 | Q37: 0 | R37: 0
A38: 31 | G38: 0 | H38: 0 | I38: 0 | J38: 0 | K38: 0 | L38: 0 | O38: 0 | P38: 0 | Q38: 0 | R38: 0
A39: 32 | G39: 0 | H39: 0 | I39: 0 | J39: 0 | K39: 0 | L39: 0 | O39: 0 | P39: 0 | Q39: 0 | R39: 0
A40: 33 | G40: 0 | H40: 0 | I40: 0 | J40: 0 | K40: 0 | L40: 0 | O40: 0 | P40: 0 | Q40: 0 | R40: 0
A41: 34 | G41: 0 | H41: 0 | I41: 0 | J41: 0 | K41: 0 | L41: 0 | O41: 0 | P41: 0 | Q41: 0 | R41: 0
A42: 35 | G42: 0 | H42: 0 | I42: 0 | J42: 0 | K42: 0 | L42: 0 | O42: 0 | P42: 0 | Q42: 0 | R42: 0
A43: 36 | G43: 0 | H43: 0 | I43: 0 | J43: 0 | K43: 0 | L43: 0 | O43: 0 | P43: 0 | Q43: 0 | R43: 0
A44: 37 | G44: 0 | H44: 0 | I44: 0 | J44: 0 | K44: 0 | L44: 0 | O44: 0 | P44: 0 | Q44: 0 | R44: 0
A45: 38 | G45: 0 | H45: 0 | I45: 0 | J45: 0 | K45: 0 | L45: 0 | O45: 0 | P45: 0 | Q45: 0 | R45: 0
A46: 39 | G46: 0 | H46: 0 | I46: 0 | J46: 0 | K46: 0 | L46: 0 | O46: 0 | P46: 0 | Q46: 0 | R46: 0
A47: =+A46+1 -> 40 | G47: =F47*E47 -> 0 | H47: 0 | I47: 0 | J47: 0 | K47: =(E47+G47+H47)*18% -> 0 | L47: 0 | O47: =(M47+N47)*18% -> 0 | P47: =O47+N47+M47 -> 0 | Q47: =+R47-O47-K47 -> 0 | R47: =P47+L47 -> 0
A48: 41 | G48: 0 | H48: 0 | I48: 0 | J48: 0 | K48: 0 | L48: 0 | O48: 0 | P48: 0 | Q48: 0 | R48: 0
A49: 42 | G49: 0 | H49: 0 | I49: 0 | J49: 0 | K49: 0 | L49: 0 | O49: 0 | P49: 0 | Q49: 0 | R49: 0
A50: 43 | G50: 0 | H50: 0 | I50: 0 | J50: 0 | K50: 0 | L50: 0 | O50: 0 | P50: 0 | Q50: 0 | R50: 0
A51: 44 | G51: 0 | H51: 0 | I51: 0 | J51: 0 | K51: 0 | L51: 0 | O51: 0 | P51: 0 | Q51: 0 | R51: 0
A52: 45 | G52: 0 | H52: 0 | I52: 0 | J52: 0 | K52: 0 | L52: 0 | O52: 0 | P52: 0 | Q52: 0 | R52: 0
A53: 46 | G53: 0 | H53: 0 | I53: 0 | J53: 0 | K53: 0 | L53: 0 | O53: 0 | P53: 0 | Q53: 0 | R53: 0
A54: =+A53+1 -> 47 | G54: =F54*E54 -> 0 | H54: 0 | I54: 0 | J54: 0 | K54: =(E54+G54+H54)*18% -> 0 | L54: 0 | O54: =(M54+N54)*18% -> 0 | P54: =O54+N54+M54 -> 0 | Q54: =+R54-O54-K54 -> 0 | R54: =P54+L54 -> 0
A55: =+A54+1 -> 48 | G55: =F55*E55 -> 0 | H55: 0 | I55: 0 | J55: 0 | K55: =(E55+G55+H55)*18% -> 0 | L55: =SUM(G55:K55)+E55 -> 0 | O55: =(M55+N55)*18% -> 0 | P55: =O55+N55+M55 -> 0 | Q55: =+R55-O55-K55 -> 0 | R55: =P55+L55 -> 0
A56: =+A55+1 -> 49 | G56: =F56*E56 -> 0 | H56: 0 | I56: 0 | J56: 0 | K56: =(E56+G56+H56)*18% -> 0 | L56: =SUM(G56:K56)+E56 -> 0 | O56: =(M56+N56)*18% -> 0 | P56: =O56+N56+M56 -> 0 | Q56: =+R56-O56-K56 -> 0 | R56: =P56+L56 -> 0
A57: =+A56+1 -> 50 | G57: =F57*E57 -> 0 | H57: 0 | I57: 0 | J57: 0 | K57: =(E57+G57+H57)*18% -> 0 | L57: =SUM(G57:K57)+E57 -> 0 | O57: =(M57+N57)*18% -> 0 | P57: =O57+N57+M57 -> 0 | Q57: =+R57-O57-K57 -> 0 | R57: =P57+L57 -> 0
A58: =+A57+1 -> 51 | G58: =F58*E58 -> 0 | H58: 0 | I58: 0 | J58: 0 | K58: =(E58+G58+H58)*18% -> 0 | L58: =SUM(G58:K58)+E58 -> 0 | O58: =(M58+N58)*18% -> 0 | P58: =O58+N58+M58 -> 0 | Q58: =+R58-O58-K58 -> 0 | R58: =P58+L58 -> 0
A59: 52 | G59: 0 | H59: =E59*1% -> 0 | I59: =E59*1% -> 0 | J59: =E59*0.5% -> 0 | K59: 0 | L59: 0 | O59: 0 | P59: 0 | Q59: 0 | R59: 0
A60: 53 | G60: 0 | H60: 0 | I60: 0 | J60: 0 | K60: 0 | L60: 0 | O60: 0 | P60: 0 | Q60: 0 | R60: 0
A61: 54 | G61: 0 | H61: 0 | I61: 0 | J61: 0 | K61: 0 | L61: 0 | O61: 0 | P61: 0 | Q61: 0 | R61: 0
A62: 55 | G62: 0 | H62: 0 | I62: 0 | J62: 0 | K62: 0 | L62: 0 | O62: 0 | P62: 0 | Q62: 0 | R62: 0
A63: 56 | G63: 0 | H63: 0 | I63: 0 | J63: 0 | K63: 0 | L63: 0 | O63: 0 | P63: 0 | Q63: 0 | R63: 0
A64: 57 | G64: 0 | H64: 0 | I64: 0 | J64: 0 | K64: 0 | L64: 0 | O64: 0 | P64: 0 | Q64: 0 | R64: 0
A65: 58 | G65: 0 | H65: 0 | I65: 0 | J65: 0 | K65: 0 | L65: 0 | O65: 0 | P65: 0 | Q65: 0 | R65: 0
A66: 59 | G66: 0 | H66: 0 | I66: 0 | J66: 0 | K66: 0 | L66: 0 | O66: 0 | P66: 0 | Q66: 0 | R66: 0
A67: 60 | G67: 0 | H67: 0 | I67: 0 | J67: 0 | K67: 0 | L67: 0 | O67: 0 | P67: 0 | Q67: 0 | R67: 0
A68: 61 | G68: 0 | H68: 0 | I68: 0 | J68: 0 | K68: 0 | L68: 0 | O68: 0 | P68: 0 | Q68: 0 | R68: 0
A69: 62 | G69: 0 | H69: 0 | I69: 0 | J69: 0 | K69: 0 | L69: 0 | O69: 0 | P69: 0 | Q69: 0 | R69: 0
A70: 63 | G70: 0 | H70: 0 | I70: 0 | J70: 0 | K70: 0 | L70: 0 | O70: 0 | P70: 0 | Q70: 0 | R70: 0
A71: 64 | G71: 0 | H71: 0 | I71: 0 | J71: 0 | K71: 0 | L71: 0 | O71: 0 | P71: 0 | Q71: 0 | R71: 0
A72: 65 | G72: 0 | H72: 0 | I72: 0 | J72: 0 | K72: 0 | L72: 0 | O72: 0 | P72: 0 | Q72: 0 | R72: 0
A73: 66 | G73: 0 | H73: 0 | I73: 0 | J73: 0 | K73: 0 | L73: 0 | O73: 0 | P73: 0 | Q73: 0 | R73: 0
A74: 67 | G74: 0 | H74: 0 | I74: 0 | J74: 0 | K74: 0 | L74: 0 | O74: 0 | P74: 0 | Q74: 0 | R74: 0
A75: 68 | G75: 0 | H75: 0 | I75: 0 | J75: 0 | K75: 0 | L75: 0 | O75: 0 | P75: 0 | Q75: 0 | R75: 0
A76: 69 | G76: 0 | H76: 0 | I76: 0 | J76: 0 | K76: 0 | L76: 0 | O76: 0 | P76: 0 | Q76: 0 | R76: 0
A77: 70 | G77: 0 | H77: 0 | I77: 0 | J77: 0 | K77: 0 | L77: 0 | O77: 0 | P77: 0 | Q77: 0 | R77: 0
A78: 71 | G78: 0 | H78: 0 | I78: 0 | J78: 0 | K78: 0 | L78: 0 | O78: 0 | P78: 0 | Q78: 0 | R78: 0
A79: 72 | G79: 0 | H79: 0 | I79: 0 | J79: 0 | K79: 0 | L79: 0 | O79: 0 | P79: 0 | Q79: 0 | R79: 0
A80: 73 | G80: 0 | H80: 0 | I80: 0 | J80: 0 | K80: 0 | L80: 0 | O80: 0 | P80: 0 | Q80: 0 | R80: 0
A81: 74 | G81: 0 | H81: 0 | I81: 0 | J81: 0 | K81: 0 | L81: 0 | O81: 0 | P81: 0 | Q81: 0 | R81: 0
A82: 75 | G82: 0 | H82: 0 | I82: 0 | J82: 0 | K82: 0 | L82: 0 | O82: 0 | P82: 0 | Q82: 0 | R82: 0
A83: 76 | G83: 0 | H83: 0 | I83: 0 | J83: 0 | K83: 0 | L83: 0 | O83: 0 | P83: 0 | Q83: 0 | R83: 0
A84: 77 | G84: 0 | H84: 0 | I84: 0 | J84: 0 | K84: 0 | L84: 0 | O84: 0 | P84: 0 | Q84: 0 | R84: 0
A85: 78 | G85: 0 | H85: 0 | I85: 0 | J85: 0 | K85: 0 | L85: 0 | O85: 0 | P85: 0 | Q85: 0 | R85: 0
A86: 79 | G86: 0 | H86: 0 | I86: 0 | J86: 0 | K86: 0 | L86: 0 | O86: 0 | P86: 0 | Q86: 0 | R86: 0
A87: 80 | G87: 0 | H87: 0 | I87: 0 | J87: 0 | K87: 0 | L87: 0 | O87: 0 | P87: 0 | Q87: 0 | R87: 0
A88: 81 | G88: 0 | H88: 0 | I88: 0 | J88: 0 | K88: 0 | L88: 0 | O88: 0 | P88: 0 | Q88: 0 | R88: 0
A89: 82 | G89: 0 | H89: 0 | I89: 0 | J89: 0 | K89: 0 | L89: 0 | O89: 0 | P89: 0 | Q89: 0 | R89: 0
A90: 83 | G90: 0 | H90: 0 | I90: 0 | J90: 0 | K90: 0 | L90: 0 | O90: 0 | P90: 0 | Q90: 0 | R90: 0
A91: 84 | G91: 0 | H91: 0 | I91: 0 | J91: 0 | K91: 0 | L91: 0 | O91: 0 | P91: 0 | Q91: 0 | R91: 0
A92: 85 | G92: 0 | H92: 0 | I92: 0 | J92: 0 | K92: 0 | L92: 0 | O92: 0 | P92: 0 | Q92: 0 | R92: 0
A93: 86 | G93: 0 | H93: 0 | I93: 0 | J93: 0 | K93: 0 | L93: 0 | O93: 0 | P93: 0 | Q93: 0 | R93: 0
A94: 87 | G94: 0 | H94: 0 | I94: 0 | J94: 0 | K94: 0 | L94: 0 | O94: 0 | P94: 0 | Q94: 0 | R94: 0
A95: 88 | G95: 0 | H95: 0 | I95: 0 | J95: 0 | K95: 0 | L95: 0 | O95: 0 | P95: 0 | Q95: 0 | R95: 0
A96: 89 | G96: 0 | H96: 0 | I96: 0 | J96: 0 | K96: 0 | L96: 0 | O96: 0 | P96: 0 | Q96: 0 | R96: 0
A97: 90 | G97: 0 | H97: 0 | I97: 0 | J97: 0 | K97: 0 | L97: 0 | O97: 0 | P97: 0 | Q97: 0 | R97: 0
A98: 91 | G98: 0 | H98: 0 | I98: 0 | J98: 0 | K98: 0 | L98: 0 | O98: 0 | P98: 0 | Q98: 0 | R98: 0
A99: 92 | G99: 0 | H99: 0 | I99: 0 | J99: 0 | K99: 0 | L99: 0 | O99: 0 | P99: 0 | Q99: 0 | R99: 0
A100: 93 | G100: 0 | H100: 0 | I100: 0 | J100: 0 | K100: 0 | L100: 0 | O100: 0 | P100: 0 | Q100: 0 | R100: 0
A101: 94 | G101: 0 | H101: 0 | I101: 0 | J101: 0 | K101: 0 | L101: 0 | O101: 0 | P101: 0 | Q101: 0 | R101: 0
A102: 95 | G102: 0 | H102: 0 | I102: 0 | J102: 0 | K102: 0 | L102: 0 | O102: 0 | P102: 0 | Q102: 0 | R102: 0
A103: 96 | G103: 0 | H103: 0 | I103: 0 | J103: 0 | K103: 0 | L103: 0 | O103: 0 | P103: 0 | Q103: 0 | R103: 0
A104: 97 | G104: 0 | H104: 0 | I104: 0 | J104: 0 | K104: 0 | L104: 0 | O104: 0 | P104: 0 | Q104: 0 | R104: 0
A105: 98 | G105: 0 | H105: 0 | I105: 0 | J105: 0 | K105: 0 | L105: 0 | O105: 0 | P105: 0 | Q105: 0 | R105: 0
A106: 99 | G106: 0 | H106: 0 | I106: 0 | J106: 0 | K106: 0 | L106: 0 | O106: 0 | P106: 0 | Q106: 0 | R106: 0
A107: 100 | G107: 0 | H107: 0 | I107: 0 | J107: 0 | K107: 0 | L107: 0 | O107: 0 | P107: 0 | Q107: 0 | R107: 0
A108: 101 | G108: 0 | H108: 0 | I108: 0 | J108: 0 | K108: 0 | L108: 0 | O108: 0 | P108: 0 | Q108: 0 | R108: 0
A109: 102 | G109: 0 | H109: 0 | I109: 0 | J109: 0 | K109: 0 | L109: 0 | O109: 0 | P109: 0 | Q109: 0 | R109: 0
A110: 103 | G110: 0 | H110: 0 | I110: 0 | J110: 0 | K110: 0 | L110: 0 | O110: 0 | P110: 0 | Q110: 0 | R110: 0
A111: 104 | G111: 0 | H111: 0 | I111: 0 | J111: 0 | K111: 0 | L111: 0 | O111: 0 | P111: 0 | Q111: 0 | R111: 0
A112: 105 | G112: 0 | H112: 0 | I112: 0 | J112: 0 | K112: 0 | L112: 0 | O112: 0 | P112: 0 | Q112: 0 | R112: 0
A113: 106 | G113: 0 | H113: 0 | I113: 0 | J113: 0 | K113: 0 | L113: 0 | O113: 0 | P113: 0 | Q113: 0 | R113: 0
A114: 107 | G114: 0 | H114: 0 | I114: 0 | J114: 0 | K114: 0 | L114: 0 | O114: 0 | P114: 0 | Q114: 0 | R114: 0
A115: 108 | G115: 0 | H115: 0 | I115: 0 | J115: 0 | K115: 0 | L115: 0 | O115: 0 | P115: 0 | Q115: 0 | R115: 0
A116: 109 | G116: 0 | H116: 0 | I116: 0 | J116: 0 | K116: 0 | L116: 0 | O116: 0 | P116: 0 | Q116: 0 | R116: 0
A117: 110 | G117: 0 | H117: 0 | I117: 0 | J117: 0 | K117: 0 | L117: 0 | O117: 0 | P117: 0 | Q117: 0 | R117: 0
A118: 111 | G118: 0 | H118: 0 | I118: 0 | J118: 0 | K118: 0 | L118: 0 | O118: 0 | P118: 0 | Q118: 0 | R118: 0
A119: 112 | G119: 0 | H119: 0 | I119: 0 | J119: 0 | K119: 0 | L119: 0 | O119: 0 | P119: 0 | Q119: 0 | R119: 0
A120: 113 | G120: 0 | H120: 0 | I120: 0 | J120: 0 | K120: 0 | L120: 0 | O120: 0 | P120: 0 | Q120: 0 | R120: 0
A121: 114 | G121: 0 | H121: 0 | I121: 0 | J121: 0 | K121: 0 | L121: 0 | O121: 0 | P121: 0 | Q121: 0 | R121: 0
A122: =+A121+1 -> 115 | G122: =F122*E122 -> 0 | H122: 0 | I122: 0 | J122: 0 | K122: =(E122+G122+H122)*18% -> 0 | L122: =SUM(G122:K122)+E122 -> 0 | O122: =(M122+N122)*18% -> 0 | P122: =O122+N122+M122 -> 0 | Q122: =+R122-O122-K122 -> 0 | R122: =P122+L122 -> 0
A123: 116 | G123: 0 | H123: =E123*1% -> 0 | I123: =E123*1% -> 0 | J123: =E123*0.5% -> 0 | K123: 0 | L123: 0 | O123: 0 | P123: 0 | Q123: 0 | R123: 0
A124: 117 | G124: 0 | H124: 0 | I124: 0 | J124: 0 | K124: 0 | L124: 0 | O124: 0 | P124: 0 | Q124: 0 | R124: 0
A125: 118 | G125: 0 | H125: 0 | I125: 0 | J125: 0 | K125: 0 | L125: 0 | O125: 0 | P125: 0 | Q125: 0 | R125: 0
A126: 119 | G126: 0 | H126: 0 | I126: 0 | J126: 0 | K126: 0 | L126: 0 | O126: 0 | P126: 0 | Q126: 0 | R126: 0
A127: 120 | G127: 0 | H127: 0 | I127: 0 | J127: 0 | K127: 0 | L127: 0 | O127: 0 | P127: 0 | Q127: 0 | R127: 0
A128: 121 | G128: 0 | H128: 0 | I128: 0 | J128: 0 | K128: 0 | L128: 0 | O128: 0 | P128: 0 | Q128: 0 | R128: 0
A129: 122 | G129: 0 | H129: 0 | I129: 0 | J129: 0 | K129: 0 | L129: 0 | O129: 0 | P129: 0 | Q129: 0 | R129: 0
A130: 123 | G130: 0 | H130: 0 | I130: 0 | J130: 0 | K130: 0 | L130: 0 | O130: 0 | P130: 0 | Q130: 0 | R130: 0
A131: 124 | G131: 0 | H131: 0 | I131: 0 | J131: 0 | K131: 0 | L131: 0 | O131: 0 | P131: 0 | Q131: 0 | R131: 0
A132: 125 | G132: 0 | H132: 0 | I132: 0 | J132: 0 | K132: 0 | L132: 0 | O132: 0 | P132: 0 | Q132: 0 | R132: 0
A133: 126 | G133: 0 | H133: 0 | I133: 0 | J133: 0 | K133: 0 | L133: 0 | O133: 0 | P133: 0 | Q133: 0 | R133: 0
A134: 127 | G134: 0 | H134: 0 | I134: 0 | J134: 0 | K134: 0 | L134: 0 | O134: 0 | P134: 0 | Q134: 0 | R134: 0
A135: 128 | G135: 0 | H135: 0 | I135: 0 | J135: 0 | K135: 0 | L135: 0 | O135: 0 | P135: 0 | Q135: 0 | R135: 0
A136: 129 | G136: 0 | H136: 0 | I136: 0 | J136: 0 | K136: 0 | L136: 0 | O136: 0 | P136: 0 | Q136: 0 | R136: 0
A137: 130 | G137: 0 | H137: 0 | I137: 0 | J137: 0 | K137: 0 | L137: 0 | O137: 0 | P137: 0 | Q137: 0 | R137: 0
A138: 131 | G138: 0 | H138: 0 | I138: 0 | J138: 0 | K138: 0 | L138: 0 | O138: 0 | P138: 0 | Q138: 0 | R138: 0
A139: 132 | G139: 0 | H139: 0 | I139: 0 | J139: 0 | K139: 0 | L139: 0 | O139: 0 | P139: 0 | Q139: 0 | R139: 0
A140: 133 | G140: 0 | H140: 0 | I140: 0 | J140: 0 | K140: 0 | L140: 0 | O140: 0 | P140: 0 | Q140: 0 | R140: 0
A141: 134 | G141: 0 | H141: 0 | I141: 0 | J141: 0 | K141: 0 | L141: 0 | O141: 0 | P141: 0 | Q141: 0 | R141: 0
A142: 135 | G142: 0 | H142: 0 | I142: 0 | J142: 0 | K142: 0 | L142: 0 | O142: 0 | P142: 0 | Q142: 0 | R142: 0
A143: 136 | G143: 0 | H143: 0 | I143: 0 | J143: 0 | K143: 0 | L143: 0 | O143: 0 | P143: 0 | Q143: 0 | R143: 0
A144: 137 | G144: 0 | H144: 0 | I144: 0 | J144: 0 | K144: 0 | L144: 0 | O144: 0 | P144: 0 | Q144: 0 | R144: 0
A145: 138 | G145: 0 | H145: 0 | I145: 0 | J145: 0 | K145: 0 | L145: 0 | O145: 0 | P145: 0 | Q145: 0 | R145: 0
A146: 139 | G146: 0 | H146: 0 | I146: 0 | J146: 0 | K146: 0 | L146: 0 | O146: 0 | P146: 0 | Q146: 0 | R146: 0
A147: 140 | G147: 0 | H147: 0 | I147: 0 | J147: 0 | K147: 0 | L147: 0 | O147: 0 | P147: 0 | Q147: 0 | R147: 0
A148: 141 | G148: 0 | H148: 0 | I148: 0 | J148: 0 | K148: 0 | L148: 0 | O148: 0 | P148: 0 | Q148: 0 | R148: 0
A149: 142 | G149: 0 | H149: 0 | I149: 0 | J149: 0 | K149: 0 | L149: 0 | O149: 0 | P149: 0 | Q149: 0 | R149: 0
A150: 143 | G150: 0 | H150: 0 | I150: 0 | J150: 0 | K150: 0 | L150: 0 | O150: 0 | P150: 0 | Q150: 0 | R150: 0
A151: 144 | G151: 0 | H151: 0 | I151: 0 | J151: 0 | K151: 0 | L151: 0 | O151: 0 | P151: 0 | Q151: 0 | R151: 0
A152: 145 | G152: 0 | H152: 0 | I152: 0 | J152: 0 | K152: 0 | L152: 0 | O152: 0 | P152: 0 | Q152: 0 | R152: 0
A153: 146 | G153: 0 | H153: 0 | I153: 0 | J153: 0 | K153: 0 | L153: 0 | O153: 0 | P153: 0 | Q153: 0 | R153: 0
A154: 147 | G154: 0 | H154: 0 | I154: 0 | J154: 0 | K154: 0 | L154: 0 | O154: 0 | P154: 0 | Q154: 0 | R154: 0
A155: 148 | G155: 0 | H155: 0 | I155: 0 | J155: 0 | K155: 0 | L155: 0 | O155: 0 | P155: 0 | Q155: 0 | R155: 0
A156: 149 | G156: 0 | H156: 0 | I156: 0 | J156: 0 | K156: 0 | L156: 0 | O156: 0 | P156: 0 | Q156: 0 | R156: 0
A157: 150 | G157: 0 | H157: 0 | I157: 0 | J157: 0 | K157: 0 | L157: 0 | O157: 0 | P157: 0 | Q157: 0 | R157: 0
A158: 151 | G158: 0 | H158: 0 | I158: 0 | J158: 0 | K158: 0 | L158: 0 | O158: 0 | P158: 0 | Q158: 0 | R158: 0
A159: 152 | G159: 0 | H159: 0 | I159: 0 | J159: 0 | K159: 0 | L159: 0 | O159: 0 | P159: 0 | Q159: 0 | R159: 0
A160: 153 | G160: 0 | H160: 0 | I160: 0 | J160: 0 | K160: 0 | L160: 0 | O160: 0 | P160: 0 | Q160: 0 | R160: 0
A161: 154 | G161: 0 | H161: 0 | I161: 0 | J161: 0 | K161: 0 | L161: 0 | O161: 0 | P161: 0 | Q161: 0 | R161: 0
A162: 155 | G162: 0 | H162: 0 | I162: 0 | J162: 0 | K162: 0 | L162: 0 | O162: 0 | P162: 0 | Q162: 0 | R162: 0
A163: 156 | G163: 0 | H163: 0 | I163: 0 | J163: 0 | K163: 0 | L163: 0 | O163: 0 | P163: 0 | Q163: 0 | R163: 0
A164: 157 | G164: 0 | H164: 0 | I164: 0 | J164: 0 | K164: 0 | L164: 0 | O164: 0 | P164: 0 | Q164: 0 | R164: 0
A165: 158 | G165: 0 | H165: 0 | I165: 0 | J165: 0 | K165: 0 | L165: 0 | O165: 0 | P165: 0 | Q165: 0 | R165: 0
A166: 159 | G166: 0 | H166: 0 | I166: 0 | J166: 0 | K166: 0 | L166: 0 | O166: 0 | P166: 0 | Q166: 0 | R166: 0
A167: 160 | G167: 0 | H167: 0 | I167: 0 | J167: 0 | K167: 0 | L167: 0 | O167: 0 | P167: 0 | Q167: 0 | R167: 0
A168: 161 | G168: 0 | H168: 0 | I168: 0 | J168: 0 | K168: 0 | L168: 0 | O168: 0 | P168: 0 | Q168: 0 | R168: 0
A169: 162 | G169: 0 | H169: 0 | I169: 0 | J169: 0 | K169: 0 | L169: 0 | O169: 0 | P169: 0 | Q169: 0 | R169: 0
A170: 163 | G170: 0 | H170: 0 | I170: 0 | J170: 0 | K170: 0 | L170: 0 | O170: 0 | P170: 0 | Q170: 0 | R170: 0
A171: 164 | G171: 0 | H171: 0 | I171: 0 | J171: 0 | K171: 0 | L171: 0 | O171: 0 | P171: 0 | Q171: 0 | R171: 0
A172: 165 | G172: 0 | H172: 0 | I172: 0 | J172: 0 | K172: 0 | L172: 0 | O172: 0 | P172: 0 | Q172: 0 | R172: 0
A173: 166 | G173: 0 | H173: 0 | I173: 0 | J173: 0 | K173: 0 | L173: 0 | O173: 0 | P173: 0 | Q173: 0 | R173: 0
A174: 167 | G174: 0 | H174: 0 | I174: 0 | J174: 0 | K174: 0 | L174: 0 | O174: 0 | P174: 0 | Q174: 0 | R174: 0
A175: 168 | G175: 0 | H175: 0 | I175: 0 | J175: 0 | K175: 0 | L175: 0 | O175: 0 | P175: 0 | Q175: 0 | R175: 0
A176: 169 | G176: 0 | H176: 0 | I176: 0 | J176: 0 | K176: 0 | L176: 0 | O176: 0 | P176: 0 | Q176: 0 | R176: 0
A177: 170 | G177: 0 | H177: 0 | I177: 0 | J177: 0 | K177: 0 | L177: 0 | O177: 0 | P177: 0 | Q177: 0 | R177: 0
A178: 171 | G178: 0 | H178: 0 | I178: 0 | J178: 0 | K178: 0 | L178: 0 | O178: 0 | P178: 0 | Q178: 0 | R178: 0
A179: 172 | G179: 0 | H179: 0 | I179: 0 | J179: 0 | K179: 0 | L179: 0 | O179: 0 | P179: 0 | Q179: 0 | R179: 0
A180: 173 | G180: 0 | H180: 0 | I180: 0 | J180: 0 | K180: 0 | L180: 0 | O180: 0 | P180: 0 | Q180: 0 | R180: 0
A181: 174 | G181: 0 | H181: 0 | I181: 0 | J181: 0 | K181: 0 | L181: 0 | O181: 0 | P181: 0 | Q181: 0 | R181: 0
A182: 175 | G182: 0 | H182: 0 | I182: 0 | J182: 0 | K182: 0 | L182: 0 | O182: 0 | P182: 0 | Q182: 0 | R182: 0
A183: 176 | G183: 0 | H183: 0 | I183: 0 | J183: 0 | K183: 0 | L183: 0 | O183: 0 | P183: 0 | Q183: 0 | R183: 0
A184: 177 | G184: 0 | H184: 0 | I184: 0 | J184: 0 | K184: 0 | L184: 0 | O184: 0 | P184: 0 | Q184: 0 | R184: 0
A185: 178 | G185: 0 | H185: 0 | I185: 0 | J185: 0 | K185: 0 | L185: 0 | O185: 0 | P185: 0 | Q185: 0 | R185: 0
A186: =+A185+1 -> 179 | G186: =F186*E186 -> 0 | H186: 0 | I186: 0 | J186: 0 | K186: =(E186+G186+H186)*18% -> 0 | L186: =SUM(G186:K186)+E186 -> 0 | O186: =(M186+N186)*18% -> 0 | P186: =O186+N186+M186 -> 0 | Q186: =+R186-O186-K186 -> 0 | R186: =P186+L186 -> 0
A187: 180 | G187: 0 | H187: =E187*1% -> 0 | I187: =E187*1% -> 0 | J187: =E187*0.5% -> 0 | K187: 0 | L187: 0 | O187: 0 | P187: 0 | Q187: 0 | R187: 0
A188: 181 | G188: 0 | H188: 0 | I188: 0 | J188: 0 | K188: 0 | L188: 0 | O188: 0 | P188: 0 | Q188: 0 | R188: 0
A189: 182 | G189: 0 | H189: 0 | I189: 0 | J189: 0 | K189: 0 | L189: 0 | O189: 0 | P189: 0 | Q189: 0 | R189: 0
A190: 183 | G190: 0 | H190: 0 | I190: 0 | J190: 0 | K190: 0 | L190: 0 | O190: 0 | P190: 0 | Q190: 0 | R190: 0
A191: 184 | G191: 0 | H191: 0 | I191: 0 | J191: 0 | K191: 0 | L191: 0 | O191: 0 | P191: 0 | Q191: 0 | R191: 0
A192: 185 | G192: 0 | H192: 0 | I192: 0 | J192: 0 | K192: 0 | L192: 0 | O192: 0 | P192: 0 | Q192: 0 | R192: 0
A193: 186 | G193: 0 | H193: 0 | I193: 0 | J193: 0 | K193: 0 | L193: 0 | O193: 0 | P193: 0 | Q193: 0 | R193: 0
A194: 187 | G194: 0 | H194: 0 | I194: 0 | J194: 0 | K194: 0 | L194: 0 | O194: 0 | P194: 0 | Q194: 0 | R194: 0
A195: 188 | G195: 0 | H195: 0 | I195: 0 | J195: 0 | K195: 0 | L195: 0 | O195: 0 | P195: 0 | Q195: 0 | R195: 0
A196: 189 | G196: 0 | H196: 0 | I196: 0 | J196: 0 | K196: 0 | L196: 0 | O196: 0 | P196: 0 | Q196: 0 | R196: 0
A197: 190 | G197: 0 | H197: 0 | I197: 0 | J197: 0 | K197: 0 | L197: 0 | O197: 0 | P197: 0 | Q197: 0 | R197: 0
A198: 191 | G198: 0 | H198: 0 | I198: 0 | J198: 0 | K198: 0 | L198: 0 | O198: 0 | P198: 0 | Q198: 0 | R198: 0
A199: 192 | G199: 0 | H199: 0 | I199: 0 | J199: 0 | K199: 0 | L199: 0 | O199: 0 | P199: 0 | Q199: 0 | R199: 0
A200: 193 | G200: 0 | H200: 0 | I200: 0 | J200: 0 | K200: 0 | L200: 0 | O200: 0 | P200: 0 | Q200: 0 | R200: 0
A201: 194 | G201: 0 | H201: 0 | I201: 0 | J201: 0 | K201: 0 | L201: 0 | O201: 0 | P201: 0 | Q201: 0 | R201: 0
... 806 more rows

Sheet SYNTHÈSE INVESTISSEMENTS - 05
C1: ='REFERENCES - 05'!D7 -> 0 | E1: ='REFERENCES - 05'!D9 -> 0
B2: SYNTHESE DES INVESTISSEMENTS PREVUS SUR LA PERIODE DE REALISATION DU PROJET
N3: (En F. Cfa)
B5: DESIGNATION | C5: ACHAT A L'ETRANGER (en F. Cfa) | J5: ACHAT EN COTE D'IVOIRE (en F. Cfa) | N5: Coût total TTC | P5: Coût total HTVA
C6: Coût CAF | D6: Droit de douane | E6: RSTAT (1%) | F6: PCS (1%) | G6: PCC (0,5%) | H6: TVA sur Droit de Douane | I6: Total Achat à l'étranger | J6: Coût d'achat Hors Taxe | K6: Coûts locaux (Transport, montage,..) | L6: T.V.A | M6: Total Achat en RCI
B8: Immobilisations Incorporelles
B9: Frais d'établissement | C9: ='INVEST Frais d''établissment -05'!$D$7 -> 0 | D9: ='INVEST Frais d''établissment -05'!$F$7 -> 0 | E9: ='INVEST Frais d''établissment -05'!G7 -> 0 | F9: ='INVEST Frais d''établissment -05'!H7 -> 0 | G9: ='INVEST Frais d''établissment -05'!I7 -> 0 | H9: ='INVEST Frais d''établissment -05'!J7 -> 0 | I9: ='INVEST Frais d''établissment -05'!K7 -> 0 | J9: ='INVEST Frais d''établissment -05'!$L$7 -> 0 | K9: ='INVEST Frais d''établissment -05'!$M$7 -> 0 | L9: ='INVEST Frais d''établissment -05'!$N$7 -> 0 | M9: ='INVEST Frais d''établissment -05'!O7 -> 0 | N9: ='INVEST Frais d''établissment -05'!Q7 -> 0 | P9: =N9-L9-H9 -> 0
B10: Logiciel | C10: ='INVEST Logiciels - 05'!$E$7 -> 0 | D10: ='INVEST Logiciels - 05'!$G$7 -> 0 | E10: ='INVEST Logiciels - 05'!H7 -> 0 | F10: ='INVEST Logiciels - 05'!I7 -> 0 | G10: ='INVEST Logiciels - 05'!J7 -> 0 | H10: ='INVEST Logiciels - 05'!K7 -> 0 | I10: ='INVEST Logiciels - 05'!L7 -> 0 | J10: ='INVEST Logiciels - 05'!$M$7 -> 0 | K10: ='INVEST Logiciels - 05'!$N$7 -> 0 | L10: ='INVEST Logiciels - 05'!$O$7 -> 0 | M10: ='INVEST Logiciels - 05'!P7 -> 0 | N10: ='INVEST Logiciels - 05'!R7 -> 0 | P10: =N10-L10-H10 -> 0
B11: Autres Immobilisations Incorporelles | C11: ='INVEST.Autres Immo Incorpo - 05'!$E$7 -> 0 | D11: ='INVEST.Autres Immo Incorpo - 05'!$G$7 -> 0 | E11: ='INVEST.Autres Immo Incorpo - 05'!H7 -> 0 | F11: ='INVEST.Autres Immo Incorpo - 05'!I7 -> 0 | G11: ='INVEST.Autres Immo Incorpo - 05'!J7 -> 0 | H11: ='INVEST.Autres Immo Incorpo - 05'!K7 -> 0 | I11: ='INVEST.Autres Immo Incorpo - 05'!L7 -> 0 | J11: ='INVEST.Autres Immo Incorpo - 05'!$M$7 -> 0 | K11: ='INVEST.Autres Immo Incorpo - 05'!$N$7 -> 0 | L11: ='INVEST.Autres Immo Incorpo - 05'!$O$7 -> 0 | M11: ='INVEST.Autres Immo Incorpo - 05'!P7 -> 0 | N11: ='INVEST.Autres Immo Incorpo - 05'!R7 -> 0 | P11: =N11-L11-H11 -> 0
B12: Total Immobilisations Incorporelles | C12: =SUM(C9:C11) -> 0 | D12: 0 | E12: 0 | F12: 0 | G12: 0 | H12: 0 | I12: 0 | J12: 0 | K12: 0 | L12: 0 | M12: 0 | N12: 0 | P12: 0
B14: Immobilisations Corporelles
B15: Terrains | C15: ='INVEST Terrains - 05'!$D$7 -> 0 | D15: ='INVEST Terrains - 05'!$F$7 -> 0 | E15: ='INVEST Terrains - 05'!G8 -> 0 | F15: ='INVEST Terrains - 05'!H8 -> 0 | G15: ='INVEST Terrains - 05'!I8 -> 0 | H15: ='INVEST Terrains - 05'!J7 -> 0 | I15: ='INVEST Terrains - 05'!K7 -> 0 | J15: ='INVEST Terrains - 05'!$L$7 -> 0 | K15: ='INVEST Terrains - 05'!$M$7 -> 0 | L15: ='INVEST Terrains - 05'!$N$7 -> 0 | M15: ='INVEST Terrains - 05'!O7 -> 0 | N15: ='INVEST Terrains - 05'!Q7 -> 0 | P15: =N15-L15-H15 -> 0
B16: Constructions & Bâtiments | C16: ='INVEST.Constructions & Bât - 05'!$E$7 -> 0 | D16: ='INVEST.Constructions & Bât - 05'!$G$7 -> 0 | E16: ='INVEST.Constructions & Bât - 05'!$H$7 -> 0 | F16: ='INVEST.Constructions & Bât - 05'!$I$7 -> 0 | G16: ='INVEST.Constructions & Bât - 05'!$J$7 -> 0 | H16: ='INVEST.Constructions & Bât - 05'!K7 -> 0 | I16: ='INVEST.Constructions & Bât - 05'!L7 -> 0 | J16: ='INVEST.Constructions & Bât - 05'!$M$7 -> 0 | K16: ='INVEST.Constructions & Bât - 05'!$N$7 -> 0 | L16: ='INVEST.Constructions & Bât - 05'!$O$7 -> 0 | M16: ='INVEST.Constructions & Bât - 05'!P7 -> 0 | N16: ='INVEST.Constructions & Bât - 05'!R7 -> 0 | P16: 0
B17: Installations, Agencements & Aménagements | C17: ='INVEST - Installations & Agenc '!$E$7 -> 0 | D17: ='INVEST - Installations & Agenc '!$G$7 -> 0 | E17: ='INVEST - Installations & Agenc '!$H$7 -> 0 | F17: ='INVEST - Installations & Agenc '!$I$7 -> 0 | G17: ='INVEST - Installations & Agenc '!$J$7 -> 0 | H17: ='INVEST - Installations & Agenc '!K7 -> 0 | I17: ='INVEST - Installations & Agenc '!L7 -> 0 | J17: ='INVEST - Installations & Agenc '!$M$7 -> 0 | K17: ='INVEST - Installations & Agenc '!$N$7 -> 0 | L17: ='INVEST - Installations & Agenc '!$O$7 -> 0 | M17: ='INVEST - Installations & Agenc '!P7 -> 0 | N17: ='INVEST - Installations & Agenc '!R7 -> 0 | P17: 0
B18: Matériels & Outillages | C18: ='INVEST.Mat & Outillages - 05'!$E$7 -> 0 | D18: ='INVEST.Mat & Outillages - 05'!$G$7 -> 0 | E18: ='INVEST.Mat & Outillages - 05'!$H$7 -> 0 | F18: ='INVEST.Mat & Outillages - 05'!$I$7 -> 0 | G18: ='INVEST.Mat & Outillages - 05'!$J$7 -> 0 | H18: ='INVEST.Mat & Outillages - 05'!K7 -> 0 | I18: ='INVEST.Mat & Outillages - 05'!L7 -> 0 | J18: ='INVEST.Mat & Outillages - 05'!$M$7 -> 0 | K18: ='INVEST.Mat & Outillages - 05'!$N$7 -> 0 | L18: ='INVEST.Mat & Outillages - 05'!$O$7 -> 0 | M18: ='INVEST.Mat & Outillages - 05'!P7 -> 0 | N18: ='INVEST.Mat & Outillages - 05'!R7 -> 0 | P18: 0
B19: Matériels de Transport | C19: ='INVEST.Matériels Transport - 05'!$E$7 -> 0 | D19: ='INVEST.Matériels Transport - 05'!$G$7 -> 0 | E19: ='INVEST.Matériels Transport - 05'!$H$7 -> 0 | F19: ='INVEST.Matériels Transport - 05'!$I$7 -> 0 | G19: ='INVEST.Matériels Transport - 05'!$J$7 -> 0 | H19: ='INVEST.Matériels Transport - 05'!K7 -> 0 | I19: ='INVEST.Matériels Transport - 05'!L7 -> 0 | J19: ='INVEST.Matériels Transport - 05'!$M$7 -> 0 | K19: ='INVEST.Matériels Transport - 05'!$N$7 -> 0 | L19: ='INVEST.Matériels Transport - 05'!$O$7 -> 0 | M19: ='INVEST.Matériels Transport - 05'!P7 -> 0 | N19: ='INVEST.Matériels Transport - 05'!R7 -> 0 | P19: 0
B20: Mobiliers & Matériels de Bureau | C20: ='INVEST Mat & Mob Bureau - 05'!$E$7 -> 0 | D20: ='INVEST Mat & Mob Bureau - 05'!$G$7 -> 0 | E20: ='INVEST Mat & Mob Bureau - 05'!$H$7 -> 0 | F20: ='INVEST Mat & Mob Bureau - 05'!$I$7 -> 0 | G20: ='INVEST Mat & Mob Bureau - 05'!$J$7 -> 0 | H20: ='INVEST Mat & Mob Bureau - 05'!K7 -> 0 | I20: ='INVEST Mat & Mob Bureau - 05'!L7 -> 0 | J20: ='INVEST Mat & Mob Bureau - 05'!$M$7 -> 0 | K20: ='INVEST Mat & Mob Bureau - 05'!$N$7 -> 0 | L20: ='INVEST Mat & Mob Bureau - 05'!$O$7 -> 0 | M20: ='INVEST Mat & Mob Bureau - 05'!P7 -> 0 | N20: ='INVEST Mat & Mob Bureau - 05'!R7 -> 0 | P20: 0
B21: Matériels Informatiques | C21: ='INVEST Mat Informatiques - 05'!$E$7 -> 0 | D21: ='INVEST Mat Informatiques - 05'!$G$7 -> 0 | E21: ='INVEST Mat Informatiques - 05'!$H$7 -> 0 | F21: ='INVEST Mat Informatiques - 05'!$I$7 -> 0 | G21: ='INVEST Mat Informatiques - 05'!$J$7 -> 0 | H21: ='INVEST Mat Informatiques - 05'!K7 -> 0 | I21: ='INVEST Mat Informatiques - 05'!L7 -> 0 | J21: ='INVEST Mat Informatiques - 05'!$M$7 -> 0 | K21: ='INVEST Mat Informatiques - 05'!$N$7 -> 0 | L21: ='INVEST Mat Informatiques - 05'!$O$7 -> 0 | M21: ='INVEST Mat Informatiques - 05'!P7 -> 0 | N21: ='INVEST Mat Informatiques - 05'!R7 -> 0 | P21: 0
B22: Total Immobilisations corporelles | C22: =SUM(C15:C21) -> 0 | D22: 0 | E22: 0 | F22: 0 | G22: 0 | H22: 0 | I22: 0 | J22: 0 | K22: 0 | L22: 0 | M22: 0 | N22: 0 | P22: 0
B23: TOTAL | C23: =C12+C22 -> 0 | D23: =D22+D12 -> 0 | E23: =E12+E22 -> 0 | F23: =F12+F22 -> 0 | G23: =G12+G22 -> 0 | H23: =H12+H22 -> 0 | I23: =I12+I22 -> 0 | J23: =J22+J12 -> 0 | K23: =K22+K12 -> 0 | L23: =L22+L12 -> 0 | M23: =M12+M22 -> 0 | N23: =N12+N22 -> 0 | P23: 0
B25: Montant Hors TVA | N25: =N23-L23-H23 -> 0
B27: Besoins en Fonds de Roulement
B28: (1) La désignation correspond au nom commercial (nom usuel)
B29: (2) Le droit de douane (DD) = CAF x droit d'entrée à l'importation
B30: (3) PCS (1%) RSTAT (1%) PCC (0,5%) = CAF x 2,5%
B31: (4) TVA sur les achats à l'étranger = (CAF+DD+RSTAT) x 18% TVA sur les achats locaux = Achats en Côte d'Ivoire x 18%
B32: (5) Coût total (CT) = CAF+DD+PCS RSTAT PCC+Achats en Côte d'Ivoire+Autres coûts locaux+TVA

Sheet CACHE (hidden)
B1: TABLEAU DES AMORTISSEMENTS | T1: (En Milliers F. Cfa)
B2: IMMOBILISATIONS | C2: VALEUR D'ORIGINE | D2: DUREE DE VIE | E2: TAUX | F2: DOTATIONS AUX AMORTISSEMENTS
F3: ANNEE 1 | G3: ANNEE 2 | H3: ANNEE 3 | I3: ANNEE 4 | J3: ANNEE 5* | K3: ANNEE 6 | L3: ANNEE 7 | M3: ANNEE 8 | N3: ANNEE 9 | O3: ANNEE 10 | P3: ANNEE 11 | Q3: ANNEE 12 | R3: ANNEE 13 | S3: ANNEE 14 | T3: ANNEE 15
B5: FRAIS D'ETABLISSEMENT | F5: =SUM(F6:F23) -> 0 | G5: =SUM(G6:G23) -> 0 | H5: 0 | I5: 0 | J5: 0 | K5: 0 | L5: 0 | M5: 0 | N5: =SUM(N6:N23) -> 0 | O5: 0 | P5: 0 | Q5: 0 | R5: 0 | S5: 0 | T5: 0
A6: 1 | C6: ='TABLEAU DES AMORTISSEMENTS - 05'!C7 -> 0 | D6: ='TABLEAU DES AMORTISSEMENTS - 05'!D7 -> 2 | E6: =IF(D6>0, 1/D6,0) -> 0.5 | F6: =C6*E6 -> 0 | G6: =C6*E6 -> 0 | H6: =C6*E6 -> 0 | I6: =C6*E6 -> 0 | J6: =C6*E6 -> 0 | K6: =C6*E6 -> 0 | L6: =C6*E6 -> 0 | M6: =C6*E6 -> 0 | N6: =C6*E6 -> 0 | O6: =C6*E6 -> 0 | P6: =C6*E6 -> 0 | Q6: =C6*E6 -> 0 | R6: =C6*E6 -> 0 | S6: =C6*E6 -> 0 | T6: =C6*E6 -> 0
A7: =+A6+1 -> 2 | C7: ='TABLEAU DES AMORTISSEMENTS - 05'!C8 -> 0 | D7: ='TABLEAU DES AMORTISSEMENTS - 05'!D8 -> 2 | E7: =IF(D7>0, 1/D7,0) -> 0.5 | F7: =C7*E7 -> 0 | G7: =C7*E7 -> 0 | H7: =C7*E7 -> 0 | I7: =C7*E7 -> 0 | J7: =C7*E7 -> 0 | K7: =C7*E7 -> 0 | L7: =C7*E7 -> 0 | M7: =C7*E7 -> 0 | N7: =C7*E7 -> 0 | O7: =C7*E7 -> 0 | P7: =C7*E7 -> 0 | Q7: =C7*E7 -> 0 | R7: =C7*E7 -> 0 | S7: =C7*E7 -> 0 | T7: =C7*E7 -> 0
A8: =+A7+1 -> 3 | C8: ='TABLEAU DES AMORTISSEMENTS - 05'!C9 -> 0 | D8: ='TABLEAU DES AMORTISSEMENTS - 05'!D9 -> 2 | E8: 0.5 | F8: 0 | G8: 0 | H8: 0 | I8: 0 | J8: 0 | K8: 0 | L8: 0 | M8: 0 | N8: 0 | O8: 0 | P8: 0 | Q8: 0 | R8: 0 | S8: 0 | T8: 0
A9: 4 | C9: ='TABLEAU DES AMORTISSEMENTS - 05'!C10 -> 0 | D9: ='TABLEAU DES AMORTISSEMENTS - 05'!D10 -> 2 | E9: 0.5 | F9: 0 | G9: 0 | H9: 0 | I9: 0 | J9: 0 | K9: 0 | L9: 0 | M9: 0 | N9: 0 | O9: 0 | P9: 0 | Q9: 0 | R9: 0 | S9: 0 | T9: 0
A10: 5 | C10: ='TABLEAU DES AMORTISSEMENTS - 05'!C11 -> 0 | D10: 2 | E10: 0.5 | F10: 0 | G10: 0 | H10: 0 | I10: 0 | J10: 0 | K10: 0 | L10: 0 | M10: 0 | N10: 0 | O10: 0 | P10: 0 | Q10: 0 | R10: 0 | S10: 0 | T10: 0
A11: 6 | C11: ='TABLEAU DES AMORTISSEMENTS - 05'!C12 -> 0 | D11: ='TABLEAU DES AMORTISSEMENTS - 05'!D12 -> 2 | E11: 0.5 | F11: 0 | G11: 0 | H11: 0 | I11: 0 | J11: 0 | K11: 0 | L11: 0 | M11: 0 | N11: 0 | O11: 0 | P11: 0 | Q11: 0 | R11: 0 | S11: 0 | T11: 0
A12: 7 | C12: ='TABLEAU DES AMORTISSEMENTS - 05'!C13 -> 0 | D12: ='TABLEAU DES AMORTISSEMENTS - 05'!D13 -> 2 | E12: 0.5 | F12: 0 | G12: 0 | H12: 0 | I12: 0 | J12: 0 | K12: 0 | L12: 0 | M12: 0 | N12: 0 | O12: 0 | P12: 0 | Q12: 0 | R12: 0 | S12: 0 | T12: 0
A13: 8 | C13: ='TABLEAU DES AMORTISSEMENTS - 05'!C14 -> 0 | D13: ='TABLEAU DES AMORTISSEMENTS - 05'!D14 -> 2 | E13: 0.5 | F13: 0 | G13: 0 | H13: 0 | I13: 0 | J13: 0 | K13: 0 | L13: 0 | M13: 0 | N13: 0 | O13: 0 | P13: 0 | Q13: 0 | R13: 0 | S13: 0 | T13: 0
A14: 9 | C14: ='TABLEAU DES AMORTISSEMENTS - 05'!C15 -> 0 | D14: ='TABLEAU DES AMORTISSEMENTS - 05'!D15 -> 2 | E14: 0.5 | F14: 0 | G14: 0 | H14: 0 | I14: 0 | J14: 0 | K14: 0 | L14: 0 | M14: 0 | N14: 0 | O14: 0 | P14: 0 | Q14: 0 | R14: 0 | S14: 0 | T14: 0
A15: 10 | C15: ='TABLEAU DES AMORTISSEMENTS - 05'!C16 -> 0 | D15: ='TABLEAU DES AMORTISSEMENTS - 05'!D16 -> 2 | E15: 0.5 | F15: 0 | G15: 0 | H15: 0 | I15: 0 | J15: 0 | K15: 0 | L15: 0 | M15: 0 | N15: 0 | O15: 0 | P15: 0 | Q15: 0 | R15: 0 | S15: 0 | T15: 0
A16: 11 | C16: ='TABLEAU DES AMORTISSEMENTS - 05'!C17 -> 0 | D16: ='TABLEAU DES AMORTISSEMENTS - 05'!D17 -> 2 | E16: 0.5 | F16: 0 | G16: 0 | H16: 0 | I16: 0 | J16: 0 | K16: 0 | L16: 0 | M16: 0 | N16: 0 | O16: 0 | P16: 0 | Q16: 0 | R16: 0 | S16: 0 | T16: 0
A17: 12 | C17: ='TABLEAU DES AMORTISSEMENTS - 05'!C18 -> 0 | D17: ='TABLEAU DES AMORTISSEMENTS - 05'!D18 -> 2 | E17: 0.5 | F17: 0 | G17: 0 | H17: 0 | I17: 0 | J17: 0 | K17: 0 | L17: 0 | M17: 0 | N17: 0 | O17: 0 | P17: 0 | Q17: 0 | R17: 0 | S17: 0 | T17: 0
A18: 13 | C18: ='TABLEAU DES AMORTISSEMENTS - 05'!C19 -> 0 | D18: ='TABLEAU DES AMORTISSEMENTS - 05'!D19 -> 2 | E18: 0.5 | F18: 0 | G18: 0 | H18: 0 | I18: 0 | J18: 0 | K18: 0 | L18: 0 | M18: 0 | N18: 0 | O18: 0 | P18: 0 | Q18: 0 | R18: 0 | S18: 0 | T18: 0
A19: 14 | C19: ='TABLEAU DES AMORTISSEMENTS - 05'!C20 -> 0 | D19: ='TABLEAU DES AMORTISSEMENTS - 05'!D20 -> 2 | E19: 0.5 | F19: 0 | G19: 0 | H19: 0 | I19: 0 | J19: 0 | K19: 0 | L19: 0 | M19: 0 | N19: 0 | O19: 0 | P19: 0 | Q19: 0 | R19: 0 | S19: 0 | T19: 0
A20: 15 | C20: ='TABLEAU DES AMORTISSEMENTS - 05'!C21 -> 0 | D20: ='TABLEAU DES AMORTISSEMENTS - 05'!D21 -> 2 | E20: 0.5 | F20: 0 | G20: 0 | H20: 0 | I20: 0 | J20: 0 | K20: 0 | L20: 0 | M20: 0 | N20: 0 | O20: 0 | P20: 0 | Q20: 0 | R20: 0 | S20: 0 | T20: 0
A21: 16 | C21: ='TABLEAU DES AMORTISSEMENTS - 05'!C22 -> 0 | D21: ='TABLEAU DES AMORTISSEMENTS - 05'!D22 -> 2 | E21: 0.5 | F21: 0 | G21: 0 | H21: 0 | I21: 0 | J21: 0 | K21: 0 | L21: 0 | M21: 0 | N21: 0 | O21: 0 | P21: 0 | Q21: 0 | R21: 0 | S21: 0 | T21: 0
A22: 17 | C22: ='TABLEAU DES AMORTISSEMENTS - 05'!C23 -> 0 | D22: ='TABLEAU DES AMORTISSEMENTS - 05'!D23 -> 2 | E22: 0.5 | F22: 0 | G22: 0 | H22: 0 | I22: 0 | J22: 0 | K22: 0 | L22: 0 | M22: 0 | N22: 0 | O22: 0 | P22: 0 | Q22: 0 | R22: 0 | S22: 0 | T22: 0
A23: 18 | C23: ='TABLEAU DES AMORTISSEMENTS - 05'!C24 -> 0 | D23: ='TABLEAU DES AMORTISSEMENTS - 05'!D24 -> 2 | E23: =IF(D23>0, 1/D23,0) -> 0.5 | F23: 0 | G23: 0 | H23: 0 | I23: 0 | J23: 0 | K23: 0 | L23: 0 | M23: 0 | N23: 0 | O23: 0 | P23: 0 | Q23: 0 | R23: 0 | S23: 0 | T23: 0
A24: 19 | C24: ='TABLEAU DES AMORTISSEMENTS - 05'!C25 -> 0 | D24: ='TABLEAU DES AMORTISSEMENTS - 05'!D25 -> 2 | E24: 0.5 | F24: 0 | G24: 0 | H24: 0 | I24: 0 | J24: 0 | K24: 0 | L24: 0 | M24: 0 | N24: 0 | O24: 0 | P24: 0 | Q24: 0 | R24: 0 | S24: 0 | T24: 0
A25: 20 | C25: ='TABLEAU DES AMORTISSEMENTS - 05'!C26 -> 0 | D25: ='TABLEAU DES AMORTISSEMENTS - 05'!D26 -> 2 | E25: 0.5 | F25: 0 | G25: 0 | H25: 0 | I25: 0 | J25: 0 | K25: 0 | L25: 0 | M25: 0 | N25: 0 | O25: 0 | P25: 0 | Q25: 0 | R25: 0 | S25: 0 | T25: 0
A26: 21 | C26: ='TABLEAU DES AMORTISSEMENTS - 05'!C27 -> 0 | D26: ='TABLEAU DES AMORTISSEMENTS - 05'!D27 -> 2 | E26: 0.5 | F26: 0 | G26: 0 | H26: 0 | I26: 0 | J26: 0 | K26: 0 | L26: 0 | M26: 0 | N26: 0 | O26: 0 | P26: 0 | Q26: 0 | R26: 0 | S26: 0 | T26: 0
A27: 22 | C27: ='TABLEAU DES AMORTISSEMENTS - 05'!C28 -> 0 | D27: ='TABLEAU DES AMORTISSEMENTS - 05'!D28 -> 2 | E27: 0.5 | F27: 0 | G27: 0 | H27: 0 | I27: 0 | J27: 0 | K27: 0 | L27: 0 | M27: 0 | N27: 0 | O27: 0 | P27: 0 | Q27: 0 | R27: 0 | S27: 0 | T27: 0
A28: 23 | C28: ='TABLEAU DES AMORTISSEMENTS - 05'!C29 -> 0 | D28: ='TABLEAU DES AMORTISSEMENTS - 05'!D29 -> 2 | E28: 0.5 | F28: 0 | G28: 0 | H28: 0 | I28: 0 | J28: 0 | K28: 0 | L28: 0 | M28: 0 | N28: 0 | O28: 0 | P28: 0 | Q28: 0 | R28: 0 | S28: 0 | T28: 0
A29: 24 | C29: ='TABLEAU DES AMORTISSEMENTS - 05'!C30 -> 0 | D29: ='TABLEAU DES AMORTISSEMENTS - 05'!D30 -> 2 | E29: 0.5 | F29: 0 | G29: 0 | H29: 0 | I29: 0 | J29: 0 | K29: 0 | L29: 0 | M29: 0 | N29: 0 | O29: 0 | P29: 0 | Q29: 0 | R29: 0 | S29: 0 | T29: 0
A30: 25 | C30: ='TABLEAU DES AMORTISSEMENTS - 05'!C31 -> 0 | D30: ='TABLEAU DES AMORTISSEMENTS - 05'!D31 -> 2 | E30: 0.5 | F30: 0 | G30: 0 | H30: 0 | I30: 0 | J30: 0 | K30: 0 | L30: 0 | M30: 0 | N30: 0 | O30: 0 | P30: 0 | Q30: 0 | R30: 0 | S30: 0 | T30: 0
A31: 26 | C31: ='TABLEAU DES AMORTISSEMENTS - 05'!C32 -> 0 | D31: ='TABLEAU DES AMORTISSEMENTS - 05'!D32 -> 2 | E31: 0.5 | F31: 0 | G31: 0 | H31: 0 | I31: 0 | J31: 0 | K31: 0 | L31: 0 | M31: 0 | N31: 0 | O31: 0 | P31: 0 | Q31: 0 | R31: 0 | S31: 0 | T31: 0
A32: 27 | C32: ='TABLEAU DES AMORTISSEMENTS - 05'!C33 -> 0 | D32: ='TABLEAU DES AMORTISSEMENTS - 05'!D33 -> 2 | E32: 0.5 | F32: 0 | G32: 0 | H32: 0 | I32: 0 | J32: 0 | K32: 0 | L32: 0 | M32: 0 | N32: 0 | O32: 0 | P32: 0 | Q32: 0 | R32: 0 | S32: 0 | T32: 0
A33: 28 | C33: ='TABLEAU DES AMORTISSEMENTS - 05'!C34 -> 0 | D33: ='TABLEAU DES AMORTISSEMENTS - 05'!D34 -> 2 | E33: 0.5 | F33: 0 | G33: 0 | H33: 0 | I33: 0 | J33: 0 | K33: 0 | L33: 0 | M33: 0 | N33: 0 | O33: 0 | P33: 0 | Q33: 0 | R33: 0 | S33: 0 | T33: 0
A34: 29 | C34: ='TABLEAU DES AMORTISSEMENTS - 05'!C35 -> 0 | D34: ='TABLEAU DES AMORTISSEMENTS - 05'!D35 -> 2 | E34: =IF(D34>0, 1/D34,0) -> 0.5 | F34: =C34*E34 -> 0 | G34: =C34*E34 -> 0 | H34: =C34*E34 -> 0 | I34: =C34*E34 -> 0 | J34: =C34*E34 -> 0 | K34: =C34*E34 -> 0 | L34: =C34*E34 -> 0 | M34: =C34*E34 -> 0 | N34: =C34*E34 -> 0 | O34: =C34*E34 -> 0 | P34: =C34*E34 -> 0 | Q34: =C34*E34 -> 0 | R34: =C34*E34 -> 0 | S34: =C34*E34 -> 0 | T34: =C34*E34 -> 0
A35: 30 | C35: ='TABLEAU DES AMORTISSEMENTS - 05'!C36 -> 0 | D35: ='TABLEAU DES AMORTISSEMENTS - 05'!D36 -> 2 | E35: 0.5 | F35: 0 | G35: 0 | H35: 0 | I35: 0 | J35: 0 | K35: 0 | L35: 0 | M35: 0 | N35: 0 | O35: 0 | P35: 0 | Q35: 0 | R35: 0 | S35: 0 | T35: 0
A36: 31 | C36: ='TABLEAU DES AMORTISSEMENTS - 05'!C37 -> 0 | D36: ='TABLEAU DES AMORTISSEMENTS - 05'!D37 -> 2 | E36: 0.5 | F36: 0 | G36: 0 | H36: 0 | I36: 0 | J36: 0 | K36: 0 | L36: 0 | M36: 0 | N36: 0 | O36: 0 | P36: 0 | Q36: 0 | R36: 0 | S36: 0 | T36: 0
A37: 32 | C37: ='TABLEAU DES AMORTISSEMENTS - 05'!C38 -> 0 | D37: ='TABLEAU DES AMORTISSEMENTS - 05'!D38 -> 2 | E37: 0.5 | F37: 0 | G37: 0 | H37: 0 | I37: 0 | J37: 0 | K37: 0 | L37: 0 | M37: 0 | N37: 0 | O37: 0 | P37: 0 | Q37: 0 | R37: 0 | S37: 0 | T37: 0
A38: 33 | C38: ='TABLEAU DES AMORTISSEMENTS - 05'!C39 -> 0 | D38: ='TABLEAU DES AMORTISSEMENTS - 05'!D39 -> 2 | E38: 0.5 | F38: 0 | G38: 0 | H38: 0 | I38: 0 | J38: 0 | K38: 0 | L38: 0 | M38: 0 | N38: 0 | O38: 0 | P38: 0 | Q38: 0 | R38: 0 | S38: 0 | T38: 0
A39: 34 | C39: ='TABLEAU DES AMORTISSEMENTS - 05'!C40 -> 0 | D39: ='TABLEAU DES AMORTISSEMENTS - 05'!D40 -> 2 | E39: 0.5 | F39: 0 | G39: 0 | H39: 0 | I39: 0 | J39: 0 | K39: 0 | L39: 0 | M39: 0 | N39: 0 | O39: 0 | P39: 0 | Q39: 0 | R39: 0 | S39: 0 | T39: 0
A40: 35 | C40: ='TABLEAU DES AMORTISSEMENTS - 05'!C41 -> 0 | D40: ='TABLEAU DES AMORTISSEMENTS - 05'!D41 -> 2 | E40: 0.5 | F40: 0 | G40: 0 | H40: 0 | I40: 0 | J40: 0 | K40: 0 | L40: 0 | M40: 0 | N40: 0 | O40: 0 | P40: 0 | Q40: 0 | R40: 0 | S40: 0 | T40: 0
A41: 36 | C41: ='TABLEAU DES AMORTISSEMENTS - 05'!C42 -> 0 | D41: ='TABLEAU DES AMORTISSEMENTS - 05'!D42 -> 2 | E41: 0.5 | F41: 0 | G41: 0 | H41: 0 | I41: 0 | J41: 0 | K41: 0 | L41: 0 | M41: 0 | N41: 0 | O41: 0 | P41: 0 | Q41: 0 | R41: 0 | S41: 0 | T41: 0
A42: 37 | C42: ='TABLEAU DES AMORTISSEMENTS - 05'!C43 -> 0 | D42: ='TABLEAU DES AMORTISSEMENTS - 05'!D43 -> 2 | E42: 0.5 | F42: 0 | G42: 0 | H42: 0 | I42: 0 | J42: 0 | K42: 0 | L42: 0 | M42: 0 | N42: 0 | O42: 0 | P42: 0 | Q42: 0 | R42: 0 | S42: 0 | T42: 0
A43: 38 | C43: ='TABLEAU DES AMORTISSEMENTS - 05'!C44 -> 0 | D43: ='TABLEAU DES AMORTISSEMENTS - 05'!D44 -> 2 | E43: 0.5 | F43: 0 | G43: 0 | H43: 0 | I43: 0 | J43: 0 | K43: 0 | L43: 0 | M43: 0 | N43: 0 | O43: 0 | P43: 0 | Q43: 0 | R43: 0 | S43: 0 | T43: 0
A44: 39 | C44: ='TABLEAU DES AMORTISSEMENTS - 05'!C45 -> 0 | D44: ='TABLEAU DES AMORTISSEMENTS - 05'!D45 -> 2 | E44: 0.5 | F44: 0 | G44: 0 | H44: 0 | I44: 0 | J44: 0 | K44: 0 | L44: 0 | M44: 0 | N44: 0 | O44: 0 | P44: 0 | Q44: 0 | R44: 0 | S44: 0 | T44: 0
A45: 40 | C45: ='TABLEAU DES AMORTISSEMENTS - 05'!C46 -> 0 | D45: ='TABLEAU DES AMORTISSEMENTS - 05'!D46 -> 2 | E45: 0.5 | F45: 0 | G45: 0 | H45: 0 | I45: 0 | J45: 0 | K45: 0 | L45: 0 | M45: 0 | N45: 0 | O45: 0 | P45: 0 | Q45: 0 | R45: 0 | S45: 0 | T45: 0
A46: 41 | C46: ='TABLEAU DES AMORTISSEMENTS - 05'!C47 -> 0 | D46: ='TABLEAU DES AMORTISSEMENTS - 05'!D47 -> 2 | E46: 0.5 | F46: 0 | G46: 0 | H46: 0 | I46: 0 | J46: 0 | K46: 0 | L46: 0 | M46: 0 | N46: 0 | O46: 0 | P46: 0 | Q46: 0 | R46: 0 | S46: 0 | T46: 0
A47: 42 | C47: ='TABLEAU DES AMORTISSEMENTS - 05'!C48 -> 0 | D47: ='TABLEAU DES AMORTISSEMENTS - 05'!D48 -> 2 | E47: 0.5 | F47: 0 | G47: 0 | H47: 0 | I47: 0 | J47: 0 | K47: 0 | L47: 0 | M47: 0 | N47: 0 | O47: 0 | P47: 0 | Q47: 0 | R47: 0 | S47: 0 | T47: 0
A48: 43 | C48: ='TABLEAU DES AMORTISSEMENTS - 05'!C49 -> 0 | D48: ='TABLEAU DES AMORTISSEMENTS - 05'!D49 -> 2 | E48: 0.5 | F48: 0 | G48: 0 | H48: 0 | I48: 0 | J48: 0 | K48: 0 | L48: 0 | M48: 0 | N48: 0 | O48: 0 | P48: 0 | Q48: 0 | R48: 0 | S48: 0 | T48: 0
A49: 44 | C49: ='TABLEAU DES AMORTISSEMENTS - 05'!C50 -> 0 | D49: ='TABLEAU DES AMORTISSEMENTS - 05'!D50 -> 2 | E49: 0.5 | F49: 0 | G49: 0 | H49: 0 | I49: 0 | J49: 0 | K49: 0 | L49: 0 | M49: 0 | N49: 0 | O49: 0 | P49: 0 | Q49: 0 | R49: 0 | S49: 0 | T49: 0
A50: 45 | C50: ='TABLEAU DES AMORTISSEMENTS - 05'!C51 -> 0 | D50: ='TABLEAU DES AMORTISSEMENTS - 05'!D51 -> 2 | E50: 0.5 | F50: 0 | G50: 0 | H50: 0 | I50: 0 | J50: 0 | K50: 0 | L50: 0 | M50: 0 | N50: 0 | O50: 0 | P50: 0 | Q50: 0 | R50: 0 | S50: 0 | T50: 0
A51: 46 | C51: ='TABLEAU DES AMORTISSEMENTS - 05'!C52 -> 0 | D51: ='TABLEAU DES AMORTISSEMENTS - 05'!D52 -> 2 | E51: 0.5 | F51: 0 | G51: 0 | H51: 0 | I51: 0 | J51: 0 | K51: 0 | L51: 0 | M51: 0 | N51: 0 | O51: 0 | P51: 0 | Q51: 0 | R51: 0 | S51: 0 | T51: 0
A52: 47 | C52: ='TABLEAU DES AMORTISSEMENTS - 05'!C53 -> 0 | D52: ='TABLEAU DES AMORTISSEMENTS - 05'!D53 -> 2 | E52: 0.5 | F52: 0 | G52: 0 | H52: 0 | I52: 0 | J52: 0 | K52: 0 | L52: 0 | M52: 0 | N52: 0 | O52: 0 | P52: 0 | Q52: 0 | R52: 0 | S52: 0 | T52: 0
A53: 48 | C53: ='TABLEAU DES AMORTISSEMENTS - 05'!C54 -> 0 | D53: ='TABLEAU DES AMORTISSEMENTS - 05'!D54 -> 2 | E53: 0.5 | F53: 0 | G53: 0 | H53: 0 | I53: 0 | J53: 0 | K53: 0 | L53: 0 | M53: 0 | N53: 0 | O53: 0 | P53: 0 | Q53: 0 | R53: 0 | S53: 0 | T53: 0
B54: LOGICIEL | F54: =SUM(F55:F72) -> 0 | G54: =SUM(G55:G72) -> 0 | H54: 0 | I54: 0 | J54: 0 | K54: 0 | L54: 0 | M54: 0 | N54: =SUM(N55:N72) -> 0 | O54: 0 | P54: 0 | Q54: 0 | R54: 0 | S54: 0 | T54: 0
A55: 1 | C55: ='TABLEAU DES AMORTISSEMENTS - 05'!C59 -> 0 | D55: ='TABLEAU DES AMORTISSEMENTS - 05'!D59 -> 3 | E55: 0.3333333333 | F55: =C55*E55 -> 0 | G55: =C55*E55 -> 0 | H55: =C55*E55 -> 0 | I55: =C55*E55 -> 0 | J55: =C55*E55 -> 0 | K55: =C55*E55 -> 0 | L55: =C55*E55 -> 0 | M55: =C55*E55 -> 0 | N55: =C55*E55 -> 0 | O55: =C55*E55 -> 0 | P55: =C55*E55 -> 0 | Q55: =C55*E55 -> 0 | R55: =C55*E55 -> 0 | S55: =C55*E55 -> 0 | T55: =C55*E55 -> 0
A56: =+A55+1 -> 2 | C56: ='TABLEAU DES AMORTISSEMENTS - 05'!C60 -> 0 | D56: ='TABLEAU DES AMORTISSEMENTS - 05'!D60 -> 3 | E56: 0.3333333333 | F56: 0 | G56: 0 | H56: 0 | I56: 0 | J56: 0 | K56: 0 | L56: 0 | M56: 0 | N56: 0 | O56: 0 | P56: 0 | Q56: 0 | R56: 0 | S56: 0 | T56: 0
A57: =+A56+1 -> 3 | C57: ='TABLEAU DES AMORTISSEMENTS - 05'!C61 -> 0 | D57: ='TABLEAU DES AMORTISSEMENTS - 05'!D61 -> 3 | E57: 0.3333333333 | F57: 0 | G57: 0 | H57: 0 | I57: 0 | J57: 0 | K57: 0 | L57: 0 | M57: 0 | N57: 0 | O57: 0 | P57: 0 | Q57: 0 | R57: 0 | S57: 0 | T57: 0
A58: 4 | C58: ='TABLEAU DES AMORTISSEMENTS - 05'!C62 -> 0 | D58: ='TABLEAU DES AMORTISSEMENTS - 05'!D62 -> 3 | E58: 0.3333333333 | F58: 0 | G58: 0 | H58: 0 | I58: 0 | J58: 0 | K58: 0 | L58: 0 | M58: 0 | N58: 0 | O58: 0 | P58: 0 | Q58: 0 | R58: 0 | S58: 0 | T58: 0
A59: 5 | C59: ='TABLEAU DES AMORTISSEMENTS - 05'!C63 -> 0 | D59: ='TABLEAU DES AMORTISSEMENTS - 05'!D63 -> 3 | E59: 0.3333333333 | F59: 0 | G59: 0 | H59: 0 | I59: 0 | J59: 0 | K59: 0 | L59: 0 | M59: 0 | N59: 0 | O59: 0 | P59: 0 | Q59: 0 | R59: 0 | S59: 0 | T59: 0
A60: 6 | C60: ='TABLEAU DES AMORTISSEMENTS - 05'!C64 -> 0 | D60: ='TABLEAU DES AMORTISSEMENTS - 05'!D64 -> 3 | E60: 0.3333333333 | F60: 0 | G60: 0 | H60: 0 | I60: 0 | J60: 0 | K60: 0 | L60: 0 | M60: 0 | N60: 0 | O60: 0 | P60: 0 | Q60: 0 | R60: 0 | S60: 0 | T60: 0
A61: 7 | C61: ='TABLEAU DES AMORTISSEMENTS - 05'!C65 -> 0 | D61: ='TABLEAU DES AMORTISSEMENTS - 05'!D65 -> 3 | E61: 0.3333333333 | F61: 0 | G61: 0 | H61: 0 | I61: 0 | J61: 0 | K61: 0 | L61: 0 | M61: 0 | N61: 0 | O61: 0 | P61: 0 | Q61: 0 | R61: 0 | S61: 0 | T61: 0
A62: 8 | C62: ='TABLEAU DES AMORTISSEMENTS - 05'!C66 -> 0 | D62: ='TABLEAU DES AMORTISSEMENTS - 05'!D66 -> 3 | E62: 0.3333333333 | F62: 0 | G62: 0 | H62: 0 | I62: 0 | J62: 0 | K62: 0 | L62: 0 | M62: 0 | N62: 0 | O62: 0 | P62: 0 | Q62: 0 | R62: 0 | S62: 0 | T62: 0
A63: 9 | C63: ='TABLEAU DES AMORTISSEMENTS - 05'!C67 -> 0 | D63: ='TABLEAU DES AMORTISSEMENTS - 05'!D67 -> 3 | E63: 0.3333333333 | F63: 0 | G63: 0 | H63: 0 | I63: 0 | J63: 0 | K63: 0 | L63: 0 | M63: 0 | N63: 0 | O63: 0 | P63: 0 | Q63: 0 | R63: 0 | S63: 0 | T63: 0
A64: 10 | C64: ='TABLEAU DES AMORTISSEMENTS - 05'!C68 -> 0 | D64: ='TABLEAU DES AMORTISSEMENTS - 05'!D68 -> 3 | E64: 0.3333333333 | F64: 0 | G64: 0 | H64: 0 | I64: 0 | J64: 0 | K64: 0 | L64: 0 | M64: 0 | N64: 0 | O64: 0 | P64: 0 | Q64: 0 | R64: 0 | S64: 0 | T64: 0
A65: 11 | C65: ='TABLEAU DES AMORTISSEMENTS - 05'!C69 -> 0 | D65: ='TABLEAU DES AMORTISSEMENTS - 05'!D69 -> 3 | E65: 0.3333333333 | F65: 0 | G65: 0 | H65: 0 | I65: 0 | J65: 0 | K65: 0 | L65: 0 | M65: 0 | N65: 0 | O65: 0 | P65: 0 | Q65: 0 | R65: 0 | S65: 0 | T65: 0
A66: 12 | C66: ='TABLEAU DES AMORTISSEMENTS - 05'!C70 -> 0 | D66: ='TABLEAU DES AMORTISSEMENTS - 05'!D70 -> 3 | E66: 0.3333333333 | F66: 0 | G66: 0 | H66: 0 | I66: 0 | J66: 0 | K66: 0 | L66: 0 | M66: 0 | N66: 0 | O66: 0 | P66: 0 | Q66: 0 | R66: 0 | S66: 0 | T66: 0
A67: 13 | C67: ='TABLEAU DES AMORTISSEMENTS - 05'!C71 -> 0 | D67: ='TABLEAU DES AMORTISSEMENTS - 05'!D71 -> 3 | E67: 0.3333333333 | F67: 0 | G67: 0 | H67: 0 | I67: 0 | J67: 0 | K67: 0 | L67: 0 | M67: 0 | N67: 0 | O67: 0 | P67: 0 | Q67: 0 | R67: 0 | S67: 0 | T67: 0
A68: 14 | C68: ='TABLEAU DES AMORTISSEMENTS - 05'!C72 -> 0 | D68: ='TABLEAU DES AMORTISSEMENTS - 05'!D72 -> 3 | E68: 0.3333333333 | F68: 0 | G68: 0 | H68: 0 | I68: 0 | J68: 0 | K68: 0 | L68: 0 | M68: 0 | N68: 0 | O68: 0 | P68: 0 | Q68: 0 | R68: 0 | S68: 0 | T68: 0
A69: 15 | C69: ='TABLEAU DES AMORTISSEMENTS - 05'!C73 -> 0 | D69: ='TABLEAU DES AMORTISSEMENTS - 05'!D73 -> 3 | E69: 0.3333333333 | F69: 0 | G69: 0 | H69: 0 | I69: 0 | J69: 0 | K69: 0 | L69: 0 | M69: 0 | N69: 0 | O69: 0 | P69: 0 | Q69: 0 | R69: 0 | S69: 0 | T69: 0
A70: 16 | C70: ='TABLEAU DES AMORTISSEMENTS - 05'!C74 -> 0 | D70: ='TABLEAU DES AMORTISSEMENTS - 05'!D74 -> 3 | E70: 0.3333333333 | F70: 0 | G70: 0 | H70: 0 | I70: 0 | J70: 0 | K70: 0 | L70: 0 | M70: 0 | N70: 0 | O70: 0 | P70: 0 | Q70: 0 | R70: 0 | S70: 0 | T70: 0
A71: 17 | C71: ='TABLEAU DES AMORTISSEMENTS - 05'!C75 -> 0 | D71: ='TABLEAU DES AMORTISSEMENTS - 05'!D75 -> 3 | E71: 0.3333333333 | F71: 0 | G71: 0 | H71: 0 | I71: 0 | J71: 0 | K71: 0 | L71: 0 | M71: 0 | N71: 0 | O71: 0 | P71: 0 | Q71: 0 | R71: 0 | S71: 0 | T71: 0
A72: 18 | C72: ='TABLEAU DES AMORTISSEMENTS - 05'!C76 -> 0 | D72: ='TABLEAU DES AMORTISSEMENTS - 05'!D76 -> 3 | E72: =IF(D72>0, 1/D72,0) -> 0.3333333333 | F72: 0 | G72: 0 | H72: 0 | I72: 0 | J72: 0 | K72: 0 | L72: 0 | M72: 0 | N72: 0 | O72: 0 | P72: 0 | Q72: 0 | R72: 0 | S72: 0 | T72: 0
A73: 19 | C73: ='TABLEAU DES AMORTISSEMENTS - 05'!C77 -> 0 | D73: ='TABLEAU DES AMORTISSEMENTS - 05'!D77 -> 3 | E73: 0.3333333333 | F73: 0 | G73: 0 | H73: 0 | I73: 0 | J73: 0 | K73: 0 | L73: 0 | M73: 0 | N73: 0 | O73: 0 | P73: 0 | Q73: 0 | R73: 0 | S73: 0 | T73: 0
A74: 20 | C74: ='TABLEAU DES AMORTISSEMENTS - 05'!C78 -> 0 | D74: ='TABLEAU DES AMORTISSEMENTS - 05'!D78 -> 3 | E74: 0.3333333333 | F74: 0 | G74: 0 | H74: 0 | I74: 0 | J74: 0 | K74: 0 | L74: 0 | M74: 0 | N74: 0 | O74: 0 | P74: 0 | Q74: 0 | R74: 0 | S74: 0 | T74: 0
A75: 21 | C75: ='TABLEAU DES AMORTISSEMENTS - 05'!C79 -> 0 | D75: ='TABLEAU DES AMORTISSEMENTS - 05'!D79 -> 3 | E75: 0.3333333333 | F75: 0 | G75: 0 | H75: 0 | I75: 0 | J75: 0 | K75: 0 | L75: 0 | M75: 0 | N75: 0 | O75: 0 | P75: 0 | Q75: 0 | R75: 0 | S75: 0 | T75: 0
A76: 22 | C76: ='TABLEAU DES AMORTISSEMENTS - 05'!C80 -> 0 | D76: ='TABLEAU DES AMORTISSEMENTS - 05'!D80 -> 3 | E76: 0.3333333333 | F76: 0 | G76: 0 | H76: 0 | I76: 0 | J76: 0 | K76: 0 | L76: 0 | M76: 0 | N76: 0 | O76: 0 | P76: 0 | Q76: 0 | R76: 0 | S76: 0 | T76: 0
A77: 23 | C77: ='TABLEAU DES AMORTISSEMENTS - 05'!C81 -> 0 | D77: ='TABLEAU DES AMORTISSEMENTS - 05'!D81 -> 3 | E77: 0.3333333333 | F77: 0 | G77: 0 | H77: 0 | I77: 0 | J77: 0 | K77: 0 | L77: 0 | M77: 0 | N77: 0 | O77: 0 | P77: 0 | Q77: 0 | R77: 0 | S77: 0 | T77: 0
A78: 24 | C78: ='TABLEAU DES AMORTISSEMENTS - 05'!C82 -> 0 | D78: ='TABLEAU DES AMORTISSEMENTS - 05'!D82 -> 3 | E78: 0.3333333333 | F78: 0 | G78: 0 | H78: 0 | I78: 0 | J78: 0 | K78: 0 | L78: 0 | M78: 0 | N78: 0 | O78: 0 | P78: 0 | Q78: 0 | R78: 0 | S78: 0 | T78: 0
A79: 25 | C79: ='TABLEAU DES AMORTISSEMENTS - 05'!C83 -> 0 | D79: ='TABLEAU DES AMORTISSEMENTS - 05'!D83 -> 3 | E79: 0.3333333333 | F79: 0 | G79: 0 | H79: 0 | I79: 0 | J79: 0 | K79: 0 | L79: 0 | M79: 0 | N79: 0 | O79: 0 | P79: 0 | Q79: 0 | R79: 0 | S79: 0 | T79: 0
A80: 26 | C80: ='TABLEAU DES AMORTISSEMENTS - 05'!C84 -> 0 | D80: ='TABLEAU DES AMORTISSEMENTS - 05'!D84 -> 3 | E80: 0.3333333333 | F80: 0 | G80: 0 | H80: 0 | I80: 0 | J80: 0 | K80: 0 | L80: 0 | M80: 0 | N80: 0 | O80: 0 | P80: 0 | Q80: 0 | R80: 0 | S80: 0 | T80: 0
A81: 27 | C81: ='TABLEAU DES AMORTISSEMENTS - 05'!C85 -> 0 | D81: ='TABLEAU DES AMORTISSEMENTS - 05'!D85 -> 3 | E81: 0.3333333333 | F81: 0 | G81: 0 | H81: 0 | I81: 0 | J81: 0 | K81: 0 | L81: 0 | M81: 0 | N81: 0 | O81: 0 | P81: 0 | Q81: 0 | R81: 0 | S81: 0 | T81: 0
A82: 28 | C82: ='TABLEAU DES AMORTISSEMENTS - 05'!C86 -> 0 | D82: ='TABLEAU DES AMORTISSEMENTS - 05'!D86 -> 3 | E82: =IF(D82>0, 1/D82,0) -> 0.3333333333 | F82: =C82*E82 -> 0 | G82: =C82*E82 -> 0 | H82: =C82*E82 -> 0 | I82: =C82*E82 -> 0 | J82: =C82*E82 -> 0 | K82: =C82*E82 -> 0 | L82: =C82*E82 -> 0 | M82: =C82*E82 -> 0 | N82: =C82*E82 -> 0 | O82: =C82*E82 -> 0 | P82: =C82*E82 -> 0 | Q82: =C82*E82 -> 0 | R82: =C82*E82 -> 0 | S82: =C82*E82 -> 0 | T82: =C82*E82 -> 0
A83: 29 | C83: ='TABLEAU DES AMORTISSEMENTS - 05'!C87 -> 0 | D83: ='TABLEAU DES AMORTISSEMENTS - 05'!D87 -> 3 | E83: 0.3333333333 | F83: 0 | G83: 0 | H83: 0 | I83: 0 | J83: 0 | K83: 0 | L83: 0 | M83: 0 | N83: 0 | O83: 0 | P83: 0 | Q83: 0 | R83: 0 | S83: 0 | T83: 0
A84: 30 | C84: ='TABLEAU DES AMORTISSEMENTS - 05'!C88 -> 0 | D84: ='TABLEAU DES AMORTISSEMENTS - 05'!D88 -> 3 | E84: 0.3333333333 | F84: 0 | G84: 0 | H84: 0 | I84: 0 | J84: 0 | K84: 0 | L84: 0 | M84: 0 | N84: 0 | O84: 0 | P84: 0 | Q84: 0 | R84: 0 | S84: 0 | T84: 0
A85: 31 | C85: ='TABLEAU DES AMORTISSEMENTS - 05'!C89 -> 0 | D85: ='TABLEAU DES AMORTISSEMENTS - 05'!D89 -> 3 | E85: 0.3333333333 | F85: 0 | G85: 0 | H85: 0 | I85: 0 | J85: 0 | K85: 0 | L85: 0 | M85: 0 | N85: 0 | O85: 0 | P85: 0 | Q85: 0 | R85: 0 | S85: 0 | T85: 0
A86: 32 | C86: ='TABLEAU DES AMORTISSEMENTS - 05'!C90 -> 0 | D86: ='TABLEAU DES AMORTISSEMENTS - 05'!D90 -> 3 | E86: 0.3333333333 | F86: 0 | G86: 0 | H86: 0 | I86: 0 | J86: 0 | K86: 0 | L86: 0 | M86: 0 | N86: 0 | O86: 0 | P86: 0 | Q86: 0 | R86: 0 | S86: 0 | T86: 0
A87: 33 | C87: ='TABLEAU DES AMORTISSEMENTS - 05'!C91 -> 0 | D87: ='TABLEAU DES AMORTISSEMENTS - 05'!D91 -> 3 | E87: 0.3333333333 | F87: 0 | G87: 0 | H87: 0 | I87: 0 | J87: 0 | K87: 0 | L87: 0 | M87: 0 | N87: 0 | O87: 0 | P87: 0 | Q87: 0 | R87: 0 | S87: 0 | T87: 0
A88: 34 | C88: ='TABLEAU DES AMORTISSEMENTS - 05'!C92 -> 0 | D88: ='TABLEAU DES AMORTISSEMENTS - 05'!D92 -> 3 | E88: 0.3333333333 | F88: 0 | G88: 0 | H88: 0 | I88: 0 | J88: 0 | K88: 0 | L88: 0 | M88: 0 | N88: 0 | O88: 0 | P88: 0 | Q88: 0 | R88: 0 | S88: 0 | T88: 0
A89: 35 | C89: ='TABLEAU DES AMORTISSEMENTS - 05'!C93 -> 0 | D89: ='TABLEAU DES AMORTISSEMENTS - 05'!D93 -> 3 | E89: 0.3333333333 | F89: 0 | G89: 0 | H89: 0 | I89: 0 | J89: 0 | K89: 0 | L89: 0 | M89: 0 | N89: 0 | O89: 0 | P89: 0 | Q89: 0 | R89: 0 | S89: 0 | T89: 0
A90: 36 | C90: ='TABLEAU DES AMORTISSEMENTS - 05'!C94 -> 0 | D90: ='TABLEAU DES AMORTISSEMENTS - 05'!D94 -> 3 | E90: 0.3333333333 | F90: 0 | G90: 0 | H90: 0 | I90: 0 | J90: 0 | K90: 0 | L90: 0 | M90: 0 | N90: 0 | O90: 0 | P90: 0 | Q90: 0 | R90: 0 | S90: 0 | T90: 0
A91: 37 | C91: ='TABLEAU DES AMORTISSEMENTS - 05'!C95 -> 0 | D91: ='TABLEAU DES AMORTISSEMENTS - 05'!D95 -> 3 | E91: 0.3333333333 | F91: 0 | G91: 0 | H91: 0 | I91: 0 | J91: 0 | K91: 0 | L91: 0 | M91: 0 | N91: 0 | O91: 0 | P91: 0 | Q91: 0 | R91: 0 | S91: 0 | T91: 0
A92: 38 | C92: ='TABLEAU DES AMORTISSEMENTS - 05'!C96 -> 0 | D92: ='TABLEAU DES AMORTISSEMENTS - 05'!D96 -> 3 | E92: 0.3333333333 | F92: 0 | G92: 0 | H92: 0 | I92: 0 | J92: 0 | K92: 0 | L92: 0 | M92: 0 | N92: 0 | O92: 0 | P92: 0 | Q92: 0 | R92: 0 | S92: 0 | T92: 0
A93: 39 | C93: ='TABLEAU DES AMORTISSEMENTS - 05'!C97 -> 0 | D93: ='TABLEAU DES AMORTISSEMENTS - 05'!D97 -> 3 | E93: 0.3333333333 | F93: 0 | G93: 0 | H93: 0 | I93: 0 | J93: 0 | K93: 0 | L93: 0 | M93: 0 | N93: 0 | O93: 0 | P93: 0 | Q93: 0 | R93: 0 | S93: 0 | T93: 0
A94: 40 | C94: ='TABLEAU DES AMORTISSEMENTS - 05'!C98 -> 0 | D94: ='TABLEAU DES AMORTISSEMENTS - 05'!D98 -> 3 | E94: 0.3333333333 | F94: 0 | G94: 0 | H94: 0 | I94: 0 | J94: 0 | K94: 0 | L94: 0 | M94: 0 | N94: 0 | O94: 0 | P94: 0 | Q94: 0 | R94: 0 | S94: 0 | T94: 0
A95: 41 | C95: ='TABLEAU DES AMORTISSEMENTS - 05'!C99 -> 0 | D95: ='TABLEAU DES AMORTISSEMENTS - 05'!D99 -> 3 | E95: 0.3333333333 | F95: 0 | G95: 0 | H95: 0 | I95: 0 | J95: 0 | K95: 0 | L95: 0 | M95: 0 | N95: 0 | O95: 0 | P95: 0 | Q95: 0 | R95: 0 | S95: 0 | T95: 0
A96: 42 | C96: ='TABLEAU DES AMORTISSEMENTS - 05'!C100 -> 0 | D96: ='TABLEAU DES AMORTISSEMENTS - 05'!D100 -> 3 | E96: 0.3333333333 | F96: 0 | G96: 0 | H96: 0 | I96: 0 | J96: 0 | K96: 0 | L96: 0 | M96: 0 | N96: 0 | O96: 0 | P96: 0 | Q96: 0 | R96: 0 | S96: 0 | T96: 0
A97: 43 | C97: ='TABLEAU DES AMORTISSEMENTS - 05'!C101 -> 0 | D97: ='TABLEAU DES AMORTISSEMENTS - 05'!D101 -> 3 | E97: 0.3333333333 | F97: 0 | G97: 0 | H97: 0 | I97: 0 | J97: 0 | K97: 0 | L97: 0 | M97: 0 | N97: 0 | O97: 0 | P97: 0 | Q97: 0 | R97: 0 | S97: 0 | T97: 0
A98: 44 | C98: ='TABLEAU DES AMORTISSEMENTS - 05'!C102 -> 0 | D98: ='TABLEAU DES AMORTISSEMENTS - 05'!D102 -> 3 | E98: 0.3333333333 | F98: 0 | G98: 0 | H98: 0 | I98: 0 | J98: 0 | K98: 0 | L98: 0 | M98: 0 | N98: 0 | O98: 0 | P98: 0 | Q98: 0 | R98: 0 | S98: 0 | T98: 0
A99: 45 | C99: ='TABLEAU DES AMORTISSEMENTS - 05'!C103 -> 0 | D99: ='TABLEAU DES AMORTISSEMENTS - 05'!D103 -> 3 | E99: 0.3333333333 | F99: 0 | G99: 0 | H99: 0 | I99: 0 | J99: 0 | K99: 0 | L99: 0 | M99: 0 | N99: 0 | O99: 0 | P99: 0 | Q99: 0 | R99: 0 | S99: 0 | T99: 0
A100: 46 | C100: ='TABLEAU DES AMORTISSEMENTS - 05'!C104 -> 0 | D100: ='TABLEAU DES AMORTISSEMENTS - 05'!D104 -> 3 | E100: 0.3333333333 | F100: 0 | G100: 0 | H100: 0 | I100: 0 | J100: 0 | K100: 0 | L100: 0 | M100: 0 | N100: 0 | O100: 0 | P100: 0 | Q100: 0 | R100: 0 | S100: 0 | T100: 0
A101: 47 | C101: ='TABLEAU DES AMORTISSEMENTS - 05'!C105 -> 0 | D101: ='TABLEAU DES AMORTISSEMENTS - 05'!D105 -> 3 | E101: 0.3333333333 | F101: 0 | G101: 0 | H101: 0 | I101: 0 | J101: 0 | K101: 0 | L101: 0 | M101: 0 | N101: 0 | O101: 0 | P101: 0 | Q101: 0 | R101: 0 | S101: 0 | T101: 0
A102: 48 | C102: ='TABLEAU DES AMORTISSEMENTS - 05'!C106 -> 0 | D102: ='TABLEAU DES AMORTISSEMENTS - 05'!D106 -> 3 | E102: 0.3333333333 | F102: 0 | G102: 0 | H102: 0 | I102: 0 | J102: 0 | K102: 0 | L102: 0 | M102: 0 | N102: 0 | O102: 0 | P102: 0 | Q102: 0 | R102: 0 | S102: 0 | T102: 0
B103: TOTAL | F103: =F54+F5 -> 0 | G103: =G54+G5 -> 0 | H103: 0 | I103: 0 | J103: 0 | K103: 0 | L103: 0 | M103: 0 | N103: =N54+N5 -> 0 | O103: 0 | P103: 0 | Q103: 0 | R103: 0 | S103: 0 | T103: 0
B104: * Le nombre d'année est de cinq (5) ans pour les investissements réalisés en Zone A, huit (8) ans pour les investissements réalisés en Zone B et Quinze (15) ans pour les investissements en Zone C
B105: TABLEAU DES AMORTISSEMENTS | T105: (En Milliers F. Cfa)
B106: IMMOBILISATIONS | C106: VALEUR D'ORIGINE | D106: DUREE DE VIE | E106: TAUX | F106: DOTATIONS AUX AMORTISSEMENTS
F107: ANNEE 1 | G107: ANNEE 2 | H107: ANNEE 3 | I107: ANNEE 4 | J107: ANNEE 5* | K107: ANNEE 6 | L107: ANNEE 7 | M107: ANNEE 8 | N107: ANNEE 9 | O107: ANNEE 10 | P107: ANNEE 11 | Q107: ANNEE 12 | R107: ANNEE 13 | S107: ANNEE 14 | T107: ANNEE 15
B108: AUTRES IMMOB. INCORPORELLES | F108: =SUM(F109:F126) -> 0 | G108: =SUM(G109:G126) -> 0 | H108: 0 | I108: 0 | J108: 0 | K108: 0 | L108: 0 | M108: 0 | N108: =SUM(N109:N126) -> 0 | O108: 0 | P108: 0 | Q108: 0 | R108: 0 | S108: 0 | T108: 0
A109: 1 | C109: ='TABLEAU DES AMORTISSEMENTS - 05'!C111 -> 0 | D109: ='TABLEAU DES AMORTISSEMENTS - 05'!D111 -> 2 | E109: =IF(D109>0, 1/D109,0) -> 0.5 | F109: =C109*E109 -> 0 | G109: =C109*E109 -> 0 | H109: =C109*E109 -> 0 | I109: =C109*E109 -> 0 | J109: =C109*E109 -> 0 | K109: =C109*E109 -> 0 | L109: =C109*E109 -> 0 | M109: =C109*E109 -> 0 | N109: =C109*E109 -> 0 | O109: =C109*E109 -> 0 | P109: =C109*E109 -> 0 | Q109: =C109*E109 -> 0 | R109: =C109*E109 -> 0 | S109: =C109*E109 -> 0 | T109: =C109*E109 -> 0
A110: =+A109+1 -> 2 | C110: ='TABLEAU DES AMORTISSEMENTS - 05'!C112 -> 0 | D110: ='TABLEAU DES AMORTISSEMENTS - 05'!D112 -> 2 | E110: 0.5 | F110: 0 | G110: 0 | H110: 0 | I110: 0 | J110: 0 | K110: 0 | L110: 0 | M110: 0 | N110: 0 | O110: 0 | P110: 0 | Q110: 0 | R110: 0 | S110: 0 | T110: 0
A111: =+A110+1 -> 3 | C111: ='TABLEAU DES AMORTISSEMENTS - 05'!C113 -> 0 | D111: ='TABLEAU DES AMORTISSEMENTS - 05'!D113 -> 2 | E111: 0.5 | F111: 0 | G111: 0 | H111: 0 | I111: 0 | J111: 0 | K111: 0 | L111: 0 | M111: 0 | N111: 0 | O111: 0 | P111: 0 | Q111: 0 | R111: 0 | S111: 0 | T111: 0
A112: 4 | C112: ='TABLEAU DES AMORTISSEMENTS - 05'!C114 -> 0 | D112: ='TABLEAU DES AMORTISSEMENTS - 05'!D114 -> 2 | E112: 0.5 | F112: 0 | G112: 0 | H112: 0 | I112: 0 | J112: 0 | K112: 0 | L112: 0 | M112: 0 | N112: 0 | O112: 0 | P112: 0 | Q112: 0 | R112: 0 | S112: 0 | T112: 0
A113: 5 | C113: ='TABLEAU DES AMORTISSEMENTS - 05'!C115 -> 0 | D113: ='TABLEAU DES AMORTISSEMENTS - 05'!D115 -> 2 | E113: 0.5 | F113: 0 | G113: 0 | H113: 0 | I113: 0 | J113: 0 | K113: 0 | L113: 0 | M113: 0 | N113: 0 | O113: 0 | P113: 0 | Q113: 0 | R113: 0 | S113: 0 | T113: 0
A114: 6 | C114: ='TABLEAU DES AMORTISSEMENTS - 05'!C116 -> 0 | D114: ='TABLEAU DES AMORTISSEMENTS - 05'!D116 -> 2 | E114: 0.5 | F114: 0 | G114: 0 | H114: 0 | I114: 0 | J114: 0 | K114: 0 | L114: 0 | M114: 0 | N114: 0 | O114: 0 | P114: 0 | Q114: 0 | R114: 0 | S114: 0 | T114: 0
A115: 7 | C115: ='TABLEAU DES AMORTISSEMENTS - 05'!C117 -> 0 | D115: ='TABLEAU DES AMORTISSEMENTS - 05'!D117 -> 2 | E115: 0.5 | F115: 0 | G115: 0 | H115: 0 | I115: 0 | J115: 0 | K115: 0 | L115: 0 | M115: 0 | N115: 0 | O115: 0 | P115: 0 | Q115: 0 | R115: 0 | S115: 0 | T115: 0
A116: 8 | C116: ='TABLEAU DES AMORTISSEMENTS - 05'!C118 -> 0 | D116: ='TABLEAU DES AMORTISSEMENTS - 05'!D118 -> 2 | E116: 0.5 | F116: 0 | G116: 0 | H116: 0 | I116: 0 | J116: 0 | K116: 0 | L116: 0 | M116: 0 | N116: 0 | O116: 0 | P116: 0 | Q116: 0 | R116: 0 | S116: 0 | T116: 0
A117: 9 | C117: ='TABLEAU DES AMORTISSEMENTS - 05'!C119 -> 0 | D117: ='TABLEAU DES AMORTISSEMENTS - 05'!D119 -> 2 | E117: 0.5 | F117: 0 | G117: 0 | H117: 0 | I117: 0 | J117: 0 | K117: 0 | L117: 0 | M117: 0 | N117: 0 | O117: 0 | P117: 0 | Q117: 0 | R117: 0 | S117: 0 | T117: 0
A118: 10 | C118: ='TABLEAU DES AMORTISSEMENTS - 05'!C120 -> 0 | D118: ='TABLEAU DES AMORTISSEMENTS - 05'!D120 -> 2 | E118: 0.5 | F118: 0 | G118: 0 | H118: 0 | I118: 0 | J118: 0 | K118: 0 | L118: 0 | M118: 0 | N118: 0 | O118: 0 | P118: 0 | Q118: 0 | R118: 0 | S118: 0 | T118: 0
A119: 11 | C119: ='TABLEAU DES AMORTISSEMENTS - 05'!C121 -> 0 | D119: ='TABLEAU DES AMORTISSEMENTS - 05'!D121 -> 2 | E119: 0.5 | F119: 0 | G119: 0 | H119: 0 | I119: 0 | J119: 0 | K119: 0 | L119: 0 | M119: 0 | N119: 0 | O119: 0 | P119: 0 | Q119: 0 | R119: 0 | S119: 0 | T119: 0
A120: 12 | C120: ='TABLEAU DES AMORTISSEMENTS - 05'!C122 -> 0 | D120: ='TABLEAU DES AMORTISSEMENTS - 05'!D122 -> 2 | E120: 0.5 | F120: 0 | G120: 0 | H120: 0 | I120: 0 | J120: 0 | K120: 0 | L120: 0 | M120: 0 | N120: 0 | O120: 0 | P120: 0 | Q120: 0 | R120: 0 | S120: 0 | T120: 0
A121: 13 | C121: ='TABLEAU DES AMORTISSEMENTS - 05'!C123 -> 0 | D121: ='TABLEAU DES AMORTISSEMENTS - 05'!D123 -> 2 | E121: 0.5 | F121: 0 | G121: 0 | H121: 0 | I121: 0 | J121: 0 | K121: 0 | L121: 0 | M121: 0 | N121: 0 | O121: 0 | P121: 0 | Q121: 0 | R121: 0 | S121: 0 | T121: 0
A122: 14 | C122: ='TABLEAU DES AMORTISSEMENTS - 05'!C124 -> 0 | D122: ='TABLEAU DES AMORTISSEMENTS - 05'!D124 -> 2 | E122: 0.5 | F122: 0 | G122: 0 | H122: 0 | I122: 0 | J122: 0 | K122: 0 | L122: 0 | M122: 0 | N122: 0 | O122: 0 | P122: 0 | Q122: 0 | R122: 0 | S122: 0 | T122: 0
A123: 15 | C123: ='TABLEAU DES AMORTISSEMENTS - 05'!C125 -> 0 | D123: ='TABLEAU DES AMORTISSEMENTS - 05'!D125 -> 2 | E123: 0.5 | F123: 0 | G123: 0 | H123: 0 | I123: 0 | J123: 0 | K123: 0 | L123: 0 | M123: 0 | N123: 0 | O123: 0 | P123: 0 | Q123: 0 | R123: 0 | S123: 0 | T123: 0
A124: 16 | C124: ='TABLEAU DES AMORTISSEMENTS - 05'!C126 -> 0 | D124: ='TABLEAU DES AMORTISSEMENTS - 05'!D126 -> 2 | E124: 0.5 | F124: 0 | G124: 0 | H124: 0 | I124: 0 | J124: 0 | K124: 0 | L124: 0 | M124: 0 | N124: 0 | O124: 0 | P124: 0 | Q124: 0 | R124: 0 | S124: 0 | T124: 0
A125: 17 | C125: ='TABLEAU DES AMORTISSEMENTS - 05'!C127 -> 0 | D125: ='TABLEAU DES AMORTISSEMENTS - 05'!D127 -> 2 | E125: 0.5 | F125: 0 | G125: 0 | H125: 0 | I125: 0 | J125: 0 | K125: 0 | L125: 0 | M125: 0 | N125: 0 | O125: 0 | P125: 0 | Q125: 0 | R125: 0 | S125: 0 | T125: 0
A126: 18 | C126: ='TABLEAU DES AMORTISSEMENTS - 05'!C128 -> 0 | D126: ='TABLEAU DES AMORTISSEMENTS - 05'!D128 -> 2 | E126: =IF(D126>0, 1/D126,0) -> 0.5 | F126: 0 | G126: 0 | H126: 0 | I126: 0 | J126: 0 | K126: 0 | L126: 0 | M126: 0 | N126: 0 | O126: 0 | P126: 0 | Q126: 0 | R126: 0 | S126: 0 | T126: 0
A127: 19 | C127: ='TABLEAU DES AMORTISSEMENTS - 05'!C129 -> 0 | D127: ='TABLEAU DES AMORTISSEMENTS - 05'!D129 -> 2 | E127: 0.5 | F127: 0 | G127: 0 | H127: 0 | I127: 0 | J127: 0 | K127: 0 | L127: 0 | M127: 0 | N127: 0 | O127: 0 | P127: 0 | Q127: 0 | R127: 0 | S127: 0 | T127: 0
A128: 20 | C128: ='TABLEAU DES AMORTISSEMENTS - 05'!C130 -> 0 | D128: ='TABLEAU DES AMORTISSEMENTS - 05'!D130 -> 2 | E128: 0.5 | F128: 0 | G128: 0 | H128: 0 | I128: 0 | J128: 0 | K128: 0 | L128: 0 | M128: 0 | N128: 0 | O128: 0 | P128: 0 | Q128: 0 | R128: 0 | S128: 0 | T128: 0
A129: 21 | C129: ='TABLEAU DES AMORTISSEMENTS - 05'!C131 -> 0 | D129: ='TABLEAU DES AMORTISSEMENTS - 05'!D131 -> 2 | E129: 0.5 | F129: 0 | G129: 0 | H129: 0 | I129: 0 | J129: 0 | K129: 0 | L129: 0 | M129: 0 | N129: 0 | O129: 0 | P129: 0 | Q129: 0 | R129: 0 | S129: 0 | T129: 0
A130: 22 | C130: ='TABLEAU DES AMORTISSEMENTS - 05'!C132 -> 0 | D130: ='TABLEAU DES AMORTISSEMENTS - 05'!D132 -> 2 | E130: 0.5 | F130: 0 | G130: 0 | H130: 0 | I130: 0 | J130: 0 | K130: 0 | L130: 0 | M130: 0 | N130: 0 | O130: 0 | P130: 0 | Q130: 0 | R130: 0 | S130: 0 | T130: 0
A131: 23 | C131: ='TABLEAU DES AMORTISSEMENTS - 05'!C133 -> 0 | D131: ='TABLEAU DES AMORTISSEMENTS - 05'!D133 -> 2 | E131: 0.5 | F131: 0 | G131: 0 | H131: 0 | I131: 0 | J131: 0 | K131: 0 | L131: 0 | M131: 0 | N131: 0 | O131: 0 | P131: 0 | Q131: 0 | R131: 0 | S131: 0 | T131: 0
A132: 24 | C132: ='TABLEAU DES AMORTISSEMENTS - 05'!C134 -> 0 | D132: ='TABLEAU DES AMORTISSEMENTS - 05'!D134 -> 2 | E132: 0.5 | F132: 0 | G132: 0 | H132: 0 | I132: 0 | J132: 0 | K132: 0 | L132: 0 | M132: 0 | N132: 0 | O132: 0 | P132: 0 | Q132: 0 | R132: 0 | S132: 0 | T132: 0
A133: 25 | C133: ='TABLEAU DES AMORTISSEMENTS - 05'!C135 -> 0 | D133: ='TABLEAU DES AMORTISSEMENTS - 05'!D135 -> 2 | E133: 0.5 | F133: 0 | G133: 0 | H133: 0 | I133: 0 | J133: 0 | K133: 0 | L133: 0 | M133: 0 | N133: 0 | O133: 0 | P133: 0 | Q133: 0 | R133: 0 | S133: 0 | T133: 0
A134: 26 | C134: ='TABLEAU DES AMORTISSEMENTS - 05'!C136 -> 0 | D134: ='TABLEAU DES AMORTISSEMENTS - 05'!D136 -> 2 | E134: 0.5 | F134: 0 | G134: 0 | H134: 0 | I134: 0 | J134: 0 | K134: 0 | L134: 0 | M134: 0 | N134: 0 | O134: 0 | P134: 0 | Q134: 0 | R134: 0 | S134: 0 | T134: 0
A135: 27 | C135: ='TABLEAU DES AMORTISSEMENTS - 05'!C137 -> 0 | D135: ='TABLEAU DES AMORTISSEMENTS - 05'!D137 -> 2 | E135: 0.5 | F135: 0 | G135: 0 | H135: 0 | I135: 0 | J135: 0 | K135: 0 | L135: 0 | M135: 0 | N135: 0 | O135: 0 | P135: 0 | Q135: 0 | R135: 0 | S135: 0 | T135: 0
A136: 28 | C136: ='TABLEAU DES AMORTISSEMENTS - 05'!C138 -> 0 | D136: ='TABLEAU DES AMORTISSEMENTS - 05'!D138 -> 2 | E136: =IF(D136>0, 1/D136,0) -> 0.5 | F136: =C136*E136 -> 0 | G136: =C136*E136 -> 0 | H136: =C136*E136 -> 0 | I136: =C136*E136 -> 0 | J136: =C136*E136 -> 0 | K136: =C136*E136 -> 0 | L136: =C136*E136 -> 0 | M136: =C136*E136 -> 0 | N136: =C136*E136 -> 0 | O136: =C136*E136 -> 0 | P136: =C136*E136 -> 0 | Q136: =C136*E136 -> 0 | R136: =C136*E136 -> 0 | S136: =C136*E136 -> 0 | T136: =C136*E136 -> 0
A137: 29 | C137: ='TABLEAU DES AMORTISSEMENTS - 05'!C139 -> 0 | D137: ='TABLEAU DES AMORTISSEMENTS - 05'!D139 -> 2 | E137: 0.5 | F137: 0 | G137: 0 | H137: 0 | I137: 0 | J137: 0 | K137: 0 | L137: 0 | M137: 0 | N137: 0 | O137: 0 | P137: 0 | Q137: 0 | R137: 0 | S137: 0 | T137: 0
A138: 30 | C138: ='TABLEAU DES AMORTISSEMENTS - 05'!C140 -> 0 | D138: ='TABLEAU DES AMORTISSEMENTS - 05'!D140 -> 2 | E138: 0.5 | F138: 0 | G138: 0 | H138: 0 | I138: 0 | J138: 0 | K138: 0 | L138: 0 | M138: 0 | N138: 0 | O138: 0 | P138: 0 | Q138: 0 | R138: 0 | S138: 0 | T138: 0
A139: 31 | C139: ='TABLEAU DES AMORTISSEMENTS - 05'!C141 -> 0 | D139: ='TABLEAU DES AMORTISSEMENTS - 05'!D141 -> 2 | E139: 0.5 | F139: 0 | G139: 0 | H139: 0 | I139: 0 | J139: 0 | K139: 0 | L139: 0 | M139: 0 | N139: 0 | O139: 0 | P139: 0 | Q139: 0 | R139: 0 | S139: 0 | T139: 0
A140: 32 | C140: ='TABLEAU DES AMORTISSEMENTS - 05'!C142 -> 0 | D140: ='TABLEAU DES AMORTISSEMENTS - 05'!D142 -> 2 | E140: 0.5 | F140: 0 | G140: 0 | H140: 0 | I140: 0 | J140: 0 | K140: 0 | L140: 0 | M140: 0 | N140: 0 | O140: 0 | P140: 0 | Q140: 0 | R140: 0 | S140: 0 | T140: 0
A141: 33 | C141: ='TABLEAU DES AMORTISSEMENTS - 05'!C143 -> 0 | D141: ='TABLEAU DES AMORTISSEMENTS - 05'!D143 -> 2 | E141: 0.5 | F141: 0 | G141: 0 | H141: 0 | I141: 0 | J141: 0 | K141: 0 | L141: 0 | M141: 0 | N141: 0 | O141: 0 | P141: 0 | Q141: 0 | R141: 0 | S141: 0 | T141: 0
A142: 34 | C142: ='TABLEAU DES AMORTISSEMENTS - 05'!C144 -> 0 | D142: ='TABLEAU DES AMORTISSEMENTS - 05'!D144 -> 2 | E142: 0.5 | F142: 0 | G142: 0 | H142: 0 | I142: 0 | J142: 0 | K142: 0 | L142: 0 | M142: 0 | N142: 0 | O142: 0 | P142: 0 | Q142: 0 | R142: 0 | S142: 0 | T142: 0
A143: 35 | C143: ='TABLEAU DES AMORTISSEMENTS - 05'!C145 -> 0 | D143: ='TABLEAU DES AMORTISSEMENTS - 05'!D145 -> 2 | E143: 0.5 | F143: 0 | G143: 0 | H143: 0 | I143: 0 | J143: 0 | K143: 0 | L143: 0 | M143: 0 | N143: 0 | O143: 0 | P143: 0 | Q143: 0 | R143: 0 | S143: 0 | T143: 0
A144: 36 | C144: ='TABLEAU DES AMORTISSEMENTS - 05'!C146 -> 0 | D144: ='TABLEAU DES AMORTISSEMENTS - 05'!D146 -> 2 | E144: 0.5 | F144: 0 | G144: 0 | H144: 0 | I144: 0 | J144: 0 | K144: 0 | L144: 0 | M144: 0 | N144: 0 | O144: 0 | P144: 0 | Q144: 0 | R144: 0 | S144: 0 | T144: 0
A145: 37 | C145: ='TABLEAU DES AMORTISSEMENTS - 05'!C147 -> 0 | D145: ='TABLEAU DES AMORTISSEMENTS - 05'!D147 -> 2 | E145: 0.5 | F145: 0 | G145: 0 | H145: 0 | I145: 0 | J145: 0 | K145: 0 | L145: 0 | M145: 0 | N145: 0 | O145: 0 | P145: 0 | Q145: 0 | R145: 0 | S145: 0 | T145: 0
A146: 38 | C146: ='TABLEAU DES AMORTISSEMENTS - 05'!C148 -> 0 | D146: ='TABLEAU DES AMORTISSEMENTS - 05'!D148 -> 2 | E146: 0.5 | F146: 0 | G146: 0 | H146: 0 | I146: 0 | J146: 0 | K146: 0 | L146: 0 | M146: 0 | N146: 0 | O146: 0 | P146: 0 | Q146: 0 | R146: 0 | S146: 0 | T146: 0
A147: 39 | C147: ='TABLEAU DES AMORTISSEMENTS - 05'!C149 -> 0 | D147: ='TABLEAU DES AMORTISSEMENTS - 05'!D149 -> 2 | E147: 0.5 | F147: 0 | G147: 0 | H147: 0 | I147: 0 | J147: 0 | K147: 0 | L147: 0 | M147: 0 | N147: 0 | O147: 0 | P147: 0 | Q147: 0 | R147: 0 | S147: 0 | T147: 0
A148: 40 | C148: ='TABLEAU DES AMORTISSEMENTS - 05'!C150 -> 0 | D148: ='TABLEAU DES AMORTISSEMENTS - 05'!D150 -> 2 | E148: 0.5 | F148: 0 | G148: 0 | H148: 0 | I148: 0 | J148: 0 | K148: 0 | L148: 0 | M148: 0 | N148: 0 | O148: 0 | P148: 0 | Q148: 0 | R148: 0 | S148: 0 | T148: 0
A149: 41 | C149: ='TABLEAU DES AMORTISSEMENTS - 05'!C151 -> 0 | D149: ='TABLEAU DES AMORTISSEMENTS - 05'!D151 -> 2 | E149: 0.5 | F149: 0 | G149: 0 | H149: 0 | I149: 0 | J149: 0 | K149: 0 | L149: 0 | M149: 0 | N149: 0 | O149: 0 | P149: 0 | Q149: 0 | R149: 0 | S149: 0 | T149: 0
A150: 42 | C150: ='TABLEAU DES AMORTISSEMENTS - 05'!C152 -> 0 | D150: ='TABLEAU DES AMORTISSEMENTS - 05'!D152 -> 2 | E150: 0.5 | F150: 0 | G150: 0 | H150: 0 | I150: 0 | J150: 0 | K150: 0 | L150: 0 | M150: 0 | N150: 0 | O150: 0 | P150: 0 | Q150: 0 | R150: 0 | S150: 0 | T150: 0
A151: 43 | C151: ='TABLEAU DES AMORTISSEMENTS - 05'!C153 -> 0 | D151: ='TABLEAU DES AMORTISSEMENTS - 05'!D153 -> 2 | E151: 0.5 | F151: 0 | G151: 0 | H151: 0 | I151: 0 | J151: 0 | K151: 0 | L151: 0 | M151: 0 | N151: 0 | O151: 0 | P151: 0 | Q151: 0 | R151: 0 | S151: 0 | T151: 0
A152: 44 | C152: ='TABLEAU DES AMORTISSEMENTS - 05'!C154 -> 0 | D152: ='TABLEAU DES AMORTISSEMENTS - 05'!D154 -> 2 | E152: 0.5 | F152: 0 | G152: 0 | H152: 0 | I152: 0 | J152: 0 | K152: 0 | L152: 0 | M152: 0 | N152: 0 | O152: 0 | P152: 0 | Q152: 0 | R152: 0 | S152: 0 | T152: 0
A153: 45 | C153: ='TABLEAU DES AMORTISSEMENTS - 05'!C155 -> 0 | D153: ='TABLEAU DES AMORTISSEMENTS - 05'!D155 -> 2 | E153: 0.5 | F153: 0 | G153: 0 | H153: 0 | I153: 0 | J153: 0 | K153: 0 | L153: 0 | M153: 0 | N153: 0 | O153: 0 | P153: 0 | Q153: 0 | R153: 0 | S153: 0 | T153: 0
A154: 46 | C154: ='TABLEAU DES AMORTISSEMENTS - 05'!C156 -> 0 | D154: ='TABLEAU DES AMORTISSEMENTS - 05'!D156 -> 2 | E154: 0.5 | F154: 0 | G154: 0 | H154: 0 | I154: 0 | J154: 0 | K154: 0 | L154: 0 | M154: 0 | N154: 0 | O154: 0 | P154: 0 | Q154: 0 | R154: 0 | S154: 0 | T154: 0
A155: 47 | C155: ='TABLEAU DES AMORTISSEMENTS - 05'!C157 -> 0 | D155: ='TABLEAU DES AMORTISSEMENTS - 05'!D157 -> 2 | E155: 0.5 | F155: 0 | G155: 0 | H155: 0 | I155: 0 | J155: 0 | K155: 0 | L155: 0 | M155: 0 | N155: 0 | O155: 0 | P155: 0 | Q155: 0 | R155: 0 | S155: 0 | T155: 0
A156: 48 | C156: ='TABLEAU DES AMORTISSEMENTS - 05'!C158 -> 0 | D156: ='TABLEAU DES AMORTISSEMENTS - 05'!D158 -> 2 | E156: 0.5 | F156: 0 | G156: 0 | H156: 0 | I156: 0 | J156: 0 | K156: 0 | L156: 0 | M156: 0 | N156: 0 | O156: 0 | P156: 0 | Q156: 0 | R156: 0 | S156: 0 | T156: 0
B157: TERRAINS | F157: =SUM(F158:F175) -> 0 | G157: =SUM(G158:G175) -> 0 | H157: 0 | I157: 0 | J157: 0 | K157: 0 | L157: 0 | M157: 0 | N157: =SUM(N158:N175) -> 0 | O157: 0 | P157: 0 | Q157: 0 | R157: 0 | S157: 0 | T157: 0
A158: 1 | C158: ='TABLEAU DES AMORTISSEMENTS - 05'!C163 -> 0 | D158: ='TABLEAU DES AMORTISSEMENTS - 05'!D163 -> 0 | E158: 0 | F158: =C158*E158 -> 0 | G158: =C158*E158 -> 0 | H158: =C158*E158 -> 0 | I158: =C158*E158 -> 0 | J158: =C158*E158 -> 0 | K158: =C158*E158 -> 0 | L158: =C158*E158 -> 0 | M158: =C158*E158 -> 0 | N158: =C158*E158 -> 0 | O158: =C158*E158 -> 0 | P158: =C158*E158 -> 0 | Q158: =C158*E158 -> 0 | R158: =C158*E158 -> 0 | S158: =C158*E158 -> 0 | T158: =C158*E158 -> 0
A159: =+A158+1 -> 2 | C159: ='TABLEAU DES AMORTISSEMENTS - 05'!C164 -> 0 | D159: ='TABLEAU DES AMORTISSEMENTS - 05'!D164 -> 0 | E159: 0 | F159: 0 | G159: 0 | H159: 0 | I159: 0 | J159: 0 | K159: 0 | L159: 0 | M159: 0 | N159: 0 | O159: 0 | P159: 0 | Q159: 0 | R159: 0 | S159: 0 | T159: 0
A160: =+A159+1 -> 3 | C160: ='TABLEAU DES AMORTISSEMENTS - 05'!C165 -> 0 | D160: ='TABLEAU DES AMORTISSEMENTS - 05'!D165 -> 0 | E160: 0 | F160: 0 | G160: 0 | H160: 0 | I160: 0 | J160: 0 | K160: 0 | L160: 0 | M160: 0 | N160: 0 | O160: 0 | P160: 0 | Q160: 0 | R160: 0 | S160: 0 | T160: 0
A161: 4 | C161: ='TABLEAU DES AMORTISSEMENTS - 05'!C166 -> 0 | D161: ='TABLEAU DES AMORTISSEMENTS - 05'!D166 -> 0 | E161: 0 | F161: 0 | G161: 0 | H161: 0 | I161: 0 | J161: 0 | K161: 0 | L161: 0 | M161: 0 | N161: 0 | O161: 0 | P161: 0 | Q161: 0 | R161: 0 | S161: 0 | T161: 0
A162: 5 | C162: ='TABLEAU DES AMORTISSEMENTS - 05'!C167 -> 0 | D162: ='TABLEAU DES AMORTISSEMENTS - 05'!D167 -> 0 | E162: 0 | F162: 0 | G162: 0 | H162: 0 | I162: 0 | J162: 0 | K162: 0 | L162: 0 | M162: 0 | N162: 0 | O162: 0 | P162: 0 | Q162: 0 | R162: 0 | S162: 0 | T162: 0
A163: 6 | C163: ='TABLEAU DES AMORTISSEMENTS - 05'!C168 -> 0 | D163: ='TABLEAU DES AMORTISSEMENTS - 05'!D168 -> 0 | E163: 0 | F163: 0 | G163: 0 | H163: 0 | I163: 0 | J163: 0 | K163: 0 | L163: 0 | M163: 0 | N163: 0 | O163: 0 | P163: 0 | Q163: 0 | R163: 0 | S163: 0 | T163: 0
A164: 7 | C164: ='TABLEAU DES AMORTISSEMENTS - 05'!C169 -> 0 | D164: ='TABLEAU DES AMORTISSEMENTS - 05'!D169 -> 0 | E164: 0 | F164: 0 | G164: 0 | H164: 0 | I164: 0 | J164: 0 | K164: 0 | L164: 0 | M164: 0 | N164: 0 | O164: 0 | P164: 0 | Q164: 0 | R164: 0 | S164: 0 | T164: 0
A165: 8 | C165: ='TABLEAU DES AMORTISSEMENTS - 05'!C170 -> 0 | D165: ='TABLEAU DES AMORTISSEMENTS - 05'!D170 -> 0 | E165: 0 | F165: 0 | G165: 0 | H165: 0 | I165: 0 | J165: 0 | K165: 0 | L165: 0 | M165: 0 | N165: 0 | O165: 0 | P165: 0 | Q165: 0 | R165: 0 | S165: 0 | T165: 0
A166: 9 | C166: ='TABLEAU DES AMORTISSEMENTS - 05'!C171 -> 0 | D166: ='TABLEAU DES AMORTISSEMENTS - 05'!D171 -> 0 | E166: 0 | F166: 0 | G166: 0 | H166: 0 | I166: 0 | J166: 0 | K166: 0 | L166: 0 | M166: 0 | N166: 0 | O166: 0 | P166: 0 | Q166: 0 | R166: 0 | S166: 0 | T166: 0
A167: 10 | C167: ='TABLEAU DES AMORTISSEMENTS - 05'!C172 -> 0 | D167: ='TABLEAU DES AMORTISSEMENTS - 05'!D172 -> 0 | E167: 0 | F167: 0 | G167: 0 | H167: 0 | I167: 0 | J167: 0 | K167: 0 | L167: 0 | M167: 0 | N167: 0 | O167: 0 | P167: 0 | Q167: 0 | R167: 0 | S167: 0 | T167: 0
A168: 11 | C168: ='TABLEAU DES AMORTISSEMENTS - 05'!C173 -> 0 | D168: ='TABLEAU DES AMORTISSEMENTS - 05'!D173 -> 0 | E168: 0 | F168: 0 | G168: 0 | H168: 0 | I168: 0 | J168: 0 | K168: 0 | L168: 0 | M168: 0 | N168: 0 | O168: 0 | P168: 0 | Q168: 0 | R168: 0 | S168: 0 | T168: 0
A169: 12 | C169: ='TABLEAU DES AMORTISSEMENTS - 05'!C174 -> 0 | D169: ='TABLEAU DES AMORTISSEMENTS - 05'!D174 -> 0 | E169: 0 | F169: 0 | G169: 0 | H169: 0 | I169: 0 | J169: 0 | K169: 0 | L169: 0 | M169: 0 | N169: 0 | O169: 0 | P169: 0 | Q169: 0 | R169: 0 | S169: 0 | T169: 0
A170: 13 | C170: ='TABLEAU DES AMORTISSEMENTS - 05'!C175 -> 0 | D170: ='TABLEAU DES AMORTISSEMENTS - 05'!D175 -> 0 | E170: 0 | F170: 0 | G170: 0 | H170: 0 | I170: 0 | J170: 0 | K170: 0 | L170: 0 | M170: 0 | N170: 0 | O170: 0 | P170: 0 | Q170: 0 | R170: 0 | S170: 0 | T170: 0
A171: 14 | C171: ='TABLEAU DES AMORTISSEMENTS - 05'!C176 -> 0 | D171: ='TABLEAU DES AMORTISSEMENTS - 05'!D176 -> 0 | E171: 0 | F171: 0 | G171: 0 | H171: 0 | I171: 0 | J171: 0 | K171: 0 | L171: 0 | M171: 0 | N171: 0 | O171: 0 | P171: 0 | Q171: 0 | R171: 0 | S171: 0 | T171: 0
A172: 15 | C172: ='TABLEAU DES AMORTISSEMENTS - 05'!C177 -> 0 | D172: ='TABLEAU DES AMORTISSEMENTS - 05'!D177 -> 0 | E172: 0 | F172: 0 | G172: 0 | H172: 0 | I172: 0 | J172: 0 | K172: 0 | L172: 0 | M172: 0 | N172: 0 | O172: 0 | P172: 0 | Q172: 0 | R172: 0 | S172: 0 | T172: 0
A173: 16 | C173: ='TABLEAU DES AMORTISSEMENTS - 05'!C178 -> 0 | D173: ='TABLEAU DES AMORTISSEMENTS - 05'!D178 -> 0 | E173: 0 | F173: 0 | G173: 0 | H173: 0 | I173: 0 | J173: 0 | K173: 0 | L173: 0 | M173: 0 | N173: 0 | O173: 0 | P173: 0 | Q173: 0 | R173: 0 | S173: 0 | T173: 0
A174: 17 | C174: ='TABLEAU DES AMORTISSEMENTS - 05'!C179 -> 0 | D174: ='TABLEAU DES AMORTISSEMENTS - 05'!D179 -> 0 | E174: 0 | F174: 0 | G174: 0 | H174: 0 | I174: 0 | J174: 0 | K174: 0 | L174: 0 | M174: 0 | N174: 0 | O174: 0 | P174: 0 | Q174: 0 | R174: 0 | S174: 0 | T174: 0
A175: 18 | C175: ='TABLEAU DES AMORTISSEMENTS - 05'!C180 -> 0 | D175: ='TABLEAU DES AMORTISSEMENTS - 05'!D180 -> 0 | E175: =IF(D175>0, 1/D175,0) -> 0 | F175: 0 | G175: 0 | H175: 0 | I175: 0 | J175: 0 | K175: 0 | L175: 0 | M175: 0 | N175: 0 | O175: 0 | P175: 0 | Q175: 0 | R175: 0 | S175: 0 | T175: 0
A176: 19 | C176: ='TABLEAU DES AMORTISSEMENTS - 05'!C181 -> 0 | D176: ='TABLEAU DES AMORTISSEMENTS - 05'!D181 -> 0 | E176: 0 | F176: 0 | G176: 0 | H176: 0 | I176: 0 | J176: 0 | K176: 0 | L176: 0 | M176: 0 | N176: 0 | O176: 0 | P176: 0 | Q176: 0 | R176: 0 | S176: 0 | T176: 0
A177: 20 | C177: ='TABLEAU DES AMORTISSEMENTS - 05'!C182 -> 0 | D177: ='TABLEAU DES AMORTISSEMENTS - 05'!D182 -> 0 | E177: 0 | F177: 0 | G177: 0 | H177: 0 | I177: 0 | J177: 0 | K177: 0 | L177: 0 | M177: 0 | N177: 0 | O177: 0 | P177: 0 | Q177: 0 | R177: 0 | S177: 0 | T177: 0
A178: 21 | C178: ='TABLEAU DES AMORTISSEMENTS - 05'!C183 -> 0 | D178: ='TABLEAU DES AMORTISSEMENTS - 05'!D183 -> 0 | E178: 0 | F178: 0 | G178: 0 | H178: 0 | I178: 0 | J178: 0 | K178: 0 | L178: 0 | M178: 0 | N178: 0 | O178: 0 | P178: 0 | Q178: 0 | R178: 0 | S178: 0 | T178: 0
A179: 22 | C179: ='TABLEAU DES AMORTISSEMENTS - 05'!C184 -> 0 | D179: ='TABLEAU DES AMORTISSEMENTS - 05'!D184 -> 0 | E179: 0 | F179: 0 | G179: 0 | H179: 0 | I179: 0 | J179: 0 | K179: 0 | L179: 0 | M179: 0 | N179: 0 | O179: 0 | P179: 0 | Q179: 0 | R179: 0 | S179: 0 | T179: 0
A180: 23 | C180: ='TABLEAU DES AMORTISSEMENTS - 05'!C185 -> 0 | D180: ='TABLEAU DES AMORTISSEMENTS - 05'!D185 -> 0 | E180: 0 | F180: 0 | G180: 0 | H180: 0 | I180: 0 | J180: 0 | K180: 0 | L180: 0 | M180: 0 | N180: 0 | O180: 0 | P180: 0 | Q180: 0 | R180: 0 | S180: 0 | T180: 0
A181: 24 | C181: ='TABLEAU DES AMORTISSEMENTS - 05'!C186 -> 0 | D181: ='TABLEAU DES AMORTISSEMENTS - 05'!D186 -> 0 | E181: 0 | F181: 0 | G181: 0 | H181: 0 | I181: 0 | J181: 0 | K181: 0 | L181: 0 | M181: 0 | N181: 0 | O181: 0 | P181: 0 | Q181: 0 | R181: 0 | S181: 0 | T181: 0
A182: 25 | C182: ='TABLEAU DES AMORTISSEMENTS - 05'!C187 -> 0 | D182: ='TABLEAU DES AMORTISSEMENTS - 05'!D187 -> 0 | E182: 0 | F182: 0 | G182: 0 | H182: 0 | I182: 0 | J182: 0 | K182: 0 | L182: 0 | M182: 0 | N182: 0 | O182: 0 | P182: 0 | Q182: 0 | R182: 0 | S182: 0 | T182: 0
A183: 26 | C183: ='TABLEAU DES AMORTISSEMENTS - 05'!C188 -> 0 | D183: ='TABLEAU DES AMORTISSEMENTS - 05'!D188 -> 0 | E183: 0 | F183: 0 | G183: 0 | H183: 0 | I183: 0 | J183: 0 | K183: 0 | L183: 0 | M183: 0 | N183: 0 | O183: 0 | P183: 0 | Q183: 0 | R183: 0 | S183: 0 | T183: 0
A184: 27 | C184: ='TABLEAU DES AMORTISSEMENTS - 05'!C189 -> 0 | D184: ='TABLEAU DES AMORTISSEMENTS - 05'!D189 -> 0 | E184: 0 | F184: 0 | G184: 0 | H184: 0 | I184: 0 | J184: 0 | K184: 0 | L184: 0 | M184: 0 | N184: 0 | O184: 0 | P184: 0 | Q184: 0 | R184: 0 | S184: 0 | T184: 0
A185: 28 | C185: ='TABLEAU DES AMORTISSEMENTS - 05'!C190 -> 0 | D185: ='TABLEAU DES AMORTISSEMENTS - 05'!D190 -> 0 | E185: =IF(D185>0, 1/D185,0) -> 0 | F185: =C185*E185 -> 0 | G185: =C185*E185 -> 0 | H185: =C185*E185 -> 0 | I185: =C185*E185 -> 0 | J185: =C185*E185 -> 0 | K185: =C185*E185 -> 0 | L185: =C185*E185 -> 0 | M185: =C185*E185 -> 0 | N185: =C185*E185 -> 0 | O185: =C185*E185 -> 0 | P185: =C185*E185 -> 0 | Q185: =C185*E185 -> 0 | R185: =C185*E185 -> 0 | S185: =C185*E185 -> 0 | T185: =C185*E185 -> 0
A186: 29 | C186: ='TABLEAU DES AMORTISSEMENTS - 05'!C191 -> 0 | D186: ='TABLEAU DES AMORTISSEMENTS - 05'!D191 -> 0 | E186: 0 | F186: 0 | G186: 0 | H186: 0 | I186: 0 | J186: 0 | K186: 0 | L186: 0 | M186: 0 | N186: 0 | O186: 0 | P186: 0 | Q186: 0 | R186: 0 | S186: 0 | T186: 0
A187: 30 | C187: ='TABLEAU DES AMORTISSEMENTS - 05'!C192 -> 0 | D187: ='TABLEAU DES AMORTISSEMENTS - 05'!D192 -> 0 | E187: 0 | F187: 0 | G187: 0 | H187: 0 | I187: 0 | J187: 0 | K187: 0 | L187: 0 | M187: 0 | N187: 0 | O187: 0 | P187: 0 | Q187: 0 | R187: 0 | S187: 0 | T187: 0
A188: 31 | C188: ='TABLEAU DES AMORTISSEMENTS - 05'!C193 -> 0 | D188: ='TABLEAU DES AMORTISSEMENTS - 05'!D193 -> 0 | E188: 0 | F188: 0 | G188: 0 | H188: 0 | I188: 0 | J188: 0 | K188: 0 | L188: 0 | M188: 0 | N188: 0 | O188: 0 | P188: 0 | Q188: 0 | R188: 0 | S188: 0 | T188: 0
A189: 32 | C189: ='TABLEAU DES AMORTISSEMENTS - 05'!C194 -> 0 | D189: ='TABLEAU DES AMORTISSEMENTS - 05'!D194 -> 0 | E189: 0 | F189: 0 | G189: 0 | H189: 0 | I189: 0 | J189: 0 | K189: 0 | L189: 0 | M189: 0 | N189: 0 | O189: 0 | P189: 0 | Q189: 0 | R189: 0 | S189: 0 | T189: 0
A190: 33 | C190: ='TABLEAU DES AMORTISSEMENTS - 05'!C195 -> 0 | D190: ='TABLEAU DES AMORTISSEMENTS - 05'!D195 -> 0 | E190: 0 | F190: 0 | G190: 0 | H190: 0 | I190: 0 | J190: 0 | K190: 0 | L190: 0 | M190: 0 | N190: 0 | O190: 0 | P190: 0 | Q190: 0 | R190: 0 | S190: 0 | T190: 0
A191: 34 | C191: ='TABLEAU DES AMORTISSEMENTS - 05'!C196 -> 0 | D191: ='TABLEAU DES AMORTISSEMENTS - 05'!D196 -> 0 | E191: 0 | F191: 0 | G191: 0 | H191: 0 | I191: 0 | J191: 0 | K191: 0 | L191: 0 | M191: 0 | N191: 0 | O191: 0 | P191: 0 | Q191: 0 | R191: 0 | S191: 0 | T191: 0
A192: 35 | C192: ='TABLEAU DES AMORTISSEMENTS - 05'!C197 -> 0 | D192: ='TABLEAU DES AMORTISSEMENTS - 05'!D197 -> 0 | E192: 0 | F192: 0 | G192: 0 | H192: 0 | I192: 0 | J192: 0 | K192: 0 | L192: 0 | M192: 0 | N192: 0 | O192: 0 | P192: 0 | Q192: 0 | R192: 0 | S192: 0 | T192: 0
A193: 36 | C193: ='TABLEAU DES AMORTISSEMENTS - 05'!C198 -> 0 | D193: ='TABLEAU DES AMORTISSEMENTS - 05'!D198 -> 0 | E193: 0 | F193: 0 | G193: 0 | H193: 0 | I193: 0 | J193: 0 | K193: 0 | L193: 0 | M193: 0 | N193: 0 | O193: 0 | P193: 0 | Q193: 0 | R193: 0 | S193: 0 | T193: 0
A194: 37 | C194: ='TABLEAU DES AMORTISSEMENTS - 05'!C199 -> 0 | D194: ='TABLEAU DES AMORTISSEMENTS - 05'!D199 -> 0 | E194: 0 | F194: 0 | G194: 0 | H194: 0 | I194: 0 | J194: 0 | K194: 0 | L194: 0 | M194: 0 | N194: 0 | O194: 0 | P194: 0 | Q194: 0 | R194: 0 | S194: 0 | T194: 0
A195: 38 | C195: ='TABLEAU DES AMORTISSEMENTS - 05'!C200 -> 0 | D195: ='TABLEAU DES AMORTISSEMENTS - 05'!D200 -> 0 | E195: 0 | F195: 0 | G195: 0 | H195: 0 | I195: 0 | J195: 0 | K195: 0 | L195: 0 | M195: 0 | N195: 0 | O195: 0 | P195: 0 | Q195: 0 | R195: 0 | S195: 0 | T195: 0
A196: 39 | C196: ='TABLEAU DES AMORTISSEMENTS - 05'!C201 -> 0 | D196: ='TABLEAU DES AMORTISSEMENTS - 05'!D201 -> 0 | E196: 0 | F196: 0 | G196: 0 | H196: 0 | I196: 0 | J196: 0 | K196: 0 | L196: 0 | M196: 0 | N196: 0 | O196: 0 | P196: 0 | Q196: 0 | R196: 0 | S196: 0 | T196: 0
A197: 40 | C197: ='TABLEAU DES AMORTISSEMENTS - 05'!C202 -> 0 | D197: ='TABLEAU DES AMORTISSEMENTS - 05'!D202 -> 0 | E197: 0 | F197: 0 | G197: 0 | H197: 0 | I197: 0 | J197: 0 | K197: 0 | L197: 0 | M197: 0 | N197: 0 | O197: 0 | P197: 0 | Q197: 0 | R197: 0 | S197: 0 | T197: 0
A198: 41 | C198: ='TABLEAU DES AMORTISSEMENTS - 05'!C203 -> 0 | D198: ='TABLEAU DES AMORTISSEMENTS - 05'!D203 -> 0 | E198: 0 | F198: 0 | G198: 0 | H198: 0 | I198: 0 | J198: 0 | K198: 0 | L198: 0 | M198: 0 | N198: 0 | O198: 0 | P198: 0 | Q198: 0 | R198: 0 | S198: 0 | T198: 0
A199: 42 | C199: ='TABLEAU DES AMORTISSEMENTS - 05'!C204 -> 0 | D199: ='TABLEAU DES AMORTISSEMENTS - 05'!D204 -> 0 | E199: 0 | F199: 0 | G199: 0 | H199: 0 | I199: 0 | J199: 0 | K199: 0 | L199: 0 | M199: 0 | N199: 0 | O199: 0 | P199: 0 | Q199: 0 | R199: 0 | S199: 0 | T199: 0
A200: 43 | C200: ='TABLEAU DES AMORTISSEMENTS - 05'!C205 -> 0 | D200: ='TABLEAU DES AMORTISSEMENTS - 05'!D205 -> 0 | E200: 0 | F200: 0 | G200: 0 | H200: 0 | I200: 0 | J200: 0 | K200: 0 | L200: 0 | M200: 0 | N200: 0 | O200: 0 | P200: 0 | Q200: 0 | R200: 0 | S200: 0 | T200: 0
A201: 44 | C201: ='TABLEAU DES AMORTISSEMENTS - 05'!C206 -> 0 | D201: ='TABLEAU DES AMORTISSEMENTS - 05'!D206 -> 0 | E201: 0 | F201: 0 | G201: 0 | H201: 0 | I201: 0 | J201: 0 | K201: 0 | L201: 0 | M201: 0 | N201: 0 | O201: 0 | P201: 0 | Q201: 0 | R201: 0 | S201: 0 | T201: 0
... 1732 more rows

Sheet PLANNING DES INVEST - 05
B1: ='REFERENCES - 05'!D7 -> 0 | D1: ='REFERENCES - 05'!D9 -> 0
C3: PLANNING DES INVESTISSEMENTS
A5: Investissement (HT) | B5: TRIMESTRES (T) | J5: Montant selon le tableau de planning | K5: Montant plannifié
B6: T1 | C6: T2 | D6: T3 | E6: T4 | F6: T5 | G6: T6 | H6: T7 | I6: T8
A7: INVEST Frais d'établissment -15 | J7: ='SYNTHÈSE INVESTISSEMENTS - 05'!P9 -> 0 | K7: =SUM(B7:I7) -> 0
A9: INVEST Logiciels - 15 | J9: ='SYNTHÈSE INVESTISSEMENTS - 05'!P10 -> 0 | K9: =SUM(B9:I9) -> 0
A11: INVEST.Autres Immo Incorpo - 15 | J11: ='SYNTHÈSE INVESTISSEMENTS - 05'!P11 -> 0 | K11: 0
A13: INVEST Terrains - 15 | J13: ='SYNTHÈSE INVESTISSEMENTS - 05'!P15 -> 0 | K13: 0
A15: INVEST.Constructions & Bât - 15 | J15: ='SYNTHÈSE INVESTISSEMENTS - 05'!P16 -> 0 | K15: 0
A17: INVEST - Installations & Agenc | J17: ='SYNTHÈSE INVESTISSEMENTS - 05'!P17 -> 0 | K17: 0
A19: INVEST.Mat & Outillages - 15 | J19: ='SYNTHÈSE INVESTISSEMENTS - 05'!P18 -> 0 | K19: 0
A21: INVEST.Matériels Transport - 15 | J21: ='SYNTHÈSE INVESTISSEMENTS - 05'!P19 -> 0 | K21: 0
A23: INVEST Mat & Mob Bureau - 15 | J23: ='SYNTHÈSE INVESTISSEMENTS - 05'!P20 -> 0 | K23: 0
A25: INVEST Mat Informatiques - 15 | J25: ='SYNTHÈSE INVESTISSEMENTS - 05'!P21 -> 0 | K25: 0
A27: TOTAL | B27: =SUM(B7,B9,B11,B13,B15,B17,B19,B21,B23,B25) -> 0 | C27: =SUM(C7,C9,C11,C13,C15,C17,C19,C21,C23,C25) -> 0 | D27: 0 | E27: 0 | F27: 0 | G27: 0 | H27: 0 | I27: 0 | J27: =SUM(J7,J9,J11,J13,J15,J17,J19,J21,J23,J25) -> 0 | K27: 0

Sheet TABLEAU DES AMORTISSEMENTS - 05
C1: ='REFERENCES - 05'!D7 -> 0 | E1: ='REFERENCES - 05'!D9 -> 0
B2: TABLEAU DES AMORTISSEMENTS | I2: (En F. Cfa)
B3: IMMOBILISATIONS | C3: VALEUR D'ORIGINE | D3: DUREE de VIE (année) | E3: TAUX | F3: DOTATIONS AUX AMORTISSEMENTS
F4: ANNEE 1 | G4: ANNEE 2 | H4: ANNEE 3 | I4: ANNEE 4 | J4: ANNEE 5*
B6: FRAIS D'ETABLISSEMENT | C6: =SUM(C7:C54) -> 0 | F6: =SUM(F7:F54) -> 0 | G6: 0 | H6: 0 | I6: 0 | J6: 0
A7: 1 | B7: ='INVEST Frais d''établissment -05'!B8 -> 0 | C7: ='INVEST Frais d''établissment -05'!O8 -> 0 | D7: ='REFERENCES - 05'!D26 -> 2 | E7: =IF(D7>0,1/D7,0) -> 0.5 | F7: =IF(CACHE!C6=0,0,IF((CACHE!F6/CACHE!C6*100)<101,CACHE!F6,0)) -> 0 | G7: =IF(CACHE!C6=0,0,IF((CACHE!F6+CACHE!G6)/CACHE!C6*100<101,CACHE!G6,0)) -> 0 | H7: =IF(CACHE!C6=0,0,IF((CACHE!F6+CACHE!G6+CACHE!H6)/CACHE!C6*100<101,CACHE!H6,0)) -> 0 | I7: =IF(CACHE!C6=0,0,IF((CACHE!F6+CACHE!G6+CACHE!H6+CACHE!I6)/CACHE!C6*100<101,CACHE!I6,0)) -> 0 | J7: =IF(CACHE!C6=0,0,IF((CACHE!F6+CACHE!G6+CACHE!H6+CACHE!I6+CACHE!J6)/CACHE!C6*100<101,CACHE!J6,0)) -> 0
A8: =+A7+1 -> 2 | B8: ='INVEST Frais d''établissment -05'!B9 -> 0 | C8: ='INVEST Frais d''établissment -05'!O9 -> 0 | D8: =D7 -> 2 | E8: 0.5 | F8: =IF(CACHE!C7=0,0,IF((CACHE!F7/CACHE!C7*100)<101,CACHE!F7,0)) -> 0 | G8: =IF(CACHE!C7=0,0,IF((CACHE!F7+CACHE!G7)/CACHE!C7*100<101,CACHE!G7,0)) -> 0 | H8: =IF(CACHE!C7=0,0,IF((CACHE!F7+CACHE!G7+CACHE!H7)/CACHE!C7*100<101,CACHE!H7,0)) -> 0 | I8: =IF(CACHE!C7=0,0,IF((CACHE!F7+CACHE!G7+CACHE!H7+CACHE!I7)/CACHE!C7*100<101,CACHE!I7,0)) -> 0 | J8: =IF(CACHE!C7=0,0,IF((CACHE!F7+CACHE!G7+CACHE!H7+CACHE!I7+CACHE!J7)/CACHE!C7*100<101,CACHE!J7,0)) -> 0
A9: =+A8+1 -> 3 | B9: ='INVEST Frais d''établissment -05'!B10 -> 0 | C9: ='INVEST Frais d''établissment -05'!O10 -> 0 | D9: =D8 -> 2 | E9: 0.5 | F9: =IF(CACHE!C8=0,0,IF((CACHE!F8/CACHE!C8*100)<101,CACHE!F8,0)) -> 0 | G9: =IF(CACHE!C8=0,0,IF((CACHE!F8+CACHE!G8)/CACHE!C8*100<101,CACHE!G8,0)) -> 0 | H9: =IF(CACHE!C8=0,0,IF((CACHE!F8+CACHE!G8+CACHE!H8)/CACHE!C8*100<101,CACHE!H8,0)) -> 0 | I9: =IF(CACHE!C8=0,0,IF((CACHE!F8+CACHE!G8+CACHE!H8+CACHE!I8)/CACHE!C8*100<101,CACHE!I8,0)) -> 0 | J9: =IF(CACHE!C8=0,0,IF((CACHE!F8+CACHE!G8+CACHE!H8+CACHE!I8+CACHE!J8)/CACHE!C8*100<101,CACHE!J8,0)) -> 0
A10: 4 | B10: ='INVEST Frais d''établissment -05'!B11 -> 0 | C10: ='INVEST Frais d''établissment -05'!O11 -> 0 | D10: 2 | E10: 0.5 | F10: =IF(CACHE!C9=0,0,IF((CACHE!F9/CACHE!C9*100)<101,CACHE!F9,0)) -> 0 | G10: =IF(CACHE!C9=0,0,IF((CACHE!F9+CACHE!G9)/CACHE!C9*100<101,CACHE!G9,0)) -> 0 | H10: =IF(CACHE!C9=0,0,IF((CACHE!F9+CACHE!G9+CACHE!H9)/CACHE!C9*100<101,CACHE!H9,0)) -> 0 | I10: =IF(CACHE!C9=0,0,IF((CACHE!F9+CACHE!G9+CACHE!H9+CACHE!I9)/CACHE!C9*100<101,CACHE!I9,0)) -> 0 | J10: =IF(CACHE!C9=0,0,IF((CACHE!F9+CACHE!G9+CACHE!H9+CACHE!I9+CACHE!J9)/CACHE!C9*100<101,CACHE!J9,0)) -> 0
A11: 5 | B11: ='INVEST Frais d''établissment -05'!B12 -> 0 | C11: ='INVEST Frais d''établissment -05'!O12 -> 0 | D11: 2 | E11: 0.5 | F11: =IF(CACHE!C10=0,0,IF((CACHE!F10/CACHE!C10*100)<101,CACHE!F10,0)) -> 0 | G11: =IF(CACHE!C10=0,0,IF((CACHE!F10+CACHE!G10)/CACHE!C10*100<101,CACHE!G10,0)) -> 0 | H11: =IF(CACHE!C10=0,0,IF((CACHE!F10+CACHE!G10+CACHE!H10)/CACHE!C10*100<101,CACHE!H10,0)) -> 0 | I11: =IF(CACHE!C10=0,0,IF((CACHE!F10+CACHE!G10+CACHE!H10+CACHE!I10)/CACHE!C10*100<101,CACHE!I10,0)) -> 0 | J11: =IF(CACHE!C10=0,0,IF((CACHE!F10+CACHE!G10+CACHE!H10+CACHE!I10+CACHE!J10)/CACHE!C10*100<101,CACHE!J10,0)) -> 0
A12: 6 | B12: ='INVEST Frais d''établissment -05'!B13 -> 0 | C12: ='INVEST Frais d''établissment -05'!O13 -> 0 | D12: 2 | E12: 0.5 | F12: =IF(CACHE!C11=0,0,IF((CACHE!F11/CACHE!C11*100)<101,CACHE!F11,0)) -> 0 | G12: =IF(CACHE!C11=0,0,IF((CACHE!F11+CACHE!G11)/CACHE!C11*100<101,CACHE!G11,0)) -> 0 | H12: =IF(CACHE!C11=0,0,IF((CACHE!F11+CACHE!G11+CACHE!H11)/CACHE!C11*100<101,CACHE!H11,0)) -> 0 | I12: =IF(CACHE!C11=0,0,IF((CACHE!F11+CACHE!G11+CACHE!H11+CACHE!I11)/CACHE!C11*100<101,CACHE!I11,0)) -> 0 | J12: =IF(CACHE!C11=0,0,IF((CACHE!F11+CACHE!G11+CACHE!H11+CACHE!I11+CACHE!J11)/CACHE!C11*100<101,CACHE!J11,0)) -> 0
A13: 7 | B13: ='INVEST Frais d''établissment -05'!B14 -> 0 | C13: ='INVEST Frais d''établissment -05'!O14 -> 0 | D13: 2 | E13: 0.5 | F13: =IF(CACHE!C12=0,0,IF((CACHE!F12/CACHE!C12*100)<101,CACHE!F12,0)) -> 0 | G13: =IF(CACHE!C12=0,0,IF((CACHE!F12+CACHE!G12)/CACHE!C12*100<101,CACHE!G12,0)) -> 0 | H13: =IF(CACHE!C12=0,0,IF((CACHE!F12+CACHE!G12+CACHE!H12)/CACHE!C12*100<101,CACHE!H12,0)) -> 0 | I13: =IF(CACHE!C12=0,0,IF((CACHE!F12+CACHE!G12+CACHE!H12+CACHE!I12)/CACHE!C12*100<101,CACHE!I12,0)) -> 0 | J13: =IF(CACHE!C12=0,0,IF((CACHE!F12+CACHE!G12+CACHE!H12+CACHE!I12+CACHE!J12)/CACHE!C12*100<101,CACHE!J12,0)) -> 0
A14: 8 | B14: ='INVEST Frais d''établissment -05'!B15 -> 0 | C14: ='INVEST Frais d''établissment -05'!O15 -> 0 | D14: 2 | E14: 0.5 | F14: =IF(CACHE!C13=0,0,IF((CACHE!F13/CACHE!C13*100)<101,CACHE!F13,0)) -> 0 | G14: =IF(CACHE!C13=0,0,IF((CACHE!F13+CACHE!G13)/CACHE!C13*100<101,CACHE!G13,0)) -> 0 | H14: =IF(CACHE!C13=0,0,IF((CACHE!F13+CACHE!G13+CACHE!H13)/CACHE!C13*100<101,CACHE!H13,0)) -> 0 | I14: =IF(CACHE!C13=0,0,IF((CACHE!F13+CACHE!G13+CACHE!H13+CACHE!I13)/CACHE!C13*100<101,CACHE!I13,0)) -> 0 | J14: =IF(CACHE!C13=0,0,IF((CACHE!F13+CACHE!G13+CACHE!H13+CACHE!I13+CACHE!J13)/CACHE!C13*100<101,CACHE!J13,0)) -> 0
A15: 9 | B15: ='INVEST Frais d''établissment -05'!B16 -> 0 | C15: ='INVEST Frais d''établissment -05'!O16 -> 0 | D15: 2 | E15: 0.5 | F15: =IF(CACHE!C14=0,0,IF((CACHE!F14/CACHE!C14*100)<101,CACHE!F14,0)) -> 0 | G15: =IF(CACHE!C14=0,0,IF((CACHE!F14+CACHE!G14)/CACHE!C14*100<101,CACHE!G14,0)) -> 0 | H15: =IF(CACHE!C14=0,0,IF((CACHE!F14+CACHE!G14+CACHE!H14)/CACHE!C14*100<101,CACHE!H14,0)) -> 0 | I15: =IF(CACHE!C14=0,0,IF((CACHE!F14+CACHE!G14+CACHE!H14+CACHE!I14)/CACHE!C14*100<101,CACHE!I14,0)) -> 0 | J15: =IF(CACHE!C14=0,0,IF((CACHE!F14+CACHE!G14+CACHE!H14+CACHE!I14+CACHE!J14)/CACHE!C14*100<101,CACHE!J14,0)) -> 0
A16: 10 | B16: ='INVEST Frais d''établissment -05'!B17 -> 0 | C16: ='INVEST Frais d''établissment -05'!O17 -> 0 | D16: 2 | E16: 0.5 | F16: =IF(CACHE!C15=0,0,IF((CACHE!F15/CACHE!C15*100)<101,CACHE!F15,0)) -> 0 | G16: =IF(CACHE!C15=0,0,IF((CACHE!F15+CACHE!G15)/CACHE!C15*100<101,CACHE!G15,0)) -> 0 | H16: =IF(CACHE!C15=0,0,IF((CACHE!F15+CACHE!G15+CACHE!H15)/CACHE!C15*100<101,CACHE!H15,0)) -> 0 | I16: =IF(CACHE!C15=0,0,IF((CACHE!F15+CACHE!G15+CACHE!H15+CACHE!I15)/CACHE!C15*100<101,CACHE!I15,0)) -> 0 | J16: =IF(CACHE!C15=0,0,IF((CACHE!F15+CACHE!G15+CACHE!H15+CACHE!I15+CACHE!J15)/CACHE!C15*100<101,CACHE!J15,0)) -> 0
A17: 11 | B17: ='INVEST Frais d''établissment -05'!B18 -> 0 | C17: ='INVEST Frais d''établissment -05'!O18 -> 0 | D17: 2 | E17: 0.5 | F17: =IF(CACHE!C16=0,0,IF((CACHE!F16/CACHE!C16*100)<101,CACHE!F16,0)) -> 0 | G17: =IF(CACHE!C16=0,0,IF((CACHE!F16+CACHE!G16)/CACHE!C16*100<101,CACHE!G16,0)) -> 0 | H17: =IF(CACHE!C16=0,0,IF((CACHE!F16+CACHE!G16+CACHE!H16)/CACHE!C16*100<101,CACHE!H16,0)) -> 0 | I17: =IF(CACHE!C16=0,0,IF((CACHE!F16+CACHE!G16+CACHE!H16+CACHE!I16)/CACHE!C16*100<101,CACHE!I16,0)) -> 0 | J17: =IF(CACHE!C16=0,0,IF((CACHE!F16+CACHE!G16+CACHE!H16+CACHE!I16+CACHE!J16)/CACHE!C16*100<101,CACHE!J16,0)) -> 0
A18: 12 | B18: ='INVEST Frais d''établissment -05'!B19 -> 0 | C18: ='INVEST Frais d''établissment -05'!O19 -> 0 | D18: 2 | E18: 0.5 | F18: =IF(CACHE!C17=0,0,IF((CACHE!F17/CACHE!C17*100)<101,CACHE!F17,0)) -> 0 | G18: =IF(CACHE!C17=0,0,IF((CACHE!F17+CACHE!G17)/CACHE!C17*100<101,CACHE!G17,0)) -> 0 | H18: =IF(CACHE!C17=0,0,IF((CACHE!F17+CACHE!G17+CACHE!H17)/CACHE!C17*100<101,CACHE!H17,0)) -> 0 | I18: =IF(CACHE!C17=0,0,IF((CACHE!F17+CACHE!G17+CACHE!H17+CACHE!I17)/CACHE!C17*100<101,CACHE!I17,0)) -> 0 | J18: =IF(CACHE!C17=0,0,IF((CACHE!F17+CACHE!G17+CACHE!H17+CACHE!I17+CACHE!J17)/CACHE!C17*100<101,CACHE!J17,0)) -> 0
A19: 13 | B19: ='INVEST Frais d''établissment -05'!B20 -> 0 | C19: ='INVEST Frais d''établissment -05'!O20 -> 0 | D19: 2 | E19: 0.5 | F19: =IF(CACHE!C18=0,0,IF((CACHE!F18/CACHE!C18*100)<101,CACHE!F18,0)) -> 0 | G19: =IF(CACHE!C18=0,0,IF((CACHE!F18+CACHE!G18)/CACHE!C18*100<101,CACHE!G18,0)) -> 0 | H19: =IF(CACHE!C18=0,0,IF((CACHE!F18+CACHE!G18+CACHE!H18)/CACHE!C18*100<101,CACHE!H18,0)) -> 0 | I19: =IF(CACHE!C18=0,0,IF((CACHE!F18+CACHE!G18+CACHE!H18+CACHE!I18)/CACHE!C18*100<101,CACHE!I18,0)) -> 0 | J19: =IF(CACHE!C18=0,0,IF((CACHE!F18+CACHE!G18+CACHE!H18+CACHE!I18+CACHE!J18)/CACHE!C18*100<101,CACHE!J18,0)) -> 0
A20: 14 | B20: ='INVEST Frais d''établissment -05'!B21 -> 0 | C20: ='INVEST Frais d''établissment -05'!O21 -> 0 | D20: 2 | E20: 0.5 | F20: =IF(CACHE!C19=0,0,IF((CACHE!F19/CACHE!C19*100)<101,CACHE!F19,0)) -> 0 | G20: =IF(CACHE!C19=0,0,IF((CACHE!F19+CACHE!G19)/CACHE!C19*100<101,CACHE!G19,0)) -> 0 | H20: =IF(CACHE!C19=0,0,IF((CACHE!F19+CACHE!G19+CACHE!H19)/CACHE!C19*100<101,CACHE!H19,0)) -> 0 | I20: =IF(CACHE!C19=0,0,IF((CACHE!F19+CACHE!G19+CACHE!H19+CACHE!I19)/CACHE!C19*100<101,CACHE!I19,0)) -> 0 | J20: =IF(CACHE!C19=0,0,IF((CACHE!F19+CACHE!G19+CACHE!H19+CACHE!I19+CACHE!J19)/CACHE!C19*100<101,CACHE!J19,0)) -> 0
A21: 15 | B21: ='INVEST Frais d''établissment -05'!B22 -> 0 | C21: ='INVEST Frais d''établissment -05'!O22 -> 0 | D21: 2 | E21: 0.5 | F21: =IF(CACHE!C20=0,0,IF((CACHE!F20/CACHE!C20*100)<101,CACHE!F20,0)) -> 0 | G21: =IF(CACHE!C20=0,0,IF((CACHE!F20+CACHE!G20)/CACHE!C20*100<101,CACHE!G20,0)) -> 0 | H21: =IF(CACHE!C20=0,0,IF((CACHE!F20+CACHE!G20+CACHE!H20)/CACHE!C20*100<101,CACHE!H20,0)) -> 0 | I21: =IF(CACHE!C20=0,0,IF((CACHE!F20+CACHE!G20+CACHE!H20+CACHE!I20)/CACHE!C20*100<101,CACHE!I20,0)) -> 0 | J21: =IF(CACHE!C20=0,0,IF((CACHE!F20+CACHE!G20+CACHE!H20+CACHE!I20+CACHE!J20)/CACHE!C20*100<101,CACHE!J20,0)) -> 0
A22: 16 | B22: ='INVEST Frais d''établissment -05'!B23 -> 0 | C22: ='INVEST Frais d''établissment -05'!O23 -> 0 | D22: 2 | E22: 0.5 | F22: =IF(CACHE!C21=0,0,IF((CACHE!F21/CACHE!C21*100)<101,CACHE!F21,0)) -> 0 | G22: =IF(CACHE!C21=0,0,IF((CACHE!F21+CACHE!G21)/CACHE!C21*100<101,CACHE!G21,0)) -> 0 | H22: =IF(CACHE!C21=0,0,IF((CACHE!F21+CACHE!G21+CACHE!H21)/CACHE!C21*100<101,CACHE!H21,0)) -> 0 | I22: =IF(CACHE!C21=0,0,IF((CACHE!F21+CACHE!G21+CACHE!H21+CACHE!I21)/CACHE!C21*100<101,CACHE!I21,0)) -> 0 | J22: =IF(CACHE!C21=0,0,IF((CACHE!F21+CACHE!G21+CACHE!H21+CACHE!I21+CACHE!J21)/CACHE!C21*100<101,CACHE!J21,0)) -> 0
A23: 17 | B23: ='INVEST Frais d''établissment -05'!B24 -> 0 | C23: ='INVEST Frais d''établissment -05'!O24 -> 0 | D23: 2 | E23: 0.5 | F23: =IF(CACHE!C22=0,0,IF((CACHE!F22/CACHE!C22*100)<101,CACHE!F22,0)) -> 0 | G23: =IF(CACHE!C22=0,0,IF((CACHE!F22+CACHE!G22)/CACHE!C22*100<101,CACHE!G22,0)) -> 0 | H23: =IF(CACHE!C22=0,0,IF((CACHE!F22+CACHE!G22+CACHE!H22)/CACHE!C22*100<101,CACHE!H22,0)) -> 0 | I23: =IF(CACHE!C22=0,0,IF((CACHE!F22+CACHE!G22+CACHE!H22+CACHE!I22)/CACHE!C22*100<101,CACHE!I22,0)) -> 0 | J23: =IF(CACHE!C22=0,0,IF((CACHE!F22+CACHE!G22+CACHE!H22+CACHE!I22+CACHE!J22)/CACHE!C22*100<101,CACHE!J22,0)) -> 0
A24: 18 | B24: ='INVEST Frais d''établissment -05'!B25 -> 0 | C24: ='INVEST Frais d''établissment -05'!O25 -> 0 | D24: 2 | E24: =IF(D24>0,1/D24,0) -> 0.5 | F24: =IF(CACHE!C23=0,0,IF((CACHE!F23/CACHE!C23*100)<101,CACHE!F23,0)) -> 0 | G24: =IF(CACHE!C23=0,0,IF((CACHE!F23+CACHE!G23)/CACHE!C23*100<101,CACHE!G23,0)) -> 0 | H24: =IF(CACHE!C23=0,0,IF((CACHE!F23+CACHE!G23+CACHE!H23)/CACHE!C23*100<101,CACHE!H23,0)) -> 0 | I24: =IF(CACHE!C23=0,0,IF((CACHE!F23+CACHE!G23+CACHE!H23+CACHE!I23)/CACHE!C23*100<101,CACHE!I23,0)) -> 0 | J24: =IF(CACHE!C23=0,0,IF((CACHE!F23+CACHE!G23+CACHE!H23+CACHE!I23+CACHE!J23)/CACHE!C23*100<101,CACHE!J23,0)) -> 0
A25: 19 | B25: ='INVEST Frais d''établissment -05'!B26 -> 0 | C25: ='INVEST Frais d''établissment -05'!O26 -> 0 | D25: 2 | E25: 0.5 | F25: =IF(CACHE!C24=0,0,IF((CACHE!F24/CACHE!C24*100)<101,CACHE!F24,0)) -> 0 | G25: =IF(CACHE!C24=0,0,IF((CACHE!F24+CACHE!G24)/CACHE!C24*100<101,CACHE!G24,0)) -> 0 | H25: =IF(CACHE!C24=0,0,IF((CACHE!F24+CACHE!G24+CACHE!H24)/CACHE!C24*100<101,CACHE!H24,0)) -> 0 | I25: =IF(CACHE!C24=0,0,IF((CACHE!F24+CACHE!G24+CACHE!H24+CACHE!I24)/CACHE!C24*100<101,CACHE!I24,0)) -> 0 | J25: =IF(CACHE!C24=0,0,IF((CACHE!F24+CACHE!G24+CACHE!H24+CACHE!I24+CACHE!J24)/CACHE!C24*100<101,CACHE!J24,0)) -> 0
A26: 20 | B26: ='INVEST Frais d''établissment -05'!B27 -> 0 | C26: ='INVEST Frais d''établissment -05'!O27 -> 0 | D26: 2 | E26: 0.5 | F26: =IF(CACHE!C25=0,0,IF((CACHE!F25/CACHE!C25*100)<101,CACHE!F25,0)) -> 0 | G26: =IF(CACHE!C25=0,0,IF((CACHE!F25+CACHE!G25)/CACHE!C25*100<101,CACHE!G25,0)) -> 0 | H26: =IF(CACHE!C25=0,0,IF((CACHE!F25+CACHE!G25+CACHE!H25)/CACHE!C25*100<101,CACHE!H25,0)) -> 0 | I26: =IF(CACHE!C25=0,0,IF((CACHE!F25+CACHE!G25+CACHE!H25+CACHE!I25)/CACHE!C25*100<101,CACHE!I25,0)) -> 0 | J26: =IF(CACHE!C25=0,0,IF((CACHE!F25+CACHE!G25+CACHE!H25+CACHE!I25+CACHE!J25)/CACHE!C25*100<101,CACHE!J25,0)) -> 0
A27: 21 | B27: ='INVEST Frais d''établissment -05'!B28 -> 0 | C27: ='INVEST Frais d''établissment -05'!O28 -> 0 | D27: 2 | E27: 0.5 | F27: =IF(CACHE!C26=0,0,IF((CACHE!F26/CACHE!C26*100)<101,CACHE!F26,0)) -> 0 | G27: =IF(CACHE!C26=0,0,IF((CACHE!F26+CACHE!G26)/CACHE!C26*100<101,CACHE!G26,0)) -> 0 | H27: =IF(CACHE!C26=0,0,IF((CACHE!F26+CACHE!G26+CACHE!H26)/CACHE!C26*100<101,CACHE!H26,0)) -> 0 | I27: =IF(CACHE!C26=0,0,IF((CACHE!F26+CACHE!G26+CACHE!H26+CACHE!I26)/CACHE!C26*100<101,CACHE!I26,0)) -> 0 | J27: =IF(CACHE!C26=0,0,IF((CACHE!F26+CACHE!G26+CACHE!H26+CACHE!I26+CACHE!J26)/CACHE!C26*100<101,CACHE!J26,0)) -> 0
A28: 22 | B28: ='INVEST Frais d''établissment -05'!B29 -> 0 | C28: ='INVEST Frais d''établissment -05'!O29 -> 0 | D28: 2 | E28: 0.5 | F28: =IF(CACHE!C27=0,0,IF((CACHE!F27/CACHE!C27*100)<101,CACHE!F27,0)) -> 0 | G28: =IF(CACHE!C27=0,0,IF((CACHE!F27+CACHE!G27)/CACHE!C27*100<101,CACHE!G27,0)) -> 0 | H28: =IF(CACHE!C27=0,0,IF((CACHE!F27+CACHE!G27+CACHE!H27)/CACHE!C27*100<101,CACHE!H27,0)) -> 0 | I28: =IF(CACHE!C27=0,0,IF((CACHE!F27+CACHE!G27+CACHE!H27+CACHE!I27)/CACHE!C27*100<101,CACHE!I27,0)) -> 0 | J28: =IF(CACHE!C27=0,0,IF((CACHE!F27+CACHE!G27+CACHE!H27+CACHE!I27+CACHE!J27)/CACHE!C27*100<101,CACHE!J27,0)) -> 0
A29: 23 | B29: ='INVEST Frais d''établissment -05'!B30 -> 0 | C29: ='INVEST Frais d''établissment -05'!O30 -> 0 | D29: 2 | E29: 0.5 | F29: =IF(CACHE!C28=0,0,IF((CACHE!F28/CACHE!C28*100)<101,CACHE!F28,0)) -> 0 | G29: =IF(CACHE!C28=0,0,IF((CACHE!F28+CACHE!G28)/CACHE!C28*100<101,CACHE!G28,0)) -> 0 | H29: =IF(CACHE!C28=0,0,IF((CACHE!F28+CACHE!G28+CACHE!H28)/CACHE!C28*100<101,CACHE!H28,0)) -> 0 | I29: =IF(CACHE!C28=0,0,IF((CACHE!F28+CACHE!G28+CACHE!H28+CACHE!I28)/CACHE!C28*100<101,CACHE!I28,0)) -> 0 | J29: =IF(CACHE!C28=0,0,IF((CACHE!F28+CACHE!G28+CACHE!H28+CACHE!I28+CACHE!J28)/CACHE!C28*100<101,CACHE!J28,0)) -> 0
A30: 24 | B30: ='INVEST Frais d''établissment -05'!B31 -> 0 | C30: ='INVEST Frais d''établissment -05'!O31 -> 0 | D30: 2 | E30: 0.5 | F30: =IF(CACHE!C29=0,0,IF((CACHE!F29/CACHE!C29*100)<101,CACHE!F29,0)) -> 0 | G30: =IF(CACHE!C29=0,0,IF((CACHE!F29+CACHE!G29)/CACHE!C29*100<101,CACHE!G29,0)) -> 0 | H30: =IF(CACHE!C29=0,0,IF((CACHE!F29+CACHE!G29+CACHE!H29)/CACHE!C29*100<101,CACHE!H29,0)) -> 0 | I30: =IF(CACHE!C29=0,0,IF((CACHE!F29+CACHE!G29+CACHE!H29+CACHE!I29)/CACHE!C29*100<101,CACHE!I29,0)) -> 0 | J30: =IF(CACHE!C29=0,0,IF((CACHE!F29+CACHE!G29+CACHE!H29+CACHE!I29+CACHE!J29)/CACHE!C29*100<101,CACHE!J29,0)) -> 0
A31: 25 | B31: ='INVEST Frais d''établissment -05'!B32 -> 0 | C31: ='INVEST Frais d''établissment -05'!O32 -> 0 | D31: 2 | E31: 0.5 | F31: =IF(CACHE!C30=0,0,IF((CACHE!F30/CACHE!C30*100)<101,CACHE!F30,0)) -> 0 | G31: =IF(CACHE!C30=0,0,IF((CACHE!F30+CACHE!G30)/CACHE!C30*100<101,CACHE!G30,0)) -> 0 | H31: =IF(CACHE!C30=0,0,IF((CACHE!F30+CACHE!G30+CACHE!H30)/CACHE!C30*100<101,CACHE!H30,0)) -> 0 | I31: =IF(CACHE!C30=0,0,IF((CACHE!F30+CACHE!G30+CACHE!H30+CACHE!I30)/CACHE!C30*100<101,CACHE!I30,0)) -> 0 | J31: =IF(CACHE!C30=0,0,IF((CACHE!F30+CACHE!G30+CACHE!H30+CACHE!I30+CACHE!J30)/CACHE!C30*100<101,CACHE!J30,0)) -> 0
A32: 26 | B32: ='INVEST Frais d''établissment -05'!B33 -> 0 | C32: ='INVEST Frais d''établissment -05'!O33 -> 0 | D32: 2 | E32: 0.5 | F32: =IF(CACHE!C31=0,0,IF((CACHE!F31/CACHE!C31*100)<101,CACHE!F31,0)) -> 0 | G32: =IF(CACHE!C31=0,0,IF((CACHE!F31+CACHE!G31)/CACHE!C31*100<101,CACHE!G31,0)) -> 0 | H32: =IF(CACHE!C31=0,0,IF((CACHE!F31+CACHE!G31+CACHE!H31)/CACHE!C31*100<101,CACHE!H31,0)) -> 0 | I32: =IF(CACHE!C31=0,0,IF((CACHE!F31+CACHE!G31+CACHE!H31+CACHE!I31)/CACHE!C31*100<101,CACHE!I31,0)) -> 0 | J32: =IF(CACHE!C31=0,0,IF((CACHE!F31+CACHE!G31+CACHE!H31+CACHE!I31+CACHE!J31)/CACHE!C31*100<101,CACHE!J31,0)) -> 0
A33: 27 | B33: ='INVEST Frais d''établissment -05'!B34 -> 0 | C33: ='INVEST Frais d''établissment -05'!O34 -> 0 | D33: 2 | E33: 0.5 | F33: =IF(CACHE!C32=0,0,IF((CACHE!F32/CACHE!C32*100)<101,CACHE!F32,0)) -> 0 | G33: =IF(CACHE!C32=0,0,IF((CACHE!F32+CACHE!G32)/CACHE!C32*100<101,CACHE!G32,0)) -> 0 | H33: =IF(CACHE!C32=0,0,IF((CACHE!F32+CACHE!G32+CACHE!H32)/CACHE!C32*100<101,CACHE!H32,0)) -> 0 | I33: =IF(CACHE!C32=0,0,IF((CACHE!F32+CACHE!G32+CACHE!H32+CACHE!I32)/CACHE!C32*100<101,CACHE!I32,0)) -> 0 | J33: =IF(CACHE!C32=0,0,IF((CACHE!F32+CACHE!G32+CACHE!H32+CACHE!I32+CACHE!J32)/CACHE!C32*100<101,CACHE!J32,0)) -> 0
A34: 28 | B34: ='INVEST Frais d''établissment -05'!B35 -> 0 | C34: ='INVEST Frais d''établissment -05'!O35 -> 0 | D34: 2 | E34: =IF(D34>0,1/D34,0) -> 0.5 | F34: =IF(CACHE!C33=0,0,IF((CACHE!F33/CACHE!C33*100)<101,CACHE!F33,0)) -> 0 | G34: =IF(CACHE!C33=0,0,IF((CACHE!F33+CACHE!G33)/CACHE!C33*100<101,CACHE!G33,0)) -> 0 | H34: =IF(CACHE!C33=0,0,IF((CACHE!F33+CACHE!G33+CACHE!H33)/CACHE!C33*100<101,CACHE!H33,0)) -> 0 | I34: =IF(CACHE!C33=0,0,IF((CACHE!F33+CACHE!G33+CACHE!H33+CACHE!I33)/CACHE!C33*100<101,CACHE!I33,0)) -> 0 | J34: =IF(CACHE!C33=0,0,IF((CACHE!F33+CACHE!G33+CACHE!H33+CACHE!I33+CACHE!J33)/CACHE!C33*100<101,CACHE!J33,0)) -> 0
A35: 29 | B35: ='INVEST Frais d''établissment -05'!B36 -> 0 | C35: ='INVEST Frais d''établissment -05'!O36 -> 0 | D35: 2 | E35: 0.5 | F35: =IF(CACHE!C34=0,0,IF((CACHE!F34/CACHE!C34*100)<101,CACHE!F34,0)) -> 0 | G35: =IF(CACHE!C34=0,0,IF((CACHE!F34+CACHE!G34)/CACHE!C34*100<101,CACHE!G34,0)) -> 0 | H35: =IF(CACHE!C34=0,0,IF((CACHE!F34+CACHE!G34+CACHE!H34)/CACHE!C34*100<101,CACHE!H34,0)) -> 0 | I35: =IF(CACHE!C34=0,0,IF((CACHE!F34+CACHE!G34+CACHE!H34+CACHE!I34)/CACHE!C34*100<101,CACHE!I34,0)) -> 0 | J35: =IF(CACHE!C34=0,0,IF((CACHE!F34+CACHE!G34+CACHE!H34+CACHE!I34+CACHE!J34)/CACHE!C34*100<101,CACHE!J34,0)) -> 0
A36: 30 | B36: ='INVEST Frais d''établissment -05'!B37 -> 0 | C36: ='INVEST Frais d''établissment -05'!O37 -> 0 | D36: 2 | E36: 0.5 | F36: =IF(CACHE!C35=0,0,IF((CACHE!F35/CACHE!C35*100)<101,CACHE!F35,0)) -> 0 | G36: =IF(CACHE!C35=0,0,IF((CACHE!F35+CACHE!G35)/CACHE!C35*100<101,CACHE!G35,0)) -> 0 | H36: =IF(CACHE!C35=0,0,IF((CACHE!F35+CACHE!G35+CACHE!H35)/CACHE!C35*100<101,CACHE!H35,0)) -> 0 | I36: =IF(CACHE!C35=0,0,IF((CACHE!F35+CACHE!G35+CACHE!H35+CACHE!I35)/CACHE!C35*100<101,CACHE!I35,0)) -> 0 | J36: =IF(CACHE!C35=0,0,IF((CACHE!F35+CACHE!G35+CACHE!H35+CACHE!I35+CACHE!J35)/CACHE!C35*100<101,CACHE!J35,0)) -> 0
A37: 31 | B37: ='INVEST Frais d''établissment -05'!B38 -> 0 | C37: ='INVEST Frais d''établissment -05'!O38 -> 0 | D37: 2 | E37: 0.5 | F37: =IF(CACHE!C36=0,0,IF((CACHE!F36/CACHE!C36*100)<101,CACHE!F36,0)) -> 0 | G37: =IF(CACHE!C36=0,0,IF((CACHE!F36+CACHE!G36)/CACHE!C36*100<101,CACHE!G36,0)) -> 0 | H37: =IF(CACHE!C36=0,0,IF((CACHE!F36+CACHE!G36+CACHE!H36)/CACHE!C36*100<101,CACHE!H36,0)) -> 0 | I37: =IF(CACHE!C36=0,0,IF((CACHE!F36+CACHE!G36+CACHE!H36+CACHE!I36)/CACHE!C36*100<101,CACHE!I36,0)) -> 0 | J37: =IF(CACHE!C36=0,0,IF((CACHE!F36+CACHE!G36+CACHE!H36+CACHE!I36+CACHE!J36)/CACHE!C36*100<101,CACHE!J36,0)) -> 0
A38: 32 | B38: ='INVEST Frais d''établissment -05'!B39 -> 0 | C38: ='INVEST Frais d''établissment -05'!O39 -> 0 | D38: 2 | E38: 0.5 | F38: =IF(CACHE!C37=0,0,IF((CACHE!F37/CACHE!C37*100)<101,CACHE!F37,0)) -> 0 | G38: =IF(CACHE!C37=0,0,IF((CACHE!F37+CACHE!G37)/CACHE!C37*100<101,CACHE!G37,0)) -> 0 | H38: =IF(CACHE!C37=0,0,IF((CACHE!F37+CACHE!G37+CACHE!H37)/CACHE!C37*100<101,CACHE!H37,0)) -> 0 | I38: =IF(CACHE!C37=0,0,IF((CACHE!F37+CACHE!G37+CACHE!H37+CACHE!I37)/CACHE!C37*100<101,CACHE!I37,0)) -> 0 | J38: =IF(CACHE!C37=0,0,IF((CACHE!F37+CACHE!G37+CACHE!H37+CACHE!I37+CACHE!J37)/CACHE!C37*100<101,CACHE!J37,0)) -> 0
A39: 33 | B39: ='INVEST Frais d''établissment -05'!B40 -> 0 | C39: ='INVEST Frais d''établissment -05'!O40 -> 0 | D39: 2 | E39: 0.5 | F39: =IF(CACHE!C38=0,0,IF((CACHE!F38/CACHE!C38*100)<101,CACHE!F38,0)) -> 0 | G39: =IF(CACHE!C38=0,0,IF((CACHE!F38+CACHE!G38)/CACHE!C38*100<101,CACHE!G38,0)) -> 0 | H39: =IF(CACHE!C38=0,0,IF((CACHE!F38+CACHE!G38+CACHE!H38)/CACHE!C38*100<101,CACHE!H38,0)) -> 0 | I39: =IF(CACHE!C38=0,0,IF((CACHE!F38+CACHE!G38+CACHE!H38+CACHE!I38)/CACHE!C38*100<101,CACHE!I38,0)) -> 0 | J39: =IF(CACHE!C38=0,0,IF((CACHE!F38+CACHE!G38+CACHE!H38+CACHE!I38+CACHE!J38)/CACHE!C38*100<101,CACHE!J38,0)) -> 0
A40: 34 | B40: ='INVEST Frais d''établissment -05'!B41 -> 0 | C40: ='INVEST Frais d''établissment -05'!O41 -> 0 | D40: 2 | E40: 0.5 | F40: =IF(CACHE!C39=0,0,IF((CACHE!F39/CACHE!C39*100)<101,CACHE!F39,0)) -> 0 | G40: =IF(CACHE!C39=0,0,IF((CACHE!F39+CACHE!G39)/CACHE!C39*100<101,CACHE!G39,0)) -> 0 | H40: =IF(CACHE!C39=0,0,IF((CACHE!F39+CACHE!G39+CACHE!H39)/CACHE!C39*100<101,CACHE!H39,0)) -> 0 | I40: =IF(CACHE!C39=0,0,IF((CACHE!F39+CACHE!G39+CACHE!H39+CACHE!I39)/CACHE!C39*100<101,CACHE!I39,0)) -> 0 | J40: =IF(CACHE!C39=0,0,IF((CACHE!F39+CACHE!G39+CACHE!H39+CACHE!I39+CACHE!J39)/CACHE!C39*100<101,CACHE!J39,0)) -> 0
A41: 35 | B41: ='INVEST Frais d''établissment -05'!B42 -> 0 | C41: ='INVEST Frais d''établissment -05'!O42 -> 0 | D41: 2 | E41: 0.5 | F41: =IF(CACHE!C40=0,0,IF((CACHE!F40/CACHE!C40*100)<101,CACHE!F40,0)) -> 0 | G41: =IF(CACHE!C40=0,0,IF((CACHE!F40+CACHE!G40)/CACHE!C40*100<101,CACHE!G40,0)) -> 0 | H41: =IF(CACHE!C40=0,0,IF((CACHE!F40+CACHE!G40+CACHE!H40)/CACHE!C40*100<101,CACHE!H40,0)) -> 0 | I41: =IF(CACHE!C40=0,0,IF((CACHE!F40+CACHE!G40+CACHE!H40+CACHE!I40)/CACHE!C40*100<101,CACHE!I40,0)) -> 0 | J41: =IF(CACHE!C40=0,0,IF((CACHE!F40+CACHE!G40+CACHE!H40+CACHE!I40+CACHE!J40)/CACHE!C40*100<101,CACHE!J40,0)) -> 0
A42: 36 | B42: ='INVEST Frais d''établissment -05'!B43 -> 0 | C42: ='INVEST Frais d''établissment -05'!O43 -> 0 | D42: 2 | E42: 0.5 | F42: =IF(CACHE!C41=0,0,IF((CACHE!F41/CACHE!C41*100)<101,CACHE!F41,0)) -> 0 | G42: =IF(CACHE!C41=0,0,IF((CACHE!F41+CACHE!G41)/CACHE!C41*100<101,CACHE!G41,0)) -> 0 | H42: =IF(CACHE!C41=0,0,IF((CACHE!F41+CACHE!G41+CACHE!H41)/CACHE!C41*100<101,CACHE!H41,0)) -> 0 | I42: =IF(CACHE!C41=0,0,IF((CACHE!F41+CACHE!G41+CACHE!H41+CACHE!I41)/CACHE!C41*100<101,CACHE!I41,0)) -> 0 | J42: =IF(CACHE!C41=0,0,IF((CACHE!F41+CACHE!G41+CACHE!H41+CACHE!I41+CACHE!J41)/CACHE!C41*100<101,CACHE!J41,0)) -> 0
A43: 37 | B43: ='INVEST Frais d''établissment -05'!B44 -> 0 | C43: ='INVEST Frais d''établissment -05'!O44 -> 0 | D43: 2 | E43: 0.5 | F43: =IF(CACHE!C42=0,0,IF((CACHE!F42/CACHE!C42*100)<101,CACHE!F42,0)) -> 0 | G43: =IF(CACHE!C42=0,0,IF((CACHE!F42+CACHE!G42)/CACHE!C42*100<101,CACHE!G42,0)) -> 0 | H43: =IF(CACHE!C42=0,0,IF((CACHE!F42+CACHE!G42+CACHE!H42)/CACHE!C42*100<101,CACHE!H42,0)) -> 0 | I43: =IF(CACHE!C42=0,0,IF((CACHE!F42+CACHE!G42+CACHE!H42+CACHE!I42)/CACHE!C42*100<101,CACHE!I42,0)) -> 0 | J43: =IF(CACHE!C42=0,0,IF((CACHE!F42+CACHE!G42+CACHE!H42+CACHE!I42+CACHE!J42)/CACHE!C42*100<101,CACHE!J42,0)) -> 0
A44: 38 | B44: ='INVEST Frais d''établissment -05'!B45 -> 0 | C44: ='INVEST Frais d''établissment -05'!O45 -> 0 | D44: 2 | E44: 0.5 | F44: =IF(CACHE!C43=0,0,IF((CACHE!F43/CACHE!C43*100)<101,CACHE!F43,0)) -> 0 | G44: =IF(CACHE!C43=0,0,IF((CACHE!F43+CACHE!G43)/CACHE!C43*100<101,CACHE!G43,0)) -> 0 | H44: =IF(CACHE!C43=0,0,IF((CACHE!F43+CACHE!G43+CACHE!H43)/CACHE!C43*100<101,CACHE!H43,0)) -> 0 | I44: =IF(CACHE!C43=0,0,IF((CACHE!F43+CACHE!G43+CACHE!H43+CACHE!I43)/CACHE!C43*100<101,CACHE!I43,0)) -> 0 | J44: =IF(CACHE!C43=0,0,IF((CACHE!F43+CACHE!G43+CACHE!H43+CACHE!I43+CACHE!J43)/CACHE!C43*100<101,CACHE!J43,0)) -> 0
A45: 39 | B45: ='INVEST Frais d''établissment -05'!B46 -> 0 | C45: ='INVEST Frais d''établissment -05'!O46 -> 0 | D45: 2 | E45: 0.5 | F45: =IF(CACHE!C44=0,0,IF((CACHE!F44/CACHE!C44*100)<101,CACHE!F44,0)) -> 0 | G45: =IF(CACHE!C44=0,0,IF((CACHE!F44+CACHE!G44)/CACHE!C44*100<101,CACHE!G44,0)) -> 0 | H45: =IF(CACHE!C44=0,0,IF((CACHE!F44+CACHE!G44+CACHE!H44)/CACHE!C44*100<101,CACHE!H44,0)) -> 0 | I45: =IF(CACHE!C44=0,0,IF((CACHE!F44+CACHE!G44+CACHE!H44+CACHE!I44)/CACHE!C44*100<101,CACHE!I44,0)) -> 0 | J45: =IF(CACHE!C44=0,0,IF((CACHE!F44+CACHE!G44+CACHE!H44+CACHE!I44+CACHE!J44)/CACHE!C44*100<101,CACHE!J44,0)) -> 0
A46: 40 | B46: ='INVEST Frais d''établissment -05'!B47 -> 0 | C46: ='INVEST Frais d''établissment -05'!O47 -> 0 | D46: 2 | E46: 0.5 | F46: =IF(CACHE!C45=0,0,IF((CACHE!F45/CACHE!C45*100)<101,CACHE!F45,0)) -> 0 | G46: =IF(CACHE!C45=0,0,IF((CACHE!F45+CACHE!G45)/CACHE!C45*100<101,CACHE!G45,0)) -> 0 | H46: =IF(CACHE!C45=0,0,IF((CACHE!F45+CACHE!G45+CACHE!H45)/CACHE!C45*100<101,CACHE!H45,0)) -> 0 | I46: =IF(CACHE!C45=0,0,IF((CACHE!F45+CACHE!G45+CACHE!H45+CACHE!I45)/CACHE!C45*100<101,CACHE!I45,0)) -> 0 | J46: =IF(CACHE!C45=0,0,IF((CACHE!F45+CACHE!G45+CACHE!H45+CACHE!I45+CACHE!J45)/CACHE!C45*100<101,CACHE!J45,0)) -> 0
A47: 41 | B47: ='INVEST Frais d''établissment -05'!B48 -> 0 | C47: ='INVEST Frais d''établissment -05'!O48 -> 0 | D47: 2 | E47: 0.5 | F47: =IF(CACHE!C46=0,0,IF((CACHE!F46/CACHE!C46*100)<101,CACHE!F46,0)) -> 0 | G47: =IF(CACHE!C46=0,0,IF((CACHE!F46+CACHE!G46)/CACHE!C46*100<101,CACHE!G46,0)) -> 0 | H47: =IF(CACHE!C46=0,0,IF((CACHE!F46+CACHE!G46+CACHE!H46)/CACHE!C46*100<101,CACHE!H46,0)) -> 0 | I47: =IF(CACHE!C46=0,0,IF((CACHE!F46+CACHE!G46+CACHE!H46+CACHE!I46)/CACHE!C46*100<101,CACHE!I46,0)) -> 0 | J47: =IF(CACHE!C46=0,0,IF((CACHE!F46+CACHE!G46+CACHE!H46+CACHE!I46+CACHE!J46)/CACHE!C46*100<101,CACHE!J46,0)) -> 0
A48: 42 | B48: ='INVEST Frais d''établissment -05'!B49 -> 0 | C48: ='INVEST Frais d''établissment -05'!O49 -> 0 | D48: 2 | E48: 0.5 | F48: =IF(CACHE!C47=0,0,IF((CACHE!F47/CACHE!C47*100)<101,CACHE!F47,0)) -> 0 | G48: =IF(CACHE!C47=0,0,IF((CACHE!F47+CACHE!G47)/CACHE!C47*100<101,CACHE!G47,0)) -> 0 | H48: =IF(CACHE!C47=0,0,IF((CACHE!F47+CACHE!G47+CACHE!H47)/CACHE!C47*100<101,CACHE!H47,0)) -> 0 | I48: =IF(CACHE!C47=0,0,IF((CACHE!F47+CACHE!G47+CACHE!H47+CACHE!I47)/CACHE!C47*100<101,CACHE!I47,0)) -> 0 | J48: =IF(CACHE!C47=0,0,IF((CACHE!F47+CACHE!G47+CACHE!H47+CACHE!I47+CACHE!J47)/CACHE!C47*100<101,CACHE!J47,0)) -> 0
A49: 43 | B49: ='INVEST Frais d''établissment -05'!B50 -> 0 | C49: ='INVEST Frais d''établissment -05'!O50 -> 0 | D49: 2 | E49: 0.5 | F49: =IF(CACHE!C48=0,0,IF((CACHE!F48/CACHE!C48*100)<101,CACHE!F48,0)) -> 0 | G49: =IF(CACHE!C48=0,0,IF((CACHE!F48+CACHE!G48)/CACHE!C48*100<101,CACHE!G48,0)) -> 0 | H49: =IF(CACHE!C48=0,0,IF((CACHE!F48+CACHE!G48+CACHE!H48)/CACHE!C48*100<101,CACHE!H48,0)) -> 0 | I49: =IF(CACHE!C48=0,0,IF((CACHE!F48+CACHE!G48+CACHE!H48+CACHE!I48)/CACHE!C48*100<101,CACHE!I48,0)) -> 0 | J49: =IF(CACHE!C48=0,0,IF((CACHE!F48+CACHE!G48+CACHE!H48+CACHE!I48+CACHE!J48)/CACHE!C48*100<101,CACHE!J48,0)) -> 0
A50: 44 | B50: ='INVEST Frais d''établissment -05'!B51 -> 0 | C50: ='INVEST Frais d''établissment -05'!O51 -> 0 | D50: 2 | E50: 0.5 | F50: =IF(CACHE!C49=0,0,IF((CACHE!F49/CACHE!C49*100)<101,CACHE!F49,0)) -> 0 | G50: =IF(CACHE!C49=0,0,IF((CACHE!F49+CACHE!G49)/CACHE!C49*100<101,CACHE!G49,0)) -> 0 | H50: =IF(CACHE!C49=0,0,IF((CACHE!F49+CACHE!G49+CACHE!H49)/CACHE!C49*100<101,CACHE!H49,0)) -> 0 | I50: =IF(CACHE!C49=0,0,IF((CACHE!F49+CACHE!G49+CACHE!H49+CACHE!I49)/CACHE!C49*100<101,CACHE!I49,0)) -> 0 | J50: =IF(CACHE!C49=0,0,IF((CACHE!F49+CACHE!G49+CACHE!H49+CACHE!I49+CACHE!J49)/CACHE!C49*100<101,CACHE!J49,0)) -> 0
A51: 45 | B51: ='INVEST Frais d''établissment -05'!B52 -> 0 | C51: ='INVEST Frais d''établissment -05'!O52 -> 0 | D51: 2 | E51: 0.5 | F51: =IF(CACHE!C50=0,0,IF((CACHE!F50/CACHE!C50*100)<101,CACHE!F50,0)) -> 0 | G51: =IF(CACHE!C50=0,0,IF((CACHE!F50+CACHE!G50)/CACHE!C50*100<101,CACHE!G50,0)) -> 0 | H51: =IF(CACHE!C50=0,0,IF((CACHE!F50+CACHE!G50+CACHE!H50)/CACHE!C50*100<101,CACHE!H50,0)) -> 0 | I51: =IF(CACHE!C50=0,0,IF((CACHE!F50+CACHE!G50+CACHE!H50+CACHE!I50)/CACHE!C50*100<101,CACHE!I50,0)) -> 0 | J51: =IF(CACHE!C50=0,0,IF((CACHE!F50+CACHE!G50+CACHE!H50+CACHE!I50+CACHE!J50)/CACHE!C50*100<101,CACHE!J50,0)) -> 0
A52: 46 | B52: ='INVEST Frais d''établissment -05'!B53 -> 0 | C52: ='INVEST Frais d''établissment -05'!O53 -> 0 | D52: 2 | E52: 0.5 | F52: =IF(CACHE!C51=0,0,IF((CACHE!F51/CACHE!C51*100)<101,CACHE!F51,0)) -> 0 | G52: =IF(CACHE!C51=0,0,IF((CACHE!F51+CACHE!G51)/CACHE!C51*100<101,CACHE!G51,0)) -> 0 | H52: =IF(CACHE!C51=0,0,IF((CACHE!F51+CACHE!G51+CACHE!H51)/CACHE!C51*100<101,CACHE!H51,0)) -> 0 | I52: =IF(CACHE!C51=0,0,IF((CACHE!F51+CACHE!G51+CACHE!H51+CACHE!I51)/CACHE!C51*100<101,CACHE!I51,0)) -> 0 | J52: =IF(CACHE!C51=0,0,IF((CACHE!F51+CACHE!G51+CACHE!H51+CACHE!I51+CACHE!J51)/CACHE!C51*100<101,CACHE!J51,0)) -> 0
A53: 47 | B53: ='INVEST Frais d''établissment -05'!B54 -> 0 | C53: ='INVEST Frais d''établissment -05'!O54 -> 0 | D53: 2 | E53: 0.5 | F53: =IF(CACHE!C52=0,0,IF((CACHE!F52/CACHE!C52*100)<101,CACHE!F52,0)) -> 0 | G53: =IF(CACHE!C52=0,0,IF((CACHE!F52+CACHE!G52)/CACHE!C52*100<101,CACHE!G52,0)) -> 0 | H53: =IF(CACHE!C52=0,0,IF((CACHE!F52+CACHE!G52+CACHE!H52)/CACHE!C52*100<101,CACHE!H52,0)) -> 0 | I53: =IF(CACHE!C52=0,0,IF((CACHE!F52+CACHE!G52+CACHE!H52+CACHE!I52)/CACHE!C52*100<101,CACHE!I52,0)) -> 0 | J53: =IF(CACHE!C52=0,0,IF((CACHE!F52+CACHE!G52+CACHE!H52+CACHE!I52+CACHE!J52)/CACHE!C52*100<101,CACHE!J52,0)) -> 0
A54: 48 | B54: ='INVEST Frais d''établissment -05'!B55 -> 0 | C54: ='INVEST Frais d''établissment -05'!O55 -> 0 | D54: 2 | E54: 0.5 | F54: =IF(CACHE!C53=0,0,IF((CACHE!F53/CACHE!C53*100)<101,CACHE!F53,0)) -> 0 | G54: =IF(CACHE!C53=0,0,IF((CACHE!F53+CACHE!G53)/CACHE!C53*100<101,CACHE!G53,0)) -> 0 | H54: =IF(CACHE!C53=0,0,IF((CACHE!F53+CACHE!G53+CACHE!H53)/CACHE!C53*100<101,CACHE!H53,0)) -> 0 | I54: =IF(CACHE!C53=0,0,IF((CACHE!F53+CACHE!G53+CACHE!H53+CACHE!I53)/CACHE!C53*100<101,CACHE!I53,0)) -> 0 | J54: =IF(CACHE!C53=0,0,IF((CACHE!F53+CACHE!G53+CACHE!H53+CACHE!I53+CACHE!J53)/CACHE!C53*100<101,CACHE!J53,0)) -> 0
B55: * La liste des immobilisations et leur valeur dans cette rubrique du tableau des amortissements devraient correspondre en tout point à la liste et à la valeur des immobilisations sur la liste des investissements prévus. Voir feuille "Investissements" (sous réserve que dans le présent tableau les valeurs sont en milliers de F. Cfa).
B58: LOGICIEL | C58: =SUM(C59:C106) -> 0 | F58: =SUM(F59:F106) -> 0 | G58: 0 | H58: 0 | I58: 0 | J58: 0
A59: 1 | B59: ='INVEST Logiciels - 05'!B8 -> 0 | C59: ='INVEST Logiciels - 05'!Q8 -> 0 | D59: ='REFERENCES - 05'!D27 -> 3 | E59: =IF(D59>0,1/D59,0) -> 0.3333333333 | F59: =IF(CACHE!C55=0,0,IF((CACHE!F55/CACHE!C55*100)<101,CACHE!F55,0)) -> 0 | G59: =IF(CACHE!C55=0,0,IF((CACHE!F55+CACHE!G55)/CACHE!C55*100<101,CACHE!G55,0)) -> 0 | H59: =IF(CACHE!C55=0,0,IF((CACHE!F55+CACHE!G55+CACHE!H55)/CACHE!C55*100<101,CACHE!H55,0)) -> 0 | I59: =IF(CACHE!C55=0,0,IF((CACHE!F55+CACHE!G55+CACHE!H55+CACHE!I55)/CACHE!C55*100<101,CACHE!I55,0)) -> 0 | J59: =IF(CACHE!C55=0,0,IF((CACHE!F55+CACHE!G55+CACHE!H55+CACHE!I55+CACHE!J55)/CACHE!C55*100<101,CACHE!J55,0)) -> 0
A60: =+A59+1 -> 2 | B60: ='INVEST Logiciels - 05'!B9 -> 0 | C60: ='INVEST Logiciels - 05'!Q9 -> 0 | D60: =D59 -> 3 | E60: 0.3333333333 | F60: =IF(CACHE!C56=0,0,IF((CACHE!F56/CACHE!C56*100)<101,CACHE!F56,0)) -> 0 | G60: =IF(CACHE!C56=0,0,IF((CACHE!F56+CACHE!G56)/CACHE!C56*100<101,CACHE!G56,0)) -> 0 | H60: =IF(CACHE!C56=0,0,IF((CACHE!F56+CACHE!G56+CACHE!H56)/CACHE!C56*100<101,CACHE!H56,0)) -> 0 | I60: =IF(CACHE!C56=0,0,IF((CACHE!F56+CACHE!G56+CACHE!H56+CACHE!I56)/CACHE!C56*100<101,CACHE!I56,0)) -> 0 | J60: =IF(CACHE!C56=0,0,IF((CACHE!F56+CACHE!G56+CACHE!H56+CACHE!I56+CACHE!J56)/CACHE!C56*100<101,CACHE!J56,0)) -> 0
A61: =+A60+1 -> 3 | B61: ='INVEST Logiciels - 05'!B10 -> 0 | C61: ='INVEST Logiciels - 05'!Q10 -> 0 | D61: =D60 -> 3 | E61: 0.3333333333 | F61: =IF(CACHE!C57=0,0,IF((CACHE!F57/CACHE!C57*100)<101,CACHE!F57,0)) -> 0 | G61: =IF(CACHE!C57=0,0,IF((CACHE!F57+CACHE!G57)/CACHE!C57*100<101,CACHE!G57,0)) -> 0 | H61: =IF(CACHE!C57=0,0,IF((CACHE!F57+CACHE!G57+CACHE!H57)/CACHE!C57*100<101,CACHE!H57,0)) -> 0 | I61: =IF(CACHE!C57=0,0,IF((CACHE!F57+CACHE!G57+CACHE!H57+CACHE!I57)/CACHE!C57*100<101,CACHE!I57,0)) -> 0 | J61: =IF(CACHE!C57=0,0,IF((CACHE!F57+CACHE!G57+CACHE!H57+CACHE!I57+CACHE!J57)/CACHE!C57*100<101,CACHE!J57,0)) -> 0
A62: 4 | B62: ='INVEST Logiciels - 05'!B11 -> 0 | C62: ='INVEST Logiciels - 05'!Q11 -> 0 | D62: 3 | E62: 0.3333333333 | F62: =IF(CACHE!C58=0,0,IF((CACHE!F58/CACHE!C58*100)<101,CACHE!F58,0)) -> 0 | G62: =IF(CACHE!C58=0,0,IF((CACHE!F58+CACHE!G58)/CACHE!C58*100<101,CACHE!G58,0)) -> 0 | H62: =IF(CACHE!C58=0,0,IF((CACHE!F58+CACHE!G58+CACHE!H58)/CACHE!C58*100<101,CACHE!H58,0)) -> 0 | I62: =IF(CACHE!C58=0,0,IF((CACHE!F58+CACHE!G58+CACHE!H58+CACHE!I58)/CACHE!C58*100<101,CACHE!I58,0)) -> 0 | J62: =IF(CACHE!C58=0,0,IF((CACHE!F58+CACHE!G58+CACHE!H58+CACHE!I58+CACHE!J58)/CACHE!C58*100<101,CACHE!J58,0)) -> 0
A63: 5 | B63: ='INVEST Logiciels - 05'!B12 -> 0 | C63: ='INVEST Logiciels - 05'!Q12 -> 0 | D63: 3 | E63: 0.3333333333 | F63: =IF(CACHE!C59=0,0,IF((CACHE!F59/CACHE!C59*100)<101,CACHE!F59,0)) -> 0 | G63: =IF(CACHE!C59=0,0,IF((CACHE!F59+CACHE!G59)/CACHE!C59*100<101,CACHE!G59,0)) -> 0 | H63: =IF(CACHE!C59=0,0,IF((CACHE!F59+CACHE!G59+CACHE!H59)/CACHE!C59*100<101,CACHE!H59,0)) -> 0 | I63: =IF(CACHE!C59=0,0,IF((CACHE!F59+CACHE!G59+CACHE!H59+CACHE!I59)/CACHE!C59*100<101,CACHE!I59,0)) -> 0 | J63: =IF(CACHE!C59=0,0,IF((CACHE!F59+CACHE!G59+CACHE!H59+CACHE!I59+CACHE!J59)/CACHE!C59*100<101,CACHE!J59,0)) -> 0
A64: 6 | B64: ='INVEST Logiciels - 05'!B13 -> 0 | C64: ='INVEST Logiciels - 05'!Q13 -> 0 | D64: 3 | E64: 0.3333333333 | F64: =IF(CACHE!C60=0,0,IF((CACHE!F60/CACHE!C60*100)<101,CACHE!F60,0)) -> 0 | G64: =IF(CACHE!C60=0,0,IF((CACHE!F60+CACHE!G60)/CACHE!C60*100<101,CACHE!G60,0)) -> 0 | H64: =IF(CACHE!C60=0,0,IF((CACHE!F60+CACHE!G60+CACHE!H60)/CACHE!C60*100<101,CACHE!H60,0)) -> 0 | I64: =IF(CACHE!C60=0,0,IF((CACHE!F60+CACHE!G60+CACHE!H60+CACHE!I60)/CACHE!C60*100<101,CACHE!I60,0)) -> 0 | J64: =IF(CACHE!C60=0,0,IF((CACHE!F60+CACHE!G60+CACHE!H60+CACHE!I60+CACHE!J60)/CACHE!C60*100<101,CACHE!J60,0)) -> 0
A65: 7 | B65: ='INVEST Logiciels - 05'!B14 -> 0 | C65: ='INVEST Logiciels - 05'!Q14 -> 0 | D65: 3 | E65: 0.3333333333 | F65: =IF(CACHE!C61=0,0,IF((CACHE!F61/CACHE!C61*100)<101,CACHE!F61,0)) -> 0 | G65: =IF(CACHE!C61=0,0,IF((CACHE!F61+CACHE!G61)/CACHE!C61*100<101,CACHE!G61,0)) -> 0 | H65: =IF(CACHE!C61=0,0,IF((CACHE!F61+CACHE!G61+CACHE!H61)/CACHE!C61*100<101,CACHE!H61,0)) -> 0 | I65: =IF(CACHE!C61=0,0,IF((CACHE!F61+CACHE!G61+CACHE!H61+CACHE!I61)/CACHE!C61*100<101,CACHE!I61,0)) -> 0 | J65: =IF(CACHE!C61=0,0,IF((CACHE!F61+CACHE!G61+CACHE!H61+CACHE!I61+CACHE!J61)/CACHE!C61*100<101,CACHE!J61,0)) -> 0
A66: 8 | B66: ='INVEST Logiciels - 05'!B15 -> 0 | C66: ='INVEST Logiciels - 05'!Q15 -> 0 | D66: 3 | E66: 0.3333333333 | F66: =IF(CACHE!C62=0,0,IF((CACHE!F62/CACHE!C62*100)<101,CACHE!F62,0)) -> 0 | G66: =IF(CACHE!C62=0,0,IF((CACHE!F62+CACHE!G62)/CACHE!C62*100<101,CACHE!G62,0)) -> 0 | H66: =IF(CACHE!C62=0,0,IF((CACHE!F62+CACHE!G62+CACHE!H62)/CACHE!C62*100<101,CACHE!H62,0)) -> 0 | I66: =IF(CACHE!C62=0,0,IF((CACHE!F62+CACHE!G62+CACHE!H62+CACHE!I62)/CACHE!C62*100<101,CACHE!I62,0)) -> 0 | J66: =IF(CACHE!C62=0,0,IF((CACHE!F62+CACHE!G62+CACHE!H62+CACHE!I62+CACHE!J62)/CACHE!C62*100<101,CACHE!J62,0)) -> 0
A67: 9 | B67: ='INVEST Logiciels - 05'!B16 -> 0 | C67: ='INVEST Logiciels - 05'!Q16 -> 0 | D67: 3 | E67: 0.3333333333 | F67: =IF(CACHE!C63=0,0,IF((CACHE!F63/CACHE!C63*100)<101,CACHE!F63,0)) -> 0 | G67: =IF(CACHE!C63=0,0,IF((CACHE!F63+CACHE!G63)/CACHE!C63*100<101,CACHE!G63,0)) -> 0 | H67: =IF(CACHE!C63=0,0,IF((CACHE!F63+CACHE!G63+CACHE!H63)/CACHE!C63*100<101,CACHE!H63,0)) -> 0 | I67: =IF(CACHE!C63=0,0,IF((CACHE!F63+CACHE!G63+CACHE!H63+CACHE!I63)/CACHE!C63*100<101,CACHE!I63,0)) -> 0 | J67: =IF(CACHE!C63=0,0,IF((CACHE!F63+CACHE!G63+CACHE!H63+CACHE!I63+CACHE!J63)/CACHE!C63*100<101,CACHE!J63,0)) -> 0
A68: 10 | B68: ='INVEST Logiciels - 05'!B17 -> 0 | C68: ='INVEST Logiciels - 05'!Q17 -> 0 | D68: 3 | E68: 0.3333333333 | F68: =IF(CACHE!C64=0,0,IF((CACHE!F64/CACHE!C64*100)<101,CACHE!F64,0)) -> 0 | G68: =IF(CACHE!C64=0,0,IF((CACHE!F64+CACHE!G64)/CACHE!C64*100<101,CACHE!G64,0)) -> 0 | H68: =IF(CACHE!C64=0,0,IF((CACHE!F64+CACHE!G64+CACHE!H64)/CACHE!C64*100<101,CACHE!H64,0)) -> 0 | I68: =IF(CACHE!C64=0,0,IF((CACHE!F64+CACHE!G64+CACHE!H64+CACHE!I64)/CACHE!C64*100<101,CACHE!I64,0)) -> 0 | J68: =IF(CACHE!C64=0,0,IF((CACHE!F64+CACHE!G64+CACHE!H64+CACHE!I64+CACHE!J64)/CACHE!C64*100<101,CACHE!J64,0)) -> 0
A69: 11 | B69: ='INVEST Logiciels - 05'!B18 -> 0 | C69: ='INVEST Logiciels - 05'!Q18 -> 0 | D69: 3 | E69: 0.3333333333 | F69: =IF(CACHE!C65=0,0,IF((CACHE!F65/CACHE!C65*100)<101,CACHE!F65,0)) -> 0 | G69: =IF(CACHE!C65=0,0,IF((CACHE!F65+CACHE!G65)/CACHE!C65*100<101,CACHE!G65,0)) -> 0 | H69: =IF(CACHE!C65=0,0,IF((CACHE!F65+CACHE!G65+CACHE!H65)/CACHE!C65*100<101,CACHE!H65,0)) -> 0 | I69: =IF(CACHE!C65=0,0,IF((CACHE!F65+CACHE!G65+CACHE!H65+CACHE!I65)/CACHE!C65*100<101,CACHE!I65,0)) -> 0 | J69: =IF(CACHE!C65=0,0,IF((CACHE!F65+CACHE!G65+CACHE!H65+CACHE!I65+CACHE!J65)/CACHE!C65*100<101,CACHE!J65,0)) -> 0
A70: 12 | B70: ='INVEST Logiciels - 05'!B19 -> 0 | C70: ='INVEST Logiciels - 05'!Q19 -> 0 | D70: 3 | E70: 0.3333333333 | F70: =IF(CACHE!C66=0,0,IF((CACHE!F66/CACHE!C66*100)<101,CACHE!F66,0)) -> 0 | G70: =IF(CACHE!C66=0,0,IF((CACHE!F66+CACHE!G66)/CACHE!C66*100<101,CACHE!G66,0)) -> 0 | H70: =IF(CACHE!C66=0,0,IF((CACHE!F66+CACHE!G66+CACHE!H66)/CACHE!C66*100<101,CACHE!H66,0)) -> 0 | I70: =IF(CACHE!C66=0,0,IF((CACHE!F66+CACHE!G66+CACHE!H66+CACHE!I66)/CACHE!C66*100<101,CACHE!I66,0)) -> 0 | J70: =IF(CACHE!C66=0,0,IF((CACHE!F66+CACHE!G66+CACHE!H66+CACHE!I66+CACHE!J66)/CACHE!C66*100<101,CACHE!J66,0)) -> 0
A71: 13 | B71: ='INVEST Logiciels - 05'!B20 -> 0 | C71: ='INVEST Logiciels - 05'!Q20 -> 0 | D71: 3 | E71: 0.3333333333 | F71: =IF(CACHE!C67=0,0,IF((CACHE!F67/CACHE!C67*100)<101,CACHE!F67,0)) -> 0 | G71: =IF(CACHE!C67=0,0,IF((CACHE!F67+CACHE!G67)/CACHE!C67*100<101,CACHE!G67,0)) -> 0 | H71: =IF(CACHE!C67=0,0,IF((CACHE!F67+CACHE!G67+CACHE!H67)/CACHE!C67*100<101,CACHE!H67,0)) -> 0 | I71: =IF(CACHE!C67=0,0,IF((CACHE!F67+CACHE!G67+CACHE!H67+CACHE!I67)/CACHE!C67*100<101,CACHE!I67,0)) -> 0 | J71: =IF(CACHE!C67=0,0,IF((CACHE!F67+CACHE!G67+CACHE!H67+CACHE!I67+CACHE!J67)/CACHE!C67*100<101,CACHE!J67,0)) -> 0
A72: 14 | B72: ='INVEST Logiciels - 05'!B21 -> 0 | C72: ='INVEST Logiciels - 05'!Q21 -> 0 | D72: 3 | E72: 0.3333333333 | F72: =IF(CACHE!C68=0,0,IF((CACHE!F68/CACHE!C68*100)<101,CACHE!F68,0)) -> 0 | G72: =IF(CACHE!C68=0,0,IF((CACHE!F68+CACHE!G68)/CACHE!C68*100<101,CACHE!G68,0)) -> 0 | H72: =IF(CACHE!C68=0,0,IF((CACHE!F68+CACHE!G68+CACHE!H68)/CACHE!C68*100<101,CACHE!H68,0)) -> 0 | I72: =IF(CACHE!C68=0,0,IF((CACHE!F68+CACHE!G68+CACHE!H68+CACHE!I68)/CACHE!C68*100<101,CACHE!I68,0)) -> 0 | J72: =IF(CACHE!C68=0,0,IF((CACHE!F68+CACHE!G68+CACHE!H68+CACHE!I68+CACHE!J68)/CACHE!C68*100<101,CACHE!J68,0)) -> 0
A73: 15 | B73: ='INVEST Logiciels - 05'!B22 -> 0 | C73: ='INVEST Logiciels - 05'!Q22 -> 0 | D73: 3 | E73: 0.3333333333 | F73: =IF(CACHE!C69=0,0,IF((CACHE!F69/CACHE!C69*100)<101,CACHE!F69,0)) -> 0 | G73: =IF(CACHE!C69=0,0,IF((CACHE!F69+CACHE!G69)/CACHE!C69*100<101,CACHE!G69,0)) -> 0 | H73: =IF(CACHE!C69=0,0,IF((CACHE!F69+CACHE!G69+CACHE!H69)/CACHE!C69*100<101,CACHE!H69,0)) -> 0 | I73: =IF(CACHE!C69=0,0,IF((CACHE!F69+CACHE!G69+CACHE!H69+CACHE!I69)/CACHE!C69*100<101,CACHE!I69,0)) -> 0 | J73: =IF(CACHE!C69=0,0,IF((CACHE!F69+CACHE!G69+CACHE!H69+CACHE!I69+CACHE!J69)/CACHE!C69*100<101,CACHE!J69,0)) -> 0
A74: 16 | B74: ='INVEST Logiciels - 05'!B23 -> 0 | C74: ='INVEST Logiciels - 05'!Q23 -> 0 | D74: 3 | E74: 0.3333333333 | F74: =IF(CACHE!C70=0,0,IF((CACHE!F70/CACHE!C70*100)<101,CACHE!F70,0)) -> 0 | G74: =IF(CACHE!C70=0,0,IF((CACHE!F70+CACHE!G70)/CACHE!C70*100<101,CACHE!G70,0)) -> 0 | H74: =IF(CACHE!C70=0,0,IF((CACHE!F70+CACHE!G70+CACHE!H70)/CACHE!C70*100<101,CACHE!H70,0)) -> 0 | I74: =IF(CACHE!C70=0,0,IF((CACHE!F70+CACHE!G70+CACHE!H70+CACHE!I70)/CACHE!C70*100<101,CACHE!I70,0)) -> 0 | J74: =IF(CACHE!C70=0,0,IF((CACHE!F70+CACHE!G70+CACHE!H70+CACHE!I70+CACHE!J70)/CACHE!C70*100<101,CACHE!J70,0)) -> 0
A75: 17 | B75: ='INVEST Logiciels - 05'!B24 -> 0 | C75: ='INVEST Logiciels - 05'!Q24 -> 0 | D75: =D74 -> 3 | E75: 0.3333333333 | F75: =IF(CACHE!C71=0,0,IF((CACHE!F71/CACHE!C71*100)<101,CACHE!F71,0)) -> 0 | G75: =IF(CACHE!C71=0,0,IF((CACHE!F71+CACHE!G71)/CACHE!C71*100<101,CACHE!G71,0)) -> 0 | H75: =IF(CACHE!C71=0,0,IF((CACHE!F71+CACHE!G71+CACHE!H71)/CACHE!C71*100<101,CACHE!H71,0)) -> 0 | I75: =IF(CACHE!C71=0,0,IF((CACHE!F71+CACHE!G71+CACHE!H71+CACHE!I71)/CACHE!C71*100<101,CACHE!I71,0)) -> 0 | J75: =IF(CACHE!C71=0,0,IF((CACHE!F71+CACHE!G71+CACHE!H71+CACHE!I71+CACHE!J71)/CACHE!C71*100<101,CACHE!J71,0)) -> 0
A76: 18 | B76: ='INVEST Logiciels - 05'!B25 -> 0 | C76: ='INVEST Logiciels - 05'!Q25 -> 0 | D76: =D75 -> 3 | E76: =IF(D76>0,1/D76,0) -> 0.3333333333 | F76: =IF(CACHE!C72=0,0,IF((CACHE!F72/CACHE!C72*100)<101,CACHE!F72,0)) -> 0 | G76: =IF(CACHE!C72=0,0,IF((CACHE!F72+CACHE!G72)/CACHE!C72*100<101,CACHE!G72,0)) -> 0 | H76: =IF(CACHE!C72=0,0,IF((CACHE!F72+CACHE!G72+CACHE!H72)/CACHE!C72*100<101,CACHE!H72,0)) -> 0 | I76: =IF(CACHE!C72=0,0,IF((CACHE!F72+CACHE!G72+CACHE!H72+CACHE!I72)/CACHE!C72*100<101,CACHE!I72,0)) -> 0 | J76: =IF(CACHE!C72=0,0,IF((CACHE!F72+CACHE!G72+CACHE!H72+CACHE!I72+CACHE!J72)/CACHE!C72*100<101,CACHE!J72,0)) -> 0
A77: 19 | B77: ='INVEST Logiciels - 05'!B26 -> 0 | C77: ='INVEST Logiciels - 05'!Q26 -> 0 | D77: 3 | E77: 0.3333333333 | F77: =IF(CACHE!C73=0,0,IF((CACHE!F73/CACHE!C73*100)<101,CACHE!F73,0)) -> 0 | G77: =IF(CACHE!C73=0,0,IF((CACHE!F73+CACHE!G73)/CACHE!C73*100<101,CACHE!G73,0)) -> 0 | H77: =IF(CACHE!C73=0,0,IF((CACHE!F73+CACHE!G73+CACHE!H73)/CACHE!C73*100<101,CACHE!H73,0)) -> 0 | I77: =IF(CACHE!C73=0,0,IF((CACHE!F73+CACHE!G73+CACHE!H73+CACHE!I73)/CACHE!C73*100<101,CACHE!I73,0)) -> 0 | J77: =IF(CACHE!C73=0,0,IF((CACHE!F73+CACHE!G73+CACHE!H73+CACHE!I73+CACHE!J73)/CACHE!C73*100<101,CACHE!J73,0)) -> 0
A78: 20 | B78: ='INVEST Logiciels - 05'!B27 -> 0 | C78: ='INVEST Logiciels - 05'!Q27 -> 0 | D78: 3 | E78: 0.3333333333 | F78: =IF(CACHE!C74=0,0,IF((CACHE!F74/CACHE!C74*100)<101,CACHE!F74,0)) -> 0 | G78: =IF(CACHE!C74=0,0,IF((CACHE!F74+CACHE!G74)/CACHE!C74*100<101,CACHE!G74,0)) -> 0 | H78: =IF(CACHE!C74=0,0,IF((CACHE!F74+CACHE!G74+CACHE!H74)/CACHE!C74*100<101,CACHE!H74,0)) -> 0 | I78: =IF(CACHE!C74=0,0,IF((CACHE!F74+CACHE!G74+CACHE!H74+CACHE!I74)/CACHE!C74*100<101,CACHE!I74,0)) -> 0 | J78: =IF(CACHE!C74=0,0,IF((CACHE!F74+CACHE!G74+CACHE!H74+CACHE!I74+CACHE!J74)/CACHE!C74*100<101,CACHE!J74,0)) -> 0
A79: 21 | B79: ='INVEST Logiciels - 05'!B28 -> 0 | C79: ='INVEST Logiciels - 05'!Q28 -> 0 | D79: 3 | E79: 0.3333333333 | F79: =IF(CACHE!C75=0,0,IF((CACHE!F75/CACHE!C75*100)<101,CACHE!F75,0)) -> 0 | G79: =IF(CACHE!C75=0,0,IF((CACHE!F75+CACHE!G75)/CACHE!C75*100<101,CACHE!G75,0)) -> 0 | H79: =IF(CACHE!C75=0,0,IF((CACHE!F75+CACHE!G75+CACHE!H75)/CACHE!C75*100<101,CACHE!H75,0)) -> 0 | I79: =IF(CACHE!C75=0,0,IF((CACHE!F75+CACHE!G75+CACHE!H75+CACHE!I75)/CACHE!C75*100<101,CACHE!I75,0)) -> 0 | J79: =IF(CACHE!C75=0,0,IF((CACHE!F75+CACHE!G75+CACHE!H75+CACHE!I75+CACHE!J75)/CACHE!C75*100<101,CACHE!J75,0)) -> 0
